Workbook

Sheet INPUT
A1: =IF(H7=1,"TEST PERIOD WITH RIDERS","TEST PERIOD WITHOUT RIDERS") -> TEST PERIOD WITH RIDERS
A4: Input Areas in Grey
B6: =IF(H$7=1,"12 Months Projected with Riders - STAFF-RHDR-01-005A","12 Months Projected without Riders - STAFF-RHDR-01-005A") -> 12 Months Projected with Riders - STAFF-RHDR-01-005A
H7: 1
B8: DUKE ENERGY KENTUCKY, INC.
B9: AUTOMATED RATE CASE FILING SYSTEM
B10: FOR THE TWELVE MONTHS ENDED June 30, 2024
B11: CASE NO. 2022-00372 - REHEARING
B12: SERVICE: | D12: (ELECTRIC SERVICE)
B13: DATA: ____ BASE PERIOD __X__FORECASTED PERIOD | I13: Number of Pages
B14: TYPE OF FILING: ___ ORIGINAL ___UPDATED _X_ REVISED | I14: Schedule M-2.2 | J14: 23
B15: ANNUALIZED TEST YEAR REVENUES AT PROPOSED VS. MOST CURRENT RATES | I15: Schedule M-2.3 | J15: 24
C17: CURRENT | D17: PROPOSED
B18: FUEL COSTS:
B19: FUEL ADJUSTMENT CLAUSE (FAC): | C19: 0.005965 | D19: 0.005965 | E19: $ PER KWH | J19: not used
B20: BASE FUEL COST: | C20: 0.025401 | D20: 0.025401 | E20: $ PER KWH
B22: RIDER MSR-E: (EFFECTIVE MAY 2010)
B23: RESIDENTIAL | E23: $ PER KWH | F23: CANCELLED & WITHDRAWN
B24: DISTRIBUTION | E24: $ PER KWH
B25: TRANSMISSION | E25: $ PER KWH
B26: LIGHTING | E26: $ PER KWH
B28: RIDER DSMR: (EFFECTIVE OCTOBER 1, 2022) | F28: Enter Here
B29: RESIDENTIAL | C29: =IF($H$7=1,F29,0) -> 0.006975 | D29: 0.006975 | E29: $ PER KWH | F29: 0.006975 | G29: =+F29 -> 0.006975 | I29: 0.3 | J29: =IF($H$7=1,I29,0) -> 0.3 | K29: HEA $ / MONTH
B30: DISTRIBUTION | C30: -0.000718 | D30: -0.000718 | E30: $ PER KWH | F30: -0.000718 | G30: =+F30 -> -0.000718
B31: TRANSMISSION | C31: 6.6e-05 | D31: 6.6e-05 | E31: $ PER KWH | F31: 6.6e-05 | G31: =+F31 -> 6.6e-05
B33: RIDER PSM : (EFFECTIVE October 1, 2022)
B34: All Rates | C34: =IF($H$7=1,F34,0) -> 0.004727 | D34: =IF($H$7=1,G34,0) -> 0.004727 | E34: $ PER KWH | F34: 0.004727 | G34: =F34 -> 0.004727
B38: WITNESS: | D38: B. L. Sailers
C41: CURRENT | D41: PROPOSED
B42: RATE RS: (EFFECTIVE OCTOBER 2, 2018)
B43: CUSTOMER CHARGE | C43: 12.6 | D43: ='Proposed Rates'!C14 -> 13 | E43: $ PER MONTH | G43: =D43/C43-1 -> 0.03174603175
B44: ENERGY CHARGE | C44: 0.080995 | D44: ='Proposed Rates'!C20 -> 0.103669 | E44: $ PER KWH | G44: 0.2799432064
B46: RATE DS: (EFFECTIVE OCTOBER 2, 2018)
B47: CUSTOMER CHARGE
B48: Single Phase | C48: 15 | D48: ='Proposed Rates'!G18 -> 15 | E48: $ PER MONTH | G48: =D48/C48-1 -> 0
B49: Three Phase | C49: 30 | D49: ='Proposed Rates'!G19 -> 30 | E49: $ PER MONTH | G49: =D49/C49-1 -> 0
B50: ENERGY CHARGE
B51: First 6000 | C51: 0.08917 | D51: ='Proposed Rates'!G32 -> 0.105979 | E51: $ PER KWH | G51: =D51/C51-1 -> 0.1885051026
B52: Next 300 KWH/KW | C52: 0.055342 | D52: ='Proposed Rates'!G36 -> 0.065774 | E52: $ PER KWH | G52: 0.1885005963
B53: Additional | C53: 0.045604 | D53: ='Proposed Rates'!G40 -> 0.054201 | E53: $ PER KWH | G53: 0.1885141654
B54: DEMAND CHARGE
B55: First 15 KW | C55: 0 | D55: 0 | E55: $ PER KW
B56: Additional | C56: 9 | D56: ='Proposed Rates'!G25 -> 10.59 | E56: $ PER KW | G56: =D56/C56-1 -> 0.1766666667
B57: CAP RATES
B58: NON-CHURCH | C58: 0.258792 | D58: ='Proposed Rates'!G44 -> 0.307576 | E58: $ PER KWH | G58: =D58/C58-1 -> 0.1885065999
B59: CHURCH | C59: 0.158876 | D59: ='Proposed Rates'!G48 -> 0.188823 | E59: $ PER KWH | G59: 0.1884929127
B61: RIDER LM: (EFFECTIVE APRIL 14, 2018)
B62: CUSTOMER CHARGE
B63: DS (NO INTERVAL DATA RECORDER) | C63: 5 | D63: 5 | E63: $ PER MONTH | G63: =D63/C63-1 -> 0
B64: DS & DP (INTERVAL DATA RECORDER) | C64: 5 | D64: 5 | E64: $ PER MONTH | G64: 0
B66: RATE DT: (EFFECTIVE OCTOBER 2, 2018)
B67: CUSTOMER CHARGE
B68: Single Phase | C68: 63.5 | D68: ='Proposed Rates'!O17 -> 63.5 | E68: $ PER MONTH | G68: 0
B69: Three Phase | C69: 127 | D69: ='Proposed Rates'!O16 -> 127 | E69: $ PER MONTH | G69: 0
B70: Primary Voltage | C70: 138 | D70: ='Proposed Rates'!O23 -> 138 | E70: $ PER MONTH | G70: 0
B71: ENERGY CHARGE
B72: Summer On-Peak | C72: 0.048389 | D72: ='Proposed Rates'!O30 -> 0.047832 | E72: $ PER KWH | G72: -0.01151088057
B73: Winter On-Peak | C73: 0.046262 | D73: ='Proposed Rates'!O31 -> 0.045735 | E73: $ PER KWH | G73: -0.01139163893
B74: Off-Peak | C74: 0.039909 | D74: ='Proposed Rates'!O32 -> 0.039463 | E74: $ PER KWH | G74: -0.01117542409
B75: DEMAND CHARGE
B76: Summer On-Peak | C76: 14.85 | D76: ='Proposed Rates'!O33 -> 14.68 | E76: $ PER KW | G76: -0.01144781145
B77: Summer Off-Peak | C77: 1.34 | D77: ='Proposed Rates'!O34 -> 1.32 | E77: $ PER KW | G77: -0.01492537313
B78: Winter On-Peak | C78: 14.05 | D78: ='Proposed Rates'!O35 -> 13.89 | E78: $ PER KW | G78: -0.01138790036
B79: Winter Off-Peak | C79: 1.34 | D79: ='Proposed Rates'!O36 -> 1.32 | E79: $ PER KW | G79: -0.01492537313
B80: Primary Service Discount First 1000 KW | C80: -0.75 | D80: ='Proposed Rates'!O38 -> -0.74 | E80: $ PER KW | G80: -0.01333333333
B81: Primary Service Discount Additional KW | C81: -0.58 | D81: ='Proposed Rates'!O39 -> -0.57 | E81: $ PER KW | G81: -0.01724137931
B82: Distribution | C82: 0 | D82: ='Proposed Rates'!O37 -> 6.23 | E82: $ PER KW
B84: RATE EH: (EFFECTIVE APRIL 14, 2018)
B85: CUSTOMER CHARGE
B86: Single Phase | C86: 15 | D86: ='Proposed Rates'!W17 -> 15 | E86: $ PER MONTH | G86: 0
B87: Three Phase | C87: 30 | D87: ='Proposed Rates'!W16 -> 30 | E87: $ PER MONTH | G87: 0
B88: Primary Voltage | C88: 117 | D88: ='Proposed Rates'!W19 -> 117 | E88: $ PER MONTH | G88: 0
B89: ENERGY CHARGE
B90: All KWH | C90: 0.069268 | D90: ='Proposed Rates'!W22 -> 0.081526 | E90: $ PER KWH | G90: 0.1769648322
B91: DEMAND CHARGE
B92: All KW | C92: 0 | D92: 0 | E92: $ PER KW
B94: RATE SP: (EFFECTIVE APRIL 14, 2018)
B95: CUSTOMER CHARGE
B96: Single Phase | C96: 15 | D96: ='Proposed Rates'!AA17 -> 15 | E96: $ PER MONTH | G96: 0
B97: ENERGY CHARGE
B98: All KWH | C98: 0.107965 | D98: ='Proposed Rates'!AA22 -> 0.128224 | E98: $ PER KWH | G98: 0.1876441439
B99: DEMAND CHARGE
B100: All KW | C100: 0 | D100: 0 | E100: $ PER KW
B102: RATE GSFL: (EFFECTIVE APRIL 14, 2018)
B103: MINIMUM BILL
B104: Minimum Bill | C104: 3.23 | D104: ='Proposed Rates'!AE18 -> 3.78 | E104: $ PER MONTH | G104: 0.1702786378
B105: ENERGY CHARGE
B106: Loads Between 540 to 720 Hours Use per Month | C106: 0.091069 | D106: ='Proposed Rates'!AE19 -> 0.10657 | E106: $ PER KWH | G106: 0.1702115978
B107: Loads < 540 Hours Use per Month | C107: 0.104699 | D107: ='Proposed Rates'!AE20 -> 0.122482 | E107: $ PER KWH | G107: 0.1698488047
B108: DEMAND CHARGE
B109: All KW | C109: 0 | D109: 0 | E109: $ PER KW
B111: RATE DP: (EFFECTIVE APRIL 14, 2018)
B112: CUSTOMER CHARGE
B113: Primary Voltage | C113: 117 | D113: ='Proposed Rates'!AJ19 -> 117 | E113: $ PER MONTH | G113: 0
B114: ENERGY CHARGE
B115: First 300 KWH/KW | C115: 0.057053 | D115: ='Proposed Rates'!AJ32 -> 0.065409 | E115: $ PER KWH | G115: 0.1464603088
B116: Additional | C116: 0.048481 | D116: ='Proposed Rates'!AJ33 -> 0.055581 | E116: $ PER KWH | G116: 0.1464491244
B117: Cap Rate | C117: 0.26202 | D117: ='Proposed Rates'!AJ34 -> 0.300394 | E117: $ PER KWH | G117: 0.1464544691
B118: DEMAND CHARGE
B119: All KW | C119: 8.6 | D119: ='Proposed Rates'!AJ31 -> 9.86 | E119: $ PER KW | G119: 0.1465116279
B121: RATE TT: (EFFECTIVE OCTOBER 2, 2018)
B122: CUSTOMER CHARGE
B123: Customer Charge | C123: 500 | D123: ='Proposed Rates'!AO18 -> 500 | E123: $ PER MONTH | G123: =D123/C123-1 -> 0
B124: ENERGY CHARGE
B125: On-Peak Summer | C125: 0.053306 | D125: ='Proposed Rates'!AO34 -> 0.060352 | E125: $ PER KWH | G125: 0.1321802424
B126: On-Peak Winter | C126: 0.050959 | D126: ='Proposed Rates'!AO35 -> 0.057695 | G126: 0.1321846975
B127: Off-Peak | C127: 0.043936 | D127: ='Proposed Rates'!AO36 -> 0.049743 | G127: 0.1321695193
B128: DEMAND CHARGE
B129: Summer On-Peak | C129: 8.51 | D129: ='Proposed Rates'!AO30 -> 9.49 | E129: $ PER KW | G129: 0.1151586369
B130: Summer Off-Peak | C130: 1.29 | D130: ='Proposed Rates'!AO32 -> 1.44 | E130: $ PER KW | G130: 0.1162790698
B131: Winter On-Peak | C131: 6.98 | D131: ='Proposed Rates'!AO31 -> 7.78 | E131: $ PER KW | G131: 0.1146131805
B132: Winter Off-Peak | C132: 1.29 | D132: =D130 -> 1.44 | E132: $ PER KW | G132: 0.1162790698
B134: RATE RTP-M: (EFFECTIVE June 1, 2012) (WITHDRAW & CANCEL)
B135: CUSTOMER CHARGE
B136: Secondary Voltage | C136: 0 | E136: $ PER MONTH
B137: Primary Voltage | C137: 0 | E137: $ PER MONTH
B138: Transmission Voltage | C138: 0 | E138: $ PER MONTH
B139: ENERGY DELIVERY CHARGE
B140: Secondary Voltage | C140: 0 | E140: $ PER KWH
B141: Primary Voltage | C141: 0 | E141: $ PER KWH
B142: Transmission Voltage | C142: 0 | E142: $ PER KWH
B143: ANSCILLARY SERVICES CHARGE
B144: Secondary Voltage | C144: 0 | E144: $ PER KWH
B145: Primary Voltage | C145: 0 | E145: $ PER KWH
B146: Transmission Voltage | C146: 0 | E146: $ PER KWH
B147: COMMODITY CHARGE
B148: Distribution Service | C148: 0 | E148: $ PER KWH
B149: Primary Service | C149: 0 | E149: $ PER KWH
B150: Transmission Service | C150: 0 | E150: $ PER KWH
B152: RATE RTP: (EFFECTIVE APRIL 14, 2018)
B153: PROGRAM CHARGE
B154: Program Charge | C154: 183 | D154: 183 | E154: $ PER MONTH | G154: =D154/C154-1 -> 0
B155: ENERGY DELIVERY CHARGE
B156: Secondary Voltage | C156: 0.018119 | D156: ='RTP Worksheet'!F16 -> 0.024809 | E156: $ PER KWH | G156: 0.3692256747
B157: Primary Voltage | C157: 0.014956 | D157: ='RTP Worksheet'!I16 -> 0.020898 | E157: $ PER KWH | G157: 0.397298743
B158: Transmission Voltage | C158: 0.006575 | D158: ='RTP Worksheet'!J16 -> 0.008139 | E158: $ PER KWH | G158: 0.2378707224
B159: COMMODITY CHARGE
B160: Distribution Service (DS-Secondary) | C160: =0.119777-C156 -> 0.101658 | D160: =C160 -> 0.101658 | E160: $ PER KWH | G160: 0
B161: Primary Service (DT-Secondary) | C161: =0.082285-C156 -> 0.064166 | D161: =C161 -> 0.064166 | E161: $ PER KWH | G161: 0
B162: Transmission Service | C162: =0.052994-C158 -> 0.046419 | D162: =C162 -> 0.046419 | E162: $ PER KWH | G162: 0
B164: RIDER ESM : (EFFECTIVE APR 1, 2018) | F164: Enter Here
B165: Residential | C165: =IF($H$7=1,F165,0) -> 0.04885516338 | D165: =IF($H$7=1,G165,0) -> 0.04171786118 | E165: % of REV | F165: 0.04885516338 | G165: 0.04171786118 | H165: For with riders, should match SFR = $21,165,856
B166: Non Residential | C166: =IF($H$7=1,F166,0) -> 0.08798914629 | D166: =IF($H$7=1,G166,0) -> 0.07513471937 | E166: % of REV | F166: =(0.0706/0.0392)*F165 -> 0.08798914629 | G166: =(0.0706/0.0392)*G165 -> 0.07513471937
H167: For without riders, ESM should be $0
B180: EXCLUDES TRANSMISSION
B194: RIDER NAMES:
B195: HOME ENERGY ASSISTANCE (HEA)
B196: DEMAND SIDE MANAGEMENT RIDER (DSMR)
B197: ENVIRONMENTAL SURCHARGE MECHANISM RIDER (ESM)
B198: FUEL ADJUSTMENT CLAUSE (FAC)
B199: PROFIT SHARING MECHANISM (PSM)
B203: RATE WS:
B204: Energy | C204: 0.062941 | D204: =C204 -> 0.062941 | E204: $ PER KWH | G204: =D204/C204-1 -> 0

Sheet PRINT
B1: =+INPUT!A1 -> TEST PERIOD WITH RIDERS
B6: SCHEDULE M-2.2 (CURRENT RATES) | L6: SCHEDULE M-2.3 (PROPOSED RATES)

Sheet Revenue Check
A1: Schedule M Summary - Current Rates
L2: Total
B3: Total | C3: Fuel Cost | G3: Riders | L3: less Riders &
B4: Revenue | C4: Base | D4: FAC | E4: Total | G4: HEA | H4: ESM | I4: DSM | J4: PSM | K4: Total | L4: Fuel Cost
A6: RS | B6: =+'SCH M'!E21 -> 176361567 | C6: =+'SCH M-2.1'!H20*CUR_BASE_FUEL -> 37909140.36 | D6: =+'SCH M-2.1'!P20 -> 8902328 | E6: =+C6+D6 -> 46811468.36 | G6: =+'Rate RS'!AN72 -> 486067 | H6: =+'Rate RS'!AN74 -> 8214836 | I6: =+'Rate RS'!AN73 -> 10409679 | J6: =+'Rate RS'!AN76 -> 7054703 | K6: =SUM(G6:J6) -> 26165285 | L6: =+B6-E6-K6 -> 103384813.6
A7: RS-TOU-CPP | B7: 0 | C7: 0 | D7: 0 | E7: 0 | G7: 0 | H7: 0 | I7: 0 | J7: 0 | K7: 0 | L7: 0
A8: DS | B8: =+'SCH M'!E26 -> 121283991 | C8: =+'SCH M-2.1'!H22*CUR_BASE_FUEL -> 29850219.86 | D8: =+'SCH M-2.1'!P22 -> 7009825 | E8: =+C8+D8 -> 36860044.86 | H8: =+'Rate DS'!AO101 -> 6827633 | I8: =+'Rate DS'!AO100 -> -843764 | J8: =+'Rate DS'!AO103 -> 5554978 | K8: =SUM(G8:J8) -> 11538847 | L8: =+B8-E8-K8 -> 72885099.14
A9: DT-Pri | B9: =+'SCH M'!E27 -> 43494672 | C9: =+'SCH M-2.1'!H23*CUR_BASE_FUEL -> 13283563.7 | D9: =+'SCH M-2.1'!P23 -> 3119423 | E9: 16402986.7 | H9: =+'Rate DT-Pri'!AO132 -> 2190991 | I9: =+'Rate DT-Pri'!AO131 -> -375481 | J9: =+'Rate DT-Pri'!AO134 -> 2472005 | K9: 4287515 | L9: 22804170.3
A10: DT- Sec | B10: =+'SCH M'!E28 -> 55333014 | C10: =+'SCH M-2.1'!H24*CUR_BASE_FUEL -> 16094865.63 | D10: =+'SCH M-2.1'!P24 -> 3779610 | E10: 19874475.63 | H10: =+'Rate DT-Sec'!AO128 -> 2867645 | I10: =+'Rate DT-Sec'!AO127 -> -454947 | J10: =+'Rate DT-Sec'!AO130 -> 2995175 | K10: 5407873 | L10: 30050665.37
A11: EH | B11: =+'SCH M'!E29 -> 1668917 | C11: =+'SCH M-2.1'!H25*CUR_BASE_FUEL -> 501420.0582 | D11: =+'SCH M-2.1'!P25 -> 117750 | E11: 619170.0582 | H11: =+'Rate EH'!AO86 -> 84896 | I11: =+'Rate EH'!AO85 -> -14173 | J11: =+'Rate EH'!AO88 -> 93312 | K11: 164035 | L11: 885711.9418
A12: SP | B12: =+'SCH M'!E30 -> 26877 | C12: =+'SCH M-2.1'!H26*CUR_BASE_FUEL -> 4922.358186 | D12: =+'SCH M-2.1'!P26 -> 1156 | E12: 6078.358186 | H12: =+'Rate SP GSFL'!AO96 -> 1682 | I12: =+'Rate SP GSFL'!AO95 -> -139 | J12: =+'Rate SP GSFL'!AO98 -> 916 | K12: 2459 | L12: 18339.64181
A13: GSFL | B13: =+'SCH M'!E31 -> 802788 | C13: =+'SCH M-2.1'!H27*CUR_BASE_FUEL -> 165335.4646 | D13: =+'SCH M-2.1'!P27 -> 38826 | E13: 204161.4646 | H13: =+'Rate SP GSFL'!AO115 -> 48413 | I13: =+'Rate SP GSFL'!AO114 -> -4673 | J13: =+'Rate SP GSFL'!AO117 -> 30768 | K13: 74508 | L13: 524118.5354
A14: DP | B14: =+'SCH M'!E32 -> 1307556 | C14: =+'SCH M-2.1'!H28*CUR_BASE_FUEL -> 351708.5454 | D14: =+'SCH M-2.1'!P28 -> 82593 | E14: 434301.5454 | H14: =+'Rate DP'!AO93 -> 70623 | I14: =+'Rate DP'!AO92 -> -9942 | J14: =+'Rate DP'!AO95 -> 65451 | K14: 126132 | L14: 747122.4546
A15: TT | B15: =+'SCH M'!E36 -> 15022536 | C15: =+'SCH M-2.1'!H29*CUR_BASE_FUEL -> 4890094.09 | D15: =+'SCH M-2.1'!P29 -> 1148357 | E15: 6038451.09 | H15: =+'Rate TT'!AO115 -> 726572 | I15: =+'Rate TT'!AO114 -> 12706 | J15: =+'Rate TT'!AO117 -> 910022 | K15: 1649300 | L15: 7334784.91
A16: DT RTP-P | B16: 0 | C16: 0 | D16: =+'SCH M-2.1'!P30 -> 0 | E16: 0 | K16: 0 | L16: 0
A17: DT RTP-S | B17: =+'SCH M'!E41 -> 346528 | C17: 0 | D17: =+'SCH M-2.1'!P31 -> 0 | E17: 0 | H17: =+'Rate DT RTP-S'!AO79 -> 193 | I17: =+'Rate DT RTP-S'!AO78 -> -2863 | J17: =+'Rate DT RTP-S'!AO80 -> 18851 | K17: 16181 | L17: 330347
A18: DS RTP | B18: =+'SCH M'!E42 -> 71131 | C18: 0 | D18: =+'SCH M-2.1'!P32 -> 0 | E18: 0 | H18: =+'Rate DS RTP'!AO79 -> 386 | I18: =+'Rate DS RTP'!AO78 -> -385 | J18: =+'Rate DS RTP'!AO80 -> 2534 | K18: 2535 | L18: 68596
A19: TT RTP | B19: =+'SCH M'!E43 -> 762340 | C19: 0 | D19: =+'SCH M-2.1'!P33 -> 0 | E19: 0 | H19: =+'Rate TT RTP'!AO81 -> 386 | I19: =+'Rate TT RTP'!AO80 -> 865 | J19: =+'Rate TT RTP'!AO82 -> 61969 | K19: 63220 | L19: 699120
A20: SL | B20: =+'SCH M'!E47 -> 1255341 | C20: =+'SCH M-2.1'!H34*CUR_BASE_FUEL -> 198766.0509 | D20: =+'SCH M-2.1'!P34 -> 46677 | E20: 245443.0509 | H20: =+'Rate SL'!AO421 -> 85449 | J20: =+'Rate SL'!AO422 -> 36989 | K20: 122438 | L20: =+B20-E20-K20 -> 887459.9491
A21: TL | B21: =+'SCH M'!E48 -> 99885 | C21: =+'SCH M-2.1'!H35*CUR_BASE_FUEL -> 36645.10826 | D21: =+'SCH M-2.1'!P35 -> 8605 | E21: 45250.10826 | H21: =+'Rate TL'!AO94 -> 5114 | J21: =+'Rate TL'!AO95 -> 6819 | K21: 11933 | L21: 42701.89174
A22: UOL | B22: =+'SCH M'!E49 -> 406677 | C22: =+'SCH M-2.1'!H36*CUR_BASE_FUEL -> 184609.2862 | D22: =+'SCH M-2.1'!P36 -> 43352 | E22: 227961.2862 | H22: =+'Rate UOLS'!AO59 -> 17959 | J22: =+'Rate UOLS'!AO60 -> 34355 | K22: 52314 | L22: 126401.7138
A23: NSU | B23: =+'SCH M'!E50 -> 76288 | C23: =+'SCH M-2.1'!H37*CUR_BASE_FUEL -> 10154.17676 | D23: =+'SCH M-2.1'!P37 -> 2385 | E23: 12539.17676 | H23: =+'Rate NSU'!AO91 -> 5348 | J23: =+'Rate NSU'!AO92 -> 1890 | K23: 7238 | L23: 56510.82324
A24: SC | B24: =+'SCH M'!E51 -> 5108 | C24: =+'SCH M-2.1'!H38*CUR_BASE_FUEL -> 2318.704884 | D24: =+'SCH M-2.1'!P38 -> 545 | E24: 2863.704884 | H24: =+'Rate SC'!AO141 -> 226 | J24: =+'Rate SC'!AO142 -> 431 | K24: 657 | L24: 1587.295116
A25: SE | B25: =+'SCH M'!E52 -> 233430 | C25: =+'SCH M-2.1'!H39*CUR_BASE_FUEL -> 35783.50634 | D25: =+'SCH M-2.1'!P39 -> 8403 | E25: 44186.50634 | H25: =+'Rate SE'!AO104 -> 15984 | J25: =+'Rate SE'!AO105 -> 6659 | K25: 22643 | L25: 166600.4937
A26: LED | B26: =+'SCH M'!E53 -> 19650 | C26: =+'SCH M-2.1'!H40*CUR_BASE_FUEL -> 693.752112 | D26: =+'SCH M-2.1'!P40 -> 163 | E26: =+C26+D26 -> 856.752112 | H26: ='Rate LED'!AO462 -> 1520 | J26: ='Rate LED'!AO464 -> 129 | K26: =SUM(G26:J26) -> 1649 | L26: =+B26-E26-K26 -> 17144.24789
A27: Interdepartmental/Special Contracts | B27: =+'SCH M'!E56+'SCH M'!E57 -> 984165 | C27: =(+'SCH M-2.1'!H41+'SCH M-2.1'!H47)*CUR_BASE_FUEL -> 389206.6701 | D27: =+'SCH M-2.1'!P41+'SCH M-2.1'!P47 -> 91398 | E27: 480604.6701 | K27: 0 | L27: 503560.3299
A28: Total Base and Fuel Revenue per Schedule M | B28: =SUM(B6:B27) -> 419562461 | C28: =SUM(C6:C27) -> 103909447.3 | D28: =SUM(D6:D27) -> 24401396 | E28: =SUM(E6:E27) -> 128310843.3 | G28: =SUM(G6:G27) -> 486067 | H28: 21165856 | I28: 8716883 | J28: 19347956 | K28: 49716762 | L28: 241534855.7
A33: Schedule M Summary - Proposed Rates
L34: Total
B35: Total | C35: Fuel Cost | G35: Riders | L35: less Riders &
B36: Revenue | C36: Base | D36: FAC | E36: Total | G36: HEA | H36: ESM | I36: DSM | J36: PSM | K36: Total | L36: Fuel Cost
A38: RS | B38: ='Rate RS'!R38 -> 204845502 | D38: ='Rate RS'!R34 -> 8902328 | G38: ='Rate RS'!R31 -> 486067 | H38: ='Rate RS'!R33 -> 8203484 | I38: ='Rate RS'!R32 -> 10409679 | J38: ='Rate RS'!R35 -> 7054703 | K38: =SUM(G38:J38) -> 26153933 | L38: =+B38-E38-K38 -> 178691569
A39: RS-TOU-CPP | G39: 0 | H39: 0 | I39: 0 | J39: 0 | K39: =SUM(G39:J39) -> 0 | L39: 0
A40: DS | B40: ='Rate DS'!R50 -> 134655504 | D40: ='Rate DS'!R46 -> 7009825 | H40: ='Rate DS'!R45 -> 6834338 | I40: ='Rate DS'!R44 -> -843764 | J40: ='Rate DS'!R47 -> 5554978 | K40: =SUM(G40:J40) -> 11545552 | L40: =+B40-E40-K40 -> 123109952
A41: DT-Pri | B41: ='Rate DT-Pri'!R65 -> 48073739 | D41: ='Rate DT-Pri'!R61 -> 3119423 | H41: ='Rate DT-Pri'!R60 -> 2213279 | I41: ='Rate DT-Pri'!R59 -> -375481 | J41: ='Rate DT-Pri'!R62 -> 2472005 | K41: 4309803 | L41: 43763936
A42: DT- Sec | B42: ='Rate DT-Sec'!R63 -> 61289686 | D42: ='Rate DT-Sec'!R59 -> 3779610 | H42: ='Rate DT-Sec'!R58 -> 2894261 | I42: ='Rate DT-Sec'!R57 -> -454947 | J42: ='Rate DT-Sec'!R60 -> 2995175 | K42: 5434489 | L42: 55855197
A43: EH | B43: ='Rate EH'!R43 -> 1850624 | D43: ='Rate EH'!R39 -> 117750 | H43: ='Rate EH'!R38 -> 86059 | I43: ='Rate EH'!R37 -> -14173 | J43: ='Rate EH'!R40 -> 93312 | K43: 165198 | L43: 1685426
A44: SP | B44: ='Rate SP GSFL'!R38 -> 29922 | D44: ='Rate SP GSFL'!R34 -> 1156 | H44: ='Rate SP GSFL'!R33 -> 1666 | I44: ='Rate SP GSFL'!R32 -> -139 | J44: ='Rate SP GSFL'!R35 -> 916 | K44: 2443 | L44: 27479
A45: GSFL | B45: ='Rate SP GSFL'!R57 -> 893051 | D45: ='Rate SP GSFL'!R53 -> 38826 | H45: ='Rate SP GSFL'!R52 -> 48142 | I45: ='Rate SP GSFL'!R51 -> -4673 | J45: ='Rate SP GSFL'!R54 -> 30768 | K45: 74237 | L45: 818814
A46: DP | B46: ='Rate DP'!R46 -> 1400706 | D46: ='Rate DP'!R42 -> 82593 | H46: ='Rate DP'!R41 -> 67536 | I46: ='Rate DP'!R40 -> -9942 | J46: ='Rate DP'!R43 -> 65451 | K46: 123045 | L46: 1277661
A47: TT | B47: ='Rate TT'!R56 -> 15789713 | D47: ='Rate TT'!R52 -> 1148357 | H47: ='Rate TT'!R51 -> 681457 | I47: ='Rate TT'!R50 -> 12706 | J47: ='Rate TT'!R53 -> 910022 | K47: 1604185 | L47: 14185528
A48: DT RTP-P | B48: 0 | D48: 0 | H48: 0 | I48: 0 | J48: 0 | K48: 0 | L48: 0
A49: DT RTP-S | B49: ='Rate DT RTP-S'!R39 -> 393430 | D49: 0 | H49: ='Rate DT RTP-S'!R35 -> 20415 | I49: ='Rate DT RTP-S'!R34 -> -2863 | J49: ='Rate DT RTP-S'!R36 -> 18851 | K49: 36403 | L49: 357027
A50: DS RTP | B50: ='Rate DS RTP'!R39 -> 78894 | D50: 0 | H50: ='Rate DS RTP'!R35 -> 4562 | I50: ='Rate DS RTP'!R34 -> -385 | J50: ='Rate DS RTP'!R36 -> 2534 | K50: 6711 | L50: 72183
A51: TT RTP | B51: ='Rate TT RTP'!R39 -> 816228 | D51: 0 | H51: ='Rate TT RTP'!R35 -> 33770 | I51: ='Rate TT RTP'!R34 -> 865 | J51: ='Rate TT RTP'!R36 -> 61969 | K51: 96604 | L51: 719624
A52: SL | B52: ='Rate SL'!R209 -> 1552274 | D52: ='SCH M-2.3'!P47 -> 46677 | H52: ='Rate SL'!R201 -> 23071 | J52: ='Rate SL'!R202 -> 36989 | K52: 60060 | L52: =+B52-E52-K52 -> 1492214
A53: TL | B53: ='Rate TL'!R47 -> 103504 | D53: ='SCH M-2.3'!P48 -> 8605 | H53: ='Rate TL'!R43 -> 4672 | J53: ='Rate TL'!R44 -> 6819 | K53: 11491 | L53: =+B53-E53-K53 -> 92013
A54: UOL | B54: ='Rate UOLS'!R28 -> 514729 | D54: ='SCH M-2.3'!P49 -> 43352 | H54: ='Rate UOLS'!R24 -> 23070 | J54: ='Rate UOLS'!R25 -> 34355 | K54: 57425 | L54: 457304
A55: NSU | B55: ='Rate NSU'!R45 -> 99262 | D55: ='SCH M-2.3'!P50 -> 2385 | H55: ='Rate NSU'!R41 -> 6227 | J55: ='Rate NSU'!R42 -> 1890 | K55: 8117 | L55: 91145
A56: SC | B56: ='Rate SC'!R72 -> 6465 | D56: ='SCH M-2.3'!P51 -> 545 | H56: ='Rate SC'!R68 -> 290 | J56: ='Rate SC'!R69 -> 431 | K56: 721 | L56: 5744
A57: SE | B57: ='Rate SE'!R52 -> 303096 | D57: ='SCH M-2.3'!P52 -> 8403 | H57: ='Rate SE'!R48 -> 18681 | J57: ='Rate SE'!R49 -> 6659 | K57: 25340 | L57: 277756
A58: LED | B58: ='Rate LED'!R252 -> 13387.60958 | D58: ='SCH M-2.3'!P53 -> 163 | H58: ='Rate LED'!R247 -> 876 | J58: ='Rate LED'!R249 -> 129 | K58: 1005 | L58: 12382.60958
A59: Interdepartmental/Special Contracts | B59: ='SCH M-2.3'!R57+'SCH M-2.3'!R63 -> 1146961 | D59: ='SCH M-2.3'!P57+'SCH M-2.3'!P63 -> 91398 | K59: 0 | L59: 1146961
A60: Total Base and Fuel Revenue per Schedule M | B60: =SUM(B38:B59) -> 473856677.6 | C60: =SUM(C38:C59) -> 0 | D60: =SUM(D38:D59) -> 24401396 | E60: =SUM(E38:E59) -> 0 | G60: =SUM(G38:G59) -> 486067 | H60: 21165856 | I60: 8716883 | J60: 19347956 | K60: 49716762 | L60: 424139915.6

Sheet SCH M
A1: =NAME -> DUKE ENERGY KENTUCKY, INC.
A2: =CASE_NO -> CASE NO. 2022-00372 - REHEARING
A3: REVENUES AT PRESENT AND PROPOSED RATES
A4: =DATE -> FOR THE TWELVE MONTHS ENDED June 30, 2024
A5: =SERVICE -> (ELECTRIC SERVICE)
A7: =DATA_PERIOD -> DATA: ____ BASE PERIOD __X__FORECASTED PERIOD | I7: SCHEDULE M
A8: =TYPE -> TYPE OF FILING: ___ ORIGINAL ___UPDATED _X_ REVISED | I8: PAGE 1 OF 1
A9: WORK PAPER REFERENCE NO(S).: | I9: WITNESS:
A10: =TIME -> 12 Months Projected with Riders - STAFF-RHDR-01-005A | I10: =WIT -> B. L. Sailers
A11: =INPUT!B5 -> 
E15: REVENUE AT | G15: REVENUE AT | I15: REVENUE | K15: % OF
A16: LINE | C16: RATE | E16: PRESENT | G16: PROPOSED | I16: CHANGE | K16: REVENUE
A17: NO. | C17: CLASSIFICATION | E17: RATES | G17: RATES | I17: (AMOUNT) | K17: CHANGE
C18: (A) | E18: (B) | G18: (C) | I18: (D=C-B) | K18: (E=D / B)
E19: ($) | G19: ($) | I19: ($) | K19: (%)
C20: RESIDENTIAL
A21: 1 | C21: RESIDENTIAL SERVICE (RS) | E21: ='Rate RS'!AN79 -> 176361567 | G21: ='Rate RS'!R38 -> 204845502 | I21: =G21-E21 -> 28483935 | K21: =IF(E21=0,"-",ROUND(I21/E21,4)) -> 0.1615
A22: 2 | C22: RESIDENTIAL - TIME OF USE - CRITICAL PEAK PRICING (RS-TOU-CPP) | E22: 0 | G22: 0 | I22: =G22-E22 -> 0 | K22: 0
A23: 3 | C23: TOTAL RESIDENTIAL | E23: =E21+E22 -> 176361567 | G23: =G21+G22 -> 204845502 | I23: =G23-E23 -> 28483935 | K23: =IF(E23=0,"-",ROUND(I23/E23,4)) -> 0.1615
C25: DISTRIBUTION
A26: 4 | C26: DISTRIBUTION SERVICE (DS) | E26: ='Rate DS'!AO106 -> 121283991 | G26: ='Rate DS'!R50 -> 134655504 | I26: =G26-E26 -> 13371513 | K26: =IF(E26=0,"-",ROUND(I26/E26,4)) -> 0.1102
A27: 5 | C27: DT PRIMARY TIME OF DAY (DT-PRI) | E27: ='Rate DT-Pri'!AO137 -> 43494672 | G27: ='Rate DT-Pri'!R65 -> 48073739 | I27: 4579067 | K27: 0.1053
A28: 6 | C28: DT SECONDARY TIME OF DAY (DT-SEC) | E28: ='Rate DT-Sec'!AO133 -> 55333014 | G28: ='Rate DT-Sec'!R63 -> 61289686 | I28: =G28-E28 -> 5956672 | K28: =IF(E28=0,"-",ROUND(I28/E28,4)) -> 0.1077
A29: 7 | C29: ELECTRIC SPACE HEATING (EH) | E29: ='Rate EH'!AO91 -> 1668917 | G29: ='Rate EH'!R43 -> 1850624 | I29: =G29-E29 -> 181707 | K29: 0.1089
A30: 8 | C30: SPORTS SERVICE (SP) | E30: ='Rate SP GSFL'!AO101 -> 26877 | G30: ='Rate SP GSFL'!R38 -> 29922 | I30: =G30-E30 -> 3045 | K30: 0.1133
A31: 9 | C31: SMALL FIXED LOADS (GSFL) | E31: ='Rate SP GSFL'!AO120 -> 802788 | G31: ='Rate SP GSFL'!R57 -> 893051 | I31: =G31-E31 -> 90263 | K31: 0.1124
A32: 10 | C32: PRIMARY VOLTAGE (DP) | E32: ='Rate DP'!AO98 -> 1307556 | G32: ='Rate DP'!R46 -> 1400706 | I32: 93150 | K32: 0.0712
A33: 11 | C33: TOTAL DISTRIBUTION | E33: =SUM(E26:E32) -> 223917815 | G33: =SUM(G26:G32) -> 248193232 | I33: =SUM(I26:I32) -> 24275417 | K33: 0.1084
C35: TRANSMISSION
A36: 12 | C36: TIME OF DAY (TT) | E36: ='Rate TT'!AO120 -> 15022536 | G36: ='Rate TT'!R56 -> 15789713 | I36: =G36-E36 -> 767177 | K36: =IF(E36=0,"-",ROUND(I36/E36,4)) -> 0.0511
A37: 13 | C37: TOTAL TRANSMISSION | E37: =SUM(E36) -> 15022536 | G37: =SUM(G36) -> 15789713 | I37: =SUM(I36) -> 767177 | K37: =IF(E37=0,"-",ROUND(I37/E37,4)) -> 0.0511
C39: REAL TIME PRICING
A40: 14 | C40: DT PRIMARY-REAL TIME PRICING (DT-RTP PRI) | E40: ='Rate DT RTP-P'!AO82 -> 0 | G40: ='Rate DT RTP-P'!R38 -> 0 | I40: =G40-E40 -> 0 | K40: =IF(E40=0,"-",ROUND(I40/E40,4)) -> -
A41: 15 | C41: DT SECONDARY-REAL TIME PRICING (DT-RTP SEC) | E41: ='Rate DT RTP-S'!AO83 -> 346528 | G41: ='Rate DT RTP-S'!R39 -> 393430 | I41: =G41-E41 -> 46902 | K41: =IF(E41=0,"-",ROUND(I41/E41,4)) -> 0.1353
A42: 16 | C42: DS-REAL TIME PRICING (DS-RTP) | E42: ='Rate DS RTP'!AO83 -> 71131 | G42: ='Rate DS RTP'!R39 -> 78894 | I42: =G42-E42 -> 7763 | K42: =IF(E42=0,"-",ROUND(I42/E42,4)) -> 0.1091
A43: 17 | C43: TT-REAL TIME PRICING (TT-RTP) | E43: ='Rate TT RTP'!AO85 -> 762340 | G43: ='Rate TT RTP'!R39 -> 816228 | I43: =G43-E43 -> 53888 | K43: =IF(E43=0,"-",ROUND(I43/E43,4)) -> 0.0707
A44: 18 | C44: TOTAL REAL TIME PRICING | E44: =SUM(E40:E43) -> 1179999 | G44: =SUM(G40:G43) -> 1288552 | I44: =SUM(I40:I43) -> 108553 | K44: =IF(E44=0,"-",ROUND(I44/E44,4)) -> 0.092
A45: 498,
C46: LIGHTING
A47: 19 | C47: STREET LIGHTING (SL) | E47: ='Rate SL'!AO429 -> 1255341 | G47: ='Rate SL'!R209 -> 1552274 | I47: =G47-E47 -> 296933 | K47: =IF(E47=0,"-",ROUND(I47/E47,4)) -> 0.2365
A48: 20 | C48: TRAFFIC LIGHTING (TL) | E48: ='Rate TL'!AO98 -> 99885 | G48: ='Rate TL'!R47 -> 103504 | I48: 3619 | K48: 0.0362
A49: 21 | C49: UNMETERED OUTDOOR LIGHTING (UOLS) | E49: ='Rate UOLS'!AO63 -> 406677 | G49: ='Rate UOLS'!R28 -> 514729 | I49: 108052 | K49: 0.2657
A50: 22 | C50: NON STANDARD STREET LIGHTING (NSU) | E50: ='Rate NSU'!AO95 -> 76288 | G50: ='Rate NSU'!R45 -> 99262 | I50: 22974 | K50: 0.3011
A51: 23 | C51: CUST OWNED STREET LIGHTING SERVICE (SC) | E51: ='Rate SC'!AO145 -> 5108 | G51: ='Rate SC'!R72 -> 6465 | I51: 1357 | K51: 0.2657
A52: 24 | C52: OVERHEAD EQUIV STREET LIGHTING SERVICE (SE) | E52: ='Rate SE'!AO108 -> 233430 | G52: ='Rate SE'!R52 -> 303096 | I52: 69666 | K52: 0.2984
A53: 25 | C53: LED OUTDOOR LIGHTING (LED) | E53: ='Rate LED'!AO467 -> 19650 | G53: =+'Rate LED'!R252 -> 13387.60958 | I53: -6262.390416 | K53: -0.3187
A54: 26 | C54: TOTAL LIGHTING | E54: =SUM(E47:E53) -> 2096379 | G54: =SUM(G47:G53) -> 2592717.61 | I54: =SUM(I47:I53) -> 496338.6096 | K54: 0.2368
A56: 27 | C56: INTERDEPARTMENTAL | E56: ='SCH M-2.2'!V57 -> 71904 | G56: ='SCH M-2.3'!R57 -> 79080 | I56: =G56-E56 -> 7176 | K56: =IF(E56=0,"-",ROUND(I56/E56,4)) -> 0.0998
A57: 28 | C57: SPECIAL CONTRACTS | E57: =+'SCH M-2.2'!V63 -> 912261 | G57: ='SCH M-2.3'!R63 -> 1067881 | I57: =G57-E57 -> 155620 | K57: =IF(E57=0,"-",ROUND(I57/E57,4)) -> 0.1706
A59: 29 | C59: TOTAL RETAIL REVENUE | E59: =E54+E44+E37+E33+E23+E56+E57 -> 419562461 | G59: =G54+G44+G37+G33+G23+G56+G57 -> 473856677.6 | I59: =G59-E59 -> 54294216.61 | K59: =IF(E59=0,"-",ROUND(I59/E59,4)) -> 0.1294
C61: OTHER MISCELLANEOUS REVENUE
A62: 30 | C62: PJM AND TRANSMISSION | E62: ='SCH M-2.2'!V58 -> 169500 | G62: ='SCH M-2.3'!R58 -> 169500 | I62: =G62-E62 -> 0 | K62: =IF(E62=0,"-",ROUND(I62/E62,4)) -> 0
A63: 31 | C63: BAD CHECK CHARGES | E63: ='SCH M-2.2'!V59 -> 43500 | G63: =+'SCH M-2.3'!R59 -> 43500 | I63: 0 | K63: 0
A64: 32 | C64: RECONNECTION CHARGES | E64: ='SCH M-2.2'!V60 -> 47135 | G64: =+'SCH M-2.3'!R60 -> 44369 | I64: -2766 | K64: -0.0587
A65: 33 | C65: POLE AND LINE ATTACHMENTS | E65: ='SCH M-2.2'!V61 -> 217344 | G65: =+'SCH M-2.3'!R61 -> 217344 | I65: 0 | K65: =IF(E65=0,"-",ROUND(I65/E65,4)) -> 0
A66: 34 | C66: RENTS | E66: ='SCH M-2.2'!V62 -> 1299996 | G66: =+'SCH M-2.3'!R62 -> 1299996 | I66: 0 | K66: 0
A67: 35 | C67: OTHER MISCELLANEOUS | E67: ='SCH M-2.2'!V64 -> 137760 | G67: =+'SCH M-2.3'!R64 -> 137760 | I67: 0 | K67: 0
A68: 36 | C68: TOTAL MISCELLANEOUS REVENUE | E68: =SUM(E62:E67) -> 1915235 | G68: =SUM(G62:G67) -> 1912469 | I68: =SUM(I62:I67) -> -2766 | K68: -0.0014
A70: 37 | C70: TOTAL REVENUE | E70: =E68+E59 -> 421477696 | G70: =G68+G59 -> 475769146.6 | I70: =I68+I59 -> 54291450.61 | K70: =IF(E70=0,"-",ROUND(I70/E70,4)) -> 0.1288
M74: KYPSC Approved Increase in Order
M75: 47498000

Sheet SCH M-2.1
A1: =NAME -> DUKE ENERGY KENTUCKY, INC.
A2: =CASE_NO -> CASE NO. 2022-00372 - REHEARING
A3: TEST PERIOD REVENUES AT CURRENT RATES
A4: =DATE -> FOR THE TWELVE MONTHS ENDED June 30, 2024
A5: =SERVICE -> (ELECTRIC SERVICE)
A6: =DATA_PERIOD -> DATA: ____ BASE PERIOD __X__FORECASTED PERIOD | R6: SCHEDULE M-2.1
A7: =TYPE -> TYPE OF FILING: ___ ORIGINAL ___UPDATED _X_ REVISED | R7: PAGE 1 OF 1
A8: WORK PAPER REFERENCE NO(S).: | R8: WITNESS:
A9: =TIME -> 12 Months Projected with Riders - STAFF-RHDR-01-005A | R9: =WIT -> B. L. Sailers
A10: =INPUT!B5 -> 
A11: TEST PERIOD REVENUES AT CURRENT RATES
J13: TEST PERIOD | N13: % OF REV
J14: REVENUE LESS | N14: TO TOTAL | R14: TEST PERIOD
A15: LINE | C15: RATE | D15: CLASS / | F15: CUSTOMER | J15: FAC | L15: AVERAGE | N15: EXCLUSIVE OF | P15: FAC | R15: REVENUE | T15: % OF REV
A16: NO. | C16: CODE | D16: DESCRIPTION | F16: BILLS | H16: SALES | J16: REVENUE | L16: RATE | N16: FAC | P16: REVENUE | R16: TOTAL | T16: TO TOTAL
C17: (A) | D17: (B) | F17: (C) | H17: (D) | J17: (E) | L17: (F=E/D) | N17: (G) | P17: (H) | R17: (I) | T17: (J)
H19: (KWH) | J19: ($) | L19: (¢/KWH) | N19: (%) | P19: ($) | R19: ($) | T19: (%)
A20: 1 | C20: RS | D20: RESIDENTIAL SERV | F20: ='Rate RS'!X79 -> 1620224 | H20: ='Rate RS'!Z79 -> 1492427084 | J20: ='Rate RS'!AD79 -> 167459239 | L20: =IF(H20=0,"-",ROUND(J20/H20*100,6)) -> 11.220598 | N20: =IF(ABS(J20/$J$49*100)<0.005,"- ",ROUND(J20/$J$49*100,2)) -> 42.17 | P20: ='Rate RS'!AL79 -> 8902328 | R20: ='Rate RS'!AN79 -> 176361567 | T20: =IF(ABS(R20/$R$49*100)<0.005,"- ",ROUND(R20/$R$49*100,2)) -> 41.84
A21: 2 | C21: RS-TOU-CPP | D21: RESIDENTIAL TOU CPP | F21: 0 | H21: 0 | J21: 0 | L21: 0 | N21: 0 | P21: 0 | R21: 0 | T21: 0
A22: 3 | C22: DS | D22: DISTRIBUTION SERV | F22: ='Rate DS'!Y106 -> 160254 | H22: ='Rate DS'!AA106 -> 1175159240 | J22: ='Rate DS'!AE106 -> 114274166 | L22: 9.724143 | N22: =IF(ABS(J22/$J$49*100)<0.005,"- ",ROUND(J22/$J$49*100,2)) -> 28.78 | P22: ='Rate DS'!AM106 -> 7009825 | R22: ='Rate DS'!AO106 -> 121283991 | T22: 28.78
A23: 4 | C23: DT-PRI | D23: TIME OF DAY | F23: ='Rate DT-Pri'!Y137 -> 534 | H23: ='Rate DT-Pri'!AA137 -> 522954360 | J23: ='Rate DT-Pri'!AE137 -> 40375249 | L23: 7.720607 | N23: 10.17 | P23: ='Rate DT-Pri'!AM137 -> 3119423 | R23: ='Rate DT-Pri'!AO137 -> 43494672 | T23: 10.32
A24: 5 | C24: DT-SEC | D24: TIME OF DAY | F24: ='Rate DT-Sec'!Y133 -> 1476 | H24: ='Rate DT-Sec'!AA133 -> 633631181 | J24: ='Rate DT-Sec'!AE133 -> 51553404 | L24: 8.136185 | N24: 12.98 | P24: ='Rate DT-Sec'!AM133 -> 3779610 | R24: =J24+P24 -> 55333014 | T24: 13.13
A25: 6 | C25: EH | D25: ELEC SPACE HEATING | F25: ='Rate EH'!Y91 -> 752 | H25: ='Rate EH'!AA91 -> 19740170 | J25: ='Rate EH'!AE91 -> 1551167 | L25: 7.857921 | N25: 0.39 | P25: ='Rate EH'!AM91 -> 117750 | R25: ='Rate EH'!AO91 -> 1668917 | T25: 0.4
A26: 7 | C26: SP | D26: SPORTS SERV | F26: ='Rate SP GSFL'!Y101 -> 156 | H26: ='Rate SP GSFL'!AA101 -> 193786 | J26: ='Rate SP GSFL'!AE101 -> 25721 | L26: 13.272889 | N26: 0.01 | P26: ='Rate SP GSFL'!AM101 -> 1156 | R26: ='Rate SP GSFL'!AO101 -> 26877 | T26: 0.01
A27: 8 | C27: GSFL | D27: SMALL FIXED LOADS | F27: ='Rate SP GSFL'!Y120 -> 2520 | H27: ='Rate SP GSFL'!AA120 -> 6509014 | J27: ='Rate SP GSFL'!AE120 -> 763962 | L27: 11.736985 | N27: 0.19 | P27: ='Rate SP GSFL'!AM120 -> 38826 | R27: =J27+P27 -> 802788 | T27: 0.19
A28: 9 | C28: DP | D28: PRIMARY VOLTAGE | F28: ='Rate DP'!Y98 -> 240 | H28: ='Rate DP'!AA98 -> 13846248 | J28: ='Rate DP'!AE98 -> 1224963 | L28: 8.846895 | N28: 0.31 | P28: ='Rate DP'!AM98 -> 82593 | R28: ='Rate DP'!AO98 -> 1307556 | T28: 0.31
A29: 10 | C29: TT | D29: TIME OF DAY | F29: ='Rate TT'!Y120 -> 156 | H29: ='Rate TT'!AA120 -> 192515810 | J29: ='Rate TT'!AE120 -> 13874179 | L29: 7.206774 | N29: 3.49 | P29: ='Rate TT'!AM120 -> 1148357 | R29: ='Rate TT'!AO120 -> 15022536 | T29: 3.56
A30: 11 | C30: DT-RTP PRI | D30: REAL TIME PRICING | F30: ='Rate DT RTP-P'!Y82 -> 0 | H30: ='Rate DT RTP-P'!AA82 -> 0 | J30: ='Rate DT RTP-P'!AE82 -> 0 | L30: =IF(H30=0,"-",ROUND(J30/H30*100,6)) -> - | N30: - | P30: ='Rate DT RTP-P'!AM82 -> 0 | R30: ='Rate DT RTP-P'!AO82 -> 0 | T30: -
A31: 12 | C31: DT-RTP SEC | D31: REAL TIME PRICING | F31: ='Rate DT RTP-S'!Y83 -> 12 | H31: ='Rate DT RTP-S'!AA83 -> 3987977 | J31: ='Rate DT RTP-S'!AE83 -> 346528 | L31: 8.689318 | N31: 0.09 | P31: ='Rate DT RTP-S'!AM83 -> 0 | R31: ='Rate DT RTP-S'!AO83 -> 346528 | T31: 0.08
A32: 13 | C32: DS-RTP | D32: REAL TIME PRICING | F32: ='Rate DS RTP'!Y83 -> 24 | H32: ='Rate DS RTP'!AA83 -> 536037 | J32: ='Rate DS RTP'!AE83 -> 71131 | L32: 13.269793 | N32: 0.02 | P32: ='Rate DS RTP'!AM83 -> 0 | R32: ='Rate DS RTP'!AO83 -> 71131 | T32: 0.02
A33: 14 | C33: TT-RTP | D33: REAL TIME PRICING | F33: ='Rate TT RTP'!Y85 -> 24 | H33: ='Rate TT RTP'!AA85 -> 13109567 | J33: ='Rate TT RTP'!AE85 -> 762340 | L33: 5.815142 | N33: 0.19 | P33: ='Rate TT RTP'!AM85 -> 0 | R33: ='Rate TT RTP'!AO85 -> 762340 | T33: 0.18
A34: 15 | C34: SL | D34: STREET LIGHTING | F34: ='Rate SL'!Y429 -> 101040 | H34: ='Rate SL'!AA429 -> 7825127 | J34: ='Rate SL'!AE429 -> 1208666 | L34: 15.44596 | N34: 0.3 | P34: ='Rate SL'!AM429 -> 46677 | R34: ='Rate SL'!AO429 -> 1255341 | T34: 0.3
A35: 16 | C35: TL | D35: TRAFFIC LIGHTING | F35: ='Rate TL'!Y98 -> 106140 | H35: ='Rate TL'!AA98 -> 1442664 | J35: ='Rate TL'!AE98 -> 91280 | L35: 6.327184 | N35: 0.02 | P35: ='Rate TL'!AM98 -> 8605 | R35: ='Rate TL'!AO98 -> 99885 | T35: 0.02
A36: 17 | C36: UOLS | D36: UNMTRD OUTDR LIGHT | F36: ='Rate UOLS'!Y63 -> 109668 | H36: ='Rate UOLS'!AA63 -> 7267796 | J36: ='Rate UOLS'!AE63 -> 363325 | L36: 4.999108 | N36: 0.09 | P36: ='Rate UOLS'!AM63 -> 43352 | R36: ='Rate UOLS'!AO63 -> 406677 | T36: 0.1
A37: 18 | C37: NSU | D37: NON STD STREET LIGHT | F37: ='Rate NSU'!Y95 -> 8172 | H37: ='Rate NSU'!AA95 -> 399755 | J37: ='Rate NSU'!AE95 -> 73903 | L37: 18.487073 | N37: 0.02 | P37: ='Rate NSU'!AM95 -> 2385 | R37: ='Rate NSU'!AO95 -> 76288 | T37: 0.02
A38: 19 | C38: SC | D38: CUST OWNED STREET LIGHTING | F38: ='Rate SC'!Y145 -> 2064 | H38: ='Rate SC'!AA145 -> 91284 | J38: ='Rate SC'!AE145 -> 4563 | L38: 4.998685 | N38: - | P38: ='Rate SC'!AM145 -> 545 | R38: ='Rate SC'!AO145 -> 5108 | T38: -
A39: 20 | C39: SE | D39: OVR HD EQUIV STREET LIGHTING | F39: ='Rate SE'!Y108 -> 23664 | H39: ='Rate SE'!AA108 -> 1408744 | J39: ='Rate SE'!AE108 -> 225029 | L39: 15.973733 | N39: 0.06 | P39: ='Rate SE'!AM108 -> 8403 | R39: ='Rate SE'!AO108 -> 233430 | T39: 0.06
A40: 21 | C40: LED | D40: LED OUTDOOR LIGHT | F40: ='Rate LED'!Y467 -> 1152 | H40: ='Rate LED'!AA467 -> 27312 | J40: ='Rate LED'!AE467 -> 19487 | L40: 71.34959 | N40: - | P40: ='Rate LED'!AM467 -> 163 | R40: ='Rate LED'!AO467 -> 19650 | T40: -
A41: 22 | C41: ID01 | D41: INTERDEPARTMENTAL | F41: ='SCH M-2.2'!F57 -> 12 | H41: ='SCH M-2.2'!H57 -> 828580 | J41: ='SCH M-2.2'!L57 -> 66962 | L41: 8.081537 | N41: 0.02 | P41: ='SCH M-2.2'!T57 -> 4942 | R41: ='SCH M-2.2'!V57 -> 71904 | T41: 0.02
A42: 23 | C42: IS | D42: PJM AND TRANSMISSION | F42: ='SCH M-2.2'!F58 -> 0 | H42: ='SCH M-2.2'!H58 -> 0 | J42: ='SCH M-2.2'!L58 -> 169500 | L42: =IF(H42=0,"-",ROUND(J42/H42*100,6)) -> - | N42: 0.04 | P42: ='SCH M-2.2'!T58 -> 0 | R42: ='SCH M-2.2'!V58 -> 169500 | T42: 0.04
A43: 24 | D43: BAD CHECK CHARGES | F43: ='SCH M-2.2'!F59 -> 0 | H43: ='SCH M-2.2'!H59 -> 0 | J43: ='SCH M-2.2'!L59 -> 43500 | L43: - | N43: =IF(ABS(J43/$J$49*100)<0.005,"- ",ROUND(J43/$J$49*100,2)) -> 0.01 | P43: ='SCH M-2.2'!T59 -> 0 | R43: ='SCH M-2.2'!V59 -> 43500 | T43: 0.01
A44: 25 | D44: RECONNECTION CHGS | F44: ='SCH M-2.2'!F60 -> 0 | H44: ='SCH M-2.2'!H60 -> 0 | J44: ='SCH M-2.2'!L60 -> 47135 | L44: - | N44: 0.01 | P44: ='SCH M-2.2'!T60 -> 0 | R44: ='SCH M-2.2'!V60 -> 47135 | T44: 0.01
A45: 26 | D45: POLE AND LINE ATTACHMENTS | F45: ='SCH M-2.2'!F61 -> 0 | H45: ='SCH M-2.2'!H61 -> 0 | J45: ='SCH M-2.2'!L61 -> 217344 | L45: =IF(H45=0,"-",ROUND(J45/H45*100,6)) -> - | N45: 0.05 | P45: ='SCH M-2.2'!T61 -> 0 | R45: ='SCH M-2.2'!V61 -> 217344 | T45: =IF(ABS(R45/$R$49*100)<0.005,"- ",ROUND(R45/$R$49*100,2)) -> 0.05
A46: 27 | D46: RENTS | F46: ='SCH M-2.2'!F62 -> 0 | H46: ='SCH M-2.2'!H62 -> 0 | J46: ='SCH M-2.2'!L62 -> 1299996 | L46: - | N46: 0.33 | P46: ='SCH M-2.2'!T62 -> 0 | R46: ='SCH M-2.2'!V62 -> 1299996 | T46: =IF(ABS(R46/$R$49*100)<0.005,"- ",ROUND(R46/$R$49*100,2)) -> 0.31
A47: 28 | C47: WS | D47: SPECIAL CONTRACTS | F47: ='SCH M-2.2'!F63 -> 12 | H47: ='SCH M-2.2'!H63 -> 14493914 | J47: ='SCH M-2.2'!L63 -> 825805 | L47: 5.697598 | N47: 0.21 | P47: ='SCH M-2.2'!T63 -> 86456 | R47: ='SCH M-2.2'!V63 -> 912261 | T47: =IF(ABS(R47/$R$49*100)<0.005,"- ",ROUND(R47/$R$49*100,2)) -> 0.22
A48: 29 | D48: OTHER MISC | F48: ='SCH M-2.2'!F64 -> 0 | H48: ='SCH M-2.2'!H64 -> 0 | J48: ='SCH M-2.2'!L64 -> 137760 | L48: - | N48: 0.03 | P48: ='SCH M-2.2'!T64 -> 0 | R48: ='SCH M-2.2'!V64 -> 137760 | T48: =IF(ABS(R48/$R$49*100)<0.005,"- ",ROUND(R48/$R$49*100,2)) -> 0.03
A49: 30 | C49: TOTAL | F49: =SUM(F20:F48) -> 2138296 | H49: =SUM(H20:H48) -> 4108395650 | J49: =SUM(J20:J48) -> 397076304 | L49: 9.664997 | N49: 100 | P49: =SUM(P20:P48) -> 24401396 | R49: =SUM(R20:R48) -> 421477696 | T49: 100
C51: NOTE: DETAIL CONTAINED ON SCHEDULES M-2.2 AND M-2.3.

Sheet SCH M-2.2
A1: =NAME -> DUKE ENERGY KENTUCKY, INC.
A2: =CASE_NO -> CASE NO. 2022-00372 - REHEARING
A3: =TITLE -> ANNUALIZED TEST YEAR REVENUES AT PROPOSED VS. MOST CURRENT RATES
A4: =DATE -> FOR THE TWELVE MONTHS ENDED June 30, 2024
A5: =SERVICE -> (ELECTRIC SERVICE)
A6: =DATA_PERIOD -> DATA: ____ BASE PERIOD __X__FORECASTED PERIOD | V6: SCHEDULE M-2.2
A7: =TYPE -> TYPE OF FILING: ___ ORIGINAL ___UPDATED _X_ REVISED | V7: ="PAGE 1 OF "&TEXT(Page_Num_2.2,"00") -> PAGE 1 OF 23
A8: WORK PAPER REFERENCE NO(S).: | V8: WITNESS:
A9: =TIME -> 12 Months Projected with Riders - STAFF-RHDR-01-005A | V9: =WIT -> B. L. Sailers
A10: =INPUT!B5 -> 
A11: CURRENT ANNUALIZED
L13: CURRENT | N13: % OF REV TO | P13: REVENUE | R13: % INCR IN | V13: CURRENT | X13: TOTAL
J14: MOST | L14: REVENUE LESS | N14: TOTAL LESS | P14: INCR LESS | R14: REV LESS | V14: TOTAL | X14: REVENUE
A15: LINE | C15: RATE | D15: CLASS / | F15: CUSTOMER | J15: CURRENT | L15: FAC | N15: FAC | P15: FAC REV | R15: FAC REV | T15: FAC | V15: REVENUE | X15: % INCREASE
A16: NO. | C16: CODE | D16: DESCRIPTION | F16: BILLS | H16: SALES | J16: RATES | L16: REVENUE | N16: REVENUE | P16: (F - K) | R16: (M / K) | T16: REVENUE | V16: (K + H) | X16: (M / K1)
C17: (A) | D17: (B) | F17: (C) | H17: (D) | J17: (J) | L17: (K) | N17: (L) | P17: (M) | R17: (N) | T17: (H) | V17: (K1) | X17: (O)
H19: (KWH) | J19: (¢/KWH) | L19: ($) | N19: (%) | P19: ($) | R19: (%) | T19: ($) | V19: ($) | X19: (%)
C20: RESIDENTIAL
A21: 1 | C21: RS | D21: RESIDENTIAL SERV | F21: ='Rate RS'!X79 -> 1620224 | H21: ='Rate RS'!Z79 -> 1492427084 | J21: =IF(H21=0,"-",ROUND((L21/H21)*100,6)) -> 11.220598 | L21: ='Rate RS'!AD79 -> 167459239 | N21: =ROUND((L21/L$23)*100,2) -> 100 | P21: ='Rate RS'!AH79 -> 28483935 | R21: =ROUND((P21/L21)*100,1) -> 17 | T21: ='Rate RS'!AL79 -> 8902328 | V21: ='Rate RS'!AN79 -> 176361567 | X21: =ROUND((P21/V21)*100,1) -> 16.2
A22: 2 | C22: RS-TOU-CPP | D22: RESIDENTIAL TOU CPP | F22: 0 | H22: 0 | J22: 0 | L22: 0 | N22: 0 | P22: 0 | R22: 0 | T22: 0 | V22: 0 | X22: 0
A23: 3 | C23: TOTAL RESIDENTIAL | F23: =F21 -> 1620224 | H23: =H21 -> 1492427084 | J23: =IF(H23=0,"-",ROUND((L23/H23)*100,6)) -> 11.220598 | L23: =L21 -> 167459239 | N23: =ROUND((L23/L$67)*100,2) -> 42.17 | P23: =P21 -> 28483935 | R23: =ROUND((P23/L23)*100,1) -> 17 | T23: =T21 -> 8902328 | V23: =V21 -> 176361567 | X23: =ROUND((P23/V23)*100,1) -> 16.2
C25: DISTRIBUTION
A26: 4 | C26: DS | D26: DISTRIBUTION SERV | F26: ='Rate DS'!Y106 -> 160254 | H26: ='Rate DS'!AA106 -> 1175159240 | J26: =IF(H26=0,"-",ROUND((L26/H26)*100,6)) -> 9.724143 | L26: ='Rate DS'!AE106 -> 114274166 | N26: =ROUND((L26/L$33)*100,2) -> 54.48 | P26: ='Rate DS'!AI106 -> 13371513 | R26: =ROUND((P26/L26)*100,1) -> 11.7 | T26: ='Rate DS'!AM106 -> 7009825 | V26: ='Rate DS'!AO106 -> 121283991 | X26: =ROUND((P26/V26)*100,1) -> 11
A27: 5 | C27: DT-PRI | D27: TIME OF DAY | F27: ='Rate DT-Pri'!Y137 -> 534 | H27: ='Rate DT-Pri'!AA137 -> 522954360 | J27: 7.720607 | L27: ='Rate DT-Pri'!AE137 -> 40375249 | N27: 19.25 | P27: ='Rate DT-Pri'!AI137 -> 4579067 | R27: 11.3 | T27: ='Rate DT-Pri'!AM137 -> 3119423 | V27: ='Rate DT-Pri'!AO137 -> 43494672 | X27: 10.5
A28: 6 | C28: DT-SEC | D28: TIME OF DAY | F28: ='Rate DT-Sec'!Y133 -> 1476 | H28: ='Rate DT-Sec'!AA133 -> 633631181 | J28: 8.136185 | L28: ='Rate DT-Sec'!AE133 -> 51553404 | N28: 24.58 | P28: ='Rate DT-Sec'!AI133 -> 5956672 | R28: 11.6 | T28: ='Rate DT-Sec'!AM133 -> 3779610 | V28: ='Rate DT-Sec'!AO133 -> 55333014 | X28: =ROUND((P28/V28)*100,1) -> 10.8
A29: 7 | C29: EH | D29: ELEC SPACE HEATING | F29: ='Rate EH'!Y91 -> 752 | H29: ='Rate EH'!AA91 -> 19740170 | J29: 7.857921 | L29: ='Rate EH'!AE91 -> 1551167 | N29: 0.74 | P29: ='Rate EH'!AI91 -> 181707 | R29: =ROUND((P29/L29)*100,1) -> 11.7 | T29: ='Rate EH'!AM91 -> 117750 | V29: ='Rate EH'!AO91 -> 1668917 | X29: =ROUND((P29/V29)*100,1) -> 10.9
A30: 8 | C30: SP | D30: SPORTS SERV | F30: ='Rate SP GSFL'!Y101 -> 156 | H30: ='Rate SP GSFL'!AA101 -> 193786 | J30: 13.272889 | L30: ='Rate SP GSFL'!AE101 -> 25721 | N30: 0.01 | P30: ='Rate SP GSFL'!AI101 -> 3045 | R30: =ROUND((P30/L30)*100,1) -> 11.8 | T30: ='Rate SP GSFL'!AM101 -> 1156 | V30: ='Rate SP GSFL'!AO101 -> 26877 | X30: =ROUND((P30/V30)*100,1) -> 11.3
A31: 9 | C31: GSFL | D31: SMALL FIXED LOADS | F31: ='Rate SP GSFL'!Y120 -> 2520 | H31: ='Rate SP GSFL'!AA120 -> 6509014 | J31: 11.736985 | L31: ='Rate SP GSFL'!AE120 -> 763962 | N31: 0.36 | P31: ='Rate SP GSFL'!AI120 -> 90263 | R31: =ROUND((P31/L31)*100,1) -> 11.8 | T31: ='Rate SP GSFL'!AM120 -> 38826 | V31: ='Rate SP GSFL'!AO120 -> 802788 | X31: =ROUND((P31/V31)*100,1) -> 11.2
A32: 10 | C32: DP | D32: PRIMARY VOLTAGE | F32: ='Rate DP'!Y98 -> 240 | H32: ='Rate DP'!AA98 -> 13846248 | J32: 8.846895 | L32: ='Rate DP'!AE98 -> 1224963 | N32: =ROUND((L32/L$33)*100,2) -> 0.58 | P32: ='Rate DP'!AI98 -> 93150 | R32: 7.6 | T32: ='Rate DP'!AM98 -> 82593 | V32: ='Rate DP'!AO98 -> 1307556 | X32: 7.1
A33: 11 | C33: TOTAL DISTRIBUTION | F33: =SUM(F26:F32) -> 165932 | H33: =SUM(H26:H32) -> 2372033999 | J33: =IF(H33=0,"-",ROUND((L33/H33)*100,6)) -> 8.843407 | L33: =SUM(L26:L32) -> 209768632 | N33: =ROUND((L33/L$67)*100,2) -> 52.83 | P33: =SUM(P26:P32) -> 24275417 | R33: =ROUND((P33/L33)*100,1) -> 11.6 | T33: =SUM(T26:T32) -> 14149183 | V33: =SUM(V26:V32) -> 223917815 | X33: =ROUND((P33/V33)*100,1) -> 10.8
C35: TRANSMISSION
A36: 12 | C36: TT | D36: TIME OF DAY | F36: ='Rate TT'!Y120 -> 156 | H36: ='Rate TT'!AA120 -> 192515810 | J36: =IF(H36=0,"-",ROUND((L36/H36)*100,6)) -> 7.206774 | L36: ='Rate TT'!AE120 -> 13874179 | N36: =ROUND((L36/L$37)*100,2) -> 100 | P36: ='Rate TT'!AI120 -> 767177 | R36: =ROUND((P36/L36)*100,1) -> 5.5 | T36: ='Rate TT'!AM120 -> 1148357 | V36: ='Rate TT'!AO120 -> 15022536 | X36: ='Rate TT'!AQ120 -> 5.1
A37: 13 | C37: TOTAL TRANSMISSION | F37: =F36 -> 156 | H37: =H36 -> 192515810 | J37: =IF(H37=0,"-",ROUND((L37/H37)*100,6)) -> 7.206774 | L37: =L36 -> 13874179 | N37: =ROUND((L37/L$67)*100,2) -> 3.49 | P37: =P36 -> 767177 | R37: =ROUND((P37/L37)*100,1) -> 5.5 | T37: =T36 -> 1148357 | V37: =V36 -> 15022536 | X37: =ROUND((P37/V37)*100,1) -> 5.1
C39: REAL TIME PRICING
A40: 14 | C40: DT-RTP PRI | D40: REAL TIME PRICING | F40: ='Rate DT RTP-P'!Y82 -> 0 | H40: ='Rate DT RTP-P'!AA82 -> 0 | J40: =IF(H40=0,"-",ROUND((L40/H40)*100,6)) -> - | L40: ='Rate DT RTP-P'!AE82 -> 0 | N40: =IFERROR(ROUND((L40/L$44)*100,2),0) -> 0 | P40: ='Rate DT RTP-P'!AI82 -> 0 | R40: =IFERROR(ROUND((P40/L40)*100,1),0) -> 0 | T40: ='Rate DT RTP-P'!AM82 -> 0 | V40: ='Rate DT RTP-P'!AO82 -> 0 | X40: =IFERROR(ROUND((P40/V40)*100,1),0) -> 0
A41: 15 | C41: DT-RTP SEC | D41: REAL TIME PRICING | F41: ='Rate DT RTP-S'!Y83 -> 12 | H41: ='Rate DT RTP-S'!AA83 -> 3987977 | J41: 8.689318 | L41: ='Rate DT RTP-S'!AE83 -> 346528 | N41: =ROUND((L41/L$44)*100,2) -> 29.37 | P41: ='Rate DT RTP-S'!AI83 -> 46902 | R41: =ROUND((P41/L41)*100,1) -> 13.5 | T41: ='Rate DT RTP-S'!AM83 -> 0 | V41: ='Rate DT RTP-S'!AO83 -> 346528 | X41: =ROUND((P41/V41)*100,1) -> 13.5
A42: 16 | C42: DS-RTP | D42: REAL TIME PRICING | F42: ='Rate DS RTP'!Y83 -> 24 | H42: ='Rate DS RTP'!AA83 -> 536037 | J42: 13.269793 | L42: ='Rate DS RTP'!AE83 -> 71131 | N42: =ROUND((L42/L$44)*100,2) -> 6.03 | P42: ='Rate DS RTP'!AI83 -> 7763 | R42: =ROUND((P42/L42)*100,1) -> 10.9 | T42: ='Rate DS RTP'!AM83 -> 0 | V42: ='Rate DS RTP'!AO83 -> 71131 | X42: =ROUND((P42/V42)*100,1) -> 10.9
A43: 17 | C43: TT-RTP | D43: REAL TIME PRICING | F43: ='Rate TT RTP'!Y85 -> 24 | H43: ='Rate TT RTP'!AA85 -> 13109567 | J43: 5.815142 | L43: ='Rate TT RTP'!AE85 -> 762340 | N43: =ROUND((L43/L$44)*100,2) -> 64.61 | P43: ='Rate TT RTP'!AI85 -> 53888 | R43: =ROUND((P43/L43)*100,1) -> 7.1 | T43: ='Rate TT RTP'!AM85 -> 0 | V43: ='Rate TT RTP'!AO85 -> 762340 | X43: =ROUND((P43/V43)*100,1) -> 7.1
A44: 18 | C44: TOTAL REAL TIME PRICING | F44: =SUM(F40:F43) -> 60 | H44: =SUM(H40:H43) -> 17633581 | J44: =IF(H44=0,"-",ROUND((L44/H44)*100,6)) -> 6.691772 | L44: =SUM(L40:L43) -> 1179999 | N44: =ROUND((L44/L$67)*100,2) -> 0.3 | P44: =SUM(P40:P43) -> 108553 | R44: =ROUND((P44/L44)*100,1) -> 9.2 | T44: =SUM(T40:T43) -> 0 | V44: =SUM(V40:V43) -> 1179999 | X44: =ROUND((P44/V44)*100,1) -> 9.2
C46: LIGHTING
A47: 19 | C47: SL | D47: STREET LIGHTING | F47: ='Rate SL'!Y429 -> 101040 | H47: ='Rate SL'!AA429 -> 7825127 | J47: =IF(H47=0,"-",ROUND((L47/H47)*100,6)) -> 15.44596 | L47: ='Rate SL'!AE429 -> 1208666 | N47: =ROUND((L47/L$54)*100,2) -> 60.85 | P47: ='Rate SL'!AI429 -> 296933 | R47: =ROUND((P47/L47)*100,1) -> 24.6 | T47: ='Rate SL'!AM429 -> 46677 | V47: ='Rate SL'!AO429 -> 1255341 | X47: =ROUND((P47/V47)*100,1) -> 23.7
A48: 20 | C48: TL | D48: TRAFFIC LIGHTING | F48: ='Rate TL'!Y98 -> 106140 | H48: ='Rate TL'!AA98 -> 1442664 | J48: 6.327184 | L48: ='Rate TL'!AE98 -> 91280 | N48: 4.6 | P48: ='Rate TL'!AI98 -> 3619 | R48: 4 | T48: ='Rate TL'!AM98 -> 8605 | V48: ='Rate TL'!AO98 -> 99885 | X48: 3.6
A49: 21 | C49: UOLS | D49: UNMTRD OUTDR LIGHT | F49: ='Rate UOLS'!Y63 -> 109668 | H49: ='Rate UOLS'!AA63 -> 7267796 | J49: 4.999108 | L49: ='Rate UOLS'!AE63 -> 363325 | N49: 18.29 | P49: ='Rate UOLS'!AI63 -> 108052 | R49: =IF(L49=0,"0.0 ",ROUND((P49/L49)*100,1)) -> 29.7 | T49: ='Rate UOLS'!AM63 -> 43352 | V49: ='Rate UOLS'!AO63 -> 406677 | X49: =IF(V49=0,"0.0 ",ROUND((P49/V49)*100,1)) -> 26.6
A50: 22 | C50: NSU | D50: NON STD STREET LIGHT | F50: ='Rate NSU'!Y95 -> 8172 | H50: ='Rate NSU'!AA95 -> 399755 | J50: 18.487073 | L50: ='Rate NSU'!AE95 -> 73903 | N50: 3.72 | P50: ='Rate NSU'!AI95 -> 22974 | R50: 31.1 | T50: ='Rate NSU'!AM95 -> 2385 | V50: ='Rate NSU'!AO95 -> 76288 | X50: 30.1
A51: 23 | C51: SC | D51: CUST OWNED STREET LIGHTING | F51: ='Rate SC'!Y145 -> 2064 | H51: ='Rate SC'!AA145 -> 91284 | J51: 4.998685 | L51: ='Rate SC'!AE145 -> 4563 | N51: 0.23 | P51: ='Rate SC'!AI145 -> 1357 | R51: 29.7 | T51: ='Rate SC'!AM145 -> 545 | V51: ='Rate SC'!AO145 -> 5108 | X51: 26.6
A52: 24 | C52: SE | D52: OVR HD EQUIV STREET LIGHTING | F52: ='Rate SE'!Y108 -> 23664 | H52: ='Rate SE'!AA108 -> 1408744 | J52: 15.973733 | L52: ='Rate SE'!AE108 -> 225029 | N52: 11.33 | P52: ='Rate SE'!AI108 -> 69665 | R52: 31 | T52: ='Rate SE'!AM108 -> 8403 | V52: ='Rate SE'!AO108 -> 233430 | X52: 29.8
A53: 25 | C53: LED | D53: LED OUTDOOR LIGHT | F53: ='Rate LED'!Y467 -> 1152 | H53: ='Rate LED'!AA467 -> 27312 | J53: 71.34959 | L53: ='Rate LED'!AE467 -> 19487 | N53: 0.98 | P53: ='Rate LED'!AI467 -> -6262.390416 | R53: =IFERROR(ROUND((P53/L53)*100,1),0) -> -32.1 | T53: ='Rate LED'!AM467 -> 163 | V53: ='Rate LED'!AO467 -> 19650 | X53: =IFERROR(ROUND((P53/V53)*100,1),0) -> -31.9
A54: 26 | C54: TOTAL LIGHTING | F54: =SUM(F47:F53) -> 351900 | H54: =SUM(H47:H53) -> 18462682 | J54: =IF(H54=0,"-",ROUND((L54/H54)*100,6)) -> 10.758204 | L54: =SUM(L47:L53) -> 1986253 | N54: =ROUND((L54/L$67)*100,2) -> 0.5 | P54: =SUM(P47:P53) -> 496337.6096 | R54: 25 | T54: =SUM(T47:T53) -> 110130 | V54: =SUM(V47:V53) -> 2096379 | X54: 23.7
C56: OTHER MISC REVENUE
A57: 27 | C57: ID01 | D57: INTERDEPARTMENTAL | F57: 12 | H57: 828580 | J57: =IF(H57=0,"-",ROUND((L57/H57)*100,6)) -> 8.081537 | L57: =V57-T57 -> 66962 | N57: =ROUND((L57/L$65)*100,2) -> 2.38 | P57: ='SCH M-2.3'!L57-'SCH M-2.2'!L57 -> 7176 | R57: =ROUND((P57/L57)*100,1) -> 10.7 | T57: =ROUND(H57*CUR_FAC,0) -> 4942 | V57: 71904 | X57: =ROUND((P57/V57)*100,1) -> 10
A58: 28 | D58: PJM AND TRANSMISSION | F58: 0 | H58: 0 | J58: =IF(H58=0,"-",ROUND((L58/H58)*100,6)) -> - | L58: 169500 | N58: =ROUND((L58/L$65)*100,2) -> 6.04 | P58: ='SCH M-2.3'!L58-'SCH M-2.2'!L58 -> 0 | R58: =IF(L58=0,0,ROUND((P58/L58)*100,1)) -> 0 | T58: 0 | V58: =L58+T58 -> 169500 | X58: =IF(V58=0,0,ROUND((P58/V58)*100,1)) -> 0
A59: 29 | D59: BAD CHECK CHARGES | F59: 0 | H59: 0 | J59: =IF(H59=0,"-",ROUND((L59/H59)*100,6)) -> - | L59: 43500 | N59: 1.55 | P59: ='SCH M-2.3'!L59-'SCH M-2.2'!L59 -> 0 | R59: 0 | T59: 0 | V59: 43500 | X59: 0
A60: 30 | D60: RECONNECTION CHGS | F60: 0 | H60: 0 | J60: - | L60: =58092-10957 -> 47135 | N60: 1.68 | P60: ='SCH M-2.3'!L60-'SCH M-2.2'!L60 -> -2766 | R60: -5.9 | T60: 0 | V60: 47135 | X60: -5.9
A61: 31 | D61: POLE AND LINE ATTACHMENTS | F61: 0 | H61: 0 | J61: =IF(H61=0,"-",ROUND((L61/H61)*100,6)) -> - | L61: 217344 | N61: =ROUND((L61/L$65)*100,2) -> 7.74 | P61: ='SCH M-2.3'!L61-'SCH M-2.2'!L61 -> 0 | R61: =ROUND((P61/L61)*100,1) -> 0 | T61: 0 | V61: =L61+T61 -> 217344 | X61: =ROUND((P61/V61)*100,1) -> 0
A62: 32 | D62: RENTS | F62: 0 | H62: 0 | J62: - | L62: 1299996 | N62: 46.3 | P62: ='SCH M-2.3'!L62-'SCH M-2.2'!L62 -> 0 | R62: 0 | T62: 0 | V62: 1299996 | X62: 0
A63: 33 | C63: WS | D63: SPECIAL CONTRACTS | F63: 12 | H63: 14493914 | J63: =IF(H63=0,"-",ROUND((L63/H63)*100,6)) -> 5.697598 | L63: =IF(INPUT!$C$29>0,ROUND($H$63*(INPUT!$C$204-CUR_FAC),0),ROUND($H$63*(INPUT!$C$204-CUR_FAC),0)-ROUND($H$63*(INPUT!$F$30+INPUT!$F$34),0)) -> 825805 | N63: 29.41 | P63: ='SCH M-2.3'!L63-'SCH M-2.2'!L63 -> 155620 | R63: 18.8 | T63: =ROUND(H63*CUR_FAC,0) -> 86456 | V63: 912261 | X63: 17.1
A64: 34 | D64: OTHER MISC | F64: 0 | H64: 0 | J64: =IF(H64=0,"-",ROUND((L64/H64)*100,6)) -> - | L64: =148404-10644 -> 137760 | N64: =ROUND((L64/L$65)*100,2) -> 4.91 | P64: ='SCH M-2.3'!L64-'SCH M-2.2'!L64 -> 0 | R64: 0 | T64: 0 | V64: 137760 | X64: 0
A65: 35 | C65: TOTAL MISC REVENUE | F65: =SUM(F57:F64) -> 24 | H65: =SUM(H57:H64) -> 15322494 | L65: =SUM(L57:L64) -> 2808002 | N65: =ROUND((L65/L$67)*100,2) -> 0.71 | P65: =SUM(P57:P64) -> 160030 | R65: 5.7 | T65: =SUM(T57:T64) -> 91398 | V65: =SUM(V57:V64) -> 2899400 | X65: 5.5
A67: 36 | C67: TOTAL | F67: =F65+F54+F44+F37+F33+F23 -> 2138296 | H67: =H65+H54+H44+H37+H33+H23 -> 4108395650 | J67: =IF(H67=0,"-",ROUND((L67/H67)*100,6)) -> 9.664997 | L67: =L65+L54+L44+L37+L33+L23 -> 397076304 | N67: 100 | P67: =P65+P54+P44+P37+P33+P23 -> 54291449.61 | R67: =ROUND((P67/L67)*100,1) -> 13.7 | T67: =T65+T54+T44+T37+T33+T23 -> 24401396 | V67: =V65+V54+V44+V37+V33+V23 -> 421477696 | X67: =ROUND((P67/V67)*100,1) -> 12.9
C69: ="NOTE: DETAIL CONTAINED ON SCHEDULES M-2.2 PAGES 2 THROUGH "&TEXT(Page_Num_2.2,"00")&"." -> NOTE: DETAIL CONTAINED ON SCHEDULES M-2.2 PAGES 2 THROUGH 23.

Sheet SCH M-2.3
A1: =NAME -> DUKE ENERGY KENTUCKY, INC.
A2: =CASE_NO -> CASE NO. 2022-00372 - REHEARING
A3: =TITLE -> ANNUALIZED TEST YEAR REVENUES AT PROPOSED VS. MOST CURRENT RATES
A4: =DATE -> FOR THE TWELVE MONTHS ENDED June 30, 2024
A5: =SERVICE -> (ELECTRIC SERVICE)
A6: =DATA_PERIOD -> DATA: ____ BASE PERIOD __X__FORECASTED PERIOD | R6: SCHEDULE M-2.3
A7: =TYPE -> TYPE OF FILING: ___ ORIGINAL ___UPDATED _X_ REVISED | R7: ="PAGE 1 OF "&TEXT(Page_Num_2.3,"00") -> PAGE 1 OF 24
A8: WORK PAPER REFERENCE NO(S).: | R8: WITNESS:
A9: =TIME -> 12 Months Projected with Riders - STAFF-RHDR-01-005A | R9: =WIT -> B. L. Sailers
A10: =INPUT!B5 -> 
A11: PROPOSED ANNUALIZED
L13: PROPOSED | N13: % OF REV TO | R13: PROPOSED
L14: REVENUE LESS | N14: TOTAL LESS | R14: TOTAL
A15: LINE | C15: RATE | D15: CLASS / | F15: CUSTOMER | J15: PROPOSED | L15: FAC | N15: FAC | P15: FAC | R15: REVENUE
A16: NO. | C16: CODE | D16: DESCRIPTION | F16: BILLS | H16: SALES | J16: RATES | L16: REVENUE | N16: REVENUE | P16: REVENUE | R16: (F + H)
C17: (A) | D17: (B) | F17: (C) | H17: (D) | J17: (E) | L17: (F) | N17: (G) | P17: (H) | R17: (I)
H19: (KWH) | J19: (¢/KWH) | L19: ($) | N19: (%) | P19: ($) | R19: ($)
C20: RESIDENTIAL
A21: 1 | C21: RS | D21: RESIDENTIAL SERV | F21: ='Rate RS'!F38 -> 1620224 | H21: ='Rate RS'!H38 -> 1492427084 | J21: =IF(H21=0,"-",ROUND((L21/H21)*100,6)) -> 13.129162 | L21: ='Rate RS'!L38 -> 195943174 | N21: =ROUND((L21/L$23)*100,2) -> 100 | P21: ='Rate RS'!P38 -> 8902328 | R21: ='Rate RS'!R38 -> 204845502
A22: 2 | C22: RS-TOU-CPP | D22: RESIDENTIAL TOU CPP | F22: 0 | H22: 0 | J22: 0 | L22: 0 | N22: 0 | P22: 0 | R22: 0
A23: 3 | C23: TOTAL RESIDENTIAL | F23: =F21 -> 1620224 | H23: =H21 -> 1492427084 | J23: =IF(H23=0,"-",ROUND((L23/H23)*100,6)) -> 13.129162 | L23: =L21 -> 195943174 | N23: =ROUND((L23/L$67)*100,2) -> 43.41 | P23: =P21 -> 8902328 | R23: =R21 -> 204845502
C25: DISTRIBUTION
A26: 4 | C26: DS | D26: DISTRIBUTION SERV | F26: ='Rate DS'!F50 -> 160254 | H26: ='Rate DS'!H50 -> 1175159240 | J26: =IF(H26=0,"-",ROUND((L26/H26)*100,6)) -> 10.86199 | L26: ='Rate DS'!L50 -> 127645679 | N26: =ROUND((L26/L$33)*100,2) -> 54.54 | P26: ='Rate DS'!P50 -> 7009825 | R26: ='Rate DS'!R50 -> 134655504
A27: 5 | C27: DT-PRI | D27: TIME OF DAY | F27: ='Rate DT-Pri'!F65 -> 534 | H27: ='Rate DT-Pri'!H65 -> 522954360 | J27: 8.596222 | L27: ='Rate DT-Pri'!L65 -> 44954316 | N27: 19.21 | P27: ='Rate DT-Pri'!P65 -> 3119423 | R27: ='Rate DT-Pri'!R65 -> 48073739
A28: 6 | C28: DT-SEC | D28: TIME OF DAY | F28: ='Rate DT-Sec'!F63 -> 1476 | H28: ='Rate DT-Sec'!H63 -> 633631181 | J28: 9.07627 | L28: ='Rate DT-Sec'!L63 -> 57510076 | N28: 24.57 | P28: ='Rate DT-Sec'!P63 -> 3779610 | R28: ='Rate DT-Sec'!R63 -> 61289686
A29: 7 | C29: EH | D29: ELEC SPACE HEATING | F29: ='Rate EH'!F43 -> 752 | H29: ='Rate EH'!H43 -> 19740170 | J29: 8.778415 | L29: ='Rate EH'!L43 -> 1732874 | N29: 0.74 | P29: ='Rate EH'!P43 -> 117750 | R29: ='Rate EH'!R43 -> 1850624
A30: 8 | C30: SP | D30: SPORTS SERV | F30: ='Rate SP GSFL'!F38 -> 156 | H30: ='Rate SP GSFL'!H38 -> 193786 | J30: 14.84421 | L30: ='Rate SP GSFL'!L38 -> 28766 | N30: 0.01 | P30: ='Rate SP GSFL'!P38 -> 1156 | R30: ='Rate SP GSFL'!R38 -> 29922
A31: 9 | C31: GSFL | D31: SMALL FIXED LOADS | F31: ='Rate SP GSFL'!F57 -> 2520 | H31: ='Rate SP GSFL'!H57 -> 6509014 | J31: 13.123724 | L31: ='Rate SP GSFL'!L57 -> 854225 | N31: 0.36 | P31: ='Rate SP GSFL'!P57 -> 38826 | R31: ='Rate SP GSFL'!R57 -> 893051
A32: 10 | C32: DP | D32: PRIMARY VOLTAGE | F32: ='Rate DP'!F46 -> 240 | H32: ='Rate DP'!H46 -> 13846248 | J32: 9.51964 | L32: ='Rate DP'!L46 -> 1318113 | N32: =ROUND((L32/L$33)*100,2) -> 0.56 | P32: ='Rate DP'!P46 -> 82593 | R32: ='Rate DP'!R46 -> 1400706
A33: 11 | C33: TOTAL DISTRIBUTION | F33: =SUM(F26:F32) -> 165932 | H33: =SUM(H26:H32) -> 2372033999 | J33: 9.866808 | L33: =SUM(L26:L32) -> 234044049 | N33: =ROUND((L33/L$67)*100,2)+0.01 -> 51.86 | P33: =SUM(P26:P32) -> 14149183 | R33: =SUM(R26:R32) -> 248193232
C35: TRANSMISSION
A36: 12 | C36: TT | D36: TIME OF DAY | F36: ='Rate TT'!F56 -> 156 | H36: ='Rate TT'!H56 -> 192515810 | J36: =IF(H36=0,"-",ROUND((L36/H36)*100,6)) -> 7.605275 | L36: ='Rate TT'!L56 -> 14641356 | N36: =ROUND((L36/L$37)*100,2) -> 100 | P36: ='Rate TT'!P56 -> 1148357 | R36: ='Rate TT'!R56 -> 15789713
A37: 13 | C37: TOTAL TRANSMISSION | F37: =F36 -> 156 | H37: =H36 -> 192515810 | J37: 7.605275 | L37: =L36 -> 14641356 | N37: =ROUND((L37/L$67)*100,2) -> 3.24 | P37: =P36 -> 1148357 | R37: =R36 -> 15789713
C39: REAL TIME PRICING
A40: 14 | C40: DT-RTP PRI | D40: REAL TIME PRICING | F40: ='Rate DT RTP-P'!F38 -> 0 | H40: ='Rate DT RTP-P'!H38 -> 0 | J40: =IF(H40=0,"-",ROUND((L40/H40)*100,6)) -> - | L40: ='Rate DT RTP-P'!L38 -> 0 | N40: =IFERROR(ROUND((L40/L$44)*100,2),0) -> 0 | P40: ='Rate DT RTP-P'!P38 -> 0 | R40: ='Rate DT RTP-P'!R38 -> 0
A41: 15 | C41: DT-RTP SEC | D41: REAL TIME PRICING | F41: ='Rate DT RTP-S'!F39 -> 12 | H41: ='Rate DT RTP-S'!H39 -> 3987977 | J41: 9.865403 | L41: ='Rate DT RTP-S'!L39 -> 393430 | N41: =IFERROR(ROUND((L41/L$44)*100,2),0) -> 30.53 | P41: ='Rate DT RTP-S'!P39 -> 0 | R41: ='Rate DT RTP-S'!R39 -> 393430
A42: 16 | C42: DS-RTP | D42: REAL TIME PRICING | F42: ='Rate DS RTP'!F39 -> 24 | H42: ='Rate DS RTP'!H39 -> 536037 | J42: 14.718014 | L42: ='Rate DS RTP'!L39 -> 78894 | N42: 6.12 | P42: ='Rate DS RTP'!P39 -> 0 | R42: ='Rate DS RTP'!R39 -> 78894
A43: 17 | C43: TT-RTP | D43: REAL TIME PRICING | F43: ='Rate TT RTP'!F39 -> 24 | H43: ='Rate TT RTP'!H39 -> 13109567 | J43: 6.226201 | L43: ='Rate TT RTP'!L39 -> 816228 | N43: 63.34 | P43: ='Rate TT RTP'!P39 -> 0 | R43: ='Rate TT RTP'!R39 -> 816228
A44: 18 | C44: TOTAL REAL TIME PRICING | F44: =SUM(F40:F43) -> 60 | H44: =SUM(H40:H43) -> 17633581 | J44: 7.307376 | L44: =SUM(L40:L43) -> 1288552 | N44: =ROUND((L44/L$67)*100,2) -> 0.29 | P44: =SUM(P40:P43) -> 0 | R44: =SUM(R40:R43) -> 1288552
C46: LIGHTING
A47: 19 | C47: SL | D47: STREET LIGHTING | F47: ='Rate SL'!F209 -> 101040 | H47: ='Rate SL'!H209 -> 7825127 | J47: =IF(H47=0,"-",ROUND((L47/H47)*100,6)) -> 19.24057 | L47: ='Rate SL'!L209 -> 1505599 | N47: =ROUND((L47/L$54)*100,2) -> 60.65 | P47: ='Rate SL'!P209 -> 46677 | R47: ='Rate SL'!R209 -> 1552274
A48: 20 | C48: TL | D48: TRAFFIC LIGHTING | F48: ='Rate TL'!F47 -> 106140 | H48: ='Rate TL'!H47 -> 1442664 | J48: 6.578039 | L48: ='Rate TL'!L47 -> 94899 | N48: 3.82 | P48: ='Rate TL'!P47 -> 8605 | R48: ='Rate TL'!R47 -> 103504
A49: 21 | C49: UOLS | D49: UNMTRD OUTDR LIGHT | F49: ='Rate UOLS'!F28 -> 109668 | H49: ='Rate UOLS'!H28 -> 7267796 | J49: 6.485831 | L49: ='Rate UOLS'!L28 -> 471377 | N49: 18.99 | P49: ='Rate UOLS'!P28 -> 43352 | R49: ='Rate UOLS'!R28 -> 514729
A50: 22 | C50: NSU | D50: NON STD STREET LIGHT | F50: ='Rate NSU'!F45 -> 8172 | H50: ='Rate NSU'!H45 -> 399755 | J50: 24.234093 | L50: ='Rate NSU'!L45 -> 96877 | N50: 3.9 | P50: ='Rate NSU'!P45 -> 2385 | R50: ='Rate NSU'!R45 -> 99262
A51: 23 | C51: SC | D51: CUST OWNED STREET LIGHTING | F51: ='Rate SC'!F72 -> 2064 | H51: ='Rate SC'!H72 -> 91284 | J51: 6.485255 | L51: ='Rate SC'!L72 -> 5920 | N51: 0.24 | P51: ='Rate SC'!P72 -> 545 | R51: ='Rate SC'!R72 -> 6465
A52: 24 | C52: SE | D52: OVR HD EQUIV STREET LIGHTING | F52: ='Rate SE'!F52 -> 23664 | H52: ='Rate SE'!H52 -> 1408744 | J52: 20.918918 | L52: ='Rate SE'!L52 -> 294694 | N52: 11.87 | P52: ='Rate SE'!P52 -> 8403 | R52: ='Rate SE'!R52 -> 303096
A53: 25 | C53: LED | D53: LED OUTDOOR LIGHT | F53: ='Rate LED'!F252 -> 1152 | H53: ='Rate LED'!H252 -> 27312 | J53: 48.42051 | L53: ='Rate LED'!L252 -> 13224.60958 | N53: 0.53 | P53: ='Rate LED'!P252 -> 163 | R53: ='Rate LED'!R252 -> 13387.60958
A54: 26 | C54: TOTAL LIGHTING | F54: =SUM(F47:F53) -> 351900 | H54: =SUM(H47:H53) -> 18462682 | J54: 13.446533 | L54: =SUM(L47:L53) -> 2482590.61 | N54: =ROUND((L54/L$67)*100,2) -> 0.55 | P54: =SUM(P47:P53) -> 110130 | R54: =SUM(R47:R53) -> 2592717.61
C56: OTHER MISC REVENUE
A57: 27 | C57: ID01 | D57: INTERDEPARTMENTAL | F57: ='SCH M-2.2'!F57 -> 12 | H57: ='SCH M-2.2'!H57 -> 828580 | J57: =IF(H57=0,"-",ROUND((L57/H57)*100,2)) -> 8.95 | L57: ='Revenue Requirements'!I39-P57 -> 74138 | N57: =ROUND((L57/L$65)*100,2) -> 2.5 | P57: ='SCH M-2.2'!T57 -> 4942 | R57: =L57+P57 -> 79080
A58: 28 | D58: PJM AND TRANSMISSION | F58: ='SCH M-2.2'!F58 -> 0 | H58: ='SCH M-2.2'!H58 -> 0 | J58: - | L58: ='SCH M-2.2'!L58 -> 169500 | N58: 5.71 | P58: ='SCH M-2.2'!T58 -> 0 | R58: =L58+P58 -> 169500
A59: 29 | D59: BAD CHECK CHARGES | F59: ='SCH M-2.2'!F59 -> 0 | H59: ='SCH M-2.2'!H59 -> 0 | J59: - | L59: ='SCH M-2.2'!L59 -> 43500 | N59: 1.47 | P59: ='SCH M-2.2'!T59 -> 0 | R59: 43500
A60: 30 | D60: RECONNECTION CHGS | F60: ='SCH M-2.2'!F60 -> 0 | H60: ='SCH M-2.2'!H60 -> 0 | J60: - | L60: =55326-10957 -> 44369 | N60: 1.49 | P60: ='SCH M-2.2'!T60 -> 0 | R60: 44369
A61: 31 | D61: POLE AND LINE ATTACHMENTS | F61: ='SCH M-2.2'!F61 -> 0 | H61: ='SCH M-2.2'!H61 -> 0 | J61: =IF(H61=0,"-",ROUND((L61/H61)*100,2)) -> - | L61: ='SCH M-2.2'!L61 -> 217344 | N61: =ROUND((L61/L$65)*100,2) -> 7.32 | P61: ='SCH M-2.2'!T61 -> 0 | R61: =L61+P61 -> 217344 | U61: 255263
A62: 32 | D62: RENTS | F62: ='SCH M-2.2'!F62 -> 0 | H62: ='SCH M-2.2'!H62 -> 0 | J62: - | L62: ='SCH M-2.2'!L62 -> 1299996 | N62: 43.8 | P62: ='SCH M-2.2'!T62 -> 0 | R62: 1299996
A63: 33 | C63: WS | D63: SPECIAL CONTRACTS | F63: ='SCH M-2.2'!F63 -> 12 | H63: ='SCH M-2.2'!H63 -> 14493914 | J63: 6.77 | L63: =IF(DSM_RES>0,'Revenue Requirements'!I24-P63+ROUND($H$63*(INPUT!$F$30+INPUT!$F$34),0),'Revenue Requirements'!I24-P63) -> 981425 | N63: 33.07 | P63: ='SCH M-2.2'!T63 -> 86456 | R63: 1067881
A64: 34 | D64: OTHER MISC | F64: ='SCH M-2.2'!F64 -> 0 | H64: ='SCH M-2.2'!H64 -> 0 | J64: - | L64: ='SCH M-2.2'!L64 -> 137760 | N64: =ROUND((L64/L$65)*100,2) -> 4.64 | P64: ='SCH M-2.2'!T64 -> 0 | R64: 137760
A65: 35 | C65: TOTAL MISC REVENUE | F65: =SUM(F57:F64) -> 24 | H65: =SUM(H57:H64) -> 15322494 | L65: =SUM(L57:L64) -> 2968032 | N65: =ROUND((L65/L$67)*100,2) -> 0.66 | P65: =SUM(P57:P64) -> 91398 | R65: =SUM(R57:R64) -> 3059430
A67: 36 | C67: TOTAL | F67: =F65+F54+F44+F37+F33+F23 -> 2138296 | H67: =H65+H54+H44+H37+H33+H23 -> 4108395650 | J67: 10.99 | L67: =L65+L54+L44+L37+L33+L23 -> 451367753.6 | N67: 100 | P67: =P65+P54+P44+P37+P33+P23 -> 24401396 | R67: =R65+R54+R44+R37+R33+R23 -> 475769146.6
C68: ="NOTE: DETAIL CONTAINED ON SCHEDULES M-2.3 PAGES 2 THROUGH "&TEXT(Page_Num_2.3,"00")&"." -> NOTE: DETAIL CONTAINED ON SCHEDULES M-2.3 PAGES 2 THROUGH 24.

Sheet Rate RS
A1: =NAME -> DUKE ENERGY KENTUCKY, INC.
A2: =CASE_NO -> CASE NO. 2022-00372 - REHEARING
A3: =TITLE -> ANNUALIZED TEST YEAR REVENUES AT PROPOSED VS. MOST CURRENT RATES
A4: =DATE -> FOR THE TWELVE MONTHS ENDED June 30, 2024
A5: =SERVICE -> (ELECTRIC SERVICE)
A6: =DATA_PERIOD -> DATA: ____ BASE PERIOD __X__FORECASTED PERIOD | R6: SCHEDULE M-2.3
A7: =TYPE -> TYPE OF FILING: ___ ORIGINAL ___UPDATED _X_ REVISED | R7: ="PAGE 2 OF "&TEXT(Page_Num_2.3,"00") -> PAGE 2 OF 24
A8: WORK PAPER REFERENCE NO(S).: | R8: WITNESS:
A9: =TIME -> 12 Months Projected with Riders - STAFF-RHDR-01-005A | R9: =WIT -> B. L. Sailers
A10: =INPUT!B5 -> 
A11: PROPOSED ANNUALIZED
L13: PROPOSED | N13: % OF REV TO | R13: PROPOSED
L14: REVENUE LESS | N14: TOTAL LESS | R14: TOTAL
A15: LINE | C15: RATE | D15: CLASS / | F15: CUSTOMER | J15: PROPOSED | L15: FAC | N15: FAC | P15: FAC | R15: REVENUE
A16: NO. | C16: CODE | D16: DESCRIPTION | F16: BILLS(1) | H16: SALES | J16: RATES | L16: REVENUE | N16: REVENUE | P16: REVENUE (2) | R16: (F + H)
C17: (A) | D17: (B) | F17: (C) | H17: (D) | J17: (E) | L17: (F) | N17: (G) | P17: (H) | R17: (I)
H19: (KWH) | J19: ($/KWH) | L19: ($) | N19: (%) | P19: ($) | R19: ($)
A20: 1 | C20: RS | D20: RESIDENTIAL
A22: 2 | C22: CUSTOMER CHARGE:
A23: 3 | C23: BILLS | F23: 1620224 | J23: 13 | L23: =ROUND(F23*J23,0)-P23 -> 21062912 | N23: =ROUND((L23/$L$38)*100,1) -> 10.7 | R23: =L23+P23 -> 21062912 | W23: =J23/AB64 -> 1.031746032
A25: 4 | C25: ENERGY CHARGE (3):
A26: 5 | C26: ALL KWH | H26: 1492427084 | J26: 0.099654 | L26: =ROUND(H26*J26,0)-P26 -> 148726329 | N26: =ROUND((L26/$L$38)*100,1) -> 75.9 | R26: =L26+P26 -> 148726329 | W26: =J26/AB67 -> 1.230372245 | X26: =J26-AB67 -> 0.018659
A28: 6 | C28: TOTAL RATE RS EXCLUDING RIDERS | F28: =F23 -> 1620224 | H28: =H26 -> 1492427084 | L28: =SUM(L23:L26) -> 169789241 | N28: =ROUND((L28/$L$38)*100,1) -> 86.7 | R28: =SUM(R23:R26) -> 169789241
A30: 7 | C30: RIDERS:
A31: 8 | C31: =HEA_Name -> HOME ENERGY ASSISTANCE (HEA) | J31: =DSM_RS_CUST -> 0.3 | L31: =ROUND(F23*J31,0) -> 486067 | N31: =ROUND((L31/$L$38)*100,1) -> 0.2 | R31: =L31+P31 -> 486067
A32: 9 | C32: =DSMR_Name -> DEMAND SIDE MANAGEMENT RIDER (DSMR) | J32: =PRO_DSM_RES -> 0.006975 | L32: =ROUND(H26*J32,0) -> 10409679 | N32: 5.3 | R32: =L32+P32 -> 10409679
A33: 10 | C33: =ESM_Name -> ENVIRONMENTAL SURCHARGE MECHANISM RIDER (ESM) | J33: =PRO_ESM -> 0.04171786118 | L33: =ROUND((R28+R31+R32+R34+R35)*J33,0) -> 8203484 | N33: 4.2 | R33: =L33+P33 -> 8203484
A34: 11 | C34: =FAC_Name -> FUEL ADJUSTMENT CLAUSE (FAC) | J34: =PRO_FAC -> 0.005965 | N34: 0 | P34: =ROUND($H$26*PRO_FAC,0) -> 8902328 | R34: =L34+P34 -> 8902328
A35: 12 | C35: =PSM_Name -> PROFIT SHARING MECHANISM (PSM) | J35: =PRO_PSM -> 0.004727 | L35: =ROUND(H26*J35,0) -> 7054703 | N35: 3.6 | R35: =L35+P35 -> 7054703
A36: 13 | C36: TOTAL RIDERS | L36: =SUM(L31:L35) -> 26153933 | N36: 13.3 | P36: =SUM(P31:P35) -> 8902328 | R36: =SUM(R31:R35) -> 35056261
A38: 14 | C38: TOTAL RATE RS INCLUDING RIDERS | F38: =F23 -> 1620224 | H38: =H26 -> 1492427084 | L38: =L28+L36 -> 195943174 | N38: 100 | P38: =P36+P28 -> 8902328 | R38: =R28+R36 -> 204845502
C40: (1) BILLS THAT TERMINATE IN RESPECTIVE RATE STEPS.
C41: ="(2) REFLECTS FUEL COMPONENT OF "&TEXT(PRO_FAC,"$0.000000;($0.000000)")&" PER KWH." -> (2) REFLECTS FUEL COMPONENT OF $0.005965 PER KWH.
C42: ="(3) REFLECTS FUEL COST RECOVERY INCLUDED IN BASE RATES OF "&TEXT(PRO_BASE_FUEL,"$0.000000;($0.000000)")&" PER KWH." -> (3) REFLECTS FUEL COST RECOVERY INCLUDED IN BASE RATES OF $0.025401 PER KWH. | T42: =NAME -> DUKE ENERGY KENTUCKY, INC.
T43: =CASE_NO -> CASE NO. 2022-00372 - REHEARING
T44: =TITLE -> ANNUALIZED TEST YEAR REVENUES AT PROPOSED VS. MOST CURRENT RATES
T45: =DATE -> FOR THE TWELVE MONTHS ENDED June 30, 2024
T46: =SERVICE -> (ELECTRIC SERVICE)
T47: =DATA_PERIOD -> DATA: ____ BASE PERIOD __X__FORECASTED PERIOD | AN47: SCHEDULE M-2.2
T48: =TYPE -> TYPE OF FILING: ___ ORIGINAL ___UPDATED _X_ REVISED | AN48: ="PAGE 2 OF "&TEXT(Page_Num_2.2,"00") -> PAGE 2 OF 23
T49: WORK PAPER REFERENCE NO(S).: | AN49: WITNESS:
T50: =TIME -> 12 Months Projected with Riders - STAFF-RHDR-01-005A | AN50: =WIT -> B. L. Sailers
T51: =INPUT!B5 -> 
AD52: CURRENT ANNUALIZED
AD54: CURRENT | AF54: % OF REV TO | AH54: REVENUE | AJ54: % INCR IN | AN54: CURRENT | AP54: TOTAL
AB55: MOST | AD55: REVENUE LESS | AF55: TOTAL LESS | AH55: INCR LESS | AJ55: REV LESS | AN55: TOTAL | AP55: REVENUE
T56: LINE | V56: RATE | W56: CLASS / | X56: CUSTOMER | AB56: CURRENT | AD56: FAC | AF56: FAC | AH56: FAC REV | AJ56: FAC REV | AL56: FAC | AN56: REVENUE | AP56: % INCREASE
T57: NO. | V57: CODE | W57: DESCRIPTION | X57: BILLS(1) | Z57: SALES | AB57: RATES | AD57: REVENUE | AF57: REVENUE | AH57: (F - K) | AJ57: (M / K) | AL57: REVENUE (2) | AN57: (K + H) | AP57: (M / K1)
V58: (A) | W58: (B) | X58: (C) | Z58: (D) | AB58: (J) | AD58: (K) | AF58: (L) | AH58: (M) | AJ58: (N) | AL58: (H) | AN58: (K1) | AP58: (O)
Z60: (KWH) | AB60: ($/KWH) | AD60: ($) | AF60: (%) | AH60: ($) | AJ60: (%) | AL60: ($) | AN60: ($) | AP60: (%)
T61: 1 | V61: RS | W61: RESIDENTIAL
T63: 2 | V63: CUSTOMER CHARGE:
T64: 3 | V64: BILLS | X64: =F23 -> 1620224 | AB64: =INPUT!C43 -> 12.6 | AD64: =ROUND(X64*AB64,0) -> 20414822 | AF64: =ROUND((AD64/$AD$79)*100,1) -> 12.2 | AH64: =L23-AD64 -> 648090 | AJ64: =ROUND((AH64/AD64)*100,1) -> 3.2 | AN64: =AD64+AL64 -> 20414822 | AP64: =ROUND((AH64/AN64)*100,1) -> 3.2
T66: 4 | V66: ENERGY CHARGE (3):
T67: 5 | V67: ALL KWH | Z67: =H26 -> 1492427084 | AB67: =INPUT!C44 -> 0.080995 | AD67: =ROUND((Z67*AB67),0)-AL67 -> 120879132 | AF67: =ROUND((AD67/$AD$79)*100,1) -> 72.2 | AH67: =L26-AD67 -> 27847197 | AJ67: =ROUND((AH67/AD67)*100,1) -> 23 | AN67: =AD67+AL67 -> 120879132 | AP67: =ROUND((AH67/AN67)*100,1) -> 23
T69: 6 | V69: TOTAL RATE RS EXCLUDING RIDERS | X69: =X64 -> 1620224 | Z69: =Z67 -> 1492427084 | AD69: =SUM(AD64:AD67) -> 141293954 | AF69: =ROUND((AD69/$AD$79)*100,1) -> 84.4 | AH69: =SUM(AH64:AH67) -> 28495287 | AJ69: =ROUND((AH69/AD69)*100,1) -> 20.2 | AN69: =SUM(AN64:AN67) -> 141293954 | AP69: =ROUND((AH69/AN69)*100,1) -> 20.2
T71: 7 | V71: RIDERS:
T72: =A31 -> 8 | V72: =C31 -> HOME ENERGY ASSISTANCE (HEA) | AB72: =DSM_RS_CUST -> 0.3 | AD72: =ROUND(X64*AB72,0) -> 486067 | AF72: =ROUND((AD72/$AD$79)*100,1) -> 0.3 | AH72: =L31-AD72 -> 0 | AJ72: =IFERROR(ROUND((AH72/AD72)*100,1),0) -> 0 | AN72: =AD72+AL72 -> 486067 | AP72: =IFERROR(ROUND((AH72/AN72)*100,1),0) -> 0
T73: =A32 -> 9 | V73: =C32 -> DEMAND SIDE MANAGEMENT RIDER (DSMR) | AB73: =DSM_RES -> 0.006975 | AD73: =ROUND(Z67*AB73,0) -> 10409679 | AF73: =ROUND((AD73/$AD$79)*100,1) -> 6.2 | AH73: =L32-AD73 -> 0 | AJ73: 0 | AN73: 10409679 | AP73: 0
T74: =A33 -> 10 | V74: =C33 -> ENVIRONMENTAL SURCHARGE MECHANISM RIDER (ESM) | AB74: =CUR_ESM -> 0.04885516338 | AD74: =ROUND((AN69+AN72+AN73+AN75+AN76)*AB74,0) -> 8214836 | AF74: =ROUND((AD74/$AD$79)*100,1) -> 4.9 | AH74: =L33-AD74 -> -11352 | AJ74: =IFERROR(ROUND((AH74/AD74)*100,1),0) -> -0.1 | AN74: 8214836 | AP74: =IFERROR(ROUND((AH74/AN74)*100,1),0) -> -0.1
T75: =A34 -> 11 | V75: =C34 -> FUEL ADJUSTMENT CLAUSE (FAC) | AB75: =CUR_FAC -> 0.005965 | AL75: =ROUND(Z67*CUR_FAC,0) -> 8902328 | AN75: 8902328 | AP75: =IFERROR(ROUND((AH75/AN75)*100,1),0) -> 0
T76: 12 | V76: =C35 -> PROFIT SHARING MECHANISM (PSM) | AB76: =RS_PSM -> 0.004727 | AD76: =ROUND(Z67*AB76,0) -> 7054703 | AF76: =ROUND((AD76/$AD$79)*100,1) -> 4.2 | AH76: =L35-AD76 -> 0 | AJ76: =IFERROR(ROUND((AH76/AD76)*100,1),0) -> 0 | AN76: 7054703 | AP76: 0
T77: 13 | V77: TOTAL RIDERS | AD77: =SUM(AD72:AD76) -> 26165285 | AF77: =ROUND((AD77/$AD$79)*100,1) -> 15.6 | AH77: =SUM(AH72:AH76) -> -11352 | AJ77: 0 | AL77: =SUM(AL72:AL76) -> 8902328 | AN77: =SUM(AN72:AN76) -> 35067613 | AP77: =ROUND((AH77/AN77)*100,1) -> 0
T79: =A38 -> 14 | V79: TOTAL RATE RS INCLUDING RIDERS | X79: =X64 -> 1620224 | Z79: =Z67 -> 1492427084 | AD79: =AD69+AD77 -> 167459239 | AF79: 100 | AH79: =AH69+AH77 -> 28483935 | AJ79: =ROUND((AH79/AD79)*100,1) -> 17 | AL79: =AL69+AL77 -> 8902328 | AN79: =AN69+AN77 -> 176361567 | AP79: =ROUND((AH79/AN79)*100,1) -> 16.2
V81: (1) BILLS THAT TERMINATE IN RESPECTIVE RATE STEPS.
V82: ="(2) REFLECTS FUEL COMPONENT OF "&TEXT(CUR_FAC,"$0.000000;($0.000000)")&" PER KWH." -> (2) REFLECTS FUEL COMPONENT OF $0.005965 PER KWH.
V83: ="(3) REFLECTS FUEL COST RECOVERY INCLUDED IN BASE RATES OF "&TEXT(CUR_BASE_FUEL,"$0.000000;($0.000000)")&" PER KWH." -> (3) REFLECTS FUEL COST RECOVERY INCLUDED IN BASE RATES OF $0.025401 PER KWH.

Sheet Rate DS
A1: =NAME -> DUKE ENERGY KENTUCKY, INC.
A2: =CASE_NO -> CASE NO. 2022-00372 - REHEARING
A3: =TITLE -> ANNUALIZED TEST YEAR REVENUES AT PROPOSED VS. MOST CURRENT RATES
A4: =DATE -> FOR THE TWELVE MONTHS ENDED June 30, 2024
A5: =SERVICE -> (ELECTRIC SERVICE)
A6: =DATA_PERIOD -> DATA: ____ BASE PERIOD __X__FORECASTED PERIOD | R6: SCHEDULE M-2.3
A7: =TYPE -> TYPE OF FILING: ___ ORIGINAL ___UPDATED _X_ REVISED | R7: ="PAGE 3 OF "&TEXT(Page_Num_2.3,"00") -> PAGE 3 OF 24
A8: WORK PAPER REFERENCE NO(S).: | R8: WITNESS:
A9: =TIME -> 12 Months Projected with Riders - STAFF-RHDR-01-005A | R9: =WIT -> B. L. Sailers
A10: =INPUT!B5 -> 
A11: PROPOSED ANNUALIZED
L13: PROPOSED | N13: % OF REV TO | R13: PROPOSED
L14: REVENUE LESS | N14: TOTAL LESS | R14: TOTAL
A15: LINE | C15: RATE | D15: CLASS / | F15: CUSTOMER | J15: PROPOSED | L15: FAC | N15: FAC | P15: FAC | R15: REVENUE
A16: NO. | C16: CODE | D16: DESCRIPTION | F16: BILLS(1) | H16: SALES | J16: RATES | L16: REVENUE(4) | N16: REVENUE | P16: REVENUE (2) | R16: (F + H)
C17: (A) | D17: (B) | F17: (C) | H17: (D) | J17: (E) | L17: (F) | N17: (G) | P17: (H) | R17: (I)
H19: (KW/KWH) | J19: ($/KWH)/ | L19: ($) | N19: (%) | P19: ($) | R19: ($)
A20: 1 | C20: DS | D20: SERVICE AT SECONDARY | J20: ($/KW)
A21: 2 | D21: DISTRIBUTION VOLTAGE
A23: 3 | C23: CUSTOMER CHARGE:
A24: 4 | C24: LOAD MANAGEMENT RIDER | F24: 1787 | J24: 5 | L24: =ROUND(F24*J24,0) -> 8935 | N24: =ROUND((L24/L$50)*100,1) -> 0 | R24: =L24+P24 -> 8935
A25: 5 | C25: SINGLE PHASE | F25: 86360 | J25: 15 | L25: =ROUND(F25*J25,0) -> 1295400 | N25: =ROUND((L25/L$50)*100,1) -> 1 | R25: =L25+P25 -> 1295400
A26: 6 | C26: THREE PHASE | F26: 73894 | J26: 30 | L26: =ROUND(F26*J26,0) -> 2216820 | N26: =ROUND((L26/L$50)*100,1) -> 1.7 | R26: =L26+P26 -> 2216820
A27: 7 | C27: TOTAL CUSTOMER CHARGE | F27: =SUM(F25:F26) -> 160254 | L27: =SUM(L24:L26) -> 3521155 | N27: =ROUND((L27/L$50)*100,1) -> 2.8 | R27: =SUM(R24:R26) -> 3521155
A29: 8 | C29: DEMAND CHARGE:
A30: 9 | C30: FIRST 15 KW | H30: 1447562 | J30: =INPUT!D55 -> 0 | L30: =ROUND(H30*J30,0) -> 0 | N30: =ROUND((L30/L$50)*100,1) -> 0 | R30: =L30+P30 -> 0 | W30: Adjustment for Rider LM Change
A31: 10 | C31: ADDITIONAL KW | H31: 2481303 | J31: 10.21 | L31: =ROUND((H31+W31)*J31,0) -> 25334379 | N31: =ROUND((L31/L$50)*100,1) -> 19.8 | R31: =L31+P31 -> 25334379 | W31: 27
A32: 11 | C32: TOTAL DEMAND | H32: =SUM(H30:H31) -> 3928865 | L32: =SUM(L30:L31) -> 25334379 | N32: =ROUND((L32/L$50)*100,1) -> 19.8 | R32: =SUM(R30:R31) -> 25334379
A34: 12 | C34: ENERGY CHARGE (3):
A35: 13 | C35: FIRST 6000 KWH | H35: 385605955 | J35: 0.101188 | L35: =ROUND(H35*J35,0)-P35 -> 39018695 | N35: =ROUND((L35/L$50)*100,1) -> 30.6 | R35: =L35+P35 -> 39018695
A36: 14 | C36: NEXT 300KWH/KW | H36: 654811184 | J36: 0.062801 | L36: =ROUND(H36*J36,0)-P36 -> 41122797 | N36: 32.2 | R36: 41122797
A37: 15 | C37: ADDITIONAL KWH | H37: 134079661 | J37: 0.051751 | L37: =ROUND(H37*J37,0)-P37 -> 6938757 | N37: 5.4 | R37: 6938757
A38: 16 | C38: NON-CHURCH "CAP" RATE | H38: 396117 | J38: 0.293673 | L38: 116329 | N38: 0.1 | R38: 116329
A39: 17 | C39: CHURCH CAP RATE | H39: 266323 | J39: 0.180289 | L39: 48015 | N39: 0 | R39: 48015
A40: 18 | C40: TOTAL ENERGY | H40: =SUM(H35:H39) -> 1175159240 | L40: =SUM(L35:L39) -> 87244593 | N40: 68.3 | R40: =SUM(R35:R39) -> 87244593
A41: 19 | C41: TOTAL RATE DS EXCLUDING RIDERS | F41: =F27 -> 160254 | H41: =H40 -> 1175159240 | L41: =L27+L32+L40 -> 116100127 | N41: 91 | R41: =R27+R32+R40 -> 116100127
A43: 20 | C43: RIDERS:
A44: 21 | C44: =DSMR_Name -> DEMAND SIDE MANAGEMENT RIDER (DSMR) | J44: =PRO_DSM_DIST -> -0.000718 | L44: =ROUND($H$41*J44,0) -> -843764 | N44: =ROUND((L44/L$50)*100,1) -> -0.7 | R44: =L44+P44 -> -843764
A45: 22 | C45: =ESM_Name -> ENVIRONMENTAL SURCHARGE MECHANISM RIDER (ESM) | J45: =PRO_ESM_NONRES -> 0.07513471937 | L45: =ROUND((R41-(PRO_BASE_FUEL*H41)+R44+R47)*J45,0) -> 6834338 | N45: =ROUND((L45/L$50)*100,1) -> 5.4 | R45: 6834338
A46: 23 | C46: =FAC_Name -> FUEL ADJUSTMENT CLAUSE (FAC) | J46: =PRO_FAC -> 0.005965 | P46: =ROUND(H40*J46,0) -> 7009825 | R46: 7009825
A47: 24 | C47: =PSM_Name -> PROFIT SHARING MECHANISM (PSM) | J47: =PRO_PSM -> 0.004727 | L47: =ROUND(H41*J47,0) -> 5554978 | N47: =ROUND((L47/L$50)*100,1) -> 4.4 | R47: 5554978
A48: 25 | C48: TOTAL RIDERS | L48: =SUM(L44:L47) -> 11545552 | N48: =ROUND((L48/L$50)*100,1) -> 9 | P48: =SUM(P44:P47) -> 7009825 | R48: =SUM(R44:R47) -> 18555377
A50: 26 | C50: TOTAL RATE DS INCLUDING RIDERS | F50: =F41 -> 160254 | H50: =H41 -> 1175159240 | L50: =L41+L48 -> 127645679 | N50: 100 | P50: =P41+P48 -> 7009825 | R50: =R41+R48 -> 134655504
C52: (1) BILLS THAT TERMINATE IN RESPECTIVE RATE STEPS.
C53: ="(2) REFLECTS FUEL COMPONENT OF "&TEXT(PRO_FAC,"$0.000000;($0.000000)")&" PER KWH." -> (2) REFLECTS FUEL COMPONENT OF $0.005965 PER KWH.
C54: ="(3) REFLECTS FUEL COST RECOVERY INCLUDED IN BASE RATES OF "&TEXT(PRO_BASE_FUEL,"$0.000000;($0.000000)")&" PER KWH." -> (3) REFLECTS FUEL COST RECOVERY INCLUDED IN BASE RATES OF $0.025401 PER KWH.
C55: ="(4) REFLECTS REVENUE ADDED FOR RIDER LM PROVISION" -> (4) REFLECTS REVENUE ADDED FOR RIDER LM PROVISION
T57: =NAME -> DUKE ENERGY KENTUCKY, INC.
T58: =CASE_NO -> CASE NO. 2022-00372 - REHEARING
T59: =TITLE -> ANNUALIZED TEST YEAR REVENUES AT PROPOSED VS. MOST CURRENT RATES
T60: =DATE -> FOR THE TWELVE MONTHS ENDED June 30, 2024
T61: =SERVICE -> (ELECTRIC SERVICE)
T62: =DATA_PERIOD -> DATA: ____ BASE PERIOD __X__FORECASTED PERIOD | AO62: SCHEDULE M-2.2
T63: =TYPE -> TYPE OF FILING: ___ ORIGINAL ___UPDATED _X_ REVISED | AO63: ="PAGE 3 OF "&TEXT(Page_Num_2.2,"00") -> PAGE 3 OF 23
T64: WORK PAPER REFERENCE NO(S).: | AO64: WITNESS:
T65: =TIME -> 12 Months Projected with Riders - STAFF-RHDR-01-005A | AO65: =WIT -> B. L. Sailers
T66: =INPUT!B5 -> 
T67: CURRENT ANNUALIZED
AE69: CURRENT | AG69: % OF REV TO | AI69: REVENUE | AK69: % INCR IN | AO69: CURRENT | AQ69: TOTAL
AC70: MOST | AE70: REVENUE LESS | AG70: TOTAL LESS | AI70: INCR LESS | AK70: REV LESS | AO70: TOTAL | AQ70: REVENUE
T71: LINE | V71: RATE | W71: CLASS / | Y71: CUSTOMER | AC71: CURRENT | AE71: FAC | AG71: FAC | AI71: FAC REV | AK71: FAC REV | AM71: FAC | AO71: REVENUE | AQ71: % INCREASE
T72: NO. | V72: CODE | W72: DESCRIPTION | Y72: BILLS(1) | AA72: SALES | AC72: RATES | AE72: REVENUE | AG72: REVENUE | AI72: (F - K) | AK72: (M / K) | AM72: REVENUE (2) | AO72: (K + H) | AQ72: (M / K1)
V73: (A) | W73: (B) | Y73: (C) | AA73: (D) | AC73: (J) | AE73: (K) | AG73: (L) | AI73: (M) | AK73: (N) | AM73: (H) | AO73: (K1) | AQ73: (O)
AA75: (KW/KWH) | AC75: ($/KWH)/ | AE75: ($) | AG75: (%) | AI75: ($) | AK75: (%) | AM75: ($) | AO75: ($) | AQ75: (%)
T76: =A20 -> 1 | V76: DS | W76: SERVICE AT | AC76: ($/KW)
T77: =A21 -> 2 | W77: DISTRIBUTION VOLTAGE
T79: =A23 -> 3 | V79: CUSTOMER CHARGE:
T80: =A24 -> 4 | V80: LOAD MANAGEMENT RIDER | Y80: =F24 -> 1787 | AC80: =INPUT!C63 -> 5 | AE80: =ROUND(Y80*AC80,0) -> 8935 | AG80: =ROUND((AE80/AE$106)*100,1) -> 0 | AI80: =L24-AE80 -> 0 | AK80: =ROUND((AI80/AE80)*100,1) -> 0 | AO80: =AE80+AM80 -> 8935 | AQ80: =IF(AO80=0,"0.0 ",ROUND((AI80/AO80)*100,1)) -> 0
T81: =A25 -> 5 | V81: SINGLE PHASE | Y81: =F25 -> 86360 | AC81: =INPUT!C48 -> 15 | AE81: =ROUND(Y81*AC81,0) -> 1295400 | AG81: =ROUND((AE81/AE$106)*100,1) -> 1.1 | AI81: =L25-AE81 -> 0 | AK81: =ROUND((AI81/AE81)*100,1) -> 0 | AO81: =AE81+AM81 -> 1295400 | AQ81: =IF(AO81=0,"0.0 ",ROUND((AI81/AO81)*100,1)) -> 0
T82: =A26 -> 6 | V82: THREE PHASE | Y82: =F26 -> 73894 | AC82: =INPUT!C49 -> 30 | AE82: =ROUND(Y82*AC82,0) -> 2216820 | AG82: =ROUND((AE82/AE$106)*100,1) -> 1.9 | AI82: =L26-AE82 -> 0 | AK82: =ROUND((AI82/AE82)*100,1) -> 0 | AO82: =AE82+AM82 -> 2216820 | AQ82: =IF(AO82=0,"0.0 ",ROUND((AI82/AO82)*100,1)) -> 0
T83: =A27 -> 7 | V83: TOTAL CUSTOMER CHARGE | Y83: =F27 -> 160254 | AE83: =SUM(AE80:AE82) -> 3521155 | AG83: =ROUND((AE83/AE$106)*100,1) -> 3.1 | AI83: =SUM(AI80:AI82) -> 0 | AK83: =ROUND((AI83/AE83)*100,1) -> 0 | AO83: =SUM(AO80:AO82) -> 3521155 | AQ83: =IF(AO83=0,"0.0 ",ROUND((AI83/AO83)*100,1)) -> 0
T85: =A29 -> 8 | V85: DEMAND CHARGE:
T86: =A30 -> 9 | V86: FIRST 15 KW | AA86: =H30 -> 1447562 | AC86: =INPUT!C55 -> 0 | AE86: =ROUND(AA86*AC86,0) -> 0 | AG86: =ROUND((AE86/AE$106)*100,1) -> 0 | AI86: =L30-AE86 -> 0 | AK86: 0 | AO86: =AE86+AM86 -> 0 | AQ86: =IF(AO86=0,"0.0 ",ROUND((AI86/AO86)*100,1)) -> 0.0
T87: =A31 -> 10 | V87: ADDITIONAL KW | AA87: =H31 -> 2481303 | AC87: =INPUT!C56 -> 9 | AE87: =ROUND(AA87*AC87,0) -> 22331727 | AG87: =ROUND((AE87/AE$106)*100,1) -> 19.5 | AI87: =L31-AE87 -> 3002652 | AK87: =ROUND((AI87/AE87)*100,1) -> 13.4 | AO87: =AE87+AM87 -> 22331727 | AQ87: =IF(AO87=0,"0.0 ",ROUND((AI87/AO87)*100,1)) -> 13.4
T88: =A32 -> 11 | V88: TOTAL DEMAND | AA88: =H32 -> 3928865 | AE88: =SUM(AE86:AE87) -> 22331727 | AG88: =ROUND((AE88/AE$106)*100,1) -> 19.5 | AI88: =SUM(AI86:AI87) -> 3002652 | AK88: =ROUND((AI88/AE88)*100,1) -> 13.4 | AO88: =SUM(AO86:AO87) -> 22331727 | AQ88: =IF(AO88=0,"0.0 ",ROUND((AI88/AO88)*100,1)) -> 13.4 | AT88: =1-AT96 -> 0.2250860774
T90: =A34 -> 12 | V90: ENERGY CHARGE (3):
T91: 13 | V91: FIRST 6000 KWH | AA91: =H35 -> 385605955 | AC91: =INPUT!C51 -> 0.08917 | AE91: =ROUND((AA91*AC91),0)-AM91 -> 34384483 | AG91: =ROUND((AE91/AE$106)*100,1) -> 30.1 | AI91: =L35-AE91 -> 4634212 | AK91: =ROUND((AI91/AE91)*100,1) -> 13.5 | AO91: =AE91+AM91 -> 34384483 | AQ91: =IF(AO91=0,"0.0 ",ROUND((AI91/AO91)*100,1)) -> 13.5 | AT91: =AO91/SUM($AO$91:$AO$95) -> 0.4472345615
T92: 14 | V92: NEXT 300KWH/KW | AA92: 654811184 | AC92: =INPUT!C52 -> 0.055342 | AE92: =ROUND((AA92*AC92),0)-AM92 -> 36238561 | AG92: 31.7 | AI92: =L36-AE92 -> 4884236 | AK92: 13.5 | AO92: =AE92+AM92 -> 36238561 | AQ92: 13.5 | AT92: =AO92/SUM($AO$91:$AO$95) -> 0.4713503163
T93: 15 | V93: ADDITIONAL KWH | AA93: 134079661 | AC93: =INPUT!C53 -> 0.045604 | AE93: 6114569 | AG93: 5.4 | AI93: =L37-AE93 -> 824188 | AK93: 13.5 | AO93: =AE93+AM93 -> 6114569 | AQ93: 13.5 | AT93: =AO93/SUM($AO$91:$AO$95) -> 0.07953141496
T94: 16 | V94: NON-CHURCH "CAP" RATE | AA94: 396117 | AC94: =INPUT!C58 -> 0.258792 | AE94: 102512 | AG94: 0.1 | AI94: =L38-AE94 -> 13817 | AK94: 13.5 | AO94: =AE94+AM94 -> 102512 | AQ94: 13.5 | AT94: =AO94/SUM($AO$91:$AO$95) -> 0.00133336044
T95: 17 | V95: CHURCH CAP RATE | AA95: 266323 | AC95: =INPUT!C59 -> 0.158876 | AE95: 42312 | AG95: 0 | AI95: =L39-AE95 -> 5703 | AK95: 13.5 | AO95: =AE95+AM95 -> 42312 | AQ95: 13.5 | AT95: =AO95/SUM($AO$91:$AO$95) -> 0.0005503467586
T96: 18 | V96: TOTAL ENERGY | AA96: 1175159240 | AE96: =SUM(AE91:AE95) -> 76882437 | AG96: 67.3 | AI96: =SUM(AI91:AI95) -> 10362156 | AK96: 13.5 | AO96: =SUM(AO91:AO95) -> 76882437 | AQ96: 13.5 | AT96: =AO96/(AO96+AO88) -> 0.7749139226
T97: 19 | V97: TOTAL RATE DS EXCLUDING RIDERS | Y97: =Y83 -> 160254 | AA97: =AA96 -> 1175159240 | AE97: =AE83+AE88+AE96 -> 102735319 | AG97: 89.9 | AI97: =L41-AE97 -> 13364808 | AK97: 13 | AO97: =AO83+AO88+AO96 -> 102735319 | AQ97: 13
T99: =A43 -> 20 | V99: RIDERS:
T100: 21 | V100: =C44 -> DEMAND SIDE MANAGEMENT RIDER (DSMR) | AC100: =DSM_DIST -> -0.000718 | AE100: =ROUND($AA$96*AC100,0) -> -843764 | AG100: =ROUND((AE100/AE$106)*100,1) -> -0.7 | AI100: =L44-AE100 -> 0 | AK100: =IFERROR(ROUND((AI100/AE100)*100,1),0) -> 0 | AO100: =AE100+AM100 -> -843764 | AQ100: 0
T101: 22 | V101: =C45 -> ENVIRONMENTAL SURCHARGE MECHANISM RIDER (ESM) | AC101: =CUR_ESM_NonRes -> 0.08798914629 | AE101: =ROUND((AO97-(CUR_BASE_FUEL*AA97)+AO100+AO103)*AC101,0) -> 6827633 | AG101: =ROUND((AE101/AE$106)*100,1) -> 6 | AI101: =L45-AE101 -> 6705 | AK101: =IFERROR(ROUND((AI101/AE101)*100,1),0) -> 0.1 | AO101: 6827633 | AQ101: =IF(AO101=0,"0.0 ",ROUND((AI101/AO101)*100,1)) -> 0.1
T102: 23 | V102: =C46 -> FUEL ADJUSTMENT CLAUSE (FAC) | AC102: =CUR_FAC -> 0.005965 | AM102: =ROUND(AA96*CUR_FAC,0) -> 7009825 | AO102: 7009825 | AQ102: =IF(AO102=0,"0.0 ",ROUND(((R46-AO102)/AO102)*100,1)) -> 0
T103: 24 | V103: =C47 -> PROFIT SHARING MECHANISM (PSM) | AC103: =RS_PSM -> 0.004727 | AE103: =ROUND(AA96*AC103,0) -> 5554978 | AG103: =ROUND((AE103/AE$106)*100,1) -> 4.9 | AI103: =L47-AE103 -> 0 | AK103: =IFERROR(ROUND((AI103/AE103)*100,1),0) -> 0 | AO103: 5554978 | AQ103: 0
T104: 25 | V104: TOTAL RIDERS | AE104: =SUM(AE100:AE103) -> 11538847 | AG104: =ROUND((AE104/AE$106)*100,1) -> 10.1 | AI104: =SUM(AI100:AI103) -> 6705 | AK104: 0 | AM104: =AM102 -> 7009825 | AO104: =SUM(AO100:AO103) -> 18548672 | AQ104: 0
T106: =A50 -> 26 | V106: TOTAL RATE DS INCLUDING RIDERS | Y106: =F50 -> 160254 | AA106: =H50 -> 1175159240 | AE106: =AE97+AE104 -> 114274166 | AG106: 100 | AI106: =AI97+AI104 -> 13371513 | AK106: =ROUND((AI106/AE106)*100,1) -> 11.7 | AM106: =AM97+AM104 -> 7009825 | AO106: =AO97+AO104 -> 121283991 | AQ106: =IF(AO106=0,"0.0 ",ROUND((AI106/AO106)*100,1)) -> 11
V108: (1) BILLS THAT TERMINATE IN RESPECTIVE RATE STEPS.
V109: ="(2) REFLECTS FUEL COMPONENT OF "&TEXT(CUR_FAC,"$0.000000;($0.000000)")&" PER KWH." -> (2) REFLECTS FUEL COMPONENT OF $0.005965 PER KWH.
V110: ="(3) REFLECTS FUEL COST RECOVERY INCLUDED IN BASE RATES OF "&TEXT(CUR_BASE_FUEL,"$0.000000;($0.000000)")&" PER KWH." -> (3) REFLECTS FUEL COST RECOVERY INCLUDED IN BASE RATES OF $0.025401 PER KWH.

Sheet Rate DT-Pri
A1: =NAME -> DUKE ENERGY KENTUCKY, INC.
A2: =CASE_NO -> CASE NO. 2022-00372 - REHEARING
A3: =TITLE -> ANNUALIZED TEST YEAR REVENUES AT PROPOSED VS. MOST CURRENT RATES
A4: =DATE -> FOR THE TWELVE MONTHS ENDED June 30, 2024
A5: =SERVICE -> (ELECTRIC SERVICE)
A6: =DATA_PERIOD -> DATA: ____ BASE PERIOD __X__FORECASTED PERIOD | R6: SCHEDULE M-2.3
A7: =TYPE -> TYPE OF FILING: ___ ORIGINAL ___UPDATED _X_ REVISED | R7: ="PAGE 4 OF "&TEXT(Page_Num_2.3,"00") -> PAGE 4 OF 24
A8: WORK PAPER REFERENCE NO(S).: | R8: WITNESS:
A9: =TIME -> 12 Months Projected with Riders - STAFF-RHDR-01-005A | R9: =WIT -> B. L. Sailers
A10: =INPUT!B5 -> 
A11: PROPOSED ANNUALIZED
L13: PROPOSED | N13: % OF REV TO | R13: PROPOSED
L14: REVENUE LESS | N14: TOTAL LESS | R14: TOTAL
A15: LINE | C15: RATE | D15: CLASS / | F15: CUSTOMER | J15: PROPOSED | L15: FAC | N15: FAC | P15: FAC | R15: REVENUE
A16: NO. | C16: CODE | D16: DESCRIPTION | F16: BILLS(1) | H16: SALES | J16: RATES | L16: REVENUE | N16: REVENUE | P16: REVENUE (2) | R16: (F + H)
C17: (A) | D17: (B) | F17: (C) | H17: (D) | J17: (E) | L17: (F) | N17: (G) | P17: (H) | R17: (I)
H19: (KW/KWH) | J19: ($/KWH)/ | L19: ($) | N19: (%) | P19: ($) | R19: ($)
A20: 1 | C20: DT-PRI | D20: TIME OF DAY PRIMARY | J20: ($/KW)
A21: 2 | C21: SUMMER:
A22: 3 | C22: CUSTOMER CHARGE:
A23: 4 | C23: PRIMARY VOLTAGE | F23: 183 | J23: =INPUT!D70 -> 138 | L23: =ROUND(+F23*J23,0) -> 25254 | N23: =ROUND((+L23/$L$65)*100,1) -> 0.1 | R23: =L23+P23 -> 25254
A24: 5 | C24: TOTAL CUSTOMER CHARGE | F24: =SUM(F23:F23) -> 183 | L24: =SUM(L23:L23) -> 25254 | N24: =ROUND((+L24/$L$65)*100,1) -> 0.1 | R24: =SUM(R23:R23) -> 25254
A25: 6 | C25: DEMAND CHARGE:
A26: 7 | C26: ON PEAK KW | H26: 366078 | J26: 14.02 | L26: =ROUND(+H26*J26,0) -> 5132414 | N26: =ROUND((+L26/$L$65)*100,1) -> 11.4 | R26: =L26+P26 -> 5132414
A27: 8 | C27: OFF PEAK KW | H27: 6891 | J27: 1.26 | L27: =ROUND(+H27*J27,0) -> 8683 | N27: =ROUND((+L27/$L$65)*100,1) -> 0 | R27: =L27+P27 -> 8683
A28: 9 | C28: DISTRIBUTION | H28: =H26+H27 -> 372969 | J28: 6.23 | L28: =ROUND(+H28*J28,0) -> 2323597 | N28: =ROUND((+L28/$L$65)*100,1) -> 5.2 | R28: =L28+P28 -> 2323597
A29: 10 | C29: SUB-TOTAL | H29: =SUM(H26:H27) -> 372969 | L29: =SUM(L26:L28) -> 7464694 | N29: =ROUND((+L29/$L$65)*100,1) -> 16.6 | R29: =SUM(R26:R28) -> 7464694
A30: 11 | C30: PRIMARY SERV. DIS.
A31: 12 | C31: FIRST 1000 KW | H31: 129981 | J31: -0.71 | L31: =ROUND(+H31*J31,0) -> -92287 | N31: =ROUND((+L31/$L$65)*100,1) -> -0.2 | R31: =L31+P31 -> -92287
A32: 13 | C32: ADDITIONAL KW | H32: 242988 | J32: -0.55 | L32: =ROUND(+H32*J32,0) -> -133643 | N32: =ROUND((+L32/$L$65)*100,1) -> -0.3 | R32: =L32+P32 -> -133643
A33: 14 | C33: TOTAL DEMAND | H33: =SUM(H31:H32) -> 372969 | L33: =L29+L31+L32 -> 7238764 | N33: =ROUND((+L33/$L$65)*100,1) -> 16.1 | R33: =R29+R31+R32 -> 7238764
A34: 15 | C34: ENERGY CHARGE (3):
A35: 16 | C35: ON PEAK KWH | H35: 52912808 | J35: 0.045679 | L35: =ROUND((+H35*J35),0)-P35 -> 2417004 | N35: =ROUND((+L35/$L$65)*100,1) -> 5.4 | R35: =L35+P35 -> 2417004
A36: 17 | C36: OFF PEAK KWH | H36: 136580203 | J36: 0.037671 | L36: =ROUND((+H36*J36),0)-P36 -> 5145113 | N36: =ROUND((+L36/$L$65)*100,1) -> 11.4 | R36: =L36+P36 -> 5145113
A37: 18 | C37: TOTAL SUMMER | F37: =F24 -> 183 | H37: =H35+H36 -> 189493011 | L37: =L24+L33+L35+L36 -> 14826135 | N37: =ROUND((+L37/$L$65)*100,1) -> 33 | R37: =R24+R33+R35+R36 -> 14826135
A39: 19 | C39: WINTER: | H39: =185857814-185857934 -> -120
A40: 20 | C40: CUSTOMER CHARGE:
A41: 21 | C41: PRIMARY VOLTAGE | F41: 351 | J41: =J23 -> 138 | L41: =ROUND(+F41*J41,0) -> 48438 | N41: =ROUND((+L41/$L$65)*100,1) -> 0.1 | R41: =L41+P41 -> 48438
A42: 22 | C42: TOTAL CUSTOMER CHARGE | F42: =SUM(F41:F41) -> 351 | L42: =SUM(L41:L41) -> 48438 | N42: =ROUND((+L42/$L$65)*100,1) -> 0.1 | R42: =SUM(R41:R41) -> 48438
A43: 23 | C43: DEMAND CHARGE:
A44: 24 | C44: ON PEAK KW | H44: 663146 | J44: 13.26 | L44: =ROUND(+H44*J44,0) -> 8793316 | N44: =ROUND((+L44/$L$65)*100,1) -> 19.6 | R44: =L44+P44 -> 8793316
A45: 25 | C45: OFF PEAK KW | H45: 19916 | J45: 1.26 | L45: =ROUND(+H45*J45,0) -> 25094 | N45: =ROUND((+L45/$L$65)*100,1) -> 0.1 | R45: =L45+P45 -> 25094
A46: 26 | C46: DISTRIBUTION | H46: =H44+H45 -> 683062 | J46: 6.23 | L46: =ROUND(+H46*J46,0) -> 4255476 | N46: =ROUND((+L46/$L$65)*100,1) -> 9.5 | R46: =L46+P46 -> 4255476
A47: 27 | C47: SUB-TOTAL | H47: =SUM(H44:H45) -> 683062 | L47: =SUM(L44:L46) -> 13073886 | N47: =ROUND((+L47/$L$65)*100,1)+0.1 -> 29.2 | R47: =SUM(R44:R46) -> 13073886
A48: 28 | C48: PRIMARY SERV. DIS.
A49: 29 | C49: FIRST 1000 KW | H49: 234290 | J49: =J31 -> -0.71 | L49: =ROUND(+H49*J49,0) -> -166346 | N49: =ROUND((+L49/$L$65)*100,1) -> -0.4 | R49: =L49+P49 -> -166346
A50: 30 | C50: ADDITIONAL KW | H50: 448773 | J50: =J32 -> -0.55 | L50: =ROUND(+H50*J50,0) -> -246825 | N50: =ROUND((+L50/$L$65)*100,1) -> -0.5 | R50: =L50+P50 -> -246825
A51: 31 | C51: TOTAL DEMAND | H51: =SUM(H49:H50) -> 683063 | L51: =L47+L49+L50 -> 12660715 | N51: =ROUND((+L51/$L$65)*100,1) -> 28.2 | R51: =R47+R49+R50 -> 12660715
A52: 32 | C52: ENERGY CHARGE (3):
A53: 33 | C53: ON PEAK KWH | H53: 91264180 | J53: 0.043669 | L53: =ROUND((+H53*J53),0)-P53 -> 3985415 | N53: =ROUND((+L53/$L$65)*100,1) -> 8.9 | R53: =L53+P53 -> 3985415
A54: 34 | C54: OFF PEAK KWH | H54: 242197169 | J54: =J36 -> 0.037671 | L54: =ROUND((+H54*J54),0)-P54 -> 9123810 | N54: =ROUND((+L54/$L$65)*100,1)-0.1 -> 20.2 | R54: =L54+P54 -> 9123810
A55: 35 | C55: TOTAL WINTER | F55: =F42 -> 351 | H55: =H53+H54 -> 333461349 | L55: =L42+L51+L53+L54 -> 25818378 | N55: =ROUND((+L55/$L$65)*100,1) -> 57.4 | R55: =R42+R51+R53+R54 -> 25818378
A56: 36 | C56: TOTAL RATE DT PRIMARY EXCLUDING RIDERS | F56: =F37+F55 -> 534 | H56: =H37+H55 -> 522954360 | L56: =L37+L55 -> 40644513 | N56: =ROUND((+L56/$L$65)*100,1) -> 90.4 | R56: =L56+P56 -> 40644513
A58: 37 | C58: RIDERS:
A59: 38 | C59: =DSMR_Name -> DEMAND SIDE MANAGEMENT RIDER (DSMR) | J59: =PRO_DSM_DIST -> -0.000718 | L59: =ROUND($H$56*J59,0) -> -375481 | N59: =ROUND((+L59/$L$65)*100,1) -> -0.8 | R59: =L59+P59 -> -375481
A60: 39 | C60: =ESM_Name -> ENVIRONMENTAL SURCHARGE MECHANISM RIDER (ESM) | J60: =PRO_ESM_NONRES -> 0.07513471937 | L60: =ROUND((R56-(PRO_BASE_FUEL*H56)+R59+R62)*J60,0) -> 2213279 | N60: =ROUND((+L60/$L$65)*100,1) -> 4.9 | R60: 2213279
A61: 40 | C61: =FAC_Name -> FUEL ADJUSTMENT CLAUSE (FAC) | J61: =PRO_FAC -> 0.005965 | P61: =ROUND(H56*PRO_FAC,0) -> 3119423 | R61: 3119423
A62: 41 | C62: =PSM_Name -> PROFIT SHARING MECHANISM (PSM) | J62: =PRO_PSM -> 0.004727 | L62: =ROUND(H56*PRO_PSM,0) -> 2472005 | N62: =ROUND((+L62/$L$65)*100,1) -> 5.5 | R62: 2472005
A63: 42 | C63: TOTAL RIDERS | L63: =SUM(L59:L62) -> 4309803 | N63: =ROUND((+L63/$L$65)*100,1) -> 9.6 | P63: =SUM(P59:P62) -> 3119423 | R63: =SUM(R59:R62) -> 7429226
A65: 43 | C65: TOTAL RATE DT PRIMARY INCLUDING RIDERS | F65: =F56 -> 534 | H65: =H56 -> 522954360 | L65: =L56+L63 -> 44954316 | N65: 100 | P65: =P56+P63 -> 3119423 | R65: =R56+R63 -> 48073739
C67: (1) BILLS THAT TERMINATE IN RESPECTIVE RATE STEPS.
C68: ="(2) REFLECTS FUEL COMPONENT OF "&TEXT(PRO_FAC,"$0.000000;($0.000000)")&" PER KWH." -> (2) REFLECTS FUEL COMPONENT OF $0.005965 PER KWH.
C69: ="(3) REFLECTS FUEL COST RECOVERY INCLUDED IN BASE RATES OF "&TEXT(PRO_BASE_FUEL,"$0.000000;($0.000000)")&" PER KWH." -> (3) REFLECTS FUEL COST RECOVERY INCLUDED IN BASE RATES OF $0.025401 PER KWH.
T73: =NAME -> DUKE ENERGY KENTUCKY, INC.
T74: =CASE_NO -> CASE NO. 2022-00372 - REHEARING
T75: =TITLE -> ANNUALIZED TEST YEAR REVENUES AT PROPOSED VS. MOST CURRENT RATES
T76: =DATE -> FOR THE TWELVE MONTHS ENDED June 30, 2024
T77: =SERVICE -> (ELECTRIC SERVICE)
T78: =DATA_PERIOD -> DATA: ____ BASE PERIOD __X__FORECASTED PERIOD | AO78: SCHEDULE M-2.2
T79: =TYPE -> TYPE OF FILING: ___ ORIGINAL ___UPDATED _X_ REVISED | AO79: ="PAGE 4 OF "&TEXT(Page_Num_2.2,"00") -> PAGE 4 OF 23
T80: WORK PAPER REFERENCE NO(S).: | AO80: WITNESS:
T81: =TIME -> 12 Months Projected with Riders - STAFF-RHDR-01-005A | AO81: =WIT -> B. L. Sailers
T82: =INPUT!B5 -> 
T83: CURRENT ANNUALIZED
AE85: CURRENT | AG85: % OF REV TO | AI85: REVENUE | AK85: % INCR IN | AO85: CURRENT | AQ85: TOTAL
AC86: MOST | AE86: REVENUE LESS | AG86: TOTAL LESS | AI86: INCR LESS | AK86: REV LESS | AO86: TOTAL | AQ86: REVENUE
T87: LINE | V87: RATE | W87: CLASS / | Y87: CUSTOMER | AC87: CURRENT | AE87: FAC | AG87: FAC | AI87: FAC REV | AK87: FAC REV | AM87: FAC | AO87: REVENUE | AQ87: % INCREASE
T88: NO. | V88: CODE | W88: DESCRIPTION | Y88: BILLS(1) | AA88: SALES | AC88: RATES | AE88: REVENUE | AG88: REVENUE | AI88: (F - K) | AK88: (M / K) | AM88: REVENUE (2) | AO88: (K + H) | AQ88: (M / K1)
V89: (A) | W89: (B) | Y89: (C) | AA89: (D) | AC89: (J) | AE89: (K) | AG89: (L) | AI89: (M) | AK89: (N) | AM89: (H) | AO89: (K1) | AQ89: (O)
AA91: (KW/KWH) | AC91: ($/KWH)/ | AE91: ($) | AG91: (%) | AI91: ($) | AK91: (%) | AM91: ($) | AO91: ($) | AQ91: (%)
T92: 1 | V92: DT-PRI | W92: TIME OF DAY PRIMARY | AC92: ($/KW)
T93: 2 | V93: SUMMER:
T94: 3 | V94: CUSTOMER CHARGE:
T95: 4 | V95: PRIMARY VOLTAGE | Y95: =F23 -> 183 | AC95: =INPUT!C70 -> 138 | AE95: =ROUND(+Y95*AC95,0) -> 25254 | AG95: =ROUND((+AE95/$AE$137)*100,1) -> 0.1 | AI95: =L23-AE95 -> 0 | AK95: =IF(AE95=0,0,ROUND((AI95/AE95)*100,1)) -> 0 | AO95: =AE95+AM95 -> 25254 | AQ95: =ROUND((+AI95/AO95)*100,1) -> 0
T96: 5 | V96: TOTAL CUSTOMER CHARGE | Y96: =F24 -> 183 | AE96: =SUM(AE95:AE95) -> 25254 | AG96: =ROUND((+AE96/$AE$137)*100,1) -> 0.1 | AI96: =SUM(AI95:AI95) -> 0 | AK96: =IF(AE96=0,0,ROUND((AI96/AE96)*100,1)) -> 0 | AO96: =SUM(AO95:AO95) -> 25254 | AQ96: =ROUND((+AI96/AO96)*100,1) -> 0
T97: 6 | V97: DEMAND CHARGE:
T98: 7 | V98: ON PEAK KW | AA98: =H26 -> 366078 | AC98: =INPUT!C76 -> 14.85 | AE98: =ROUND(+AA98*AC98,0) -> 5436258 | AG98: =ROUND((+AE98/$AE$137)*100,1) -> 13.5 | AI98: =L26-AE98 -> -303844 | AK98: =IF(AE98=0,0,ROUND((AI98/AE98)*100,1)) -> -5.6 | AO98: =AE98+AM98 -> 5436258 | AQ98: =ROUND((+AI98/AO98)*100,1) -> -5.6
T99: 8 | V99: OFF PEAK KW | AA99: =H27 -> 6891 | AC99: =INPUT!C77 -> 1.34 | AE99: =ROUND(+AA99*AC99,0) -> 9234 | AG99: =ROUND((+AE99/$AE$137)*100,1) -> 0 | AI99: =L27-AE99 -> -551 | AK99: -6 | AO99: =AE99+AM99 -> 9234 | AQ99: =ROUND((+AI99/AO99)*100,1) -> -6
T100: 9 | V100: DISTRIBUTION | AA100: =AA98+AA99 -> 372969 | AC100: 0 | AE100: =ROUND(+AA100*AC100,0) -> 0 | AG100: =ROUND((+AE100/$AE$137)*100,1) -> 0 | AI100: =L28-AE100 -> 2323597 | AK100: =IF(AE100=0,0,ROUND((AI100/AE100)*100,1)) -> 0 | AO100: =AE100+AM100 -> 0
T101: 10 | V101: SUB-TOTAL | AA101: =H29 -> 372969 | AE101: =SUM(AE98:AE100) -> 5445492 | AG101: =ROUND((+AE101/$AE$137)*100,1) -> 13.5 | AI101: =SUM(AI98:AI100) -> 2019202 | AK101: 37.1 | AO101: =SUM(AO98:AO100) -> 5445492 | AQ101: =ROUND((+AI101/AO101)*100,1) -> 37.1
T102: 11 | V102: PRIMARY SERV. DIS.
T103: 12 | V103: FIRST 1000 KW | AA103: =H31 -> 129981 | AC103: =INPUT!C80 -> -0.75 | AE103: =ROUND(+AA103*AC103,0) -> -97486 | AG103: =ROUND((+AE103/$AE$137)*100,1) -> -0.2 | AI103: =L31-AE103 -> 5199 | AK103: -5.3 | AO103: =AE103+AM103 -> -97486 | AQ103: =ROUND((+AI103/AO103)*100,1) -> -5.3
T104: 13 | V104: ADDITIONAL KW | AA104: =H32 -> 242988 | AC104: =INPUT!C81 -> -0.58 | AE104: =ROUND(+AA104*AC104,0) -> -140933 | AG104: =ROUND((+AE104/$AE$137)*100,1) -> -0.3 | AI104: =L32-AE104 -> 7290 | AK104: -5.2 | AO104: =AE104+AM104 -> -140933 | AQ104: =ROUND((+AI104/AO104)*100,1) -> -5.2
T105: 14 | V105: TOTAL DEMAND | AA105: =H33 -> 372969 | AE105: =AE101+AE103+AE104 -> 5207073 | AG105: =ROUND((+AE105/$AE$137)*100,1) -> 12.9 | AI105: =AI101+AI103+AI104 -> 2031691 | AK105: 39 | AO105: =AO101+AO103+AO104 -> 5207073 | AQ105: =ROUND((+AI105/AO105)*100,1) -> 39
T106: 15 | V106: ENERGY CHARGE (3):
T107: 16 | V107: ON PEAK KWH | AA107: =H35 -> 52912808 | AC107: =INPUT!C72 -> 0.048389 | AE107: =ROUND((+AA107*AC107),0)-AM107 -> 2560398 | AG107: =ROUND((+AE107/$AE$137)*100,1) -> 6.3 | AI107: =L35-AE107 -> -143394 | AK107: =IF(AE107=0,0,ROUND((AI107/AE107)*100,1)) -> -5.6 | AO107: =AE107+AM107 -> 2560398 | AQ107: =ROUND((+AI107/AO107)*100,1) -> -5.6
T108: 17 | V108: OFF PEAK KWH | AA108: =H36 -> 136580203 | AC108: =INPUT!C74 -> 0.039909 | AE108: =ROUND((+AA108*AC108),0)-AM108 -> 5450779 | AG108: =ROUND((+AE108/$AE$137)*100,1) -> 13.5 | AI108: =L36-AE108 -> -305666 | AK108: -5.6 | AO108: =AE108+AM108 -> 5450779 | AQ108: =ROUND((+AI108/AO108)*100,1) -> -5.6
T109: 18 | V109: TOTAL SUMMER | Y109: =F37 -> 183 | AA109: =H37 -> 189493011 | AE109: =AE96+AE105+AE107+AE108 -> 13243504 | AG109: =ROUND((+AE109/$AE$137)*100,1) -> 32.8 | AI109: =AI96+AI105+AI107+AI108 -> 1582631 | AK109: 12 | AO109: =AO96+AO105+AO107+AO108 -> 13243504 | AQ109: =ROUND((+AI109/AO109)*100,1) -> 12
T111: 19 | V111: WINTER:
T112: 20 | V112: CUSTOMER CHARGE:
T113: 21 | V113: PRIMARY VOLTAGE | Y113: =F41 -> 351 | AC113: =AC95 -> 138 | AE113: =ROUND(+Y113*AC113,0) -> 48438 | AG113: =ROUND((+AE113/$AE$137)*100,1) -> 0.1 | AI113: =L41-AE113 -> 0 | AK113: =IF(AE113=0,0,ROUND((AI113/AE113)*100,1)) -> 0 | AO113: =AE113+AM113 -> 48438 | AQ113: =ROUND((+AI113/AO113)*100,1) -> 0
T114: 22 | V114: TOTAL CUSTOMER CHARGE | Y114: =F42 -> 351 | AE114: =SUM(AE113:AE113) -> 48438 | AG114: =ROUND((+AE114/$AE$137)*100,1) -> 0.1 | AI114: =SUM(AI113:AI113) -> 0 | AK114: =IF(AE114=0,0,ROUND((AI114/AE114)*100,1)) -> 0 | AO114: =SUM(AO113:AO113) -> 48438 | AQ114: =ROUND((+AI114/AO114)*100,1) -> 0
T115: 23 | V115: DEMAND CHARGE:
T116: 24 | V116: ON PEAK KW | AA116: =H44 -> 663146 | AC116: =INPUT!C78 -> 14.05 | AE116: =ROUND(+AA116*AC116,0) -> 9317201 | AG116: =ROUND((+AE116/$AE$137)*100,1) -> 23.1 | AI116: =L44-AE116 -> -523885 | AK116: =IF(AE116=0,0,ROUND((AI116/AE116)*100,1)) -> -5.6 | AO116: =AE116+AM116 -> 9317201 | AQ116: 0
T117: 26 | V117: OFF PEAK KW | AA117: =H45 -> 19916 | AC117: =INPUT!C79 -> 1.34 | AE117: =ROUND(+AA117*AC117,0) -> 26687 | AG117: =ROUND((+AE117/$AE$137)*100,1) -> 0.1 | AI117: =L45-AE117 -> -1593 | AK117: =IF(AE117=0,0,ROUND((AI117/AE117)*100,1)) -> -6 | AO117: =AE117+AM117 -> 26687 | AQ117: =ROUND((+AI117/AO117)*100,1) -> -6
V118: DISTRIBUTION | AA118: =AA116+AA117 -> 683062 | AC118: 0 | AE118: =ROUND(+AA118*AC118,0) -> 0 | AG118: =ROUND((+AE118/$AE$137)*100,1) -> 0 | AI118: =L46-AE118 -> 4255476 | AK118: =IF(AE118=0,0,ROUND((AI118/AE118)*100,1)) -> 0 | AO118: =AE118+AM118 -> 0
T119: 26 | V119: SUB-TOTAL | AA119: =H47 -> 683062 | AE119: =SUM(AE116:AE117) -> 9343888 | AG119: =ROUND((+AE119/$AE$137)*100,1) -> 23.1 | AI119: =SUM(AI116:AI118) -> 3729998 | AK119: =IF(AE119=0,0,ROUND((AI119/AE119)*100,1)) -> 39.9 | AO119: =SUM(AO116:AO118) -> 9343888 | AQ119: =ROUND((+AI119/AO119)*100,1) -> 39.9
T120: 27 | V120: PRIMARY SERV. DIS.
T121: 28 | V121: FIRST 1000 KW | AA121: =H49 -> 234290 | AC121: =AC103 -> -0.75 | AE121: =ROUND(+AA121*AC121,0) -> -175718 | AG121: =ROUND((+AE121/$AE$137)*100,1) -> -0.4 | AI121: =L49-AE121 -> 9372 | AK121: =IF(AE121=0,0,ROUND((AI121/AE121)*100,1)) -> -5.3 | AO121: =AE121+AM121 -> -175718 | AQ121: =ROUND((+AI121/AO121)*100,1) -> -5.3
T122: 29 | V122: ADDITIONAL KW | AA122: =H50 -> 448773 | AC122: =AC104 -> -0.58 | AE122: =ROUND(+AA122*AC122,0) -> -260288 | AG122: =ROUND((+AE122/$AE$137)*100,1) -> -0.6 | AI122: =L50-AE122 -> 13463 | AK122: =IF(AE122=0,0,ROUND((AI122/AE122)*100,1)) -> -5.2 | AO122: =AE122+AM122 -> -260288 | AQ122: =ROUND((+AI122/AO122)*100,1) -> -5.2
T123: 30 | V123: TOTAL DEMAND | AA123: =H51 -> 683063 | AE123: =AE119+AE121+AE122 -> 8907882 | AG123: =ROUND((+AE123/$AE$137)*100,1) -> 22.1 | AI123: =AI119+AI121+AI122 -> 3752833 | AK123: =IF(AE123=0,0,ROUND((AI123/AE123)*100,1)) -> 42.1 | AO123: =AO119+AO121+AO122 -> 8907882 | AQ123: =ROUND((+AI123/AO123)*100,1) -> 42.1
T124: 31 | V124: ENERGY CHARGE (3):
T125: 32 | V125: ON PEAK KWH | AA125: =H53 -> 91264180 | AC125: =INPUT!C73 -> 0.046262 | AE125: =ROUND((+AA125*AC125),0)-AM125 -> 4222063 | AG125: =ROUND((+AE125/$AE$137)*100,1) -> 10.5 | AI125: =L53-AE125 -> -236648 | AK125: =IF(AE125=0,0,ROUND((AI125/AE125)*100,1)) -> -5.6 | AO125: =AE125+AM125 -> 4222063 | AQ125: =ROUND((+AI125/AO125)*100,1) -> -5.6
T126: 33 | V126: OFF PEAK KWH | AA126: =H54 -> 242197169 | AC126: =AC108 -> 0.039909 | AE126: =ROUND((+AA126*AC126),0)-AM126 -> 9665847 | AG126: =ROUND((+AE126/$AE$137)*100,1) -> 23.9 | AI126: =L54-AE126 -> -542037 | AK126: =IF(AE126=0,0,ROUND((AI126/AE126)*100,1)) -> -5.6 | AO126: =AE126+AM126 -> 9665847 | AQ126: =ROUND((+AI126/AO126)*100,1) -> -5.6
T127: 34 | V127: TOTAL WINTER | Y127: =F55 -> 351 | AA127: =H55 -> 333461349 | AE127: =AE114+AE123+AE125+AE126 -> 22844230 | AG127: =ROUND((+AE127/$AE$137)*100,1) -> 56.6 | AI127: =AI114+AI123+AI125+AI126 -> 2974148 | AK127: =IF(AE127=0,0,ROUND((AI127/AE127)*100,1)) -> 13 | AO127: =AO114+AO123+AO125+AO126 -> 22844230 | AQ127: =ROUND((+AI127/AO127)*100,1) -> 13
T128: 35 | V128: TOTAL RATE DT PRIMARY EXCLUDING RIDERS | Y128: =Y109+Y127 -> 534 | AA128: =AA109+AA127 -> 522954360 | AE128: =AE127+AE109 -> 36087734 | AG128: =ROUND((+AE128/$AE$137)*100,1) -> 89.4 | AI128: =AI127+AI109 -> 4556779 | AK128: =IF(AE128=0,0,ROUND((AI128/AE128)*100,1)) -> 12.6 | AO128: =AO127+AO109 -> 36087734 | AQ128: =ROUND((+AI128/AO128)*100,1) -> 12.6
T130: =A58 -> 37 | V130: RIDERS:
T131: 38 | V131: =C59 -> DEMAND SIDE MANAGEMENT RIDER (DSMR) | AC131: =DSM_DIST -> -0.000718 | AE131: =ROUND($AA$128*AC131,0) -> -375481 | AG131: =ROUND((+AE131/$AE$137)*100,1) -> -0.9 | AI131: =L59-AE131 -> 0 | AK131: =IF(AE131=0,0,ROUND((AI131/AE131)*100,1)) -> 0 | AO131: =AE131+AM131 -> -375481 | AQ131: =IF(AO131=0,0,ROUND((+AI131/AO131)*100,1)) -> 0
T132: 39 | V132: =C60 -> ENVIRONMENTAL SURCHARGE MECHANISM RIDER (ESM) | AC132: =CUR_ESM_NonRes -> 0.08798914629 | AE132: =ROUND((AO128-(CUR_BASE_FUEL*AA128)+AO131+AO134)*AC132,0) -> 2190991 | AG132: =ROUND((+AE132/$AE$137)*100,1) -> 5.4 | AI132: =L60-AE132 -> 22288 | AK132: 1 | AO132: 2190991 | AQ132: =IF(AO132=0,0,ROUND((+AI132/AO132)*100,1)) -> 1
T133: 40 | V133: =C61 -> FUEL ADJUSTMENT CLAUSE (FAC) | AC133: =CUR_FAC -> 0.005965 | AM133: =ROUND(AA128*CUR_FAC,0) -> 3119423 | AO133: 3119423 | AQ133: =IF(AO133=0,0,ROUND((+AI133/AO133)*100,1)) -> 0
T134: 41 | V134: =C62 -> PROFIT SHARING MECHANISM (PSM) | AC134: =RS_PSM -> 0.004727 | AE134: =ROUND(AA128*RS_PSM,0) -> 2472005 | AG134: =ROUND((+AE134/$AE$137)*100,1) -> 6.1 | AI134: =L62-AE134 -> 0 | AK134: 0 | AO134: 2472005 | AQ134: 0
T135: 42 | V135: TOTAL RIDERS | AE135: =SUM(AE131:AE134) -> 4287515 | AG135: =ROUND((+AE135/$AE$137)*100,1) -> 10.6 | AI135: =SUM(AI131:AI134) -> 22288 | AK135: 0.5 | AM135: =AM133 -> 3119423 | AO135: =SUM(AO131:AO134) -> 7406938 | AQ135: =ROUND((+AI135/AO135)*100,1) -> 0.3
T137: =A65 -> 43 | V137: TOTAL RATE DT PRIMARY INCLUDING RIDERS | Y137: =F65 -> 534 | AA137: =H65 -> 522954360 | AE137: =AE128+AE135 -> 40375249 | AG137: 100 | AI137: =AI128+AI135 -> 4579067 | AK137: =IF(AE137=0,0,ROUND((AI137/AE137)*100,1)) -> 11.3 | AM137: =AM128+AM135 -> 3119423 | AO137: =AO128+AO135 -> 43494672 | AQ137: =ROUND((+AI137/AO137)*100,1) -> 10.5
V139: (1) BILLS THAT TERMINATE IN RESPECTIVE RATE STEPS.
V140: ="(2) REFLECTS FUEL COMPONENT OF "&TEXT(CUR_FAC,"$0.000000;($0.000000)")&" PER KWH." -> (2) REFLECTS FUEL COMPONENT OF $0.005965 PER KWH.
V141: ="(3) REFLECTS FUEL COST RECOVERY INCLUDED IN BASE RATES OF "&TEXT(CUR_BASE_FUEL,"$0.000000;($0.000000)")&" PER KWH." -> (3) REFLECTS FUEL COST RECOVERY INCLUDED IN BASE RATES OF $0.025401 PER KWH.

Sheet Rate DT-Sec
A1: =NAME -> DUKE ENERGY KENTUCKY, INC.
A2: =CASE_NO -> CASE NO. 2022-00372 - REHEARING
A3: =TITLE -> ANNUALIZED TEST YEAR REVENUES AT PROPOSED VS. MOST CURRENT RATES
A4: =DATE -> FOR THE TWELVE MONTHS ENDED June 30, 2024
A5: =SERVICE -> (ELECTRIC SERVICE)
A6: =DATA_PERIOD -> DATA: ____ BASE PERIOD __X__FORECASTED PERIOD | R6: SCHEDULE M-2.3
A7: =TYPE -> TYPE OF FILING: ___ ORIGINAL ___UPDATED _X_ REVISED | R7: ="PAGE 5 OF "&TEXT(Page_Num_2.3,"00") -> PAGE 5 OF 24
A8: WORK PAPER REFERENCE NO(S).: | R8: WITNESS:
A9: =TIME -> 12 Months Projected with Riders - STAFF-RHDR-01-005A | R9: =WIT -> B. L. Sailers
A10: =INPUT!B5 -> 
A11: PROPOSED ANNUALIZED
L13: PROPOSED | N13: % OF REV TO | R13: PROPOSED
L14: REVENUE LESS | N14: TOTAL LESS | R14: TOTAL
A15: LINE | C15: RATE | D15: CLASS / | F15: CUSTOMER | J15: PROPOSED | L15: FAC | N15: FAC | P15: FAC | R15: REVENUE
A16: NO. | C16: CODE | D16: DESCRIPTION | F16: BILLS(1) | H16: SALES | J16: RATES | L16: REVENUE | N16: REVENUE | P16: REVENUE (2) | R16: (F + H)
C17: (A) | D17: (B) | F17: (C) | H17: (D) | J17: (E) | L17: (F) | N17: (G) | P17: (H) | R17: (I)
H19: (KW/KWH) | J19: ($/KWH)/ | L19: ($) | N19: (%) | P19: ($) | R19: ($)
A20: 1 | C20: DT-SEC | D20: TIME OF DAY SECONDARY | J20: ($/KW)
A21: 2 | C21: SUMMER:
A22: 3 | C22: CUSTOMER CHARGE:
A23: 4 | C23: SINGLE PHASE | F23: 0 | J23: 63.5 | L23: =ROUND(+F23*J23,0) -> 0 | N23: =ROUND((+L23/$L$63)*100,1) -> 0 | R23: =L23+P23 -> 0
A24: 5 | C24: THREE PHASE | F24: 478 | J24: 127 | L24: =ROUND(+F24*J24,0) -> 60706 | N24: =ROUND((+L24/$L$63)*100,1) -> 0.1 | R24: =L24+P24 -> 60706
A25: 6 | C25: TOTAL CUSTOMER CHARGE | F25: =SUM(F23:F24) -> 478 | L25: =SUM(L23:L24) -> 60706 | N25: =ROUND((+L25/$L$63)*100,1) -> 0.1 | R25: =SUM(R23:R24) -> 60706
A27: 7 | C27: DEMAND CHARGE:
A28: 8 | C28: ON PEAK KW | H28: 457787 | J28: =PRO_DT_SUM_PEAK -> 14.02 | L28: =ROUND(+H28*J28,0) -> 6418174 | N28: =ROUND((+L28/$L$63)*100,1) -> 11.2 | R28: =L28+P28 -> 6418174
A29: 9 | C29: OFF PEAK KW | H29: 4876 | J29: =PRO_DT_SUM_PK_OFF -> 1.26 | L29: =ROUND(+H29*J29,0) -> 6144 | N29: =ROUND((+L29/$L$63)*100,1) -> 0 | R29: =L29+P29 -> 6144
A30: 10 | C30: DISTRIBUTION | H30: =H28+H29 -> 462663 | J30: 6.23 | L30: =ROUND(+H30*J30,0) -> 2882390 | N30: =ROUND((+L30/$L$63)*100,1) -> 5 | R30: =L30+P30 -> 2882390
A31: 11 | C31: TOTAL DEMAND | H31: =SUM(H28:H29) -> 462663 | L31: =SUM(L28:L30) -> 9306708 | N31: =ROUND((+L31/$L$63)*100,1) -> 16.2 | R31: =SUM(R28:R30) -> 9306708
A33: 12 | C33: ENERGY CHARGE (3):
A34: 13 | C34: ON PEAK KWH | H34: 66388722 | J34: =PRO_DT_SUM_E_ON -> 0.045679 | L34: =ROUND((+H34*J34),0)-P34 -> 3032570 | N34: =ROUND((+L34/$L$63)*100,1) -> 5.3 | R34: =L34+P34 -> 3032570
A35: 14 | C35: OFF PEAK KWH | H35: 157372939 | J35: =PRO_DT_SUM_E_OFF -> 0.037671 | L35: =ROUND((+H35*J35),0)-P35 -> 5928396 | N35: =ROUND((+L35/$L$63)*100,1) -> 10.3 | R35: =L35+P35 -> 5928396
A36: 15 | C36: TOTAL SUMMER | F36: =F25 -> 478 | H36: =H34+H35 -> 223761661 | L36: =L25+L31+L34+L35 -> 18328380 | N36: =ROUND((+L36/$L$63)*100,1) -> 31.9 | R36: =R25+R31+R34+R35 -> 18328380
A38: 16 | C38: WINTER: | H38: =185857814-185857934 -> -120
A39: 17 | C39: CUSTOMER CHARGE:
A40: 18 | C40: SINGLE PHASE | F40: =F23 -> 0 | J40: =J23 -> 63.5 | L40: =ROUND(+F40*J40,0) -> 0 | N40: =ROUND((+L40/$L$63)*100,1) -> 0 | R40: =L40+P40 -> 0
A41: 19 | C41: THREE PHASE | F41: 998 | J41: =J24 -> 127 | L41: =ROUND(+F41*J41,0) -> 126746 | N41: =ROUND((+L41/$L$63)*100,1) -> 0.2 | R41: =L41+P41 -> 126746
A42: 20 | C42: TOTAL CUSTOMER CHARGE | F42: =SUM(F40:F41) -> 998 | L42: =SUM(L40:L41) -> 126746 | N42: =ROUND((+L42/$L$63)*100,1) -> 0.2 | R42: =SUM(R40:R41) -> 126746
A44: 21 | C44: DEMAND CHARGE:
A45: 22 | C45: ON PEAK KW | H45: 891009 | J45: 13.26 | L45: =ROUND(+H45*J45,0) -> 11814779 | N45: =ROUND((+L45/$L$63)*100,1)-0.1 -> 20.4 | R45: =L45+P45 -> 11814779
A46: 23 | C46: OFF PEAK KW | H46: 11912 | J46: 1.26 | L46: =ROUND(+H46*J46,0) -> 15009 | N46: =ROUND((+L46/$L$63)*100,1) -> 0 | R46: =L46+P46 -> 15009
A47: 24 | C47: DISTRIBUTION | H47: =H45+H46 -> 902921 | J47: 6.23 | L47: =ROUND(+H47*J47,0) -> 5625198 | N47: =ROUND((+L47/$L$63)*100,1) -> 9.8 | R47: =L47+P47 -> 5625198
A48: 25 | C48: TOTAL DEMAND | H48: =SUM(H45:H46) -> 902921 | L48: =SUM(L45:L47) -> 17454986 | N48: =ROUND((+L48/$L$63)*100,1) -> 30.4 | R48: =SUM(R45:R47) -> 17454986
A50: 26 | C50: ENERGY CHARGE (3):
A51: 27 | C51: ON PEAK KWH | H51: 120920253 | J51: =PRO_DT_WIN_E_ON -> 0.043669 | L51: =ROUND((+H51*J51),0)-P51 -> 5280467 | N51: =ROUND((+L51/$L$63)*100,1) -> 9.2 | R51: =L51+P51 -> 5280467
A52: 28 | C52: OFF PEAK KWH | H52: 288949267 | J52: =PRO_DT_WIN_E_OFF -> 0.037671 | L52: =ROUND((+H52*J52),0)-P52 -> 10885008 | N52: =ROUND((+L52/$L$63)*100,1) -> 18.9 | R52: =L52+P52 -> 10885008
A53: 29 | C53: TOTAL WINTER | F53: =F42 -> 998 | H53: =H51+H52 -> 409869520 | L53: =L42+L48+L51+L52 -> 33747207 | N53: =ROUND((+L53/$L$63)*100,1) -> 58.7 | R53: =R42+R48+R51+R52 -> 33747207
A54: 30 | C54: TOTAL RATE DT SECONDARY EXCLUDING RIDERS | F54: =F36+F53 -> 1476 | H54: =H53+H36 -> 633631181 | L54: =L36+L53 -> 52075587 | N54: =ROUND((+L54/$L$63)*100,1) -> 90.6 | R54: =R36+R53 -> 52075587
A56: 31 | C56: RIDERS:
A57: 32 | C57: =DSMR_Name -> DEMAND SIDE MANAGEMENT RIDER (DSMR) | J57: =PRO_DSM_DIST -> -0.000718 | L57: =ROUND($H$54*J57,0) -> -454947 | N57: =ROUND((+L57/$L$63)*100,1) -> -0.8 | R57: =L57+P57 -> -454947
A58: 33 | C58: =ESM_Name -> ENVIRONMENTAL SURCHARGE MECHANISM RIDER (ESM) | J58: =PRO_ESM_NONRES -> 0.07513471937 | L58: =ROUND((R54-(PRO_BASE_FUEL*H54)+R57+R60)*J58,0) -> 2894261 | N58: =ROUND((+L58/$L$63)*100,1) -> 5 | R58: 2894261
A59: 34 | C59: =FAC_Name -> FUEL ADJUSTMENT CLAUSE (FAC) | J59: =PRO_FAC -> 0.005965 | P59: =ROUND(H54*PRO_FAC,0) -> 3779610 | R59: 3779610
A60: 35 | C60: =PSM_Name -> PROFIT SHARING MECHANISM (PSM) | J60: =PRO_PSM -> 0.004727 | L60: =ROUND(H54*PRO_PSM,0) -> 2995175 | N60: =ROUND((+L60/$L$63)*100,1) -> 5.2 | R60: 2995175
A61: 36 | C61: TOTAL RIDERS | L61: =SUM(L57:L60) -> 5434489 | N61: =ROUND((+L61/$L$63)*100,1) -> 9.4 | P61: =SUM(P57:P60) -> 3779610 | R61: =SUM(R57:R60) -> 9214099
A63: 37 | C63: TOTAL RATE DT SECONDARY INCLUDING RIDERS | F63: =F36+F53 -> 1476 | H63: =H36+H53 -> 633631181 | L63: =L61+L54 -> 57510076 | N63: 100 | P63: =P61+P54 -> 3779610 | R63: =R61+R54 -> 61289686
C65: (1) BILLS THAT TERMINATE IN RESPECTIVE RATE STEPS.
C66: ="(2) REFLECTS FUEL COMPONENT OF "&TEXT(PRO_FAC,"$0.000000;($0.000000)")&" PER KWH." -> (2) REFLECTS FUEL COMPONENT OF $0.005965 PER KWH.
C67: ="(3) REFLECTS FUEL COST RECOVERY INCLUDED IN BASE RATES OF "&TEXT(PRO_BASE_FUEL,"$0.000000;($0.000000)")&" PER KWH." -> (3) REFLECTS FUEL COST RECOVERY INCLUDED IN BASE RATES OF $0.025401 PER KWH.
T71: =NAME -> DUKE ENERGY KENTUCKY, INC.
T72: =CASE_NO -> CASE NO. 2022-00372 - REHEARING
T73: =TITLE -> ANNUALIZED TEST YEAR REVENUES AT PROPOSED VS. MOST CURRENT RATES
T74: =DATE -> FOR THE TWELVE MONTHS ENDED June 30, 2024
T75: =SERVICE -> (ELECTRIC SERVICE)
T76: =DATA_PERIOD -> DATA: ____ BASE PERIOD __X__FORECASTED PERIOD | AO76: SCHEDULE M-2.2
T77: =TYPE -> TYPE OF FILING: ___ ORIGINAL ___UPDATED _X_ REVISED | AO77: ="PAGE 5 OF "&TEXT(Page_Num_2.2,"00") -> PAGE 5 OF 23
T78: WORK PAPER REFERENCE NO(S).: | AO78: WITNESS:
T79: =TIME -> 12 Months Projected with Riders - STAFF-RHDR-01-005A | AO79: =WIT -> B. L. Sailers
T80: =INPUT!B5 -> 
T81: CURRENT ANNUALIZED
AE83: CURRENT | AG83: % OF REV TO | AI83: REVENUE | AK83: % INCR IN | AO83: CURRENT | AQ83: TOTAL
AC84: MOST | AE84: REVENUE LESS | AG84: TOTAL LESS | AI84: INCR LESS | AK84: REV LESS | AO84: TOTAL | AQ84: REVENUE
T85: LINE | V85: RATE | W85: CLASS / | Y85: CUSTOMER | AC85: CURRENT | AE85: FAC | AG85: FAC | AI85: FAC REV | AK85: FAC REV | AM85: FAC | AO85: REVENUE | AQ85: % INCREASE
T86: NO. | V86: CODE | W86: DESCRIPTION | Y86: BILLS(1) | AA86: SALES | AC86: RATES | AE86: REVENUE | AG86: REVENUE | AI86: (F - K) | AK86: (M / K) | AM86: REVENUE (2) | AO86: (K + H) | AQ86: (M / K1)
V87: (A) | W87: (B) | Y87: (C) | AA87: (D) | AC87: (J) | AE87: (K) | AG87: (L) | AI87: (M) | AK87: (N) | AM87: (H) | AO87: (K1) | AQ87: (O)
AA89: (KW/KWH) | AC89: ($/KWH)/ | AE89: ($) | AG89: (%) | AI89: ($) | AK89: (%) | AM89: ($) | AO89: ($) | AQ89: (%)
T90: =A20 -> 1 | V90: DT-SEC | W90: TIME OF DAY SECONDARY | AC90: ($/KW)
T91: 2 | V91: SUMMER:
T92: 3 | V92: CUSTOMER CHARGE:
T93: 4 | V93: SINGLE PHASE | Y93: =F23 -> 0 | AC93: =INPUT!C68 -> 63.5 | AE93: =ROUND(+Y93*AC93,0) -> 0 | AG93: =ROUND((+AE93/$AE$133)*100,1) -> 0 | AI93: =L23-AE93 -> 0 | AK93: =IF(AE93=0,0,ROUND((AI93/AE93)*100,1)) -> 0 | AO93: =AE93+AM93 -> 0 | AQ93: 0
T94: 5 | V94: THREE PHASE | Y94: =F24 -> 478 | AC94: =INPUT!C69 -> 127 | AE94: =ROUND(+Y94*AC94,0) -> 60706 | AG94: =ROUND((+AE94/$AE$133)*100,1) -> 0.1 | AI94: =L24-AE94 -> 0 | AK94: =IF(AE94=0,0,ROUND((AI94/AE94)*100,1)) -> 0 | AO94: =AE94+AM94 -> 60706 | AQ94: =ROUND((+AI94/AO94)*100,1) -> 0
T95: 6 | V95: TOTAL CUSTOMER CHARGE | Y95: =F25 -> 478 | AE95: =SUM(AE93:AE94) -> 60706 | AG95: =ROUND((+AE95/$AE$133)*100,1) -> 0.1 | AI95: =SUM(AI93:AI94) -> 0 | AK95: =IF(AE95=0,0,ROUND((AI95/AE95)*100,1)) -> 0 | AO95: =SUM(AO93:AO94) -> 60706 | AQ95: =ROUND((+AI95/AO95)*100,1) -> 0
T97: =A27 -> 7 | V97: DEMAND CHARGE:
T98: 8 | V98: ON PEAK KW | AA98: =H28 -> 457787 | AC98: =CUR_DT_SUM_PEAK_ON -> 14.85 | AE98: =ROUND(+AA98*AC98,0) -> 6798137 | AG98: =ROUND((+AE98/$AE$133)*100,1) -> 13.2 | AI98: =L28-AE98 -> -379963 | AK98: =IF(AE98=0,0,ROUND((AI98/AE98)*100,1)) -> -5.6 | AO98: =AE98+AM98 -> 6798137 | AQ98: 0
T99: 9 | V99: OFF PEAK KW | AA99: =H29 -> 4876 | AC99: =CUR_DT_SUM_PK_OFF -> 1.34 | AE99: =ROUND(+AA99*AC99,0) -> 6534 | AG99: =ROUND((+AE99/$AE$133)*100,1) -> 0 | AI99: =L29-AE99 -> -390 | AK99: =IF(AE99=0,0,ROUND((AI99/AE99)*100,1)) -> -6 | AO99: =AE99+AM99 -> 6534 | AQ99: =ROUND((+AI99/AO99)*100,1) -> -6
T100: 10 | V100: DISTRIBUTION | AA100: =AA98+AA99 -> 462663 | AC100: 0 | AE100: =ROUND(+AA100*AC100,0) -> 0 | AG100: =ROUND((+AE100/$AE$133)*100,1) -> 0 | AI100: =L30-AE100 -> 2882390 | AK100: =IF(AE100=0,0,ROUND((AI100/AE100)*100,1)) -> 0 | AO100: =AE100+AM100 -> 0
T101: 11 | V101: TOTAL DEMAND | AA101: =H31 -> 462663 | AE101: =SUM(AE98:AE100) -> 6804671 | AG101: =ROUND((+AE101/$AE$133)*100,1) -> 13.2 | AI101: =SUM(AI98:AI100) -> 2502037 | AK101: =IF(AE101=0,0,ROUND((AI101/AE101)*100,1)) -> 36.8 | AO101: =SUM(AO98:AO99) -> 6804671 | AQ101: =ROUND((+AI101/AO101)*100,1) -> 36.8
T103: =A33 -> 12 | V103: ENERGY CHARGE (3):
T104: 13 | V104: ON PEAK KWH | AA104: =H34 -> 66388722 | AC104: =CUR_DT_SUM_E_ON -> 0.048389 | AE104: =ROUND((+AA104*AC104),0)-AM104 -> 3212484 | AG104: =ROUND((+AE104/$AE$133)*100,1) -> 6.2 | AI104: =L34-AE104 -> -179914 | AK104: =IF(AE104=0,0,ROUND((AI104/AE104)*100,1)) -> -5.6 | AO104: =AE104+AM104 -> 3212484 | AQ104: =ROUND((+AI104/AO104)*100,1) -> -5.6
T105: 14 | V105: OFF PEAK KWH | AA105: =H35 -> 157372939 | AC105: =CUR_DT_SUM_E_OFF -> 0.039909 | AE105: =ROUND((+AA105*AC105),0)-AM105 -> 6280597 | AG105: =ROUND((+AE105/$AE$133)*100,1) -> 12.2 | AI105: =L35-AE105 -> -352201 | AK105: =IF(AE105=0,0,ROUND((AI105/AE105)*100,1)) -> -5.6 | AO105: =AE105+AM105 -> 6280597 | AQ105: =ROUND((+AI105/AO105)*100,1) -> -5.6
T106: 15 | V106: TOTAL SUMMER | Y106: =F36 -> 478 | AA106: =H36 -> 223761661 | AE106: =AE95+AE101+AE104+AE105 -> 16358458 | AG106: =ROUND((+AE106/$AE$133)*100,1) -> 31.7 | AI106: =AI95+AI101+AI104+AI105 -> 1969922 | AK106: =IF(AE106=0,0,ROUND((AI106/AE106)*100,1)) -> 12 | AO106: =AO95+AO101+AO104+AO105 -> 16358458 | AQ106: =ROUND((+AI106/AO106)*100,1) -> 12
T108: =A38 -> 16 | V108: WINTER:
T109: 17 | V109: CUSTOMER CHARGE:
T110: 18 | V110: SINGLE PHASE | Y110: =F40 -> 0 | AC110: =AC93 -> 63.5 | AE110: =ROUND(+Y110*AC110,0) -> 0 | AG110: =ROUND((+AE110/$AE$133)*100,1) -> 0 | AI110: =L40-AE110 -> 0 | AK110: =IF(AE110=0,0,ROUND((AI110/AE110)*100,1)) -> 0 | AO110: =AE110+AM110 -> 0 | AQ110: 0
T111: 19 | V111: THREE PHASE | Y111: =F41 -> 998 | AC111: =AC94 -> 127 | AE111: =ROUND(+Y111*AC111,0) -> 126746 | AG111: =ROUND((+AE111/$AE$133)*100,1) -> 0.2 | AI111: =L41-AE111 -> 0 | AK111: =IF(AE111=0,0,ROUND((AI111/AE111)*100,1)) -> 0 | AO111: =AE111+AM111 -> 126746 | AQ111: =ROUND((+AI111/AO111)*100,1) -> 0
T112: 20 | V112: TOTAL CUSTOMER CHARGE | Y112: =F42 -> 998 | AE112: =SUM(AE110:AE111) -> 126746 | AG112: =ROUND((+AE112/$AE$133)*100,1) -> 0.2 | AI112: =SUM(AI110:AI111) -> 0 | AK112: =IF(AE112=0,0,ROUND((AI112/AE112)*100,1)) -> 0 | AO112: =SUM(AO110:AO111) -> 126746 | AQ112: =ROUND((+AI112/AO112)*100,1) -> 0
T114: =A44 -> 21 | V114: DEMAND CHARGE:
T115: 22 | V115: ON PEAK KW | AA115: =H45 -> 891009 | AC115: =CUR_DT_WIN_PEAK_ON -> 14.05 | AE115: =ROUND(+AA115*AC115,0) -> 12518676 | AG115: =ROUND((+AE115/$AE$133)*100,1) -> 24.3 | AI115: =L45-AE115 -> -703897 | AK115: =IF(AE115=0,0,ROUND((AI115/AE115)*100,1)) -> -5.6 | AO115: =AE115+AM115 -> 12518676 | AQ115: 0
T116: 23 | V116: OFF PEAK KW | AA116: =H46 -> 11912 | AC116: =CUR_DT_WIN_PK_OFF -> 1.34 | AE116: =ROUND(+AA116*AC116,0) -> 15962 | AG116: =ROUND((+AE116/$AE$133)*100,1) -> 0 | AI116: =L46-AE116 -> -953 | AK116: =IF(AE116=0,0,ROUND((AI116/AE116)*100,1)) -> -6 | AO116: =AE116+AM116 -> 15962 | AQ116: =ROUND((+AI116/AO116)*100,1) -> -6
T117: 24 | V117: DISTRIBUTION | AA117: =AA115+AA116 -> 902921 | AC117: 0 | AE117: =ROUND(+AA117*AC117,0) -> 0 | AG117: =ROUND((+AE117/$AE$133)*100,1) -> 0 | AI117: =L47-AE117 -> 5625198 | AK117: =IF(AE117=0,0,ROUND((AI117/AE117)*100,1)) -> 0 | AO117: =AE117+AM117 -> 0
T118: =A48 -> 25 | V118: TOTAL DEMAND | AA118: =H48 -> 902921 | AE118: =SUM(AE115:AE117) -> 12534638 | AG118: =ROUND((+AE118/$AE$133)*100,1) -> 24.3 | AI118: =SUM(AI115:AI117) -> 4920348 | AK118: =IF(AE118=0,0,ROUND((AI118/AE118)*100,1)) -> 39.3 | AO118: =SUM(AO115:AO116) -> 12534638 | AQ118: =ROUND((+AI118/AO118)*100,1) -> 39.3
T120: =A50 -> 26 | V120: ENERGY CHARGE (3):
T121: 27 | V121: ON PEAK KWH | AA121: =H51 -> 120920253 | AC121: =CUR_DT_WIN_E_ON -> 0.046262 | AE121: =ROUND((+AA121*AC121),0)-AM121 -> 5594013 | AG121: =ROUND((+AE121/$AE$133)*100,1) -> 10.9 | AI121: =L51-AE121 -> -313546 | AK121: =IF(AE121=0,0,ROUND((AI121/AE121)*100,1)) -> -5.6 | AO121: =AE121+AM121 -> 5594013 | AQ121: =ROUND((+AI121/AO121)*100,1) -> -5.6
T122: 28 | V122: OFF PEAK KWH | AA122: =H52 -> 288949267 | AC122: ='Rate DT-Pri'!AC126 -> 0.039909 | AE122: =ROUND((+AA122*AC122),0)-AM122 -> 11531676 | AG122: =ROUND((+AE122/$AE$133)*100,1) -> 22.4 | AI122: =L52-AE122 -> -646668 | AK122: =IF(AE122=0,0,ROUND((AI122/AE122)*100,1)) -> -5.6 | AO122: =AE122+AM122 -> 11531676 | AQ122: =ROUND((+AI122/AO122)*100,1) -> -5.6
T123: 29 | V123: TOTAL WINTER | Y123: =F53 -> 998 | AA123: =H53 -> 409869520 | AE123: =AE112+AE118+AE121+AE122 -> 29787073 | AG123: =ROUND((+AE123/$AE$133)*100,1) -> 57.8 | AI123: =AI112+AI118+AI121+AI122 -> 3960134 | AK123: =IF(AE123=0,0,ROUND((AI123/AE123)*100,1)) -> 13.3 | AO123: =AO112+AO118+AO121+AO122 -> 29787073 | AQ123: =ROUND((+AI123/AO123)*100,1) -> 13.3
T124: 30 | V124: TOTAL RATE DT SECONDARY EXCLUDING RIDERS | Y124: =Y106+Y123 -> 1476 | AA124: =AA123+AA106 -> 633631181 | AE124: =AE123+AE106 -> 46145531 | AG124: =ROUND((+AE124/$AE$133)*100,1) -> 89.5 | AI124: =AI123+AI106 -> 5930056 | AK124: =IF(AE124=0,0,ROUND((AI124/AE124)*100,1)) -> 12.9 | AO124: =AO123+AO106 -> 46145531 | AQ124: =ROUND((+AI124/AO124)*100,1) -> 12.9
T126: =A56 -> 31 | V126: RIDERS:
T127: 32 | V127: =C57 -> DEMAND SIDE MANAGEMENT RIDER (DSMR) | AC127: =DSM_DIST -> -0.000718 | AE127: =ROUND($AA$124*AC127,0) -> -454947 | AG127: =ROUND((+AE127/$AE$133)*100,1)+0.1 -> -0.8 | AI127: =L57-AE127 -> 0 | AK127: =IF(AE127=0,0,ROUND((AI127/AE127)*100,1)) -> 0 | AO127: =AE127+AM127 -> -454947 | AQ127: =IF(AO127=0,0,ROUND((+AI127/AO127)*100,1)) -> 0
T128: 33 | V128: =C58 -> ENVIRONMENTAL SURCHARGE MECHANISM RIDER (ESM) | AC128: =CUR_ESM_NonRes -> 0.08798914629 | AE128: =ROUND((AO124-(CUR_BASE_FUEL*AA124)+AO127+AO130)*AC128,0) -> 2867645 | AG128: =ROUND((+AE128/$AE$133)*100,1) -> 5.6 | AI128: =L58-AE128 -> 26616 | AK128: 0.9 | AO128: =AE128+AM128 -> 2867645 | AQ128: =IF(AO128=0,0,ROUND((+AI128/AO128)*100,1)) -> 0.9
T129: 34 | V129: =C59 -> FUEL ADJUSTMENT CLAUSE (FAC) | AC129: =CUR_FAC -> 0.005965 | AM129: =ROUND(AA124*CUR_FAC,0) -> 3779610 | AO129: 3779610 | AQ129: =IF(AO129=0,0,ROUND(((R59-AO129)/AO129)*100,1)) -> 0
T130: 35 | V130: =C60 -> PROFIT SHARING MECHANISM (PSM) | AC130: =RS_PSM -> 0.004727 | AE130: =ROUND(AA124*RS_PSM,0) -> 2995175 | AG130: =ROUND((+AE130/$AE$133)*100,1) -> 5.8 | AI130: =L60-AE130 -> 0 | AK130: 0 | AO130: 2995175 | AQ130: =IF(AO130=0,0,ROUND((+AI130/AO130)*100,1)) -> 0
T131: 36 | V131: TOTAL RIDERS | AE131: =SUM(AE127:AE130) -> 5407873 | AG131: =ROUND((+AE131/$AE$133)*100,1) -> 10.5 | AI131: =SUM(AI127:AI130) -> 26616 | AK131: 0.5 | AM131: =SUM(AM127:AM130) -> 3779610 | AO131: =SUM(AO127:AO130) -> 9187483 | AQ131: =ROUND((+AI131/AO131)*100,1) -> 0.3
T133: =A63 -> 37 | V133: TOTAL RATE DT SECONDARY INCLUDING RIDERS | Y133: =Y124 -> 1476 | AA133: =AA124 -> 633631181 | AE133: =AE131+AE124 -> 51553404 | AG133: 100 | AI133: =AI131+AI124 -> 5956672 | AK133: =IF(AE133=0,0,ROUND((AI133/AE133)*100,1)) -> 11.6 | AM133: =AM131+AM124 -> 3779610 | AO133: =AO131+AO124 -> 55333014 | AQ133: =ROUND((+AI133/AO133)*100,1) -> 10.8
V135: (1) BILLS THAT TERMINATE IN RESPECTIVE RATE STEPS.
V136: ="(2) REFLECTS FUEL COMPONENT OF "&TEXT(CUR_FAC,"$0.000000;($0.000000)")&" PER KWH." -> (2) REFLECTS FUEL COMPONENT OF $0.005965 PER KWH.
V137: ="(3) REFLECTS FUEL COST RECOVERY INCLUDED IN BASE RATES OF "&TEXT(CUR_BASE_FUEL,"$0.000000;($0.000000)")&" PER KWH." -> (3) REFLECTS FUEL COST RECOVERY INCLUDED IN BASE RATES OF $0.025401 PER KWH.

Sheet Rate EH
A1: =NAME -> DUKE ENERGY KENTUCKY, INC.
A2: =CASE_NO -> CASE NO. 2022-00372 - REHEARING
A3: =TITLE -> ANNUALIZED TEST YEAR REVENUES AT PROPOSED VS. MOST CURRENT RATES
A4: =DATE -> FOR THE TWELVE MONTHS ENDED June 30, 2024
A5: =SERVICE -> (ELECTRIC SERVICE)
A6: =DATA_PERIOD -> DATA: ____ BASE PERIOD __X__FORECASTED PERIOD | R6: SCHEDULE M-2.3
A7: =TYPE -> TYPE OF FILING: ___ ORIGINAL ___UPDATED _X_ REVISED | R7: ="PAGE 6 OF "&TEXT(Page_Num_2.3,"00") -> PAGE 6 OF 24
A8: WORK PAPER REFERENCE NO(S).: | R8: WITNESS:
A9: =TIME -> 12 Months Projected with Riders - STAFF-RHDR-01-005A | R9: =WIT -> B. L. Sailers
A10: =INPUT!B5 -> 
A11: PROPOSED ANNUALIZED
L13: PROPOSED | N13: % OF REV TO | R13: PROPOSED
L14: REVENUE LESS | N14: TOTAL LESS | R14: TOTAL
A15: LINE | C15: RATE | D15: CLASS / | F15: CUSTOMER | J15: PROPOSED | L15: FAC | N15: FAC | P15: FAC | R15: REVENUE
A16: NO. | C16: CODE | D16: DESCRIPTION | F16: BILLS(1) | H16: SALES | J16: RATES | L16: REVENUE | N16: REVENUE | P16: REVENUE (2) | R16: (F + H)
C17: (A) | D17: (B) | F17: (C) | H17: (D) | J17: (E) | L17: (F) | N17: (G) | P17: (H) | R17: (I)
H19: (KW/KWH) | J19: ($/KWH) | L19: ($) | N19: (%) | P19: ($) | R19: ($)
A20: 1 | C20: EH | D20: OPTIONAL RATE FOR | J20: ($/KW)
A21: 2 | D21: ELEC. SPACE HEATING
A23: 3 | C23: CUSTOMER CHARGE:
A24: 4 | C24: SINGLE PHASE | F24: 186 | J24: 15 | L24: =ROUND(F24*J24,0) -> 2790 | N24: =ROUND((L24/L$43)*100,1) -> 0.2 | R24: =L24+P24 -> 2790
A25: 5 | C25: THREE PHASE | F25: 566 | J25: 30 | L25: =ROUND(F25*J25,0) -> 16980 | N25: =ROUND((L25/L$43)*100,1) -> 1 | R25: =L25+P25 -> 16980
A26: 6 | C26: PRIMARY VOLTAGE | F26: 0 | J26: 117 | L26: =ROUND(F26*J26,0) -> 0 | N26: =ROUND((L26/L$43)*100,1) -> 0 | R26: =L26+P26 -> 0
A27: 7 | C27: TOTAL CUSTOMER CHARGE | F27: =SUM(F24:F26) -> 752 | L27: =SUM(L24:L26) -> 19770 | N27: =ROUND((L27/L$43)*100,1) -> 1.1 | R27: =SUM(R24:R26) -> 19770
A29: 8 | C29: DEMAND CHARGE:
A30: 9
A32: 10 | C32: ENERGY CHARGE (3):
A33: 11 | C33: ALL KWH | H33: 19740170 | J33: 0.078414 | L33: =ROUND((H33*J33),0) -> 1547906 | N33: =ROUND((L33/L$43)*100,1) -> 89.3 | R33: =L33+P33 -> 1547906
A34: 12 | C34: TOTAL RATE EH EXCLUDING RIDERS | F34: =F27 -> 752 | H34: =H33 -> 19740170 | L34: =L27+L30+L33 -> 1567676 | N34: =ROUND((L34/L$43)*100,1) -> 90.5 | R34: =R33+R30+R27 -> 1567676
A36: 13 | C36: RIDERS:
A37: 14 | C37: =DSMR_Name -> DEMAND SIDE MANAGEMENT RIDER (DSMR) | J37: =PRO_DSM_DIST -> -0.000718 | L37: =ROUND($H$34*J37,0) -> -14173 | N37: =ROUND((L37/L$43)*100,1) -> -0.8 | R37: =L37+P37 -> -14173
A38: 15 | C38: =ESM_Name -> ENVIRONMENTAL SURCHARGE MECHANISM RIDER (ESM) | J38: =PRO_ESM_NONRES -> 0.07513471937 | L38: =ROUND((R34-(PRO_BASE_FUEL*H34)+R37+R40)*J38,0) -> 86059 | N38: =ROUND((L38/L$43)*100,1) -> 5 | R38: 86059
A39: 16 | C39: =FAC_Name -> FUEL ADJUSTMENT CLAUSE (FAC) | J39: =PRO_FAC -> 0.005965 | N39: =ROUND((L39/L$43)*100,1) -> 0 | P39: =ROUND(H34*PRO_FAC,0) -> 117750 | R39: 117750
A40: 17 | C40: =PSM_Name -> PROFIT SHARING MECHANISM (PSM) | J40: =PRO_PSM -> 0.004727 | L40: =ROUND(H34*PRO_PSM,0) -> 93312 | N40: =ROUND((L40/L$43)*100,1) -> 5.4 | R40: 93312
A41: 18 | C41: TOTAL RIDERS | L41: =SUM(L37:L40) -> 165198 | N41: =ROUND((L41/L$43)*100,1) -> 9.5 | P41: =SUM(P37:P40) -> 117750 | R41: =SUM(R37:R40) -> 282948
A43: 19 | C43: TOTAL RATE EH INCLUDING RIDERS | F43: =F34 -> 752 | H43: =H34 -> 19740170 | L43: =L34+L41 -> 1732874 | N43: 100 | P43: =P41+P34 -> 117750 | R43: =R41+R34 -> 1850624
C45: (1) BILLS THAT TERMINATE IN RESPECTIVE RATE STEPS.
C46: ="(2) REFLECTS FUEL COMPONENT OF "&TEXT(PRO_FAC,"$0.000000;($0.000000)")&" PER KWH." -> (2) REFLECTS FUEL COMPONENT OF $0.005965 PER KWH.
C47: ="(3) REFLECTS FUEL COST RECOVERY INCLUDED IN BASE RATES OF "&TEXT(PRO_BASE_FUEL,"$0.000000;($0.000000)")&" PER KWH." -> (3) REFLECTS FUEL COST RECOVERY INCLUDED IN BASE RATES OF $0.025401 PER KWH.
T49: =NAME -> DUKE ENERGY KENTUCKY, INC.
T50: =CASE_NO -> CASE NO. 2022-00372 - REHEARING
T51: =TITLE -> ANNUALIZED TEST YEAR REVENUES AT PROPOSED VS. MOST CURRENT RATES
T52: =DATE -> FOR THE TWELVE MONTHS ENDED June 30, 2024
T53: =SERVICE -> (ELECTRIC SERVICE)
T54: =DATA_PERIOD -> DATA: ____ BASE PERIOD __X__FORECASTED PERIOD | AO54: SCHEDULE M-2.2
T55: =TYPE -> TYPE OF FILING: ___ ORIGINAL ___UPDATED _X_ REVISED | AO55: ="PAGE 6 OF "&TEXT(Page_Num_2.2,"00") -> PAGE 6 OF 23
T56: WORK PAPER REFERENCE NO(S).: | AO56: WITNESS:
T57: =TIME -> 12 Months Projected with Riders - STAFF-RHDR-01-005A | AO57: =WIT -> B. L. Sailers
T58: =INPUT!B5 -> 
T59: CURRENT ANNUALIZED
AE61: CURRENT | AG61: % OF REV TO | AI61: REVENUE | AK61: % INCR IN | AO61: CURRENT | AQ61: TOTAL
AC62: MOST | AE62: REVENUE LESS | AG62: TOTAL LESS | AI62: INCR LESS | AK62: REV LESS | AO62: TOTAL | AQ62: REVENUE
T63: LINE | V63: RATE | W63: CLASS / | Y63: CUSTOMER | AC63: CURRENT | AE63: FAC | AG63: FAC | AI63: FAC REV | AK63: FAC REV | AM63: FAC | AO63: REVENUE | AQ63: % INCREASE
T64: NO. | V64: CODE | W64: DESCRIPTION | Y64: BILLS(1) | AA64: SALES | AC64: RATES | AE64: REVENUE | AG64: REVENUE | AI64: (F - K) | AK64: (M / K) | AM64: REVENUE (2) | AO64: (K + H) | AQ64: (M / K1)
V65: (A) | W65: (B) | Y65: (C) | AA65: (D) | AC65: (J) | AE65: (K) | AG65: (L) | AI65: (M) | AK65: (N) | AM65: (H) | AO65: (K1) | AQ65: (O)
AA67: (KW/KWH) | AC67: ($/KWH)/ | AE67: ($) | AG67: (%) | AI67: ($) | AK67: (%) | AM67: ($) | AO67: ($) | AQ67: (%)
T68: 1 | V68: EH | W68: OPTIONAL RATE FOR | AC68: ($/KW)
T69: 2 | W69: ELEC. SPACE HEATING
T71: 3 | V71: CUSTOMER CHARGE:
T72: 4 | V72: SINGLE PHASE | Y72: =F24 -> 186 | AC72: =INPUT!C86 -> 15 | AE72: =ROUND(Y72*AC72,0) -> 2790 | AG72: =ROUND((AE72/AE$91)*100,1) -> 0.2 | AI72: =L24-AE72 -> 0 | AK72: =IF(AE72=0,"0.0 ",ROUND((AI72/AE72)*100,1)) -> 0 | AO72: =AE72+AM72 -> 2790 | AQ72: =IF(AO72=0,"0.0 ",ROUND((AI72/AO72)*100,1)) -> 0
T73: 5 | V73: THREE PHASE | Y73: =F25 -> 566 | AC73: =INPUT!C87 -> 30 | AE73: =ROUND(Y73*AC73,0) -> 16980 | AG73: =ROUND((AE73/AE$91)*100,1)+0.1 -> 1.2 | AI73: =L25-AE73 -> 0 | AK73: =IF(AE73=0,"0.0 ",ROUND((AI73/AE73)*100,1)) -> 0 | AO73: =AE73+AM73 -> 16980 | AQ73: =IF(AO73=0,"0.0 ",ROUND((AI73/AO73)*100,1)) -> 0
T74: 6 | V74: PRIMARY VOLTAGE | Y74: =F26 -> 0 | AC74: =INPUT!C88 -> 117 | AE74: =ROUND(Y74*AC74,0) -> 0 | AG74: =ROUND((AE74/AE$91)*100,1) -> 0 | AI74: =L26-AE74 -> 0 | AK74: =IF(AE74=0,"0.0 ",ROUND((AI74/AE74)*100,1)) -> 0.0 | AO74: =AE74+AM74 -> 0 | AQ74: =IF(AO74=0,"0.0 ",ROUND((AI74/AO74)*100,1)) -> 0.0
T75: 7 | V75: TOTAL CUSTOMER CHARGE | Y75: =F27 -> 752 | AE75: =SUM(AE72:AE74) -> 19770 | AG75: =ROUND((AE75/AE$91)*100,1) -> 1.3 | AI75: =SUM(AI72:AI74) -> 0 | AK75: =IF(AE75=0,"0.0 ",ROUND((AI75/AE75)*100,1)) -> 0 | AO75: =SUM(AO72:AO74) -> 19770 | AQ75: =IF(AO75=0,"0.0 ",ROUND((AI75/AO75)*100,1)) -> 0
T77: 8 | V77: DEMAND CHARGE:
T78: 9 | V78: ALL KW | AA78: =H30 -> 0 | AC78: =INPUT!C92 -> 0 | AE78: =ROUND(Y78*AC78,0) -> 0 | AG78: =ROUND((AE78/AE$91)*100,1) -> 0 | AI78: =L30-AE78 -> 0 | AK78: =IF(AE78=0,"0.0 ",ROUND((AI78/AE78)*100,1)) -> 0.0 | AO78: =AE78+AM78 -> 0 | AQ78: =IF(AO78=0,"0.0 ",ROUND((AI78/AO78)*100,1)) -> 0.0
T80: 10 | V80: ENERGY CHARGE (3):
T81: 11 | V81: ALL CONSUMPTION | AA81: =H33 -> 19740170 | AC81: =INPUT!C90 -> 0.069268 | AE81: =ROUND((AA81*AC81),0) -> 1367362 | AG81: =ROUND((AE81/AE$91)*100,1) -> 88.2 | AI81: =L33-AE81 -> 180544 | AK81: =IF(AE81=0,"0.0 ",ROUND((AI81/AE81)*100,1)) -> 13.2 | AO81: =AE81+AM81 -> 1367362 | AQ81: =IF(AO81=0,"0.0 ",ROUND((AI81/AO81)*100,1)) -> 13.2
T82: 12 | V82: TOTAL RATE EH EXCLUDING RIDERS | Y82: =Y75 -> 752 | AA82: =AA81 -> 19740170 | AE82: =AE75+AE78+AE81 -> 1387132 | AG82: =ROUND((AE82/AE$91)*100,1) -> 89.4 | AI82: =AI75+AI78+AI81 -> 180544 | AK82: =IF(AE82=0,"0.0 ",ROUND((AI82/AE82)*100,1)) -> 13 | AO82: =AO75+AO78+AO81 -> 1387132 | AQ82: =IF(AO82=0,"0.0 ",ROUND((AI82/AO82)*100,1)) -> 13
T84: =A36 -> 13 | V84: RIDERS:
T85: 14 | V85: =C37 -> DEMAND SIDE MANAGEMENT RIDER (DSMR) | AC85: =DSM_DIST -> -0.000718 | AE85: =ROUND($AA$82*AC85,0) -> -14173 | AG85: =ROUND((AE85/AE$91)*100,1) -> -0.9 | AI85: =L37-AE85 -> 0 | AK85: =IF(AE85=0,"0.0 ",ROUND((AI85/AE85)*100,1)) -> 0 | AO85: =AE85+AM85 -> -14173 | AQ85: =IF(AO85=0,"0.0 ",ROUND((AI85/AO85)*100,1)) -> 0
T86: 15 | V86: =C38 -> ENVIRONMENTAL SURCHARGE MECHANISM RIDER (ESM) | AC86: =CUR_ESM_NonRes -> 0.08798914629 | AE86: =ROUND((AO82-(CUR_BASE_FUEL*AA82)+AO85+AO88)*AC86,0) -> 84896 | AG86: =ROUND((AE86/AE$91)*100,1) -> 5.5 | AI86: =L38-AE86 -> 1163 | AK86: 1.4 | AO86: =AE86+AM86 -> 84896 | AQ86: =IF(AO86=0,"0.0 ",ROUND((AI86/AO86)*100,1)) -> 1.4
T87: 16 | V87: =C39 -> FUEL ADJUSTMENT CLAUSE (FAC) | AC87: =CUR_FAC -> 0.005965 | AM87: =ROUND(AA82*CUR_FAC,0) -> 117750 | AO87: 117750 | AQ87: =IF(AO87=0,"0.0 ",ROUND(((R39-AO87)/AO87)*100,1)) -> 0
T88: 17 | V88: =C40 -> PROFIT SHARING MECHANISM (PSM) | AC88: =RS_PSM -> 0.004727 | AE88: =ROUND(AA82*RS_PSM,0) -> 93312 | AG88: =ROUND((AE88/AE$91)*100,1) -> 6 | AI88: =L40-AE88 -> 0 | AK88: 0 | AO88: 93312 | AQ88: 0
T89: 18 | V89: TOTAL RIDERS | AE89: =SUM(AE85:AE88) -> 164035 | AG89: =ROUND((AE89/AE$91)*100,1) -> 10.6 | AI89: =SUM(AI85:AI88) -> 1163 | AK89: 0.7 | AM89: =SUM(AM85:AM88) -> 117750 | AO89: =SUM(AO85:AO88) -> 281785 | AQ89: 0.4
T91: =A43 -> 19 | V91: TOTAL RATE EH INCLUDING RIDERS | Y91: =Y82 -> 752 | AA91: =AA82 -> 19740170 | AE91: =AE89+AE82 -> 1551167 | AG91: 100 | AI91: =AI89+AI82 -> 181707 | AK91: =IF(AE91=0,"0.0 ",ROUND((AI91/AE91)*100,1)) -> 11.7 | AM91: =AM89+AM82 -> 117750 | AO91: =AO89+AO82 -> 1668917 | AQ91: =IF(AO91=0,"0.0 ",ROUND((AI91/AO91)*100,1)) -> 10.9
V93: (1) BILLS THAT TERMINATE IN RESPECTIVE RATE STEPS.
V94: ="(2) REFLECTS FUEL COMPONENT OF "&TEXT(CUR_FAC,"$0.000000;($0.000000)")&" PER KWH." -> (2) REFLECTS FUEL COMPONENT OF $0.005965 PER KWH.
V95: ="(3) REFLECTS FUEL COST RECOVERY INCLUDED IN BASE RATES OF "&TEXT(CUR_BASE_FUEL,"$0.000000;($0.000000)")&" PER KWH." -> (3) REFLECTS FUEL COST RECOVERY INCLUDED IN BASE RATES OF $0.025401 PER KWH.

Sheet Rate SP GSFL
A1: =NAME -> DUKE ENERGY KENTUCKY, INC.
A2: =CASE_NO -> CASE NO. 2022-00372 - REHEARING
A3: =TITLE -> ANNUALIZED TEST YEAR REVENUES AT PROPOSED VS. MOST CURRENT RATES
A4: =DATE -> FOR THE TWELVE MONTHS ENDED June 30, 2024
A5: =SERVICE -> (ELECTRIC SERVICE)
A6: =DATA_PERIOD -> DATA: ____ BASE PERIOD __X__FORECASTED PERIOD | R6: SCHEDULE M-2.3
A7: =TYPE -> TYPE OF FILING: ___ ORIGINAL ___UPDATED _X_ REVISED | R7: ="PAGE 7 OF "&TEXT(Page_Num_2.3,"00") -> PAGE 7 OF 24
A8: WORK PAPER REFERENCE NO(S).: | R8: WITNESS:
A9: =TIME -> 12 Months Projected with Riders - STAFF-RHDR-01-005A | R9: =WIT -> B. L. Sailers
A10: =INPUT!B5 -> 
A11: PROPOSED ANNUALIZED
L13: PROPOSED | N13: % OF REV TO | R13: PROPOSED
L14: REVENUE LESS | N14: TOTAL LESS | R14: TOTAL
A15: LINE | C15: RATE | D15: CLASS / | F15: CUSTOMER | J15: PROPOSED | L15: FAC | N15: FAC | P15: FAC | R15: REVENUE
A16: NO. | C16: CODE | D16: DESCRIPTION | F16: BILLS(1) | H16: SALES | J16: RATES | L16: REVENUE | N16: REVENUE | P16: REVENUE (2) | R16: (F + H)
C17: (A) | D17: (B) | F17: (C) | H17: (D) | J17: (E) | L17: (F) | N17: (G) | P17: (H) | R17: (I)
H19: (KWH) | J19: ($/KWH) | L19: ($) | N19: (%) | P19: ($) | R19: ($)
A21: 1 | C21: SP | D21: SEASONAL SPORTS SERVICE
A23: 2 | C23: MINIMUM BILLS (4) | F23: 0 | L23: 0 | N23: =ROUND((L23/L$38)*100,1) -> 0 | R23: =L23+P23 -> 0
A25: 3 | C25: CUSTOMER CHARGE | F25: 156 | J25: 15 | L25: =ROUND(F25*J25,0) -> 2340 | N25: =ROUND((L25/L$38)*100,1) -> 8.1 | R25: =L25+P25 -> 2340
A27: 4 | C27: ENERGY CHARGE (3):
A28: 5 | C28: ALL CONSUMPTION | H28: 193786 | J28: 0.12376 | L28: =ROUND((H28*(J28)),0) -> 23983 | N28: =ROUND((L28/L$38)*100,1) -> 83.4 | R28: =L28+P28 -> 23983
A29: 6 | C29: TOTAL RATE SP EXCLUDING RIDERS | F29: =F25 -> 156 | H29: =H28 -> 193786 | L29: =L23+L25+L28 -> 26323 | N29: =ROUND((L29/L$38)*100,1) -> 91.5 | R29: =R23+R25+R28 -> 26323
A31: 7 | C31: RIDERS:
A32: 8 | C32: =DSMR_Name -> DEMAND SIDE MANAGEMENT RIDER (DSMR) | J32: =PRO_DSM_DIST -> -0.000718 | L32: =ROUND($H$29*J32,0) -> -139 | N32: =ROUND((L32/L$38)*100,1)+0.1 -> -0.4 | R32: =L32+P32 -> -139
A33: 9 | C33: =ESM_Name -> ENVIRONMENTAL SURCHARGE MECHANISM RIDER (ESM) | J33: =PRO_ESM_NONRES -> 0.07513471937 | L33: =ROUND((R29-(PRO_BASE_FUEL*H29)+R32+R35)*J33,0) -> 1666 | N33: =ROUND((L33/L$38)*100,1) -> 5.8 | R33: =L33+P33 -> 1666
A34: 10 | C34: =FAC_Name -> FUEL ADJUSTMENT CLAUSE (FAC) | J34: =PRO_FAC -> 0.005965 | P34: =ROUND(H29*PRO_FAC,0) -> 1156 | R34: 1156
A35: 11 | C35: =PSM_Name -> PROFIT SHARING MECHANISM (PSM) | J35: =PRO_PSM -> 0.004727 | L35: =ROUND(H29*PRO_PSM,0) -> 916 | N35: =ROUND((L35/L$38)*100,1) -> 3.2 | R35: 916
A36: 12 | C36: TOTAL RIDERS | L36: =SUM(L32:L35) -> 2443 | N36: =ROUND((L36/L$38)*100,1) -> 8.5 | P36: =SUM(P32:P35) -> 1156 | R36: =SUM(R32:R35) -> 3599
A38: 13 | C38: TOTAL RATE SP INCLUDING RIDERS | F38: =F23+F25 -> 156 | H38: =H28 -> 193786 | L38: =L29+L36 -> 28766 | N38: 100 | P38: =P36+P29 -> 1156 | R38: =R29+R36 -> 29922
A41: 14 | C41: GS-FL | D41: SMALL FIXED LOADS
A43: 15 | C43: MINIMUM BILLS | F43: 2520 | J43: 3.65 | L43: =ROUND(F43*J43,0) -> 9198 | N43: =ROUND((L43/L$57)*100,1) -> 1.1 | R43: =L43+P43 -> 9198
A45: 16 | C45: BASE RATE (3):
A46: 17 | C46: LOAD RANGE 540 TO 720 HRS | H46: 12724 | J46: 0.103034 | L46: =ROUND((H46*J46),0) -> 1311 | N46: =ROUND((L46/L$57)*100,1) -> 0.2 | R46: =L46+P46 -> 1311
A47: 18 | C47: LOAD RANGE LESS THAN 540 HRS | H47: 6496290 | J47: 0.118449 | L47: =ROUND((H47*J47),0) -> 769479 | N47: =ROUND((L47/L$57)*100,1) -> 90.1 | R47: =L47+P47 -> 769479
A48: 19 | C48: TOTAL RATE GS-FL EXCLUDING RIDERS | F48: =SUM(F43:F47) -> 2520 | H48: =SUM(H46:H47) -> 6509014 | L48: =SUM(L43:L47) -> 779988 | N48: =ROUND((L48/L$57)*100,1) -> 91.3 | R48: =SUM(R43:R47) -> 779988
A50: 20 | C50: RIDERS:
A51: 21 | C51: =DSMR_Name -> DEMAND SIDE MANAGEMENT RIDER (DSMR) | J51: =PRO_DSM_DIST -> -0.000718 | L51: =ROUND($H$48*J51,0) -> -4673 | N51: =ROUND((L51/L$57)*100,1)-0.1 -> -0.6 | R51: =L51+P51 -> -4673
A52: 22 | C52: =ESM_Name -> ENVIRONMENTAL SURCHARGE MECHANISM RIDER (ESM) | J52: =PRO_ESM_NONRES -> 0.07513471937 | L52: =ROUND((R48-(PRO_BASE_FUEL*H48)+R51+R54)*J52,0) -> 48142 | N52: =ROUND((L52/L$57)*100,1) -> 5.6 | R52: =L52+P52 -> 48142
A53: 23 | C53: =FAC_Name -> FUEL ADJUSTMENT CLAUSE (FAC) | J53: =PRO_FAC -> 0.005965 | P53: =ROUND(H48*PRO_FAC,0) -> 38826 | R53: 38826
A54: 24 | C54: =PSM_Name -> PROFIT SHARING MECHANISM (PSM) | J54: =PRO_PSM -> 0.004727 | L54: =ROUND($H$48*J54,0) -> 30768 | N54: =ROUND((L54/L$57)*100,1) -> 3.6 | R54: 30768
A55: 25 | C55: TOTAL RIDERS | L55: =SUM(L51:L54) -> 74237 | N55: =ROUND((L55/L$57)*100,1) -> 8.7 | P55: =SUM(P51:P54) -> 38826 | R55: =SUM(R51:R54) -> 113063
A57: 26 | C57: TOTAL RATE GS-FL INCLUDING RIDERS | F57: =SUM(F43:F47) -> 2520 | H57: =SUM(H43:H47) -> 6509014 | L57: =L48+L55 -> 854225 | N57: 100 | P57: =P48+P55 -> 38826 | R57: =R48+R55 -> 893051
C59: (1) BILLS THAT TERMINATE IN RESPECTIVE RATE STEPS.
C60: ="(2) REFLECTS FUEL COMPONENT OF "&TEXT(PRO_FAC,"$0.000000;($0.000000)")&" PER KWH." -> (2) REFLECTS FUEL COMPONENT OF $0.005965 PER KWH.
C61: ="(3) REFLECTS FUEL COST RECOVERY INCLUDED IN BASE RATES OF "&TEXT(PRO_BASE_FUEL,"$0.000000;($0.000000)")&" PER KWH." -> (3) REFLECTS FUEL COST RECOVERY INCLUDED IN BASE RATES OF $0.025401 PER KWH.
C62: (4) 1.5% OF INSTALLED TRANSFORMER AMD METERING COSTS BUT NOT LESS THAN CUSTOMER CHARGE WHETHER SERVICE IS ON OR DISCONNECTED.
T65: =NAME -> DUKE ENERGY KENTUCKY, INC.
T66: =CASE_NO -> CASE NO. 2022-00372 - REHEARING
T67: =TITLE -> ANNUALIZED TEST YEAR REVENUES AT PROPOSED VS. MOST CURRENT RATES
T68: =DATE -> FOR THE TWELVE MONTHS ENDED June 30, 2024
T69: =SERVICE -> (ELECTRIC SERVICE)
T70: =DATA_PERIOD -> DATA: ____ BASE PERIOD __X__FORECASTED PERIOD | AO70: SCHEDULE M-2.2
T71: =TYPE -> TYPE OF FILING: ___ ORIGINAL ___UPDATED _X_ REVISED | AO71: ="PAGE 7 OF "&TEXT(Page_Num_2.2,"00") -> PAGE 7 OF 23
T72: WORK PAPER REFERENCE NO(S).: | AO72: WITNESS:
T73: =TIME -> 12 Months Projected with Riders - STAFF-RHDR-01-005A | AO73: =WIT -> B. L. Sailers
T74: =INPUT!B5 -> 
T75: CURRENT ANNUALIZED
AE77: CURRENT | AG77: % OF REV TO | AI77: REVENUE | AK77: % INCR IN | AO77: CURRENT | AQ77: TOTAL
AC78: MOST | AE78: REVENUE LESS | AG78: TOTAL LESS | AI78: INCR LESS | AK78: REV LESS | AO78: TOTAL | AQ78: REVENUE
T79: LINE | V79: RATE | W79: CLASS / | Y79: CUSTOMER | AC79: CURRENT | AE79: FAC | AG79: FAC | AI79: FAC REV | AK79: FAC REV | AM79: FAC | AO79: REVENUE | AQ79: % INCREASE
T80: NO. | V80: CODE | W80: DESCRIPTION | Y80: BILLS(1) | AA80: SALES | AC80: RATES | AE80: REVENUE | AG80: REVENUE | AI80: (F - K) | AK80: (M / K) | AM80: REVENUE (2) | AO80: (K + H) | AQ80: (M / K1)
V81: (A) | W81: (B) | Y81: (C) | AA81: (D) | AC81: (J) | AE81: (K) | AG81: (L) | AI81: (M) | AK81: (N) | AM81: (H) | AO81: (K1) | AQ81: (O)
AA83: (KWH) | AC83: ($/KWH) | AE83: ($) | AG83: (%) | AI83: ($) | AK83: (%) | AM83: ($) | AO83: ($) | AQ83: (%)
T84: 1 | V84: SP | W84: SEASONAL SPORTS SERVICE
T86: 2 | V86: MINIMUM BILLS (4) | Y86: =F23 -> 0 | AE86: =L23 -> 0 | AG86: =ROUND((AE86/AE$101)*100,1) -> 0 | AI86: =L23-AE86 -> 0 | AK86: 0 | AO86: =AE86+AM86 -> 0 | AQ86: =IF(AO86=0,"0.0 ",ROUND((AI86/AO86)*100,1)) -> 0.0
T88: 3 | V88: CUSTOMER CHARGE | Y88: =F25 -> 156 | AC88: =INPUT!C96 -> 15 | AE88: =ROUND(Y88*AC88,0) -> 2340 | AG88: =ROUND((AE88/AE$101)*100,1) -> 9.1 | AI88: =L25-AE88 -> 0 | AK88: =ROUND((AI88/AE88)*100,1) -> 0 | AO88: =AE88+AM88 -> 2340 | AQ88: =IF(AO88=0,"0.0 ",ROUND((AI88/AO88)*100,1)) -> 0
T90: 4 | V90: ENERGY CHARGE (3):
T91: 5 | V91: ALL CONSUMPTION | AA91: =H28 -> 193786 | AC91: =INPUT!C98 -> 0.107965 | AE91: =ROUND((AA91*AC91),0) -> 20922 | AG91: =ROUND((AE91/AE$101)*100,1)-0.1 -> 81.2 | AI91: =L28-AE91 -> 3061 | AK91: =ROUND((AI91/AE91)*100,1) -> 14.6 | AO91: =AE91+AM91 -> 20922 | AQ91: =IF(AO91=0,"0.0 ",ROUND((AI91/AO91)*100,1)) -> 14.6
T92: 6 | V92: TOTAL RATE SP EXCLUDING RIDERS | Y92: =Y88 -> 156 | AA92: =AA91 -> 193786 | AE92: =SUM(AE86:AE91) -> 23262 | AG92: =ROUND((AE92/AE$101)*100,1) -> 90.4 | AI92: =SUM(AI86:AI91) -> 3061 | AK92: =ROUND((AI92/AE92)*100,1) -> 13.2 | AO92: =SUM(AO86:AO91) -> 23262 | AQ92: =IF(AO92=0,"0.0 ",ROUND((AI92/AO92)*100,1)) -> 13.2
T94: 7 | V94: RIDERS:
T95: =A32 -> 8 | V95: =C32 -> DEMAND SIDE MANAGEMENT RIDER (DSMR) | AC95: =DSM_DIST -> -0.000718 | AE95: =ROUND(AA92*AC95,0) -> -139 | AG95: =ROUND((AE95/AE$101)*100,1) -> -0.5 | AI95: =L32-AE95 -> 0 | AK95: =ROUND((AI95/AE95)*100,1) -> 0 | AO95: =AE95+AM95 -> -139 | AQ95: =IF(AO95=0,"0.0 ",ROUND((AI95/AO95)*100,1)) -> 0
T96: =A33 -> 9 | V96: =C33 -> ENVIRONMENTAL SURCHARGE MECHANISM RIDER (ESM) | AC96: =CUR_ESM_NonRes -> 0.08798914629 | AE96: =ROUND((AO92-(CUR_BASE_FUEL*AA92)+AO95+AO98)*AC96,0) -> 1682 | AG96: =ROUND((AE96/AE$101)*100,1) -> 6.5 | AI96: =L33-AE96 -> -16 | AK96: =IF(AE96=0,0,ROUND((AI96/AE96)*100,1)) -> -1 | AO96: =AE96+AM96 -> 1682 | AQ96: =IF(AO96=0,"0.0 ",ROUND((AI96/AO96)*100,1)) -> -1
T97: =A34 -> 10 | V97: =C34 -> FUEL ADJUSTMENT CLAUSE (FAC) | AC97: =CUR_FAC -> 0.005965 | AM97: =ROUND(AA92*CUR_FAC,0) -> 1156 | AO97: 1156 | AQ97: =IF(AO97=0,0,ROUND(((R34-AO97)/AO97)*100,1)) -> 0
T98: =A35 -> 11 | V98: =C35 -> PROFIT SHARING MECHANISM (PSM) | AC98: =RS_PSM -> 0.004727 | AE98: =ROUND(AA92*AC98,0) -> 916 | AG98: =ROUND((AE98/AE$101)*100,1) -> 3.6 | AI98: =L35-AE98 -> 0 | AK98: 0 | AO98: 916 | AQ98: 0
T99: =A36 -> 12 | V99: TOTAL RIDERS | AE99: =SUM(AE95:AE98) -> 2459 | AG99: =ROUND((AE99/AE$101)*100,1) -> 9.6 | AI99: =SUM(AI95:AI98) -> -16 | AK99: =ROUND((AI99/AE99)*100,1) -> -0.7 | AM99: =SUM(AM95:AM98) -> 1156 | AO99: =SUM(AO95:AO98) -> 3615 | AQ99: -0.4
T101: =A38 -> 13 | V101: TOTAL RATE SP INCLUDING RIDERS | Y101: =F38 -> 156 | AA101: =H38 -> 193786 | AE101: =AE92+AE99 -> 25721 | AG101: 100 | AI101: =AI92+AI99 -> 3045 | AK101: =ROUND((AI101/AE101)*100,1) -> 11.8 | AM101: =AM99+AM92 -> 1156 | AO101: =AO99+AO92 -> 26877 | AQ101: =IF(AO101=0,"0.0 ",ROUND((AI101/AO101)*100,1)) -> 11.3
T104: =A41 -> 14 | V104: GS-FL | W104: SMALL FIXED LOADS
T106: =A43 -> 15 | V106: MINIMUM BILLS | Y106: =F43 -> 2520 | AC106: =INPUT!C104 -> 3.23 | AE106: =ROUND(Y106*AC106,0) -> 8140 | AG106: =ROUND((AE106/AE$120)*100,1) -> 1.1 | AI106: =L43-AE106 -> 1058 | AK106: =IF(AE106=0,"0.0 ",ROUND((AI106/AE106)*100,1)) -> 13 | AO106: =AE106+AM106 -> 8140 | AQ106: =IF(AO106=0,"0.0 ",ROUND((AI106/AO106)*100,1)) -> 13
T108: =A45 -> 16 | V108: BASE RATE (3):
T109: =A46 -> 17 | V109: LOAD RANGE 540 TO 720 HRS | AA109: =H46 -> 12724 | AC109: =INPUT!C106 -> 0.091069 | AE109: =ROUND((AA109*AC109),0) -> 1159 | AG109: =ROUND((AE109/AE$120)*100,1) -> 0.2 | AI109: =L46-AE109 -> 152 | AK109: =IF(AE109=0,"0.0 ",ROUND((AI109/AE109)*100,1)) -> 13.1 | AO109: =AE109+AM109 -> 1159 | AQ109: =IF(AO109=0,"0.0 ",ROUND((AI109/AO109)*100,1)) -> 13.1
T110: =A47 -> 18 | V110: LOAD RANGE LESS THAN 540 HRS | AA110: =H47 -> 6496290 | AC110: =INPUT!C107 -> 0.104699 | AE110: =ROUND((AA110*AC110),0) -> 680155 | AG110: =ROUND((AE110/AE$120)*100,1) -> 89 | AI110: =L47-AE110 -> 89324 | AK110: =IF(AE110=0,"0.0 ",ROUND((AI110/AE110)*100,1)) -> 13.1 | AO110: =AE110+AM110 -> 680155 | AQ110: =IF(AO110=0,"0.0 ",ROUND((AI110/AO110)*100,1)) -> 13.1
T111: =A48 -> 19 | V111: TOTAL RATE GS-FL EXCLUDING RIDERS | Y111: =SUM(Y106:Y110) -> 2520 | AA111: =SUM(AA106:AA110) -> 6509014 | AE111: =SUM(AE106:AE110) -> 689454 | AG111: =ROUND((AE111/AE$120)*100,1) -> 90.2 | AI111: =SUM(AI106:AI110) -> 90534 | AK111: =IF(AE111=0,"0.0 ",ROUND((AI111/AE111)*100,1)) -> 13.1 | AO111: =SUM(AO106:AO110) -> 689454 | AQ111: =IF(AO111=0,"0.0 ",ROUND((AI111/AO111)*100,1)) -> 13.1
T113: =A50 -> 20 | V113: RIDERS:
T114: 21 | V114: =C51 -> DEMAND SIDE MANAGEMENT RIDER (DSMR) | AC114: =DSM_DIST -> -0.000718 | AE114: =ROUND($AA$111*AC114,0) -> -4673 | AG114: =ROUND((AE114/AE$120)*100,1) -> -0.6 | AI114: =L51-AE114 -> 0 | AK114: =IF(AE114=0,"0.0 ",ROUND((AI114/AE114)*100,1)) -> 0 | AO114: =AE114+AM114 -> -4673 | AQ114: =IF(AO114=0,"0.0 ",ROUND((AI114/AO114)*100,1)) -> 0
T115: 22 | V115: =C52 -> ENVIRONMENTAL SURCHARGE MECHANISM RIDER (ESM) | AC115: =CUR_ESM_NonRes -> 0.08798914629 | AE115: =ROUND((AO111-(CUR_BASE_FUEL*AA111)+AO114+AO117)*AC115,0) -> 48413 | AG115: =ROUND((AE115/AE$120)*100,1) -> 6.3 | AI115: =L52-AE115 -> -271 | AK115: =IF(AE115=0,"0.0 ",ROUND((AI115/AE115)*100,1)) -> -0.6 | AO115: =AE115+AM115 -> 48413 | AQ115: =IF(AO115=0,"0.0 ",ROUND((AI115/AO115)*100,1)) -> -0.6
T116: 23 | V116: =C53 -> FUEL ADJUSTMENT CLAUSE (FAC) | AC116: =CUR_FAC -> 0.005965 | AM116: =ROUND(AA111*CUR_FAC,0) -> 38826 | AO116: 38826 | AQ116: =IF(AO116=0,0,ROUND(((R53-AO116)/AO116)*100,1)) -> 0
T117: 24 | V117: =C54 -> PROFIT SHARING MECHANISM (PSM) | AC117: =RS_PSM -> 0.004727 | AE117: =ROUND(AA111*RS_PSM,0) -> 30768 | AG117: =ROUND((AE117/AE$120)*100,1) -> 4 | AI117: =L54-AE117 -> 0 | AK117: 0 | AO117: 30768 | AQ117: 0
T118: 25 | V118: TOTAL RIDERS | AE118: =SUM(AE114:AE117) -> 74508 | AG118: =ROUND((AE118/AE$120)*100,1) -> 9.8 | AI118: =SUM(AI114:AI117) -> -271 | AK118: =IF(AE118=0,"0.0 ",ROUND((AI118/AE118)*100,1)) -> -0.4 | AM118: =SUM(AM114:AM117) -> 38826 | AO118: =SUM(AO114:AO117) -> 113334 | AQ118: -0.2
T120: =A57 -> 26 | V120: TOTAL RATE GS-FL INCLUDING RIDERS | Y120: =F57 -> 2520 | AA120: =H57 -> 6509014 | AE120: =AE111+AE118 -> 763962 | AG120: 100 | AI120: =AI111+AI118 -> 90263 | AK120: =IF(AE120=0,"0.0 ",ROUND((AI120/AE120)*100,1)) -> 11.8 | AM120: =AM111+AM118 -> 38826 | AO120: =AO111+AO118 -> 802788 | AQ120: =IF(AO120=0,"0.0 ",ROUND((AI120/AO120)*100,1)) -> 11.2
V122: (1) BILLS THAT TERMINATE IN RESPECTIVE RATE STEPS.
V123: ="(2) REFLECTS FUEL COMPONENT OF "&TEXT(CUR_FAC,"$0.000000;($0.000000)")&" PER KWH." -> (2) REFLECTS FUEL COMPONENT OF $0.005965 PER KWH.
V124: ="(3) REFLECTS FUEL COST RECOVERY INCLUDED IN BASE RATES OF "&TEXT(CUR_BASE_FUEL,"$0.000000;($0.000000)")&" PER KWH." -> (3) REFLECTS FUEL COST RECOVERY INCLUDED IN BASE RATES OF $0.025401 PER KWH.
V125: (4) 1.5% OF INSTALLED TRANSFORMER AMD METERING COSTS BUT NOT LESS THAN CUSTOMER CHARGE WHETHER SERVICE IS ON OR DISCONNECTED.

Sheet Rate DP
A1: =NAME -> DUKE ENERGY KENTUCKY, INC.
A2: =CASE_NO -> CASE NO. 2022-00372 - REHEARING
A3: =TITLE -> ANNUALIZED TEST YEAR REVENUES AT PROPOSED VS. MOST CURRENT RATES
A4: =DATE -> FOR THE TWELVE MONTHS ENDED June 30, 2024
A5: =SERVICE -> (ELECTRIC SERVICE)
A6: =DATA_PERIOD -> DATA: ____ BASE PERIOD __X__FORECASTED PERIOD | R6: SCHEDULE M-2.3
A7: =TYPE -> TYPE OF FILING: ___ ORIGINAL ___UPDATED _X_ REVISED | R7: ="PAGE 8 OF "&TEXT(Page_Num_2.3,"00") -> PAGE 8 OF 24
A8: WORK PAPER REFERENCE NO(S).: | R8: WITNESS:
A9: =TIME -> 12 Months Projected with Riders - STAFF-RHDR-01-005A | R9: =WIT -> B. L. Sailers
A10: =INPUT!B5 -> 
A11: PROPOSED ANNUALIZED
L13: PROPOSED | N13: % OF REV TO | R13: PROPOSED
L14: REVENUE LESS | N14: TOTAL LESS | R14: TOTAL
A15: LINE | C15: RATE | D15: CLASS / | F15: CUSTOMER | J15: PROPOSED | L15: FAC | N15: FAC | P15: FAC | R15: REVENUE
A16: NO. | C16: CODE | D16: DESCRIPTION | F16: BILLS(1) | H16: SALES | J16: RATES | L16: REVENUE | N16: REVENUE | P16: REVENUE (2) | R16: (F + H)
C17: (A) | D17: (B) | F17: (C) | H17: (D) | J17: (E) | L17: (F) | N17: (G) | P17: (H) | R17: (I)
H19: (KW/KWH) | J19: ($/KWH) | L19: ($) | N19: (%) | P19: ($) | R19: ($)
A20: 1 | C20: DP | D20: SERVICE AT PRIMARY | J20: ($/KW)
A21: 2 | D21: DISTRIBUTION VOLTAGE
A23: 3 | C23: CUSTOMER CHARGE:
A24: 4 | C24: LOAD MANAGEMENT RIDER | F24: 41 | J24: 5 | L24: =ROUND(F24*J24,0) -> 205 | N24: =ROUND((L24/$L$46)*100,1) -> 0 | R24: =L24+P24 -> 205
A25: 5 | C25: PRIMARY VOLTAGE | F25: 240 | J25: 117 | L25: =ROUND(F25*J25,0) -> 28080 | N25: =ROUND((L25/$L$46)*100,1) -> 2.1 | R25: =L25+P25 -> 28080
A26: 6 | C26: TOTAL CUSTOMER CHARGE | F26: =F25 -> 240 | L26: =SUM(L24:L25) -> 28285 | N26: =ROUND((L26/$L$46)*100,1) -> 2.1 | R26: =SUM(R24:R25) -> 28285
A28: 7 | C28: DEMAND CHARGE:
A29: 8 | C29: ALL KW | H29: 36838 | J29: 9.37 | L29: =ROUND(H29*J29,0) -> 345172 | N29: =ROUND((L29/$L$46)*100,1) -> 26.2 | R29: =L29+P29 -> 345172
A30: 9 | C30: TOTAL DEMAND | H30: =SUM(H29) -> 36838 | L30: =SUM(L29) -> 345172 | N30: =ROUND((L30/$L$46)*100,1) -> 26.2 | R30: =SUM(R29) -> 345172
A32: 10 | C32: ENERGY CHARGE (3):
A33: 11 | C33: FIRST 300KWH/KW | H33: 9619598 | J33: 0.062178 | L33: =ROUND((H33*J33),0) -> 598127 | N33: =ROUND((L33/$L$46)*100,1) -> 45.4 | R33: =L33+P33 -> 598127
A34: 12 | C34: ADDITIONAL KWH | H34: 4226650 | J34: 0.052875 | L34: =ROUND((H34*J34),0) -> 223484 | N34: =ROUND((L34/$L$46)*100,1) -> 17 | R34: =L34+P34 -> 223484
A35: 13 | C35: CAP RATE KWH | H35: 0 | J35: 0.285662 | L35: =ROUND((H35*J35),0) -> 0 | N35: =ROUND((L35/$L$46)*100,1) -> 0 | R35: =L35+P35 -> 0
A36: 14 | C36: TOTAL ENERGY | H36: =SUM(H33:H35) -> 13846248 | L36: =SUM(L33:L35) -> 821611 | N36: =ROUND((L36/$L$46)*100,1) -> 62.3 | R36: =L36+P36 -> 821611
A37: 15 | C37: TOTAL RATE DP EXCLUDING RIDERS | F37: =F26 -> 240 | H37: =H36 -> 13846248 | L37: =L36+L30+L26 -> 1195068 | N37: =ROUND((L37/$L$46)*100,1) -> 90.7 | R37: =R26+R30+R36 -> 1195068
A39: 16 | C39: RIDERS:
A40: 17 | C40: =DSMR_Name -> DEMAND SIDE MANAGEMENT RIDER (DSMR) | J40: =PRO_DSM_DIST -> -0.000718 | L40: =ROUND($H$37*J40,0) -> -9942 | N40: =ROUND((L40/$L$46)*100,1) -> -0.8 | R40: =L40+P40 -> -9942
A41: 18 | C41: =ESM_Name -> ENVIRONMENTAL SURCHARGE MECHANISM RIDER (ESM) | J41: =PRO_ESM_NONRES -> 0.07513471937 | L41: =ROUND((R37-(PRO_BASE_FUEL*H37)+R40+R43)*J41,0) -> 67536 | N41: =ROUND((L41/$L$46)*100,1) -> 5.1 | R41: =L41+P41 -> 67536
A42: 19 | C42: =FAC_Name -> FUEL ADJUSTMENT CLAUSE (FAC) | J42: =PRO_FAC -> 0.005965 | P42: =ROUND(H37*PRO_FAC,0) -> 82593 | R42: 82593
A43: 20 | C43: =PSM_Name -> PROFIT SHARING MECHANISM (PSM) | J43: =PRO_PSM -> 0.004727 | L43: =ROUND(H37*PRO_PSM,0) -> 65451 | N43: =ROUND((L43/$L$46)*100,1) -> 5 | R43: 65451
A44: 21 | C44: TOTAL RIDERS | L44: =SUM(L40:L43) -> 123045 | N44: =ROUND((L44/$L$46)*100,1) -> 9.3 | P44: =SUM(P40:P43) -> 82593 | R44: =SUM(R40:R43) -> 205638
A46: 22 | C46: TOTAL RATE DP INCLUDING RIDERS | F46: =F26 -> 240 | H46: =H36 -> 13846248 | L46: =L37+L44 -> 1318113 | N46: 100 | P46: =P44+P37 -> 82593 | R46: =R44+R37 -> 1400706
C48: (1) BILLS THAT TERMINATE IN RESPECTIVE RATE STEPS.
C49: ="(2) REFLECTS FUEL COMPONENT OF "&TEXT(PRO_FAC,"$0.000000;($0.000000)")&" PER KWH." -> (2) REFLECTS FUEL COMPONENT OF $0.005965 PER KWH.
C50: ="(3) REFLECTS FUEL COST RECOVERY INCLUDED IN BASE RATES OF "&TEXT(PRO_BASE_FUEL,"$0.000000;($0.000000)")&" PER KWH." -> (3) REFLECTS FUEL COST RECOVERY INCLUDED IN BASE RATES OF $0.025401 PER KWH.
T53: =NAME -> DUKE ENERGY KENTUCKY, INC.
T54: =CASE_NO -> CASE NO. 2022-00372 - REHEARING
T55: =TITLE -> ANNUALIZED TEST YEAR REVENUES AT PROPOSED VS. MOST CURRENT RATES
T56: =DATE -> FOR THE TWELVE MONTHS ENDED June 30, 2024
T57: =SERVICE -> (ELECTRIC SERVICE)
T58: =DATA_PERIOD -> DATA: ____ BASE PERIOD __X__FORECASTED PERIOD | AO58: SCHEDULE M-2.2
T59: =TYPE -> TYPE OF FILING: ___ ORIGINAL ___UPDATED _X_ REVISED | AO59: ="PAGE 8 OF "&TEXT(Page_Num_2.2,"00") -> PAGE 8 OF 23
T60: WORK PAPER REFERENCE NO(S).: | AO60: WITNESS:
T61: =TIME -> 12 Months Projected with Riders - STAFF-RHDR-01-005A | AO61: =WIT -> B. L. Sailers
T62: =INPUT!B5 -> 
T63: CURRENT ANNUALIZED
AE65: CURRENT | AG65: % OF REV TO | AI65: REVENUE | AK65: % INCR IN | AO65: CURRENT | AQ65: TOTAL
AC66: MOST | AE66: REVENUE LESS | AG66: TOTAL LESS | AI66: INCR LESS | AK66: REV LESS | AO66: TOTAL | AQ66: REVENUE
T67: LINE | V67: RATE | W67: CLASS / | Y67: CUSTOMER | AC67: CURRENT | AE67: FAC | AG67: FAC | AI67: FAC REV | AK67: FAC REV | AM67: FAC | AO67: REVENUE | AQ67: % INCREASE
T68: NO. | V68: CODE | W68: DESCRIPTION | Y68: BILLS(1) | AA68: SALES | AC68: RATES | AE68: REVENUE | AG68: REVENUE | AI68: (F - K) | AK68: (M / K) | AM68: REVENUE (2) | AO68: (K + H) | AQ68: (M / K1)
V69: (A) | W69: (B) | Y69: (C) | AA69: (D) | AC69: (J) | AE69: (K) | AG69: (L) | AI69: (M) | AK69: (N) | AM69: (H) | AO69: (K1) | AQ69: (O)
AA71: (KW/KWH) | AC71: ($/KWH)/ | AE71: ($) | AG71: (%) | AI71: ($) | AK71: (%) | AM71: ($) | AO71: ($) | AQ71: (%)
T72: 1 | V72: DP | W72: SERVICE AT PRIMARY | AC72: ($/KW)
T73: 2 | W73: DISTRIBUTION VOLTAGE
T75: 3 | V75: CUSTOMER CHARGE:
T76: 4 | V76: LOAD MANAGEMENT RIDER | Y76: =F24 -> 41 | AC76: =INPUT!C64 -> 5 | AE76: =ROUND(Y76*AC76,0) -> 205 | AG76: =ROUND((AE76/$AE$98)*100,1) -> 0 | AI76: =L24-AE76 -> 0 | AK76: =ROUND((AI76/AE76)*100,1) -> 0 | AO76: =AE76+AM76 -> 205 | AQ76: =ROUND((AI76/AO76)*100,1) -> 0
T77: 5 | V77: PRIMARY VOLTAGE | Y77: =F25 -> 240 | AC77: =INPUT!C113 -> 117 | AE77: =ROUND(Y77*AC77,0) -> 28080 | AG77: =ROUND((AE77/$AE$98)*100,1) -> 2.3 | AI77: =L25-AE77 -> 0 | AK77: =ROUND((AI77/AE77)*100,1) -> 0 | AO77: =AE77+AM77 -> 28080 | AQ77: =ROUND((AI77/AO77)*100,1) -> 0
T78: 6 | V78: TOTAL CUSTOMER CHARGE | Y78: =F26 -> 240 | AE78: =SUM(AE76:AE77) -> 28285 | AG78: =ROUND((AE78/$AE$98)*100,1)+0.1 -> 2.4 | AI78: =SUM(AI76:AI77) -> 0 | AK78: =SUM(AK76:AK77) -> 0 | AO78: =SUM(AO76:AO77) -> 28285 | AQ78: =ROUND((AI78/AO78)*100,1) -> 0
T80: 7 | V80: DEMAND CHARGE:
T81: 8 | V81: ALL KW | AA81: =H29 -> 36838 | AC81: =INPUT!C119 -> 8.6 | AE81: =ROUND(AA81*AC81,0) -> 316807 | AG81: =ROUND((AE81/$AE$98)*100,1) -> 25.9 | AI81: =L29-AE81 -> 28365 | AK81: =ROUND((AI81/AE81)*100,1) -> 9 | AO81: =AE81+AM81 -> 316807 | AQ81: =ROUND((AI81/AO81)*100,1) -> 9
T82: 9 | V82: TOTAL DEMAND | AA82: =H30 -> 36838 | AE82: =SUM(AE81) -> 316807 | AG82: =ROUND((AE82/$AE$98)*100,1) -> 25.9 | AI82: =SUM(AI81) -> 28365 | AK82: =ROUND((AI82/AE82)*100,1) -> 9 | AO82: =SUM(AO81) -> 316807 | AQ82: =ROUND((AI82/AO82)*100,1) -> 9
T84: 10 | V84: ENERGY CHARGE (3):
T85: 11 | V85: FIRST 300KWH/KW | AA85: =H33 -> 9619598 | AC85: =INPUT!C115 -> 0.057053 | AE85: =ROUND((AA85*AC85),0) -> 548827 | AG85: =ROUND((AE85/$AE$98)*100,1) -> 44.8 | AI85: =L33-AE85 -> 49300 | AK85: =ROUND((AI85/AE85)*100,1) -> 9 | AO85: =AE85+AM85 -> 548827 | AQ85: =ROUND((AI85/AO85)*100,1) -> 9
T86: 12 | V86: ADDITIONAL KWH | AA86: =H34 -> 4226650 | AC86: =INPUT!C116 -> 0.048481 | AE86: =ROUND((AA86*AC86),0) -> 204912 | AG86: =ROUND((AE86/$AE$98)*100,1) -> 16.7 | AI86: =L34-AE86 -> 18572 | AK86: =ROUND((AI86/AE86)*100,1) -> 9.1 | AO86: =AE86+AM86 -> 204912 | AQ86: =ROUND((AI86/AO86)*100,1) -> 9.1
T87: 13 | V87: CAP RATE KWH | AA87: =H35 -> 0 | AC87: =INPUT!C117 -> 0.26202 | AE87: =ROUND((AA87*AC87),0) -> 0 | AG87: =ROUND((AE87/$AE$98)*100,1) -> 0 | AI87: =L35-AE87 -> 0 | AK87: =IF(AE87=0,0,ROUND((AI87/AE87)*100,1)) -> 0 | AO87: =AE87+AM87 -> 0 | AQ87: =IF(AO87=0,0,ROUND((AI87/AO87)*100,1)) -> 0
T88: 14 | V88: TOTAL ENERGY | AA88: =H36 -> 13846248 | AE88: =SUM(AE85:AE87) -> 753739 | AG88: =ROUND((AE88/$AE$98)*100,1) -> 61.5 | AI88: =SUM(AI85:AI87) -> 67872 | AK88: =ROUND((AI88/AE88)*100,1) -> 9 | AO88: =SUM(AO85:AO87) -> 753739 | AQ88: =ROUND((AI88/AO88)*100,1) -> 9
T89: 15 | V89: TOTAL RATE DP EXCLUDING RIDERS | Y89: =Y78 -> 240 | AA89: =AA88 -> 13846248 | AE89: =AE78+AE82+AE88 -> 1098831 | AG89: =ROUND((AE89/$AE$98)*100,1) -> 89.7 | AI89: =AI78+AI82+AI88 -> 96237 | AK89: =ROUND((AI89/AE89)*100,1) -> 8.8 | AO89: =AO78+AO82+AO88 -> 1098831 | AQ89: =ROUND((AI89/AO89)*100,1) -> 8.8
T91: =A39 -> 16 | V91: RIDERS:
T92: 17 | V92: =C40 -> DEMAND SIDE MANAGEMENT RIDER (DSMR) | AC92: =DSM_DIST -> -0.000718 | AE92: =ROUND($AA$89*AC92,0) -> -9942 | AG92: =ROUND((AE92/$AE$98)*100,1)-0.1 -> -0.9 | AI92: =L40-AE92 -> 0 | AK92: =IF(AE92=0,0,ROUND((AI92/AE92)*100,1)) -> 0 | AO92: =AE92+AM92 -> -9942 | AQ92: =IF(AO92=0,0,ROUND((AI92/AO92)*100,1)) -> 0
T93: 18 | V93: =C41 -> ENVIRONMENTAL SURCHARGE MECHANISM RIDER (ESM) | AC93: =CUR_ESM_NonRes -> 0.08798914629 | AE93: =ROUND((AO89-(CUR_BASE_FUEL*AA89)+AO92+AO95)*AC93,0) -> 70623 | AG93: =ROUND((AE93/$AE$98)*100,1) -> 5.8 | AI93: =L41-AE93 -> -3087 | AK93: =IF(AE93=0,0,ROUND((AI93/AE93)*100,1)) -> -4.4 | AO93: =AE93+AM93 -> 70623 | AQ93: =IF(AO93=0,0,ROUND((AI93/AO93)*100,1)) -> -4.4
T94: 19 | V94: =C42 -> FUEL ADJUSTMENT CLAUSE (FAC) | AC94: =CUR_FAC -> 0.005965 | AM94: =ROUND(AA89*CUR_FAC,0) -> 82593 | AO94: 82593 | AQ94: 0
T95: 20 | V95: =C43 -> PROFIT SHARING MECHANISM (PSM) | AC95: =RS_PSM -> 0.004727 | AE95: =ROUND(AA89*RS_PSM,0) -> 65451 | AG95: =ROUND((AE95/$AE$98)*100,1) -> 5.3 | AI95: =L43-AE95 -> 0 | AK95: =IF(AE95=0,0,ROUND((AI95/AE95)*100,1)) -> 0 | AO95: 65451 | AQ95: 0
T96: 21 | V96: TOTAL RIDERS | AE96: =SUM(AE92:AE95) -> 126132 | AG96: =ROUND((AE96/$AE$98)*100,1) -> 10.3 | AI96: =SUM(AI92:AI95) -> -3087 | AK96: =ROUND((AI96/AE96)*100,1) -> -2.4 | AM96: =SUM(AM92:AM95) -> 82593 | AO96: =SUM(AO92:AO95) -> 208725 | AQ96: -1.5
T98: =A46 -> 22 | V98: TOTAL RATE DP INCLUDING RIDERS | Y98: =F46 -> 240 | AA98: =H46 -> 13846248 | AE98: =AE96+AE89 -> 1224963 | AG98: 100 | AI98: =AI96+AI89 -> 93150 | AK98: =ROUND((AI98/AE98)*100,1) -> 7.6 | AM98: =AM96+AM89 -> 82593 | AO98: =AO96+AO89 -> 1307556 | AQ98: =ROUND((AI98/AO98)*100,1) -> 7.1
V100: (1) BILLS THAT TERMINATE IN RESPECTIVE RATE STEPS.
V101: ="(2) REFLECTS FUEL COMPONENT OF "&TEXT(CUR_FAC,"$0.000000;($0.000000)")&" PER KWH." -> (2) REFLECTS FUEL COMPONENT OF $0.005965 PER KWH.
V102: ="(3) REFLECTS FUEL COST RECOVERY INCLUDED IN BASE RATES OF "&TEXT(CUR_BASE_FUEL,"$0.000000;($0.000000)")&" PER KWH." -> (3) REFLECTS FUEL COST RECOVERY INCLUDED IN BASE RATES OF $0.025401 PER KWH.

Sheet Rate TT
A1: =NAME -> DUKE ENERGY KENTUCKY, INC.
A2: =CASE_NO -> CASE NO. 2022-00372 - REHEARING
A3: =TITLE -> ANNUALIZED TEST YEAR REVENUES AT PROPOSED VS. MOST CURRENT RATES
A4: =DATE -> FOR THE TWELVE MONTHS ENDED June 30, 2024
A5: =SERVICE -> (ELECTRIC SERVICE)
A6: =DATA_PERIOD -> DATA: ____ BASE PERIOD __X__FORECASTED PERIOD | R6: SCHEDULE M-2.3
A7: =TYPE -> TYPE OF FILING: ___ ORIGINAL ___UPDATED _X_ REVISED | R7: ="PAGE 9 OF "&TEXT(Page_Num_2.3,"00") -> PAGE 9 OF 24
A8: WORK PAPER REFERENCE NO(S).: | R8: WITNESS:
A9: =TIME -> 12 Months Projected with Riders - STAFF-RHDR-01-005A | R9: =WIT -> B. L. Sailers
A10: =INPUT!B5 -> 
A11: PROPOSED ANNUALIZED
L13: PROPOSED | N13: % OF REV TO | R13: PROPOSED
L14: REVENUE LESS | N14: TOTAL LESS | R14: TOTAL
A15: LINE | C15: RATE | D15: CLASS / | F15: CUSTOMER | J15: PROPOSED | L15: FAC | N15: FAC | P15: FAC | R15: REVENUE
A16: NO. | C16: CODE | D16: DESCRIPTION | F16: BILLS(1) | H16: SALES | J16: RATES | L16: REVENUE | N16: REVENUE | P16: REVENUE (2) | R16: (F + H)
C17: (A) | D17: (B) | F17: (C) | H17: (D) | J17: (E) | L17: (F) | N17: (G) | P17: (H) | R17: (I)
H18: (KW/KWH) | J18: ($/KWH)/ | L18: ($) | N18: (%) | P18: ($) | R18: ($)
A19: 1 | C19: TT | D19: TIME OF DAY | J19: ($/KW)
A20: 2 | C20: SUMMER:
A21: 3 | C21: CUSTOMER CHARGE | F21: 52 | J21: 500 | L21: =ROUND(F21*J21,0) -> 26000 | N21: =ROUND((L21/$L$56)*100,1) -> 0.2 | R21: =L21+P21 -> 26000
A23: 4 | C23: DEMAND CHARGE:
A24: 5 | C24: ON PEAK KW | H24: 140312 | J24: 9.08 | L24: =ROUND(H24*J24,0) -> 1274033 | N24: =ROUND((L24/$L$56)*100,1) -> 8.7 | R24: =L24+P24 -> 1274033
A25: 6 | C25: OFF PEAK KW | H25: 7242 | J25: 1.38 | L25: =ROUND(H25*J25,0) -> 9994 | N25: =ROUND((L25/$L$56)*100,1) -> 0.1 | R25: =L25+P25 -> 9994
A26: 7 | C26: TOTAL DEMAND | H26: =SUM(H24:H25) -> 147554 | L26: =SUM(L24:L25) -> 1284027 | N26: =ROUND((L26/$L$56)*100,1)+0.1 -> 8.9 | R26: =SUM(R24:R25) -> 1284027
A28: 8 | C28: ENERGY CHARGE (3):
A29: 9 | C29: ON PEAK KWH | H29: 22811341 | J29: 0.056864 | L29: =ROUND((H29*J29),0) -> 1297144 | N29: =ROUND((L29/$L$56)*100,1) -> 8.9 | R29: =L29+P29 -> 1297144
A30: 10 | C30: OFF PEAK KWH | H30: 43646828 | J30: 0.046869 | L30: =ROUND((H30*J30),0) -> 2045683 | N30: =ROUND((L30/$L$56)*100,1) -> 14 | R30: =L30+P30 -> 2045683
A31: 11 | C31: TOTAL ENERGY | H31: =SUM(H29:H30) -> 66458169 | L31: =SUM(L29:L30) -> 3342827 | N31: =ROUND((L31/$L$56)*100,1)+0.1 -> 22.9 | R31: =SUM(R29:R30) -> 3342827
A32: 12 | C32: TOTAL SUMMER | F32: =F21 -> 52 | H32: =H31 -> 66458169 | L32: =L21+L26+L31 -> 4652854 | N32: =ROUND((L32/$L$56)*100,1)-0.1 -> 31.7 | R32: =R21+R26+R31 -> 4652854
A34: 13 | C34: WINTER:
A35: 14 | C35: CUSTOMER CHARGE | F35: 104 | J35: =J21 -> 500 | L35: =ROUND(F35*J35,0) -> 52000 | N35: =ROUND((L35/L$56)*100,1) -> 0.4 | R35: =L35+P35 -> 52000
A37: 15 | C37: DEMAND CHARGE:
A38: 16 | C38: ON PEAK KW | H38: 279897 | J38: 7.45 | L38: =ROUND(H38*J38,0) -> 2085233 | N38: =ROUND((L38/$L$56)*100,1) -> 14.2 | R38: =L38+P38 -> 2085233
A39: 17 | C39: OFF PEAK KW | H39: 8289 | J39: 1.38 | L39: =ROUND(H39*J39,0) -> 11439 | N39: =ROUND((L39/$L$56)*100,1) -> 0.1 | R39: =L39+P39 -> 11439
A40: 18 | C40: TOTAL DEMAND | H40: =SUM(H38:H39) -> 288186 | L40: =L38+L39 -> 2096672 | N40: =ROUND((L40/$L$56)*100,1) -> 14.3 | R40: =L40+P40 -> 2096672
A42: 19 | C42: ENERGY CHARGE (3):
A43: 20 | C43: ON PEAK KWH | H43: 43712385 | J43: 0.05436 | L43: =ROUND((H43*J43),0) -> 2376205 | N43: =ROUND((L43/$L$56)*100,1) -> 16.2 | R43: =L43+P43 -> 2376205
A44: 21 | C44: OFF PEAK KWH | H44: 82345256 | J44: 0.046869 | L44: =ROUND((H44*J44),0) -> 3859440 | N44: =ROUND((L44/$L$56)*100,1) -> 26.4 | R44: =L44+P44 -> 3859440
A45: 22 | C45: TOTAL ENERGY | H45: =SUM(H43:H44) -> 126057641 | L45: =SUM(L43:L44) -> 6235645 | N45: =ROUND((L45/$L$56)*100,1) -> 42.6 | R45: =SUM(R43:R44) -> 6235645
A46: 23 | C46: TOTAL WINTER | F46: =F35 -> 104 | H46: =H45 -> 126057641 | L46: =L35+L40+L45 -> 8384317 | N46: =ROUND((L46/$L$56)*100,1) -> 57.3 | R46: =R35+R40+R45 -> 8384317
A47: 24 | C47: TOTAL RATE TT EXCLUDING RIDERS | F47: =F32+F46 -> 156 | H47: =H46+H32 -> 192515810 | L47: =L46+L32 -> 13037171 | N47: =ROUND((L47/L$56)*100,1) -> 89 | R47: =R46+R32 -> 13037171
A49: 25 | C49: RIDERS:
A50: 26 | C50: =DSMR_Name -> DEMAND SIDE MANAGEMENT RIDER (DSMR) | J50: =PRO_DSM_TRANS -> 6.6e-05 | L50: =ROUND($H$47*J50,0) -> 12706 | N50: =ROUND((L50/L$56)*100,1) -> 0.1 | R50: =L50+P50 -> 12706
A51: 27 | C51: =ESM_Name -> ENVIRONMENTAL SURCHARGE MECHANISM RIDER (ESM) | J51: =PRO_ESM_NONRES -> 0.07513471937 | L51: =ROUND((R47-(PRO_BASE_FUEL*H47)+R50+R53)*J51,0) -> 681457 | N51: =ROUND((L51/L$56)*100,1) -> 4.7 | R51: =L51+P51 -> 681457
A52: 28 | C52: =FAC_Name -> FUEL ADJUSTMENT CLAUSE (FAC) | J52: =PRO_FAC -> 0.005965 | P52: =ROUND(H47*PRO_FAC,0) -> 1148357 | R52: =L52+P52 -> 1148357
A53: 29 | C53: =PSM_Name -> PROFIT SHARING MECHANISM (PSM) | J53: =PRO_PSM -> 0.004727 | L53: =ROUND(H47*PRO_PSM,0) -> 910022 | N53: =ROUND((L53/L$56)*100,1) -> 6.2 | R53: 910022
A54: 30 | C54: TOTAL RIDERS | L54: =SUM(L50:L53) -> 1604185 | N54: =ROUND((L54/L$56)*100,1) -> 11 | P54: =SUM(P50:P53) -> 1148357 | R54: =SUM(R50:R53) -> 2752542
A56: 31 | C56: TOTAL RATE TT INCLUDING RIDERS | F56: =F32+F46 -> 156 | H56: =H32+H46 -> 192515810 | L56: =L54+L47 -> 14641356 | N56: 100 | P56: =P54+P47 -> 1148357 | R56: =R54+R47 -> 15789713
C58: (1) BILLS THAT TERMINATE IN RESPECTIVE RATE STEPS.
C59: ="(2) REFLECTS FUEL COMPONENT OF "&TEXT(PRO_FAC,"$0.000000;($0.000000)")&" PER KWH." -> (2) REFLECTS FUEL COMPONENT OF $0.005965 PER KWH.
C60: ="(3) REFLECTS FUEL COST RECOVERY INCLUDED IN BASE RATES OF "&TEXT(PRO_BASE_FUEL,"$0.000000;($0.000000)")&" PER KWH." -> (3) REFLECTS FUEL COST RECOVERY INCLUDED IN BASE RATES OF $0.025401 PER KWH.
T65: =NAME -> DUKE ENERGY KENTUCKY, INC.
T66: =CASE_NO -> CASE NO. 2022-00372 - REHEARING
T67: =TITLE -> ANNUALIZED TEST YEAR REVENUES AT PROPOSED VS. MOST CURRENT RATES
T68: =DATE -> FOR THE TWELVE MONTHS ENDED June 30, 2024
T69: =SERVICE -> (ELECTRIC SERVICE)
T70: =DATA_PERIOD -> DATA: ____ BASE PERIOD __X__FORECASTED PERIOD | AO70: SCHEDULE M-2.2
T71: =TYPE -> TYPE OF FILING: ___ ORIGINAL ___UPDATED _X_ REVISED | AO71: ="PAGE 9 OF "&TEXT(Page_Num_2.2,"00") -> PAGE 9 OF 23
T72: WORK PAPER REFERENCE NO(S).: | AO72: WITNESS:
T73: =TIME -> 12 Months Projected with Riders - STAFF-RHDR-01-005A | AO73: =WIT -> B. L. Sailers
T74: =INPUT!B5 -> 
T75: CURRENT ANNUALIZED
AE77: CURRENT | AG77: % OF REV TO | AI77: REVENUE | AK77: % INCR IN | AO77: CURRENT | AQ77: TOTAL
AC78: MOST | AE78: REVENUE LESS | AG78: TOTAL LESS | AI78: INCR LESS | AK78: REV LESS | AO78: TOTAL | AQ78: REVENUE
T79: LINE | V79: RATE | W79: CLASS / | Y79: CUSTOMER | AC79: CURRENT | AE79: FAC | AG79: FAC | AI79: FAC REV | AK79: FAC REV | AM79: FAC | AO79: REVENUE | AQ79: % INCREASE
T80: NO. | V80: CODE | W80: DESCRIPTION | Y80: BILLS(1) | AA80: SALES | AC80: RATES | AE80: REVENUE | AG80: REVENUE | AI80: (F - K) | AK80: (M / K) | AM80: REVENUE (2) | AO80: (K + H) | AQ80: (M / K1)
V81: (A) | W81: (B) | Y81: (C) | AA81: (D) | AC81: (J) | AE81: (K) | AG81: (L) | AI81: (M) | AK81: (N) | AM81: (H) | AO81: (K1) | AQ81: (O)
AA82: (KW/KWH) | AC82: ($/KWH)/ | AE82: ($) | AG82: (%) | AI82: ($) | AK82: (%) | AM82: ($) | AO82: ($) | AQ82: (%)
T83: =A19 -> 1 | V83: TT | W83: TIME OF DAY | AC83: ($/KW)
T84: =A20 -> 2 | V84: SUMMER:
T85: =A21 -> 3 | V85: CUSTOMER CHARGE | Y85: =F21 -> 52 | AC85: =INPUT!C123 -> 500 | AE85: =ROUND(Y85*AC85,0) -> 26000 | AG85: =ROUND((AE85/AE$120)*100,1) -> 0.2 | AI85: =L21-AE85 -> 0 | AK85: =IF(AE85=0,"0.0 ",ROUND((AI85/AE85)*100,1)) -> 0 | AO85: =AE85+AM85 -> 26000 | AQ85: =IF(AO85=0,"0.0 ",ROUND((AI85/AO85)*100,1)) -> 0
T87: =A23 -> 4 | V87: DEMAND CHARGE:
T88: =A24 -> 5 | V88: ON PEAK KW | AA88: =H24 -> 140312 | AC88: =INPUT!C129 -> 8.51 | AE88: =ROUND(AA88*AC88,0) -> 1194055 | AG88: =ROUND((AE88/AE$120)*100,1) -> 8.6 | AI88: =L24-AE88 -> 79978 | AK88: =IF(AE88=0,"0.0 ",ROUND((AI88/AE88)*100,1)) -> 6.7 | AO88: =AE88+AM88 -> 1194055 | AQ88: =IF(AO88=0,"0.0 ",ROUND((AI88/AO88)*100,1)) -> 6.7
T89: =A25 -> 6 | V89: OFF PEAK KW | AA89: =H25 -> 7242 | AC89: =INPUT!C130 -> 1.29 | AE89: =ROUND(AA89*AC89,0) -> 9342 | AG89: =ROUND((AE89/AE$120)*100,1) -> 0.1 | AI89: =L25-AE89 -> 652 | AK89: =IF(AE89=0,"0.0 ",ROUND((AI89/AE89)*100,1)) -> 7 | AO89: =AE89+AM89 -> 9342 | AQ89: =IF(AO89=0,"0.0 ",ROUND((AI89/AO89)*100,1)) -> 7
T90: =A26 -> 7 | V90: TOTAL DEMAND | AA90: =H26 -> 147554 | AE90: =AE88+AE89 -> 1203397 | AG90: =ROUND((AE90/AE$120)*100,1)+0.1 -> 8.8 | AI90: =SUM(AI88:AI89) -> 80630 | AK90: =IF(AE90=0,"0.0 ",ROUND((AI90/AE90)*100,1)) -> 6.7 | AO90: =AO88+AO89 -> 1203397 | AQ90: =IF(AO90=0,"0.0 ",ROUND((AI90/AO90)*100,1)) -> 6.7
T92: =A28 -> 8 | V92: ENERGY CHARGE (3):
T93: =A29 -> 9 | V93: ON PEAK KWH | AA93: =H29 -> 22811341 | AC93: =CUR_SUM_TT_ON_KWH -> 0.053306 | AE93: =ROUND((AA93*AC93),0) -> 1215981 | AG93: =ROUND((AE93/AE$120)*100,1) -> 8.8 | AI93: =L29-AE93 -> 81163 | AK93: =IF(AE93=0,"0.0 ",ROUND((AI93/AE93)*100,1)) -> 6.7 | AO93: =AE93+AM93 -> 1215981 | AQ93: =IF(AO93=0,"0.0 ",ROUND((AI93/AO93)*100,1)) -> 6.7
T94: =A30 -> 10 | V94: OFF PEAK KWH | AA94: =H30 -> 43646828 | AC94: =CUR_TT_OFF -> 0.043936 | AE94: =ROUND((AA94*AC94),0) -> 1917667 | AG94: =ROUND((AE94/AE$120)*100,1) -> 13.8 | AI94: =L30-AE94 -> 128016 | AK94: =IF(AE94=0,"0.0 ",ROUND((AI94/AE94)*100,1)) -> 6.7 | AO94: =AE94+AM94 -> 1917667 | AQ94: =IF(AO94=0,"0.0 ",ROUND((AI94/AO94)*100,1)) -> 6.7
T95: =A31 -> 11 | V95: TOTAL ENERGY | AA95: =H31 -> 66458169 | AE95: =AE93+AE94 -> 3133648 | AG95: =ROUND((AE95/AE$120)*100,1) -> 22.6 | AI95: =SUM(AI93:AI94) -> 209179 | AK95: =IF(AE95=0,"0.0 ",ROUND((AI95/AE95)*100,1)) -> 6.7 | AO95: =AO93+AO94 -> 3133648 | AQ95: =IF(AO95=0,"0.0 ",ROUND((AI95/AO95)*100,1)) -> 6.7
T96: =A32 -> 12 | V96: TOTAL SUMMER | Y96: =F32 -> 52 | AA96: =H32 -> 66458169 | AE96: =AE85+AE90+AE95 -> 4363045 | AG96: =ROUND((AE96/AE$120)*100,1) -> 31.4 | AI96: =AI85+AI90+AI95 -> 289809 | AK96: =IF(AE96=0,"0.0 ",ROUND((AI96/AE96)*100,1)) -> 6.6 | AO96: =AO85+AO90+AO95 -> 4363045 | AQ96: =IF(AO96=0,"0.0 ",ROUND((AI96/AO96)*100,1)) -> 6.6
T98: =A34 -> 13 | V98: WINTER:
T99: =A35 -> 14 | V99: CUSTOMER CHARGE | Y99: =F35 -> 104 | AC99: =AC85 -> 500 | AE99: =ROUND(Y99*AC99,0) -> 52000 | AG99: =ROUND((AE99/AE$120)*100,1) -> 0.4 | AI99: =L35-AE99 -> 0 | AK99: =IF(AE99=0,"0.0 ",ROUND((AI99/AE99)*100,1)) -> 0 | AO99: =AE99+AM99 -> 52000 | AQ99: =IF(AO99=0,"0.0 ",ROUND((AI99/AO99)*100,1)) -> 0
T101: =A37 -> 15 | V101: DEMAND CHARGE:
T102: =A38 -> 16 | V102: ON PEAK KW | AA102: =H38 -> 279897 | AC102: =INPUT!C131 -> 6.98 | AE102: =ROUND(AA102*AC102,0) -> 1953681 | AG102: =ROUND((AE102/AE$120)*100,1) -> 14.1 | AI102: =L38-AE102 -> 131552 | AK102: =IF(AE102=0,"0.0 ",ROUND((AI102/AE102)*100,1)) -> 6.7 | AO102: =AE102+AM102 -> 1953681 | AQ102: =IF(AO102=0,"0.0 ",ROUND((AI102/AO102)*100,1)) -> 6.7
T103: =A39 -> 17 | V103: OFF PEAK KW | AA103: =H39 -> 8289 | AC103: =INPUT!C132 -> 1.29 | AE103: =ROUND(AA103*AC103,0) -> 10693 | AG103: =ROUND((AE103/AE$120)*100,1) -> 0.1 | AI103: =L39-AE103 -> 746 | AK103: =IF(AE103=0,"0.0 ",ROUND((AI103/AE103)*100,1)) -> 7 | AO103: =AE103+AM103 -> 10693 | AQ103: =IF(AO103=0,"0.0 ",ROUND((AI103/AO103)*100,1)) -> 7
T104: =A40 -> 18 | V104: TOTAL DEMAND | AA104: =H40 -> 288186 | AE104: =AE102+AE103 -> 1964374 | AG104: =ROUND((AE104/AE$120)*100,1) -> 14.2 | AI104: =SUM(AI102:AI103) -> 132298 | AK104: =IF(AE104=0,"0.0 ",ROUND((AI104/AE104)*100,1)) -> 6.7 | AO104: =AO102+AO103 -> 1964374 | AQ104: =IF(AO104=0,"0.0 ",ROUND((AI104/AO104)*100,1)) -> 6.7
T106: =A42 -> 19 | V106: ENERGY CHARGE (3):
T107: 20 | V107: ON PEAK KWH | AA107: =H43 -> 43712385 | AC107: =CUR_WIN_TT_ON_KWH -> 0.050959 | AE107: =ROUND((AA107*AC107),0) -> 2227539 | AG107: =ROUND((AE107/AE$120)*100,1) -> 16.1 | AI107: =L43-AE107 -> 148666 | AK107: =IF(AE107=0,"0.0 ",ROUND((AI107/AE107)*100,1)) -> 6.7 | AO107: =AE107+AM107 -> 2227539 | AQ107: =IF(AO107=0,"0.0 ",ROUND((AI107/AO107)*100,1)) -> 6.7
T108: 21 | V108: OFF PEAK KWH | AA108: =H44 -> 82345256 | AC108: =CUR_TT_OFF -> 0.043936 | AE108: =ROUND((AA108*AC108),0) -> 3617921 | AG108: =ROUND((AE108/AE$120)*100,1)-0.1 -> 26 | AI108: =L44-AE108 -> 241519 | AK108: =IF(AE108=0,"0.0 ",ROUND((AI108/AE108)*100,1)) -> 6.7 | AO108: =AE108+AM108 -> 3617921 | AQ108: =IF(AO108=0,"0.0 ",ROUND((AI108/AO108)*100,1)) -> 6.7
T109: 22 | V109: TOTAL ENERGY | AA109: =H45 -> 126057641 | AE109: =AE107+AE108 -> 5845460 | AG109: =ROUND((AE109/AE$120)*100,1) -> 42.1 | AI109: =SUM(AI107:AI108) -> 390185 | AK109: =IF(AE109=0,"0.0 ",ROUND((AI109/AE109)*100,1)) -> 6.7 | AO109: =AO107+AO108 -> 5845460 | AQ109: =IF(AO109=0,"0.0 ",ROUND((AI109/AO109)*100,1)) -> 6.7
T110: 23 | V110: TOTAL WINTER | Y110: =F46 -> 104 | AA110: =H46 -> 126057641 | AE110: =AE99+AE104+AE109 -> 7861834 | AG110: =ROUND((AE110/AE$120)*100,1) -> 56.7 | AI110: =AI99+AI104+AI109 -> 522483 | AK110: =IF(AE110=0,"0.0 ",ROUND((AI110/AE110)*100,1)) -> 6.6 | AO110: =AO99+AO104+AO109 -> 7861834 | AQ110: =IF(AO110=0,"0.0 ",ROUND((AI110/AO110)*100,1)) -> 6.6
T111: 24 | V111: TOTAL RATE TT EXCLUDING RIDERS | Y111: =Y96+Y110 -> 156 | AA111: =AA96+AA110 -> 192515810 | AE111: =AE96+AE110 -> 12224879 | AG111: =ROUND((AE111/AE$120)*100,1) -> 88.1 | AI111: =AI110+AI96 -> 812292 | AK111: =IF(AE111=0,"0.0 ",ROUND((AI111/AE111)*100,1)) -> 6.6 | AO111: =AO110+AO96 -> 12224879 | AQ111: =IF(AO111=0,"0.0 ",ROUND((AI111/AO111)*100,1)) -> 6.6
T113: =A49 -> 25 | V113: RIDERS:
T114: 26 | V114: =C50 -> DEMAND SIDE MANAGEMENT RIDER (DSMR) | AC114: =DSM_TRANS -> 6.6e-05 | AE114: =ROUND($AA$111*AC114,0) -> 12706 | AG114: =ROUND((AE114/AE$120)*100,1) -> 0.1 | AI114: =L50-AE114 -> 0 | AK114: =IF(AE114=0,"0.0 ",ROUND((AI114/AE114)*100,1)) -> 0 | AO114: =AE114+AM114 -> 12706 | AQ114: =IF(AO114=0,"0.0 ",ROUND((AI114/AO114)*100,1)) -> 0
T115: 27 | V115: =C51 -> ENVIRONMENTAL SURCHARGE MECHANISM RIDER (ESM) | AC115: =CUR_ESM_NonRes -> 0.08798914629 | AE115: =ROUND((AO111-(CUR_BASE_FUEL*AA111)+AO114+AO117)*AC115,0) -> 726572 | AG115: =ROUND((AE115/AE$120)*100,1) -> 5.2 | AI115: =L51-AE115 -> -45115 | AK115: =IF(AE115=0,"0.0 ",ROUND((AI115/AE115)*100,1)) -> -6.2 | AO115: =AE115+AM115 -> 726572 | AQ115: =IF(AO115=0,"0.0 ",ROUND((AI115/AO115)*100,1)) -> -6.2
T116: 28 | V116: =C52 -> FUEL ADJUSTMENT CLAUSE (FAC) | AC116: =CUR_FAC -> 0.005965 | AM116: =ROUND(AA111*CUR_FAC,0) -> 1148357 | AO116: 1148357 | AQ116: =IF(AO116=0,"0.0 ",ROUND(((R52-AO116)/AO116)*100,1)) -> 0
T117: 29 | V117: =C53 -> PROFIT SHARING MECHANISM (PSM) | AC117: =RS_PSM -> 0.004727 | AE117: =ROUND(AA111*RS_PSM,0) -> 910022 | AG117: =ROUND((AE117/AE$120)*100,1) -> 6.6 | AI117: =L53-AE117 -> 0 | AK117: 0 | AO117: 910022 | AQ117: 0
T118: 30 | V118: TOTAL RIDERS | AE118: =SUM(AE114:AE117) -> 1649300 | AG118: =ROUND((AE118/AE$120)*100,1) -> 11.9 | AI118: =SUM(AI114:AI117) -> -45115 | AK118: -2.7 | AM118: =SUM(AM114:AM117) -> 1148357 | AO118: =SUM(AO114:AO117) -> 2797657 | AQ118: -1.6
T120: =A56 -> 31 | V120: TOTAL RATE TT INCLUDING RIDERS | Y120: =Y111 -> 156 | AA120: =AA111 -> 192515810 | AE120: =AE111+AE118 -> 13874179 | AG120: 100 | AI120: =AI111+AI118 -> 767177 | AK120: =IF(AE120=0,"0.0 ",ROUND((AI120/AE120)*100,1)) -> 5.5 | AM120: =AM111+AM118 -> 1148357 | AO120: =AO111+AO118 -> 15022536 | AQ120: =IF(AO120=0,"0.0 ",ROUND((AI120/AO120)*100,1)) -> 5.1
V122: (1) BILLS THAT TERMINATE IN RESPECTIVE RATE STEPS.
V123: ="(2) REFLECTS FUEL COMPONENT OF "&TEXT(CUR_FAC,"$0.000000;($0.000000)")&" PER KWH." -> (2) REFLECTS FUEL COMPONENT OF $0.005965 PER KWH.
V124: ="(3) REFLECTS FUEL COST RECOVERY INCLUDED IN BASE RATES OF "&TEXT(CUR_BASE_FUEL,"$0.000000;($0.000000)")&" PER KWH." -> (3) REFLECTS FUEL COST RECOVERY INCLUDED IN BASE RATES OF $0.025401 PER KWH.

Sheet Rate DT RTP-P
A1: =NAME -> DUKE ENERGY KENTUCKY, INC.
A2: =CASE_NO -> CASE NO. 2022-00372 - REHEARING
A3: =TITLE -> ANNUALIZED TEST YEAR REVENUES AT PROPOSED VS. MOST CURRENT RATES
A4: =DATE -> FOR THE TWELVE MONTHS ENDED June 30, 2024
A5: =SERVICE -> (ELECTRIC SERVICE)
A6: =DATA_PERIOD -> DATA: ____ BASE PERIOD __X__FORECASTED PERIOD | R6: SCHEDULE M-2.3
A7: =TYPE -> TYPE OF FILING: ___ ORIGINAL ___UPDATED _X_ REVISED | R7: PAGE xx OF 20
A8: WORK PAPER REFERENCE NO(S).: | R8: WITNESS:
A9: =TIME -> 12 Months Projected with Riders - STAFF-RHDR-01-005A | R9: =WIT -> B. L. Sailers
A10: =INPUT!B5 -> 
A11: PROPOSED ANNUALIZED
L13: PROPOSED | N13: % OF REV TO | R13: PROPOSED
L14: REVENUE LESS | N14: TOTAL LESS | R14: TOTAL
A15: LINE | C15: RATE | D15: CLASS / | F15: CUSTOMER | J15: PROPOSED | L15: FAC | N15: FAC | P15: FAC | R15: REVENUE
A16: NO. | C16: CODE | D16: DESCRIPTION | F16: BILLS(1) | H16: SALES | J16: RATES | L16: REVENUE | N16: REVENUE | P16: REVENUE (2) | R16: (F + H)
C17: (A) | D17: (B) | F17: (C) | H17: (D) | J17: (E) | L17: (F) | N17: (G) | P17: (H) | R17: (I)
H19: (KWH) | J19: ($/KWH) | L19: ($) | N19: (%) | P19: ($) | R19: ($)
A20: 1 | C20: DT RTP | D20: TIME OF DAY SERVICE AT PRIMARY
A21: 2 | D21: DISTRIBUTION VOLTAGE
A23: 3 | C23: CUSTOMER CHARGE:
A24: 4 | C24: BILLS (Real-Time Pricing) | F24: 0 | J24: =INPUT!D154 -> 183 | L24: =ROUND(+F24*J24,0) -> 0 | N24: 0 | R24: =L24+P24 -> 0
A25: 5 | C25: TOTAL CUSTOMER CHARGE | L25: =SUM(L24:L24) -> 0 | N25: 0 | R25: =SUM(R24:R24) -> 0
A27: 6 | C27: ENERGY CHARGE (3):
A28: 7 | C28: ALL KWH | H28: 0 | J28: 0.020898 | L28: =ROUND((H28*J28),0) -> 0 | N28: 0 | R28: =L28+P28 -> 0
A29: 8 | C29: COMMODITY CHARGES | H29: =H28 -> 0 | J29: =INPUT!D161 -> 0.064166 | L29: =ROUND((H29*J29),0) -> 0 | N29: 0 | P29: =ROUND(-H29*(CUR_FAC+CUR_BASE_FUEL),0) -> 0 | R29: =L29+P29 -> 0
A30: 9 | C30: TOTAL ENERGY | H30: =H28 -> 0 | L30: =SUM(L28:L29) -> 0 | N30: 0 | P30: =P29 -> 0 | R30: =SUM(R28:R29) -> 0
A31: 10 | C31: TOTAL RATE DT RTP PRIMARY EXCLUDING RIDERS | F31: =F24 -> 0 | H31: =H30 -> 0 | L31: =L30+L25 -> 0 | N31: 0 | P31: =P30 -> 0 | R31: =R25+R30 -> 0
A33: 11 | C33: RIDERS:
A34: 12 | C34: DEMAND SIDE MANAGEMENT RIDER (DSMR) | J34: =PRO_DSM_DIST -> -0.000718 | L34: =ROUND(H31*PRO_DSM_DIST,0) -> 0 | N34: 0 | R34: =L34+P34 -> 0
A35: 13 | C35: PROFIT SHARING MECHANISM (PSM) | J35: =PRO_PSM -> 0.004727 | L35: =ROUND(H31*PRO_PSM,0) -> 0 | N35: 0 | R35: 0
A36: 14 | C36: TOTAL RIDERS | L36: =SUM(L34:L35) -> 0 | N36: 0 | P36: =SUM(P34:P35) -> 0 | R36: =SUM(R34:R35) -> 0
A38: 15 | C38: TOTAL RATE DT RTP PRIMARY INCLUDING RIDERS | F38: =F31 -> 0 | H38: =H31 -> 0 | L38: =L36+L31 -> 0 | N38: 100 | P38: =P36+P31 -> 0 | R38: =R36+R31 -> 0
C40: (1) BILLS THAT TERMINATE IN RESPECTIVE RATE STEPS.
F41: 0 | H41: 0
T45: =NAME -> DUKE ENERGY KENTUCKY, INC.
T46: =CASE_NO -> CASE NO. 2022-00372 - REHEARING
T47: =TITLE -> ANNUALIZED TEST YEAR REVENUES AT PROPOSED VS. MOST CURRENT RATES
T48: =DATE -> FOR THE TWELVE MONTHS ENDED June 30, 2024
T49: =SERVICE -> (ELECTRIC SERVICE)
T50: =DATA_PERIOD -> DATA: ____ BASE PERIOD __X__FORECASTED PERIOD | AO50: SCHEDULE M-2.2
T51: =TYPE -> TYPE OF FILING: ___ ORIGINAL ___UPDATED _X_ REVISED | AO51: =R7 -> PAGE xx OF 20
T52: WORK PAPER REFERENCE NO(S).: | AO52: WITNESS:
T53: =TIME -> 12 Months Projected with Riders - STAFF-RHDR-01-005A | AO53: =WIT -> B. L. Sailers
T54: =INPUT!B5 -> 
T55: CURRENT ANNUALIZED
AE57: CURRENT | AG57: % OF REV TO | AI57: REVENUE | AK57: % INCR IN | AO57: CURRENT | AQ57: TOTAL
AC58: MOST | AE58: REVENUE LESS | AG58: TOTAL LESS | AI58: INCR LESS | AK58: REV LESS | AO58: TOTAL | AQ58: REVENUE
T59: LINE | V59: RATE | W59: CLASS / | Y59: CUSTOMER | AC59: CURRENT | AE59: FAC | AG59: FAC | AI59: FAC REV | AK59: FAC REV | AM59: FAC | AO59: REVENUE | AQ59: % INCREASE
T60: NO. | V60: CODE | W60: DESCRIPTION | Y60: BILLS(1) | AA60: SALES | AC60: RATES | AE60: REVENUE | AG60: REVENUE | AI60: (F - K) | AK60: (M / K) | AM60: REVENUE | AO60: (K + H) | AQ60: (M / K1)
V61: (A) | W61: (B) | Y61: (C) | AA61: (D) | AC61: (J) | AE61: (K) | AG61: (L) | AI61: (M) | AK61: (N) | AM61: (H) | AO61: (K1) | AQ61: (O)
AA63: (KWH) | AC63: ($/KWH) | AE63: ($) | AG63: (%) | AI63: ($) | AK63: (%) | AM63: ($) | AO63: ($) | AQ63: (%)
T64: =A20 -> 1 | V64: DT RTP | W64: TIME OF DAY SERVICE AT PRIMARY
T65: 2 | W65: DISTRIBUTION VOLTAGE
T67: 3 | V67: CUSTOMER CHARGE:
T68: 4 | V68: BILLS (Real-Time Pricing) | Y68: =F24 -> 0 | AC68: =INPUT!C154 -> 183 | AE68: =ROUND(+Y68*AC68,0) -> 0 | AG68: 0 | AI68: =L24-AE68 -> 0 | AK68: =IF(AE68=0,0,ROUND((AI68/AE68)*100,1)) -> 0 | AO68: =AE68+AM68 -> 0 | AQ68: 0
T69: 5 | V69: TOTAL CUSTOMER CHARGE | AE69: =SUM(AE68:AE68) -> 0 | AG69: 0 | AI69: =SUM(AI68:AI68) -> 0 | AK69: =IF(AE69=0,0,ROUND((AI69/AE69)*100,1)) -> 0 | AO69: =SUM(AO68:AO68) -> 0 | AQ69: 0
T71: 6 | V71: ENERGY CHARGE:
T72: 7 | V72: ALL KWH | AA72: =H28 -> 0 | AC72: =INPUT!C157 -> 0.014956 | AE72: =ROUND((+AA72*AC72),0) -> 0 | AG72: 0 | AI72: =L28-AE72 -> 0 | AK72: =IF(AE72=0,0,ROUND((AI72/AE72)*100,1)) -> 0 | AO72: =AE72+AM72 -> 0 | AQ72: 0
T73: 8 | V73: COMMODITY CHARGES | AA73: =H29 -> 0 | AC73: =INPUT!C161 -> 0.064166 | AE73: =ROUND((+AA73*AC73),0) -> 0 | AG73: 0 | AI73: =L29-AE73 -> 0 | AK73: =IF(AE73=0,0,ROUND((AI73/AE73)*100,1)) -> 0 | AM73: =ROUND(-AA73*(CUR_FAC+CUR_BASE_FUEL),0) -> 0 | AO73: =AE73+AM73 -> 0 | AQ73: 0
T74: 9 | V74: TOTAL ENERGY | AA74: =H30 -> 0 | AE74: =SUM(AE72:AE73) -> 0 | AG74: 0 | AI74: =SUM(AI72:AI73) -> 0 | AK74: =IF(AE74=0,0,ROUND((AI74/AE74)*100,1)) -> 0 | AM74: =AM73 -> 0 | AO74: =SUM(AO72:AO73) -> 0 | AQ74: 0
T75: 10 | V75: TOTAL RATE DT RTP PRIMARY EXCLUDING RIDERS | Y75: =Y68 -> 0 | AA75: =AA74 -> 0 | AE75: =AE69+AE74 -> 0 | AG75: 0 | AI75: =AI69+AI74 -> 0 | AK75: =IF(AE75=0,0,ROUND((AI75/AE75)*100,1)) -> 0 | AM75: =AM74+AM69 -> 0 | AO75: =AO74+AO69 -> 0 | AQ75: 0
T77: 11 | V77: RIDERS:
T78: 12 | V78: DEMAND SIDE MANAGEMENT RIDER (DSMR) | AC78: =DSM_DIST -> -0.000718 | AE78: =ROUND(AA75*DSM_DIST,0) -> 0 | AG78: 0 | AI78: =L34-AE78 -> 0 | AK78: =IF(AE78=0,0,ROUND((AI78/AE78)*100,1)) -> 0 | AO78: =AE78+AM78 -> 0 | AQ78: 0
T79: 13 | V79: PROFIT SHARING MECHANISM (PSM) | AC79: =RS_PSM -> 0.004727 | AE79: =ROUND(AA75*RS_PSM,0) -> 0 | AG79: 0 | AI79: =L35-AE79 -> 0 | AK79: 0 | AO79: 0 | AQ79: 0
T80: 14 | V80: TOTAL RIDERS | AE80: =SUM(AE78:AE79) -> 0 | AG80: 0 | AI80: =SUM(AI78:AI79) -> 0 | AK80: 0 | AO80: =SUM(AO78:AO79) -> 0 | AQ80: 0
T82: =A38 -> 15 | V82: TOTAL RATE DT RTP PRIMARY INCLUDING RIDERS | Y82: =F38 -> 0 | AA82: =H38 -> 0 | AE82: =AE80+AE75 -> 0 | AG82: 100 | AI82: =AI80+AI75 -> 0 | AK82: =IF(AE82=0,0,ROUND((AI82/AE82)*100,1)) -> 0 | AM82: =AM80+AM75 -> 0 | AO82: =AO69+AO74 -> 0 | AQ82: 0
V84: (1) BILLS THAT TERMINATE IN RESPECTIVE RATE STEPS.

Sheet Rate DT RTP-S
A1: =NAME -> DUKE ENERGY KENTUCKY, INC.
A2: =CASE_NO -> CASE NO. 2022-00372 - REHEARING
A3: =TITLE -> ANNUALIZED TEST YEAR REVENUES AT PROPOSED VS. MOST CURRENT RATES
A4: =DATE -> FOR THE TWELVE MONTHS ENDED June 30, 2024
A5: =SERVICE -> (ELECTRIC SERVICE)
A6: =DATA_PERIOD -> DATA: ____ BASE PERIOD __X__FORECASTED PERIOD | R6: SCHEDULE M-2.3
A7: =TYPE -> TYPE OF FILING: ___ ORIGINAL ___UPDATED _X_ REVISED | R7: ="PAGE 10 OF "&TEXT(Page_Num_2.3,"00") -> PAGE 10 OF 24
A8: WORK PAPER REFERENCE NO(S).: | R8: WITNESS:
A9: =TIME -> 12 Months Projected with Riders - STAFF-RHDR-01-005A | R9: =WIT -> B. L. Sailers
A10: =INPUT!B5 -> 
A11: PROPOSED ANNUALIZED
L13: PROPOSED | N13: % OF REV TO | R13: PROPOSED
L14: REVENUE LESS | N14: TOTAL LESS | R14: TOTAL
A15: LINE | C15: RATE | D15: CLASS / | F15: CUSTOMER | J15: PROPOSED | L15: FAC | N15: FAC | P15: FAC | R15: REVENUE
A16: NO. | C16: CODE | D16: DESCRIPTION | F16: BILLS(1) | H16: SALES | J16: RATES | L16: REVENUE | N16: REVENUE | P16: REVENUE (2) | R16: (F + H)
C17: (A) | D17: (B) | F17: (C) | H17: (D) | J17: (E) | L17: (F) | N17: (G) | P17: (H) | R17: (I)
H19: (KWH) | J19: ($/KWH) | L19: ($) | N19: (%) | P19: ($) | R19: ($)
A20: 1 | C20: DT RTP | D20: TIME OF DAY SERVICE AT SECONDARY
A21: 2 | D21: DISTRIBUTION VOLTAGE
A23: 3 | C23: CUSTOMER CHARGE:
A24: 4 | C24: BILLS (Real-Time Pricing) | F24: 12 | J24: =INPUT!D154 -> 183 | L24: =ROUND(F24*J24,0) -> 2196 | N24: =ROUND((L24/$L$39)*100,1) -> 0.6 | R24: =L24+P24 -> 2196
A25: 5 | C25: TOTAL CUSTOMER CHARGE | L25: =SUM(L24) -> 2196 | N25: =ROUND((L25/$L$39)*100,1) -> 0.6 | R25: =SUM(R24) -> 2196
A27: 6 | C27: ENERGY CHARGE:
A28: 7 | C28: ALL KWH | H28: 3987977 | J28: 0.024809 | L28: =ROUND((H28*J28),0) -> 98938 | N28: =ROUND((L28/$L$39)*100,1) -> 25.1 | R28: =L28+P28 -> 98938
A29: 8 | C29: COMMODITY CHARGES | H29: =H28 -> 3987977 | J29: =INPUT!D161 -> 0.064166 | L29: =ROUND((H29*J29),0) -> 255893 | N29: =ROUND((L29/$L$39)*100,1) -> 65 | P29: 0 | R29: =L29+P29 -> 255893
A30: 9 | C30: TOTAL ENERGY | H30: =H28 -> 3987977 | L30: =SUM(L28:L29) -> 354831 | N30: =ROUND((L30/$L$39)*100,1) -> 90.2 | P30: =P29 -> 0 | R30: =SUM(R28:R29) -> 354831
A31: 10 | C31: TOTAL RATE DT RTP SECONDARY EXCLUDING RIDERS | F31: =F24 -> 12 | H31: =H30 -> 3987977 | L31: =L30+L25 -> 357027 | N31: =ROUND((L31/$L$39)*100,1) -> 90.7 | P31: =P30+P25 -> 0 | R31: =R30+R25 -> 357027
A33: 11 | C33: RIDERS:
A34: 12 | C34: =DSMR_Name -> DEMAND SIDE MANAGEMENT RIDER (DSMR) | J34: =PRO_DSM_DIST -> -0.000718 | L34: =ROUND(H31*PRO_DSM_DIST,0) -> -2863 | M34: =ROUND((K34/$L$39)*100,1) -> 0 | N34: =ROUND((L34/$L$39)*100,1) -> -0.7 | Q34: =K34+O34 -> 0 | R34: =L34+P34 -> -2863
A35: 13 | C35: =ESM_Name -> ENVIRONMENTAL SURCHARGE MECHANISM RIDER (ESM) | J35: =PRO_ESM_NONRES -> 0.07513471937 | L35: =ROUND((R31-(PRO_BASE_FUEL*H31)+R34+R36)*J35,0) -> 20415 | N35: =ROUND((L35/$L$39)*100,1) -> 5.2 | R35: 20415
A36: 14 | C36: =PSM_Name -> PROFIT SHARING MECHANISM (PSM) | J36: =PRO_PSM -> 0.004727 | L36: =ROUND(H31*PRO_PSM,0) -> 18851 | N36: =ROUND((L36/$L$39)*100,1) -> 4.8 | R36: 18851
A37: 15 | C37: TOTAL RIDERS | L37: =SUM(L34:L36) -> 36403 | N37: =ROUND((L37/$L$39)*100,1) -> 9.3 | P37: =SUM(P34:P36) -> 0 | R37: =SUM(R34:R36) -> 36403
A39: 16 | C39: TOTAL RATE DT RTP SECONDARY INCLUDING RIDERS | F39: =F31 -> 12 | H39: =H31 -> 3987977 | L39: =L37+L31 -> 393430 | N39: 100 | P39: =P37+P31 -> 0 | R39: =R37+R31 -> 393430
C41: (1) BILLS THAT TERMINATE IN RESPECTIVE RATE STEPS.
T45: =NAME -> DUKE ENERGY KENTUCKY, INC.
T46: =CASE_NO -> CASE NO. 2022-00372 - REHEARING
T47: =TITLE -> ANNUALIZED TEST YEAR REVENUES AT PROPOSED VS. MOST CURRENT RATES
T48: =DATE -> FOR THE TWELVE MONTHS ENDED June 30, 2024
T49: =SERVICE -> (ELECTRIC SERVICE)
T50: =DATA_PERIOD -> DATA: ____ BASE PERIOD __X__FORECASTED PERIOD | AO50: SCHEDULE M-2.2
T51: =TYPE -> TYPE OF FILING: ___ ORIGINAL ___UPDATED _X_ REVISED | AO51: ="PAGE 10 OF "&TEXT(Page_Num_2.2,"00") -> PAGE 10 OF 23
T52: WORK PAPER REFERENCE NO(S).: | AO52: WITNESS:
T53: =TIME -> 12 Months Projected with Riders - STAFF-RHDR-01-005A | AO53: =WIT -> B. L. Sailers
T54: =INPUT!B5 -> 
T55: CURRENT ANNUALIZED
AE57: CURRENT | AG57: % OF REV TO | AI57: REVENUE | AK57: % INCR IN | AO57: CURRENT | AQ57: TOTAL
AC58: MOST | AE58: REVENUE LESS | AG58: TOTAL LESS | AI58: INCR LESS | AK58: REV LESS | AO58: TOTAL | AQ58: REVENUE
T59: LINE | V59: RATE | W59: CLASS / | Y59: CUSTOMER | AC59: CURRENT | AE59: FAC | AG59: FAC | AI59: FAC REV | AK59: FAC REV | AM59: FAC | AO59: REVENUE | AQ59: % INCREASE
T60: NO. | V60: CODE | W60: DESCRIPTION | Y60: BILLS(1) | AA60: SALES | AC60: RATES | AE60: REVENUE | AG60: REVENUE | AI60: (F - K) | AK60: (M / K) | AM60: REVENUE | AO60: (K + H) | AQ60: (M / K1)
V61: (A) | W61: (B) | Y61: (C) | AA61: (D) | AC61: (J) | AE61: (K) | AG61: (L) | AI61: (M) | AK61: (N) | AM61: (H) | AO61: (K1) | AQ61: (O)
AA63: (KWH) | AC63: ($/KWH) | AE63: ($) | AG63: (%) | AI63: ($) | AK63: (%) | AM63: ($) | AO63: ($) | AQ63: (%)
T64: =A20 -> 1 | V64: DT RTP | W64: TIME OF DAY SERVICE AT SECONDARY
T65: 2 | W65: DISTRIBUTION VOLTAGE
T67: 3 | V67: CUSTOMER CHARGE:
T68: 4 | V68: BILLS (Real-Time Pricing) | Y68: =F24 -> 12 | AC68: =INPUT!C154 -> 183 | AE68: =ROUND(Y68*AC68,0) -> 2196 | AG68: =ROUND((AE68/$AE$83)*100,1) -> 0.6 | AI68: =L24-AE68 -> 0 | AK68: =ROUND((AI68/AE68)*100,1) -> 0 | AO68: =AE68+AM68 -> 2196 | AQ68: =ROUND((AI68/AO68)*100,1) -> 0
T69: 5 | V69: TOTAL CUSTOMER CHARGE | AE69: =SUM(AE68) -> 2196 | AG69: =ROUND((AE69/$AE$83)*100,1) -> 0.6 | AI69: =SUM(AI68) -> 0 | AK69: =ROUND((AI69/AE69)*100,1) -> 0 | AO69: =SUM(AO68) -> 2196 | AQ69: =ROUND((AI69/AO69)*100,1) -> 0
T71: 6 | V71: ENERGY CHARGE:
T72: 7 | V72: ALL KWH | AA72: =H28 -> 3987977 | AC72: =INPUT!C156 -> 0.018119 | AE72: =ROUND((AA72*AC72),0) -> 72258 | AG72: =ROUND((AE72/$AE$83)*100,1) -> 20.9 | AI72: =L28-AE72 -> 26680 | AK72: =ROUND((AI72/AE72)*100,1) -> 36.9 | AO72: =AE72+AM72 -> 72258 | AQ72: =ROUND((AI72/AO72)*100,1) -> 36.9
T73: 8 | V73: COMMODITY CHARGES | AA73: =H29 -> 3987977 | AC73: =INPUT!C161 -> 0.064166 | AE73: =ROUND((AA73*AC73),0) -> 255893 | AG73: =ROUND((AE73/$AE$83)*100,1) -> 73.8 | AI73: =L29-AE73 -> 0 | AK73: =ROUND((AI73/AE73)*100,1) -> 0 | AM73: 0 | AO73: =AE73+AM73 -> 255893 | AQ73: =ROUND((AI73/AO73)*100,1) -> 0
T74: 9 | V74: TOTAL ENERGY | AA74: =H30 -> 3987977 | AE74: =SUM(AE72:AE73) -> 328151 | AG74: =ROUND((AE74/$AE$83)*100,1) -> 94.7 | AI74: =SUM(AI72:AI73) -> 26680 | AK74: =ROUND((AI74/AE74)*100,1) -> 8.1 | AM74: =AM73 -> 0 | AO74: =SUM(AO72:AO73) -> 328151 | AQ74: =ROUND((AI74/AO74)*100,1) -> 8.1
T75: 10 | V75: TOTAL RATE DT RTP SECONDARY EXCLUDING RIDERS | Y75: =Y68 -> 12 | AA75: =AA74 -> 3987977 | AE75: =AE74+AE69 -> 330347 | AG75: =ROUND((AE75/$AE$83)*100,1) -> 95.3 | AI75: =AI74+AI69 -> 26680 | AK75: =ROUND((AI75/AE75)*100,1) -> 8.1 | AM75: =AM74+AM69 -> 0 | AO75: =AO74+AO69 -> 330347 | AQ75: =ROUND((AI75/AO75)*100,1) -> 8.1
T77: =A33 -> 11 | V77: RIDERS:
T78: =A34 -> 12 | V78: =C34 -> DEMAND SIDE MANAGEMENT RIDER (DSMR) | AC78: =DSM_DIST -> -0.000718 | AE78: =ROUND(AA75*DSM_DIST,0) -> -2863 | AG78: =ROUND((AE78/$AE$83)*100,1) -> -0.8 | AI78: =L34-AE78 -> 0 | AK78: =ROUND((AI78/AE78)*100,1) -> 0 | AO78: =AE78+AM78 -> -2863 | AQ78: =ROUND((AI78/AO78)*100,1) -> 0
T79: =A35 -> 13 | V79: =C35 -> ENVIRONMENTAL SURCHARGE MECHANISM RIDER (ESM) | AC79: =CUR_ESM_NonRes -> 0.08798914629 | AE79: =ROUND(AO69*AC79,0) -> 193 | AG79: =ROUND((AE79/$AE$83)*100,1) -> 0.1 | AI79: =L35-AE79 -> 20222 | AK79: =IF(AE79=0,0,ROUND((AI79/AE79)*100,1)) -> 10477.7 | AO79: =AE79+AM79 -> 193 | AQ79: =IF(AO79=0,0,ROUND((AI79/AO79)*100,1)) -> 10477.7
T80: =A36 -> 14 | V80: =C36 -> PROFIT SHARING MECHANISM (PSM) | AC80: =RS_PSM -> 0.004727 | AE80: =ROUND(AA75*RS_PSM,0) -> 18851 | AG80: =ROUND((AE80/$AE$83)*100,1) -> 5.4 | AI80: =L36-AE80 -> 0 | AK80: 0 | AO80: 18851 | AQ80: 0
T81: =A37 -> 15 | V81: TOTAL RIDERS | AE81: =SUM(AE78:AE80) -> 16181 | AG81: =ROUND((AE81/$AE$83)*100,1) -> 4.7 | AI81: =SUM(AI78:AI80) -> 20222 | AK81: 125 | AM81: =SUM(AM78:AM80) -> 0 | AO81: =SUM(AO78:AO80) -> 16181 | AQ81: 125
T83: =A39 -> 16 | V83: TOTAL RATE DT RTP SECONDARY INCLUDING RIDERS | Y83: =F39 -> 12 | AA83: =H39 -> 3987977 | AE83: =AE81+AE75 -> 346528 | AG83: 100 | AI83: =AI81+AI75 -> 46902 | AK83: =ROUND((AI83/AE83)*100,1) -> 13.5 | AM83: =AM81+AM75 -> 0 | AO83: =AO81+AO75 -> 346528 | AQ83: =ROUND((AI83/AO83)*100,1) -> 13.5
V85: (1) BILLS THAT TERMINATE IN RESPECTIVE RATE STEPS.

Sheet Rate DS RTP
A1: =NAME -> DUKE ENERGY KENTUCKY, INC.
A2: =CASE_NO -> CASE NO. 2022-00372 - REHEARING
A3: =TITLE -> ANNUALIZED TEST YEAR REVENUES AT PROPOSED VS. MOST CURRENT RATES
A4: =DATE -> FOR THE TWELVE MONTHS ENDED June 30, 2024
A5: =SERVICE -> (ELECTRIC SERVICE)
A6: =DATA_PERIOD -> DATA: ____ BASE PERIOD __X__FORECASTED PERIOD | R6: SCHEDULE M-2.3
A7: =TYPE -> TYPE OF FILING: ___ ORIGINAL ___UPDATED _X_ REVISED | R7: ="PAGE 11 OF "&TEXT(Page_Num_2.3,"00") -> PAGE 11 OF 24
A8: WORK PAPER REFERENCE NO(S).: | R8: WITNESS:
A9: =TIME -> 12 Months Projected with Riders - STAFF-RHDR-01-005A | R9: =WIT -> B. L. Sailers
A10: =INPUT!B5 -> 
A11: PROPOSED ANNUALIZED
L13: PROPOSED | N13: % OF REV TO | R13: PROPOSED
L14: REVENUE LESS | N14: TOTAL LESS | R14: TOTAL
A15: LINE | C15: RATE | D15: CLASS / | F15: CUSTOMER | J15: PROPOSED | L15: FAC | N15: FAC | P15: FAC | R15: REVENUE
A16: NO. | C16: CODE | D16: DESCRIPTION | F16: BILLS(1) | H16: SALES | J16: RATES | L16: REVENUE | N16: REVENUE | P16: REVENUE (2) | R16: (F + H)
C17: (A) | D17: (B) | F17: (C) | H17: (D) | J17: (E) | L17: (F) | N17: (G) | P17: (H) | R17: (I)
H19: (KWH) | J19: ($/KWH) | L19: ($) | N19: (%) | P19: ($) | R19: ($)
A20: 1 | C20: DS RTP | D20: SERVICE AT SECONDARY
A21: 2 | D21: DISTRIBUTION VOLTAGE
A23: 3 | C23: CUSTOMER CHARGE:
A24: 4 | C24: BILLS (Real-Time Pricing) | F24: 24 | J24: =INPUT!D154 -> 183 | L24: =ROUND(F24*J24,0) -> 4392 | N24: =ROUND((L24/L$39)*100,1) -> 5.6 | R24: =L24+P24 -> 4392
A25: 5 | C25: TOTAL CUSTOMER CHARGE | L25: =SUM(L24:L24) -> 4392 | N25: =ROUND((L25/L$39)*100,1) -> 5.6 | R25: =SUM(R24:R24) -> 4392
A27: 6 | C27: ENERGY CHARGE:
A28: 7 | C28: ALL KWH | H28: 536037 | J28: 0.024809 | L28: =ROUND((H28*J28),0) -> 13299 | N28: =ROUND((L28/L$39)*100,1) -> 16.9 | R28: =L28+P28 -> 13299
A29: 8 | C29: COMMODITY CHARGES | H29: =H28 -> 536037 | J29: =INPUT!D160 -> 0.101658 | L29: =ROUND((H29*J29),0) -> 54492 | N29: =ROUND((L29/L$39)*100,1) -> 69.1 | P29: 0 | R29: =L29+P29 -> 54492
A30: 9 | C30: TOTAL ENERGY | H30: =H28 -> 536037 | L30: =SUM(L28:L29) -> 67791 | N30: =ROUND((L30/L$39)*100,1) -> 85.9 | P30: =P29 -> 0 | R30: =SUM(R28:R29) -> 67791
A31: 10 | C31: TOTAL RATE DS RTP EXCLUDING RIDERS | F31: =F24 -> 24 | H31: =H30 -> 536037 | L31: =L30+L25 -> 72183 | N31: =ROUND((L31/L$39)*100,1)-0.1 -> 91.4 | P31: =P30+P25 -> 0 | R31: =R30+R25 -> 72183
A33: 11 | C33: RIDERS:
A34: 12 | C34: =DSMR_Name -> DEMAND SIDE MANAGEMENT RIDER (DSMR) | J34: =PRO_DSM_DIST -> -0.000718 | L34: =ROUND($H$31*J34,0) -> -385 | N34: =ROUND((L34/L$39)*100,1) -> -0.5 | R34: =L34+P34 -> -385
A35: 13 | C35: =ESM_Name -> ENVIRONMENTAL SURCHARGE MECHANISM RIDER (ESM) | J35: =PRO_ESM_NONRES -> 0.07513471937 | L35: =ROUND((R31-(PRO_BASE_FUEL*H31)+R34+R36)*J35,0) -> 4562 | N35: =ROUND((L35/L$39)*100,1) -> 5.8 | R35: =L35+P35 -> 4562
A36: 14 | C36: =PSM_Name -> PROFIT SHARING MECHANISM (PSM) | J36: =PRO_PSM -> 0.004727 | L36: =ROUND(H31*PRO_PSM,0) -> 2534 | N36: =ROUND((L36/L$39)*100,1) -> 3.2 | R36: 2534
A37: 15 | C37: TOTAL RIDERS | L37: =SUM(L34:L36) -> 6711 | N37: =ROUND((L37/L$39)*100,1)+0.1 -> 8.6 | P37: =SUM(P34:P36) -> 0 | R37: =SUM(R34:R36) -> 6711
A39: 16 | C39: TOTAL RATE DS RTP INCLUDING RIDERS | F39: =F31 -> 24 | H39: =H31 -> 536037 | L39: =L37+L31 -> 78894 | N39: 100 | P39: =P37+P31 -> 0 | R39: =R37+R31 -> 78894
C41: (1) BILLS THAT TERMINATE IN RESPECTIVE RATE STEPS.
T45: =NAME -> DUKE ENERGY KENTUCKY, INC.
T46: =CASE_NO -> CASE NO. 2022-00372 - REHEARING
T47: =TITLE -> ANNUALIZED TEST YEAR REVENUES AT PROPOSED VS. MOST CURRENT RATES
T48: =DATE -> FOR THE TWELVE MONTHS ENDED June 30, 2024
T49: =SERVICE -> (ELECTRIC SERVICE)
T50: =DATA_PERIOD -> DATA: ____ BASE PERIOD __X__FORECASTED PERIOD | AO50: SCHEDULE M-2.2
T51: =TYPE -> TYPE OF FILING: ___ ORIGINAL ___UPDATED _X_ REVISED | AO51: ="PAGE 11 OF "&TEXT(Page_Num_2.2,"00") -> PAGE 11 OF 23
T52: WORK PAPER REFERENCE NO(S).: | AO52: WITNESS:
T53: =TIME -> 12 Months Projected with Riders - STAFF-RHDR-01-005A | AO53: =WIT -> B. L. Sailers
T54: =INPUT!B5 -> 
T55: CURRENT ANNUALIZED
AE57: CURRENT | AG57: % OF REV TO | AI57: REVENUE | AK57: % INCR IN | AO57: CURRENT | AQ57: TOTAL
AC58: MOST | AE58: REVENUE LESS | AG58: TOTAL LESS | AI58: INCR LESS | AK58: REV LESS | AO58: TOTAL | AQ58: REVENUE
T59: LINE | V59: RATE | W59: CLASS / | Y59: CUSTOMER | AC59: CURRENT | AE59: FAC | AG59: FAC | AI59: FAC REV | AK59: FAC REV | AM59: FAC | AO59: REVENUE | AQ59: % INCREASE
T60: NO. | V60: CODE | W60: DESCRIPTION | Y60: BILLS(1) | AA60: SALES | AC60: RATES | AE60: REVENUE | AG60: REVENUE | AI60: (F - K) | AK60: (M / K) | AM60: REVENUE | AO60: (K + H) | AQ60: (M / K1)
V61: (A) | W61: (B) | Y61: (C) | AA61: (D) | AC61: (J) | AE61: (K) | AG61: (L) | AI61: (M) | AK61: (N) | AM61: (H) | AO61: (K1) | AQ61: (O)
AA63: (KWH) | AC63: ($/KWH) | AE63: ($) | AG63: (%) | AI63: ($) | AK63: (%) | AM63: ($) | AO63: ($) | AQ63: (%)
T64: =A20 -> 1 | V64: DS RTP | W64: SERVICE AT SECONDARY
T65: 2 | W65: DISTRIBUTION VOLTAGE
T67: 3 | V67: CUSTOMER CHARGE:
T68: 4 | V68: BILLS (Real-Time Pricing) | Y68: =F24 -> 24 | AC68: =INPUT!C154 -> 183 | AE68: =ROUND(Y68*AC68,0) -> 4392 | AG68: =ROUND((AE68/AE$83)*100,1) -> 6.2 | AI68: =L24-AE68 -> 0 | AK68: =ROUND((AI68/AE68)*100,1) -> 0 | AO68: =AE68+AM68 -> 4392 | AQ68: =IF(AO68=0,"0.0 ",ROUND((AI68/AO68)*100,1)) -> 0
T69: 5 | V69: TOTAL CUSTOMER CHARGE | AE69: =SUM(AE68:AE68) -> 4392 | AG69: =ROUND((AE69/AE$83)*100,1) -> 6.2 | AI69: =SUM(AI68:AI68) -> 0 | AK69: =ROUND((AI69/AE69)*100,1) -> 0 | AO69: =SUM(AO68:AO68) -> 4392 | AQ69: =IF(AO69=0,"0.0 ",ROUND((AI69/AO69)*100,1)) -> 0
T71: 6 | V71: ENERGY CHARGE:
T72: 7 | V72: ALL KWH | AA72: =H28 -> 536037 | AC72: =INPUT!C156 -> 0.018119 | AE72: =ROUND((AA72*AC72),0) -> 9712 | AG72: =ROUND((AE72/AE$83)*100,1) -> 13.7 | AI72: =L28-AE72 -> 3587 | AK72: =ROUND((AI72/AE72)*100,1) -> 36.9 | AO72: =AE72+AM72 -> 9712 | AQ72: =IF(AO72=0,"0.0 ",ROUND((AI72/AO72)*100,1)) -> 36.9
T73: 8 | V73: COMMODITY CHARGES | AA73: =H29 -> 536037 | AC73: =INPUT!C160 -> 0.101658 | AE73: =ROUND((AA73*AC73),0) -> 54492 | AG73: =ROUND((AE73/AE$83)*100,1) -> 76.6 | AI73: =L29-AE73 -> 0 | AK73: =ROUND((AI73/AE73)*100,1) -> 0 | AM73: 0 | AO73: =AE73+AM73 -> 54492 | AQ73: =IF(AO73=0,"0.0 ",ROUND((AI73/AO73)*100,1)) -> 0
T74: 9 | V74: TOTAL ENERGY | AA74: =H30 -> 536037 | AE74: =SUM(AE72:AE73) -> 64204 | AG74: =ROUND((AE74/AE$83)*100,1) -> 90.3 | AI74: =SUM(AI72:AI73) -> 3587 | AK74: =ROUND((AI74/AE74)*100,1) -> 5.6 | AM74: =AM73 -> 0 | AO74: =SUM(AO72:AO73) -> 64204 | AQ74: =IF(AO74=0,"0.0 ",ROUND((AI74/AO74)*100,1)) -> 5.6
T75: 10 | V75: TOTAL RATE DS RTP EXCLUDING RIDERS | Y75: =Y68 -> 24 | AA75: =AA74 -> 536037 | AE75: =AE74+AE69 -> 68596 | AG75: =ROUND((AE75/AE$83)*100,1) -> 96.4 | AI75: =AI74+AI69 -> 3587 | AK75: =ROUND((AI75/AE75)*100,1) -> 5.2 | AM75: =AM74+AM69 -> 0 | AO75: =AO74+AO69 -> 68596 | AQ75: =IF(AO75=0,"0.0 ",ROUND((AI75/AO75)*100,1)) -> 5.2
T77: =A33 -> 11 | V77: RIDERS:
T78: =A34 -> 12 | V78: =C34 -> DEMAND SIDE MANAGEMENT RIDER (DSMR) | AC78: =DSM_DIST -> -0.000718 | AE78: =ROUND($AA$75*AC78,0) -> -385 | AG78: =ROUND((AE78/AE$83)*100,1) -> -0.5 | AI78: =L34-AE78 -> 0 | AK78: =IF(AE78=0,0,ROUND((AI78/AE78)*100,1)) -> 0 | AO78: =AE78+AM78 -> -385 | AQ78: =IF(AO78=0,"0.0 ",ROUND((AI78/AO78)*100,1)) -> 0
T79: =A35 -> 13 | V79: =C35 -> ENVIRONMENTAL SURCHARGE MECHANISM RIDER (ESM) | AC79: =CUR_ESM_NonRes -> 0.08798914629 | AE79: =ROUND(AO69*AC79,0) -> 386 | AG79: =ROUND((AE79/AE$83)*100,1) -> 0.5 | AI79: =L35-AE79 -> 4176 | AK79: =IF(AE79=0,0,ROUND((AI79/AE79)*100,1)) -> 1081.9 | AO79: =AE79+AM79 -> 386 | AQ79: 1081.9
T80: =A36 -> 14 | V80: =C36 -> PROFIT SHARING MECHANISM (PSM) | AC80: =RS_PSM -> 0.004727 | AE80: =ROUND(AA75*RS_PSM,0) -> 2534 | AG80: =ROUND((AE80/AE$83)*100,1) -> 3.6 | AI80: =L36-AE80 -> 0 | AK80: 0 | AO80: 2534 | AQ80: 0
T81: =A37 -> 15 | V81: TOTAL RIDERS | AE81: =SUM(AE78:AE80) -> 2535 | AG81: =ROUND((AE81/AE$83)*100,1) -> 3.6 | AI81: =SUM(AI78:AI80) -> 4176 | AK81: =ROUND((AI81/AE81)*100,1) -> 164.7 | AM81: =SUM(AM78:AM80) -> 0 | AO81: =SUM(AO78:AO80) -> 2535 | AQ81: 164.7
T83: =A39 -> 16 | V83: TOTAL RATE DS RTP INCLUDING RIDERS | Y83: =Y75 -> 24 | AA83: =AA75 -> 536037 | AE83: =AE81+AE75 -> 71131 | AG83: 100 | AI83: =AI81+AI75 -> 7763 | AK83: =ROUND((AI83/AE83)*100,1) -> 10.9 | AM83: =AM81+AM75 -> 0 | AO83: =AO81+AO75 -> 71131 | AQ83: =IF(AO83=0,"0.0 ",ROUND((AI83/AO83)*100,1)) -> 10.9
V85: (1) BILLS THAT TERMINATE IN RESPECTIVE RATE STEPS.

Sheet Rate TT RTP
A1: =NAME -> DUKE ENERGY KENTUCKY, INC.
A2: =CASE_NO -> CASE NO. 2022-00372 - REHEARING
A3: =TITLE -> ANNUALIZED TEST YEAR REVENUES AT PROPOSED VS. MOST CURRENT RATES
A4: =DATE -> FOR THE TWELVE MONTHS ENDED June 30, 2024
A5: =SERVICE -> (ELECTRIC SERVICE)
A6: =DATA_PERIOD -> DATA: ____ BASE PERIOD __X__FORECASTED PERIOD | R6: SCHEDULE M-2.3
A7: =TYPE -> TYPE OF FILING: ___ ORIGINAL ___UPDATED _X_ REVISED | R7: ="PAGE 12 OF "&TEXT(Page_Num_2.3,"00") -> PAGE 12 OF 24
A8: WORK PAPER REFERENCE NO(S).: | R8: WITNESS:
A9: =TIME -> 12 Months Projected with Riders - STAFF-RHDR-01-005A | R9: =WIT -> B. L. Sailers
A10: =INPUT!B5 -> 
A11: PROPOSED ANNUALIZED
L13: PROPOSED | N13: % OF REV TO | R13: PROPOSED
L14: REVENUE LESS | N14: TOTAL LESS | R14: TOTAL
A15: LINE | C15: RATE | D15: CLASS / | F15: CUSTOMER | J15: PROPOSED | L15: FAC | N15: FAC | P15: FAC | R15: REVENUE
A16: NO. | C16: CODE | D16: DESCRIPTION | F16: BILLS(1) | H16: SALES | J16: RATES | L16: REVENUE | N16: REVENUE | P16: REVENUE (2) | R16: (F + H)
C17: (A) | D17: (B) | F17: (C) | H17: (D) | J17: (E) | L17: (F) | N17: (G) | P17: (H) | R17: (I)
H19: (KWH) | J19: ($/KWH) | L19: ($) | N19: (%) | P19: ($) | R19: ($)
A20: 1 | C20: TT RTP | D20: TIME OF DAY SERVICE AT
A21: 2 | D21: TRANSMISSION VOLTAGE
A23: 3 | C23: CUSTOMER CHARGE:
A24: 4 | C24: BILLS (Real-Time Pricing) | F24: 24 | J24: =INPUT!D154 -> 183 | L24: =ROUND(F24*J24,0) -> 4392 | N24: =ROUND((L24/$L$39)*100,1) -> 0.5 | R24: =L24+P24 -> 4392
A25: 5 | C25: TOTAL CUSTOMER CHARGE | L25: =SUM(L24) -> 4392 | N25: =ROUND((L25/$L$39)*100,1) -> 0.5 | R25: =SUM(R24) -> 4392
A27: 6 | C27: ENERGY CHARGE:
A28: 7 | C28: ALL KWH | H28: 13109567 | J28: 0.008139 | L28: =ROUND((H28*J28),0) -> 106699 | N28: =ROUND((L28/$L$39)*100,1) -> 13.1 | R28: =L28+P28 -> 106699
A29: 8 | C29: COMMODITY CHARGES | H29: =H28 -> 13109567 | J29: =INPUT!D162 -> 0.046419 | L29: =ROUND((H29*J29),0) -> 608533 | N29: =ROUND((L29/$L$39)*100,1) -> 74.6 | P29: 0 | R29: =L29+P29 -> 608533
A30: 9 | C30: TOTAL ENERGY | H30: =H28 -> 13109567 | L30: =SUM(L28:L29) -> 715232 | N30: =ROUND((L30/$L$39)*100,1) -> 87.6 | P30: =P29 -> 0 | R30: =SUM(R28:R29) -> 715232
A31: 10 | C31: TOTAL RATE TT RTP EXCLUDING RIDERS | F31: =F24 -> 24 | H31: =H30 -> 13109567 | L31: =L30+L25 -> 719624 | N31: =ROUND((L31/$L$39)*100,1) -> 88.2 | P31: =SUM(P30+P25) -> 0 | R31: =R30+R25 -> 719624
A33: 11 | C33: RIDERS:
A34: 12 | C34: =DSMR_Name -> DEMAND SIDE MANAGEMENT RIDER (DSMR) | J34: =PRO_DSM_TRANS -> 6.6e-05 | L34: =ROUND($H$31*J34,0) -> 865 | N34: =ROUND((L34/$L$39)*100,1) -> 0.1 | R34: =L34+P34 -> 865
A35: 13 | C35: =ESM_Name -> ENVIRONMENTAL SURCHARGE MECHANISM RIDER (ESM) | J35: =PRO_ESM_NONRES -> 0.07513471937 | L35: =ROUND((R31-(PRO_BASE_FUEL*H31)+R34+R36)*J35,0) -> 33770 | N35: =ROUND((L35/$L$39)*100,1) -> 4.1 | R35: =L35+P35 -> 33770
A36: 14 | C36: =PSM_Name -> PROFIT SHARING MECHANISM (PSM) | J36: =PRO_PSM -> 0.004727 | L36: =ROUND(H31*PRO_PSM,0) -> 61969 | N36: =ROUND((L36/$L$39)*100,1) -> 7.6 | R36: 61969
A37: 15 | C37: TOTAL RIDERS | L37: =SUM(L34:L36) -> 96604 | N37: =ROUND((L37/$L$39)*100,1) -> 11.8 | R37: =SUM(R34:R36) -> 96604
A39: 16 | C39: TOTAL RATE TT RTP INCLUDING RIDERS | F39: =F31 -> 24 | H39: =H31 -> 13109567 | L39: =L37+L31 -> 816228 | N39: 100 | P39: =P37+P31 -> 0 | R39: =R37+R31 -> 816228
C41: (1) BILLS THAT TERMINATE IN RESPECTIVE RATE STEPS.
T47: =NAME -> DUKE ENERGY KENTUCKY, INC.
T48: =CASE_NO -> CASE NO. 2022-00372 - REHEARING
T49: =TITLE -> ANNUALIZED TEST YEAR REVENUES AT PROPOSED VS. MOST CURRENT RATES
T50: =DATE -> FOR THE TWELVE MONTHS ENDED June 30, 2024
T51: =SERVICE -> (ELECTRIC SERVICE)
T52: =DATA_PERIOD -> DATA: ____ BASE PERIOD __X__FORECASTED PERIOD | AO52: SCHEDULE M-2.2
T53: =TYPE -> TYPE OF FILING: ___ ORIGINAL ___UPDATED _X_ REVISED | AO53: ="PAGE 12 OF "&TEXT(Page_Num_2.2,"00") -> PAGE 12 OF 23
T54: WORK PAPER REFERENCE NO(S).: | AO54: WITNESS:
T55: =TIME -> 12 Months Projected with Riders - STAFF-RHDR-01-005A | AO55: =WIT -> B. L. Sailers
T56: =INPUT!B5 -> 
T57: CURRENT ANNUALIZED
AE59: CURRENT | AG59: % OF REV TO | AI59: REVENUE | AK59: % INCR IN | AO59: CURRENT | AQ59: TOTAL
AC60: MOST | AE60: REVENUE LESS | AG60: TOTAL LESS | AI60: INCR LESS | AK60: REV LESS | AO60: TOTAL | AQ60: REVENUE
T61: LINE | V61: RATE | W61: CLASS / | Y61: CUSTOMER | AC61: CURRENT | AE61: FAC | AG61: FAC | AI61: FAC REV | AK61: FAC REV | AM61: FAC | AO61: REVENUE | AQ61: % INCREASE
T62: NO. | V62: CODE | W62: DESCRIPTION | Y62: BILLS(1) | AA62: SALES | AC62: RATES | AE62: REVENUE | AG62: REVENUE | AI62: (F - K) | AK62: (M / K) | AM62: REVENUE | AO62: (K + H) | AQ62: (M / K1)
V63: (A) | W63: (B) | Y63: (C) | AA63: (D) | AC63: (J) | AE63: (K) | AG63: (L) | AI63: (M) | AK63: (N) | AM63: (H) | AO63: (K1) | AQ63: (O)
AA65: (KWH) | AC65: ($/KWH) | AE65: ($) | AG65: (%) | AI65: ($) | AK65: (%) | AM65: ($) | AO65: ($) | AQ65: (%)
T66: =A20 -> 1 | V66: TT RTP | W66: TIME OF DAY SERVICE AT
T67: =A21 -> 2 | W67: TRANSMISSION VOLTAGE
T69: =A23 -> 3 | V69: CUSTOMER CHARGE:
T70: =A24 -> 4 | V70: BILLS (Real-Time Pricing) | Y70: =F24 -> 24 | AC70: =INPUT!C154 -> 183 | AE70: =ROUND(Y70*AC70,0) -> 4392 | AG70: =ROUND((AE70/AE$85)*100,1) -> 0.6 | AI70: =L24-AE70 -> 0 | AK70: =IF(AE70=0,"0.0 ",ROUND((AI70/AE70)*100,1)) -> 0 | AO70: =AE70+AM70 -> 4392 | AQ70: =IF(AO70=0,"0.0 ",ROUND((AI70/AO70)*100,1)) -> 0
T71: =A25 -> 5 | V71: TOTAL CUSTOMER CHARGE | AE71: =SUM(AE70) -> 4392 | AG71: =ROUND((AE71/AE$85)*100,1) -> 0.6 | AI71: =L25-AE71 -> 0 | AK71: =IF(AE71=0,"0.0 ",ROUND((AI71/AE71)*100,1)) -> 0 | AO71: =AE71+AM71 -> 4392 | AQ71: =IF(AO71=0,"0.0 ",ROUND((AI71/AO71)*100,1)) -> 0
T73: =A27 -> 6 | V73: ENERGY CHARGE:
T74: =A28 -> 7 | V74: ALL KWH | AA74: =H28 -> 13109567 | AC74: =INPUT!C158 -> 0.006575 | AE74: =ROUND((AA74*AC74),0) -> 86195 | AG74: =ROUND((AE74/AE$85)*100,1) -> 11.3 | AI74: =L28-AE74 -> 20504 | AK74: =IF(AE74=0,"0.0 ",ROUND((AI74/AE74)*100,1)) -> 23.8 | AO74: =AE74+AM74 -> 86195 | AQ74: =IF(AO74=0,"0.0 ",ROUND((AI74/AO74)*100,1)) -> 23.8
T75: =A29 -> 8 | V75: COMMODITY CHARGES | AA75: =H29 -> 13109567 | AC75: =INPUT!C162 -> 0.046419 | AE75: =ROUND((AA75*AC75),0) -> 608533 | AG75: =ROUND((AE75/AE$85)*100,1) -> 79.8 | AI75: =L29-AE75 -> 0 | AK75: =IF(AE75=0,"0.0 ",ROUND((AI75/AE75)*100,1)) -> 0 | AM75: 0 | AO75: =AE75+AM75 -> 608533 | AQ75: =IF(AO75=0,"0.0 ",ROUND((AI75/AO75)*100,1)) -> 0
T76: =A30 -> 9 | V76: TOTAL ENERGY | AA76: =H30 -> 13109567 | AE76: =SUM(AE74:AE75) -> 694728 | AG76: =ROUND((AE76/AE$85)*100,1) -> 91.1 | AI76: =SUM(AI74:AI75) -> 20504 | AK76: =IF(AE76=0,"0.0 ",ROUND((AI76/AE76)*100,1)) -> 3 | AM76: =AM75 -> 0 | AO76: =SUM(AO74:AO75) -> 694728 | AQ76: =IF(AO76=0,"0.0 ",ROUND((AI76/AO76)*100,1)) -> 3
T77: =A31 -> 10 | V77: TOTAL RATE TT RTP EXCLUDING RIDERS | Y77: =Y70 -> 24 | AA77: =AA76 -> 13109567 | AE77: =AE76+AE71 -> 699120 | AG77: =ROUND((AE77/AE$85)*100,1) -> 91.7 | AI77: =AI76+AI71 -> 20504 | AK77: =IF(AE77=0,"0.0 ",ROUND((AI77/AE77)*100,1)) -> 2.9 | AM77: =AM76+AM71 -> 0 | AO77: =AO76+AO71 -> 699120 | AQ77: =IF(AO77=0,"0.0 ",ROUND((AI77/AO77)*100,1)) -> 2.9
T79: =A33 -> 11 | V79: RIDERS:
T80: =A34 -> 12 | V80: =C34 -> DEMAND SIDE MANAGEMENT RIDER (DSMR) | AC80: =DSM_TRANS -> 6.6e-05 | AE80: =ROUND($AA$77*AC80,0) -> 865 | AG80: =ROUND((AE80/AE$85)*100,1) -> 0.1 | AI80: =L34-AE80 -> 0 | AK80: =IF(AE80=0,"0.0 ",ROUND((AI80/AE80)*100,1)) -> 0 | AO80: =AE80+AM80 -> 865 | AQ80: =IF(AO80=0,"0.0 ",ROUND((AI80/AO80)*100,1)) -> 0
T81: =A35 -> 13 | V81: =C35 -> ENVIRONMENTAL SURCHARGE MECHANISM RIDER (ESM) | AC81: =CUR_ESM_NonRes -> 0.08798914629 | AE81: =ROUND(AO71*AC81,0) -> 386 | AG81: =ROUND((AE81/AE$85)*100,1) -> 0.1 | AI81: =L35-AE81 -> 33384 | AK81: =IF(AE81=0,"0.0 ",ROUND((AI81/AE81)*100,1)) -> 8648.7 | AO81: =AE81+AM81 -> 386 | AQ81: =IF(AO81=0,"0.0 ",ROUND((AI81/AO81)*100,1)) -> 8648.7
T82: =A36 -> 14 | V82: =C36 -> PROFIT SHARING MECHANISM (PSM) | AC82: =RS_PSM -> 0.004727 | AE82: =ROUND(AA77*RS_PSM,0) -> 61969 | AG82: =ROUND((AE82/AE$85)*100,1) -> 8.1 | AI82: =L36-AE82 -> 0 | AK82: 0 | AO82: 61969 | AQ82: 0
T83: =A37 -> 15 | V83: TOTAL RIDERS | AE83: =SUM(AE80:AE82) -> 63220 | AG83: =ROUND((AE83/AE$85)*100,1) -> 8.3 | AI83: =SUM(AI80:AI82) -> 33384 | AK83: 52.8 | AM83: =SUM(AM80:AM82) -> 0 | AO83: =SUM(AO80:AO82) -> 63220 | AQ83: 52.8
T85: =A39 -> 16 | V85: TOTAL RATE TT RTP INCLUDING RIDERS | Y85: =Y77 -> 24 | AA85: =AA77 -> 13109567 | AE85: =AE83+AE77 -> 762340 | AG85: 100 | AI85: =AI83+AI77 -> 53888 | AK85: =IF(AE85=0,"0.0 ",ROUND((AI85/AE85)*100,1)) -> 7.1 | AM85: =AM83+AM77 -> 0 | AO85: =AO83+AO77 -> 762340 | AQ85: =IF(AO85=0,"0.0 ",ROUND((AI85/AO85)*100,1)) -> 7.1
V87: (1) BILLS THAT TERMINATE IN RESPECTIVE RATE STEPS.

Sheet Rate SL
A1: =NAME -> DUKE ENERGY KENTUCKY, INC. | AA1: Increase in Street Lighting rate SL per COSS: | AG1: ='Proposed Rates'!AT11 -> 0.358858
A2: =CASE_NO -> CASE NO. 2022-00372 - REHEARING
A3: =TITLE -> ANNUALIZED TEST YEAR REVENUES AT PROPOSED VS. MOST CURRENT RATES
A4: =DATE -> FOR THE TWELVE MONTHS ENDED June 30, 2024 | AA4: Pole Rate Increases | AI4: code
A5: =SERVICE -> (ELECTRIC SERVICE) | AA5: w17 | AC5: 4.84 | AE5: =ROUND(AC5*$AG$1,2) -> 1.74 | AG5: 6.44 | AI5: 3
A6: =DATA_PERIOD -> DATA: ____ BASE PERIOD __X__FORECASTED PERIOD | R6: SCHEDULE M-2.3 | AA6: w30 | AC6: 4.78 | AE6: 1.72 | AG6: 6.36 | AI6: 4
A7: =TYPE -> TYPE OF FILING: ___ ORIGINAL ___UPDATED _X_ REVISED | R7: ="PAGE 13 OF "&TEXT(Page_Num_2.3,"00") -> PAGE 13 OF 24 | AA7: w35 | AC7: 4.84 | AE7: 1.74 | AG7: 6.44 | AI7: 5
A8: WORK PAPER REFERENCE NO(S).: | R8: WITNESS: | AA8: w40 | AC8: 5.8 | AE8: 2.08 | AG8: 7.72 | AI8: 6
A9: =TIME -> 12 Months Projected with Riders - STAFF-RHDR-01-005A | R9: =WIT -> B. L. Sailers | AA9: a12 | AC9: 13.16 | AE9: 4.72 | AG9: 17.52 | AI9: 7
A10: PROPOSED ANNUALIZED | AA10: a28 | AC10: 7.63 | AE10: 2.74 | AG10: 10.16 | AI10: 8
AA11: a28h | AC11: 7.71 | AE11: 2.77 | AG11: 10.26 | AI11: 8A
L12: PROPOSED | N12: % OF REV TO | R12: PROPOSED | AA12: a30 | AC12: 15.24 | AE12: 5.47 | AG12: 20.28 | AI12: 9
L13: REVENUE LESS | N13: TOTAL LESS | R13: TOTAL | AA13: f17 | AC13: 4.84 | AE13: 1.74 | AG13: 6.44 | AI13: 10
A14: LINE | C14: RATE | D14: CLASS / | F14: CUSTOMER | J14: PROPOSED | L14: FAC | N14: FAC | P14: FAC | R14: REVENUE | AA14: f12 | AC14: 14.15 | AE14: 5.08 | AG14: 18.83 | AI14: 11
A15: NO. | C15: CODE | D15: DESCRIPTION | F15: BILLS(1) | H15: SALES | J15: RATES(1A) | L15: REVENUE | N15: REVENUE | P15: REVENUE (2) | R15: (F + H) | AA15: f30 | AC15: 9.21 | AE15: 3.31 | AG15: 12.26 | AI15: 12
C16: (A) | D16: (B) | F16: (C) | H16: (D) | J16: (E) | L16: (F) | N16: (G) | P16: (H) | R16: (I) | AA16: f35 | AC16: 9.46 | AE16: 3.39 | AG16: 12.59 | AI16: 13
H17: (KWH) | J17: ($/UNIT) | L17: ($) | N17: (%) | P17: ($) | R17: ($) | AA17: s27 | AC17: 12.44 | AE17: 4.46 | AG17: 16.56 | AI17: 16
A18: 1 | C18: SL | D18: STREET LIGHTING -- CO OWNED & MAINTAINED | AA18: s27h | AC18: 18.36 | AE18: 6.59 | AG18: 24.44 | AI18: 17
A19: 2 | C19: OVERHEAD DISTRIBUTION:
A20: 3 | C20: MERCURY VAPOR : | AC20: Annual kWh / Light
A21: 4 | C21: 7,000 LUMEN | F21: 50801 | H21: =ROUND(F21*AC21/12,0) -> 3399434 | J21: 10.54 | L21: =ROUND((F21*J21),0) -> 535443 | N21: =ROUND((L21/L$209)*100,1) -> 35.6 | P21: =ROUND($P$209/$H$209*H21,0) -> 20278 | R21: =L21+P21 -> 555721 | AC21: 803
A22: 5 | C22: 7,000 LUMEN (OPEN) | F22: 45 | H22: =ROUND(F22*AC22/12,0) -> 3199 | J22: 8.84 | L22: =ROUND((F22*J22),0) -> 398 | N22: 0 | P22: 19 | R22: =L22+P22 -> 417 | AC22: 853
A23: 6 | C23: 7,000 LUMEN (4) | F23: 9 | H23: 602 | J23: =$J$21+$AG$6 -> 16.9 | L23: 152 | N23: 0 | P23: 4 | R23: =L23+P23 -> 156 | AC23: 803
A24: 7 | C24: 7,000 LUMEN (5) | F24: 318 | H24: 21280 | J24: =$J$21+$AG$7 -> 16.98 | L24: 5400 | N24: 0.4 | P24: 127 | R24: 5527 | AC24: 803
A25: 8 | C25: 7,000 LUMEN (6) | F25: 82 | H25: 5487 | J25: =$J$21+$AG$8 -> 18.26 | L25: 1497 | N25: 0.1 | P25: 33 | R25: =L25+P25 -> 1530 | AC25: 803
A26: 9 | C26: 7,000 LUMEN (8A) | F26: 100 | H26: 6692 | J26: =$J$21+$AG$11 -> 20.8 | L26: 2080 | N26: 0.1 | P26: 40 | R26: =L26+P26 -> 2120 | AC26: 803
A27: 10 | C27: 10,000 LUMEN | F27: 1370 | H27: 130607 | J27: 12.22 | L27: 16741 | N27: 1.1 | P27: 779 | R27: =L27+P27 -> 17520 | AC27: 1144
A28: 11 | C28: 10,000 LUMEN (5) | F28: 0 | H28: 0 | J28: =$J$27+$AG$7 -> 18.66 | L28: 0 | N28: 0 | P28: =ROUND($P$209/$H$209*H28,0) -> 0 | R28: 0 | AC28: 1144
A29: 12 | C29: 21,000 LUMEN | F29: 6706 | H29: 999753 | J29: 16.4 | L29: 109978 | N29: 7.3 | P29: =ROUND($P$209/$H$209*H29,0) -> 5964 | R29: =L29+P29 -> 115942 | AC29: 1789
A30: 13 | C30: 21,000 LUMEN (5) | F30: 73 | H30: 10883 | J30: =$J$29+$AG$7 -> 22.84 | L30: 1667 | N30: 0.1 | P30: =ROUND($P$209/$H$209*H30,0) -> 65 | R30: 1732 | AC30: 1789
A31: 14 | C31: 21,000 LUMEN (6) | F31: 100 | H31: 14908 | J31: =$J$29+$AG$8 -> 24.12 | L31: 2412 | N31: 0.2 | P31: =ROUND($P$209/$H$209*H31,0) -> 89 | R31: 2501 | AC31: 1789
A32: 15 | C32: METAL HALIDE:
A33: 16 | C33: 14,000 LUMEN | F33: 209 | H33: =ROUND(F33*AC33/12,0) -> 13986 | J33: 10.54 | L33: 2203 | N33: =ROUND((L33/L$209)*100,1) -> 0.1 | P33: =ROUND($P$209/$H$209*H33,0) -> 83 | R33: =L33+P33 -> 2286 | AC33: 803
A34: 17 | C34: 14,000 LUMEN (5) | F34: 36 | H34: 2409 | J34: =$J$33+$AG$7 -> 16.98 | L34: 611 | N34: 0 | P34: 14 | R34: =L34+P34 -> 625 | AC34: 803
A35: 18 | C35: 14,000 LUMEN (6) | F35: 64 | H35: 4283 | J35: =$J$33+$AG$8 -> 18.26 | L35: 1169 | N35: 0.1 | P35: 26 | R35: =L35+P35 -> 1195 | AC35: 803
A36: 19 | C36: 14,000 LUMEN (10) | F36: 9 | H36: 602 | J36: =$J$33+$AG$13 -> 16.98 | L36: 153 | N36: 0 | P36: 4 | R36: 157 | AC36: 803
A37: 20 | C37: 20,500 LUMEN | F37: 136 | H37: 12965 | J37: 12.22 | L37: 1662 | N37: 0.1 | P37: 77 | R37: =L37+P37 -> 1739 | AC37: 1144
A38: 21 | C38: 20,500 LUMEN (6) | F38: 9 | H38: 858 | J38: =$J$37+$AG$8 -> 19.94 | L38: 179 | N38: 0 | P38: 5 | R38: =L38+P38 -> 184 | AC38: 1144
A39: 22 | C39: 36,000 LUMEN | F39: 0 | H39: 0 | J39: 16.4 | L39: 0 | N39: 0 | P39: 0 | R39: =L39+P39 -> 0 | AC39: 1789
A40: 23 | C40: SODIUM VAPOR:
A41: 24 | C41: 9,500 LUMEN | F41: 14102 | H41: =ROUND(F41*AC41/12,0) -> 572306 | J41: 11.59 | L41: 163442 | N41: =ROUND((L41/L$209)*100,1) -> 10.9 | P41: =ROUND($P$209/$H$209*H41,0) -> 3414 | R41: =L41+P41 -> 166856 | AC41: 487
A42: 25 | C42: 9,500 LUMEN (OPEN) | F42: 91 | H42: 3693 | J42: 8.73 | L42: 794 | N42: 0.1 | P42: 22 | R42: =L42+P42 -> 816 | AC42: 487
A43: 26 | C43: 9,500 LUMEN (4) | F43: 36 | H43: 1461 | J43: =$J$41+$AG$6 -> 17.95 | L43: 646 | N43: 0 | P43: 9 | R43: 655 | AC43: 487
A44: 27 | C44: 9,500 LUMEN (5) | F44: 481 | H44: 19521 | J44: =$J$41+$AG$7 -> 18.03 | L44: 8672 | N44: 0.6 | P44: 116 | R44: =L44+P44 -> 8788 | AC44: 487
A45: 28 | C45: 9,500 LUMEN (6) | F45: 463 | H45: 18790 | J45: =$J$41+$AG$8 -> 19.31 | L45: 8941 | N45: 0.6 | P45: 112 | R45: =L45+P45 -> 9053 | AC45: 487
A46: 29 | C46: 16,000 LUMEN | F46: 191 | H46: 11317 | J46: 12.68 | L46: 2422 | N46: 0.2 | P46: 68 | R46: 2490 | AC46: 711
A47: 30 | C47: 16,000 LUMEN (5) | F47: 9 | H47: 533 | J47: =$J$46+$AG$7 -> 19.12 | L47: 172 | N47: 0 | P47: 3 | R47: =L47+P47 -> 175 | AC47: 711
A48: 31 | C48: 16,000 LUMEN (6) | F48: 82 | H48: 4859 | J48: =$J$46+$AG$8 -> 20.4 | L48: 1673 | N48: 0.1 | P48: 29 | R48: =L48+P48 -> 1702 | AC48: 711
A49: 32 | C49: 22,000 LUMEN | F49: 3966 | H49: 313314 | J49: 16.45 | L49: 65241 | N49: 4.3 | P49: 1869 | R49: 67110 | AC49: 948
A50: 33 | C50: 22,000 LUMEN (4) | F50: 0 | H50: 0 | J50: =$J$49+$AG$6 -> 22.81 | L50: 0 | N50: 0 | P50: 0 | R50: 0 | AC50: 948
A51: 34 | C51: 22,000 LUMEN (5) | F51: 100 | H51: 7900 | J51: =$J$49+$AG$7 -> 22.89 | L51: 2289 | N51: 0.2 | P51: 47 | R51: =L51+P51 -> 2336 | AC51: 948
A52: 35 | C52: 22,000 LUMEN (6) | F52: 54 | H52: 4266 | J52: =$J$49+$AG$8 -> 24.17 | L52: 1305 | N52: 0.1 | P52: 25 | R52: 1330 | AC52: 948
A53: 36 | C53: 22,000 LUMEN (8) | F53: 9 | H53: 711 | J53: =$J$49+$AG$10 -> 26.61 | L53: 239 | N53: 0 | P53: 4 | R53: 243 | AC53: 948
A54: 37 | C54: 27,500 LUMEN | F54: 64 | H54: 5056 | J54: 16.45 | L54: 1053 | N54: 0.1 | P54: 30 | R54: 1083 | AC54: 948
A55: 38 | C55: 27,500 LUMEN (6) | F55: 9 | H55: 711 | J55: =$J$54+$AG$8 -> 24.17 | L55: 218 | N55: 0 | P55: 4 | R55: 222 | AC55: 948
A56: 39 | C56: 50,000 LUMEN | F56: 7305 | H56: 1192541 | J56: 22.24 | L56: 162463 | N56: 10.8 | P56: 7114 | R56: 169577 | AC56: 1959
A57: 40 | C57: 50,000 LUMEN (5) | F57: 191 | H57: 31181 | J57: =$J$56+$AG$7 -> 28.68 | L57: 5478 | N57: 0.4 | P57: 186 | R57: 5664 | AC57: 1959
A58: 41 | C58: 50,000 LUMEN (6) | F58: 436 | H58: 71177 | J58: =$J$56+$AG$8 -> 29.96 | L58: 13063 | N58: 0.9 | P58: 425 | R58: 13488 | AC58: 1959
A60: (1) THESE FIGURES REPRESENT NUMBER OF UNITS BILLED. | J60: (5) WITH 35' WOOD POLE. | P60: (9) WITH 30' ALUM POLE.
A61: ="(1A) REFLECTS FUEL COST RECOVERY INCLUDED IN BASE RATES OF "&TEXT(CUR_BASE_FUEL,"$0.000000;($0.000000)")&" PER KWH." -> (1A) REFLECTS FUEL COST RECOVERY INCLUDED IN BASE RATES OF $0.025401 PER KWH. | J61: (6) WITH 40' WOOD POLE. | P61: (10) WITH 17' FIBERGLASS POLE.
A62: ="(2) REFLECTS FUEL COMPONENT OF "&TEXT(CUR_FAC,"$0.000000;($0.000000)")&" PER KWH." -> (2) REFLECTS FUEL COMPONENT OF $0.005965 PER KWH. | J62: (7) WITH 12' ALUM POLE. | P62: (11) WITH 12' FIBERGLASS POLE.
A63: (3) WITH 17' WOOD LAMINATED POLE. | J63: (8) WITH 28' ALUM POLE. | P63: (12) WITH 30' FIBERGLASS POLE.
A64: (4) WITH 30' WOOD POLE. | J64: (8A) WITH 28' ALUM POLE HEAVY GAUGE. | P64: (13) WITH 35' FIBERGLASS POLE.
A67: =NAME -> DUKE ENERGY KENTUCKY, INC.
A68: =CASE_NO -> CASE NO. 2022-00372 - REHEARING
A69: =TITLE -> ANNUALIZED TEST YEAR REVENUES AT PROPOSED VS. MOST CURRENT RATES
A70: =DATE -> FOR THE TWELVE MONTHS ENDED June 30, 2024
A71: =SERVICE -> (ELECTRIC SERVICE)
A72: =DATA_PERIOD -> DATA: ____ BASE PERIOD __X__FORECASTED PERIOD | R72: SCHEDULE M-2.3
A73: =TYPE -> TYPE OF FILING: ___ ORIGINAL ___UPDATED _X_ REVISED | R73: ="PAGE 14 OF "&TEXT(Page_Num_2.3,"00") -> PAGE 14 OF 24
A74: WORK PAPER REFERENCE NO(S).: | R74: WITNESS:
A75: =TIME -> 12 Months Projected with Riders - STAFF-RHDR-01-005A | R75: =WIT -> B. L. Sailers
A76: PROPOSED ANNUALIZED
L78: PROPOSED | N78: % OF REV TO | R78: PROPOSED
L79: REVENUE LESS | N79: TOTAL LESS | R79: TOTAL
A80: LINE | C80: RATE | D80: CLASS / | F80: CUSTOMER | J80: PROPOSED | L80: FAC | N80: FAC | P80: FAC | R80: REVENUE
A81: NO. | C81: CODE | D81: DESCRIPTION | F81: BILLS(1) | H81: SALES | J81: RATES(1A) | L81: REVENUE | N81: REVENUE | P81: REVENUE (2) | R81: (F + H)
C82: (A) | D82: (B) | F82: (C) | H82: (D) | J82: (E) | L82: (F) | N82: (G) | P82: (H) | R82: (I)
H83: (KWH) | J83: ($/UNIT) | L83: ($) | N83: (%) | P83: ($) | R83: ($)
A84: 42 | C84: SL | D84: STREET LIGHTING -- CO OWNED & MAINTAINED (CONT'D.)
A85: 43 | C85: OVERHEAD DISTRIBUTION (CONT'D.):
A86: 44 | C86: DECORATIVE SODIUM VAPOR:
A87: 45 | C87: 9,500 LUMEN RECTILINEAR | F87: 0 | H87: =ROUND(F87*AC87/12,0) -> 0 | J87: 14.4 | L87: =ROUND((F87*J87),0) -> 0 | N87: =ROUND((L87/L$209)*100,1) -> 0 | P87: =ROUND($P$209/$H$209*H87,0) -> 0 | R87: =L87+P87 -> 0 | AC87: 487
A88: 46 | C88: 22,000 LUMEN RECTILINEAR | F88: 9 | H88: 767 | J88: 17.88 | L88: 161 | N88: 0 | P88: 5 | R88: =L88+P88 -> 166 | AC88: 1023
A89: 47 | C89: 50,000 LUMEN RECTILINEAR | F89: 54 | H89: 8816 | J89: 23.77 | L89: 1284 | N89: 0.1 | P89: 53 | R89: 1337 | AC89: 1959
A90: 48 | C90: 50,000 LUMEN RECTILINEAR (5) | F90: 136 | H90: 22202 | J90: =$J$89+$AG$7 -> 30.21 | L90: 4109 | N90: 0.3 | P90: 132 | R90: 4241 | AC90: 1959
A91: 49 | C91: 50,000 LUMEN RECTILINEAR (6) | F91: 0 | H91: 0 | J91: =$J$89+$AG$8 -> 31.49 | L91: 0 | N91: 0 | P91: 0 | R91: 0 | AC91: 1959
A92: 50 | C92: 50,000 LUMEN SETBACK | F92: 163 | H92: 26610 | J92: 35.18 | L92: 5734 | N92: 0.4 | P92: 159 | R92: 5893 | AC92: 1959
A93: 51 | C93: 50,000 LUMEN SETBACK (6) | F93: 27 | H93: 4408 | J93: =$J$92+$AG$8 -> 42.9 | L93: 1158 | N93: 0.1 | P93: 26 | R93: 1184 | AC93: 1959
A94: 52 | C94: TOTAL OVERHEAD | F94: =SUM(F21:F93) -> 88045 | H94: =SUM(H21:H93) -> 6950088 | L94: =SUM(L21:L93) -> 1132302 | N94: 75.2 | P94: =ROUND(H94*CUR_FAC,0) -> 41457 | R94: =SUM(R21:R93) -> 1173761
A96: 53 | C96: UNDERGROUND DISTRIBUTION:
A97: 54 | C97: MERCURY VAPOR:
A98: 55 | C98: 7,000 LUMEN | F98: 45 | H98: =ROUND(F98*AC98/12,0) -> 3278 | J98: 10.74 | L98: =ROUND((F98*J98),0) -> 483 | N98: =ROUND((L98/L$209)*100,1) -> 0 | P98: =ROUND($P$209/$H$209*H98,0) -> 20 | R98: =L98+P98 -> 503 | AC98: 874
A99: 56 | C99: 7,000 LUMEN (OPEN) | F99: 0 | H99: 0 | J99: 8.84 | L99: 0 | N99: 0 | P99: 0 | R99: =L99+P99 -> 0 | AC99: 853
A100: 57 | C100: 7,000 LUMEN (4) | F100: 145 | H100: 10561 | J100: =$J$98+$AG$6 -> 17.1 | L100: 2480 | N100: 0.2 | P100: 63 | R100: 2543 | AC100: 874
A101: 58 | C101: 7,000 LUMEN (5) | F101: 0 | H101: 0 | J101: =$J$98+$AG$7 -> 17.18 | L101: 0 | N101: 0 | P101: 0 | R101: 0 | AC101: 874
A102: 59 | C102: 7,000 LUMEN (8) | F102: 245 | H102: 17844 | J102: =$J$98+$AG$10 -> 20.9 | L102: 5121 | N102: 0.3 | P102: 106 | R102: 5227 | AC102: 874
A103: 60 | C103: 10,000 LUMEN | F103: 0 | H103: 0 | J103: 12.44 | L103: 0 | N103: 0 | P103: 0 | R103: 0 | AC103: 1215
A104: 61 | C104: 10,000 LUMEN (4) | F104: 64 | H104: 6480 | J104: =$J$103+$AG$6 -> 18.8 | L104: 1203 | N104: 0.1 | P104: 39 | R104: 1242 | AC104: 1215
A105: 62 | C105: 10,000 LUMEN (8) | F105: 45 | H105: 4556 | J105: =$J$103+$AG$10 -> 22.6 | L105: 1017 | N105: 0.1 | P105: 27 | R105: 1044 | AC105: 1215
A106: 63 | C106: 21,000 LUMEN | F106: 73 | H106: 11644 | J106: 16.81 | L106: 1227 | N106: 0.1 | P106: 69 | R106: 1296 | AC106: 1914
A107: 64 | C107: 21,000 LUMEN (8) | F107: 100 | H107: 15950 | J107: =$J$106+$AG$10 -> 26.97 | L107: 2697 | N107: 0.2 | P107: 95 | R107: 2792 | AC107: 1914
A108: 65 | C108: METAL HALIDE:
A109: 66 | C109: 14,000 LUMEN | F109: 0 | H109: =ROUND(F109*AC109/12,0) -> 0 | J109: 10.74 | L109: 0 | N109: =ROUND((L109/L$209)*100,1) -> 0 | P109: =ROUND($P$209/$H$209*H109,0) -> 0 | R109: =L109+P109 -> 0 | AC109: 874
A110: 67 | C110: 20,500 LUMEN | F110: 0 | H110: 0 | J110: 12.44 | L110: 0 | N110: =ROUND((L110/L$209)*100,1) -> 0 | P110: =ROUND($P$209/$H$209*H110,0) -> 0 | R110: =L110+P110 -> 0 | AC110: 1215
A111: 68 | C111: 36,000 LUMEN | F111: 0 | H111: 0 | J111: 16.81 | L111: 0 | N111: =ROUND((L111/L$209)*100,1) -> 0 | P111: =ROUND($P$209/$H$209*H111,0) -> 0 | R111: =L111+P111 -> 0 | AC111: 1914
A112: 69 | C112: SODIUM VAPOR: | L112: 0
A113: 70 | C113: 9,500 LUMEN | F113: 9 | H113: =ROUND(F113*AC113/12,0) -> 365 | J113: 11.59 | L113: 104 | N113: =ROUND((L113/L$209)*100,1) -> 0 | P113: =ROUND($P$209/$H$209*H113,0) -> 2 | R113: =L113+P113 -> 106 | AC113: 487
A114: 71 | C114: 9,500 LUMEN (6) | F114: 9 | H114: 365 | J114: =$J$113+$AG$8 -> 19.31 | L114: 174 | N114: 0 | P114: 2 | R114: 176 | AC114: 487
A115: 72 | C115: 9,500 LUMEN (8) | F115: 427 | H115: 17329 | J115: =$J$113+$AG$10 -> 21.75 | L115: 9287 | N115: 0.6 | P115: 103 | R115: =L115+P115 -> 9390 | AC115: 487
A116: 73 | C116: 9,500 LUMEN (10) | F116: 18 | H116: 731 | J116: =$J$113+$AG$13 -> 18.03 | L116: 325 | N116: 0 | P116: 4 | R116: =L116+P116 -> 329 | AC116: 487
A117: 74 | C117: 9,500 LUMEN (13) | F117: 9 | H117: 365 | J117: =$J$113+$AG$16 -> 24.18 | L117: 218 | N117: 0 | P117: 2 | R117: 220 | AC117: 487
A118: 75 | C118: 9,500 LUMEN (OPEN) | F118: 0 | H118: 0 | J118: 8.85 | L118: 0 | N118: 0 | P118: 0 | R118: 0 | AC118: 487
A119: 76 | C119: 16,000 LUMEN | F119: 0 | H119: 0 | J119: 12.64 | L119: 0 | N119: 0 | P119: 0 | R119: 0 | AC119: 711
A120: 77 | C120: 16,000 LUMEN (6) | F120: 18 | H120: 1067 | J120: =$J$119+$AG$8 -> 20.36 | L120: 366 | N120: 0 | P120: 6 | R120: =L120+P120 -> 372 | AC120: 711
A121: 78 | C121: 22,000 LUMEN | F121: 9 | H121: 711 | J121: 16.45 | L121: 148 | N121: 0 | P121: 4 | R121: 152 | AC121: 948
A122: 79 | C122: 22,000 LUMEN (5) | F122: 45 | H122: 3555 | J122: =$J$121+$AG$7 -> 22.89 | L122: 1030 | N122: 0.1 | P122: 21 | R122: 1051 | AC122: 948
A123: 80 | C123: 22,000 LUMEN (8) | F123: 399 | H123: 31521 | J123: =$J$121+$AG$10 -> 26.61 | L123: 10617 | N123: 0.7 | P123: 188 | R123: =L123+P123 -> 10805 | AC123: 948
A124: 81 | C124: 22,000 LUMEN (8A) | F124: 36 | H124: 2844 | J124: =$J$121+$AG$11 -> 26.71 | L124: 962 | N124: 0.1 | P124: 17 | R124: =L124+P124 -> 979 | AC124: 948
A125: 82 | C125: 27,500 LUMEN | F125: 0 | H125: 0 | J125: 16.52 | L125: 0 | N125: 0 | P125: 0 | R125: =L125+P125 -> 0 | AC125: 948
A126: 83 | C126: 27,500 LUMEN (9) | F126: 191 | H126: 15089 | J126: =$J$125+$AG$12 -> 36.8 | L126: 7029 | N126: 0.5 | P126: 90 | R126: 7119 | AC126: 948
A127: 84 | C127: 50,000 LUMEN | F127: 218 | H127: 35589 | J127: 22.24 | L127: 4848 | N127: 0.3 | P127: 212 | R127: 5060 | AC127: 1959
A128: 85 | C128: 50,000 LUMEN (8) | F128: 0 | H128: 0 | J128: =$J$127+$AG$10 -> 32.4 | L128: 0 | N128: 0 | P128: 0 | R128: =L128+P128 -> 0 | AC128: 1959
A129: 86 | C129: 50,000 LUMEN (9) | F129: 100 | H129: 16325 | J129: =$J$127+$AG$12 -> 42.52 | L129: 4252 | N129: 0.3 | P129: 97 | R129: =L129+P129 -> 4349 | AC129: 1959
A130: 87 | C130: DECORATIVE MERCURY VAPOR:
A131: 88 | C131: 7,000 LUMEN TOWN & COUNTRY | F131: 9 | H131: =ROUND(F131*AC131/12,0) -> 640 | J131: 11.1 | L131: 100 | N131: =ROUND((L131/L$209)*100,1) -> 0 | P131: =ROUND($P$209/$H$209*H131,0) -> 4 | R131: =L131+P131 -> 104 | AC131: 853
A132: 89 | C132: 7,000 LUMEN TOWN & COUNTRY (3) | F132: 163 | H132: 11587 | J132: =$J$131+$AG$5 -> 17.54 | L132: 2859 | N132: =ROUND((L132/L$209)*100,1) -> 0.2 | P132: 69 | R132: =L132+P132 -> 2928 | AC132: 853
A133: 90 | C133: 7,000 LUMEN TOWN & COUNTRY (10) | F133: 4410 | H133: 313478 | J133: =$J$131+$AG$13 -> 17.54 | L133: 77351 | N133: =ROUND((L133/L$209)*100,1)-0.1 -> 5 | P133: 1870 | R133: 79221 | AC133: 853
A134: 91 | C134: 7,000 LUMEN HOLOPHANE | F134: 18 | H134: 1311 | J134: 13.91 | L134: 250 | N134: =ROUND((L134/L$209)*100,1) -> 0 | P134: 8 | R134: 258 | AC134: 874
A135: 92 | C135: 7,000 LUMEN HOLOPHANE (10) | F135: 1379 | H135: 100437 | J135: =$J$134+$AG$13 -> 20.35 | L135: 28063 | N135: 1.9 | P135: 599 | R135: 28662 | AC135: 874
A136: 93 | C136: 7,000 LUMEN GAS REPLICA (7) | F136: 73 | H136: 5317 | J136: =T136+$AG$9 -> 49.13 | L136: 3586 | N136: 0.2 | P136: 32 | R136: 3618 | T136: 31.61 | AC136: 874
A137: 94 | C137: 7,000 LUMEN GRANVILLE | F137: 0 | H137: 0 | J137: 11.22 | L137: 0 | N137: 0 | P137: 0 | R137: =L137+P137 -> 0 | AC137: 853
A138: 95 | C138: 7,000 LUMEN GRANVILLE (7) | F138: 0 | H138: 0 | J138: =$J$137+$AG$9 -> 28.74 | L138: 0 | N138: 0 | P138: 0 | R138: =L138+P138 -> 0 | AC138: 853
A139: 96 | C139: 7,000 LUMEN ASPEN | F139: 18 | H139: 1311 | J139: 20.07 | L139: 361 | N139: 0 | P139: 8 | R139: 369 | AC139: 874
A141: (1) THESE FIGURES REPRESENT NUMBER OF UNITS BILLED. | J141: (5) WITH 35' WOOD POLE. | P141: (9) WITH 30' ALUM POLE.
A142: ="(1A) REFLECTS FUEL COST RECOVERY INCLUDED IN BASE RATES OF "&TEXT(CUR_BASE_FUEL,"$0.000000;($0.000000)")&" PER KWH." -> (1A) REFLECTS FUEL COST RECOVERY INCLUDED IN BASE RATES OF $0.025401 PER KWH. | J142: (6) WITH 40' WOOD POLE. | P142: (10) WITH 17' FIBERGLASS POLE.
A143: ="(2) REFLECTS FUEL COMPONENT OF "&TEXT(CUR_FAC,"$0.000000;($0.000000)")&" PER KWH." -> (2) REFLECTS FUEL COMPONENT OF $0.005965 PER KWH. | J143: (7) WITH 12' ALUM POLE. | P143: (11) WITH 12' FIBERGLASS POLE.
A144: (3) WITH 17' WOOD LAMINATED POLE. | J144: (8) WITH 28' ALUM POLE. | P144: (12) WITH 30' FIBERGLASS POLE.
A145: (4) WITH 30' WOOD POLE. | J145: (8A) WITH 28' ALUM POLE HEAVY GAUGE. | P145: (13) WITH 35' FIBERGLASS POLE.
A148: =NAME -> DUKE ENERGY KENTUCKY, INC.
A149: =CASE_NO -> CASE NO. 2022-00372 - REHEARING
A150: =TITLE -> ANNUALIZED TEST YEAR REVENUES AT PROPOSED VS. MOST CURRENT RATES
A151: =DATE -> FOR THE TWELVE MONTHS ENDED June 30, 2024
A152: =SERVICE -> (ELECTRIC SERVICE)
A153: =DATA_PERIOD -> DATA: ____ BASE PERIOD __X__FORECASTED PERIOD | R153: SCHEDULE M-2.3
A154: =TYPE -> TYPE OF FILING: ___ ORIGINAL ___UPDATED _X_ REVISED | R154: ="PAGE 15 OF "&TEXT(Page_Num_2.3,"00") -> PAGE 15 OF 24
A155: WORK PAPER REFERENCE NO(S).: | R155: WITNESS:
A156: =TIME -> 12 Months Projected with Riders - STAFF-RHDR-01-005A | R156: =WIT -> B. L. Sailers
A157: PROPOSED ANNUALIZED
L159: PROPOSED | N159: % OF REV TO | R159: PROPOSED
L160: REVENUE LESS | N160: TOTAL LESS | R160: TOTAL
A161: LINE | C161: RATE | D161: CLASS / | F161: CUSTOMER | J161: PROPOSED | L161: FAC | N161: FAC | P161: FAC | R161: REVENUE
A162: NO. | C162: CODE | D162: DESCRIPTION | F162: BILLS(1) | H162: SALES | J162: RATES(1A) | L162: REVENUE | N162: REVENUE | P162: REVENUE (2) | R162: (F + H)
C163: (A) | D163: (B) | F163: (C) | H163: (D) | J163: (E) | L163: (F) | N163: (G) | P163: (H) | R163: (I)
H164: (KWH) | J164: ($/UNIT) | L164: ($) | N164: (%) | P164: ($) | R164: ($)
A165: 97 | C165: SL | D165: STREET LIGHTING -- CO OWNED & MAINTAINED (CONT'D.)
A166: 98 | C166: UNDERGROUND DISTRIBUTION (CONT'D.):
A167: 99 | C167: DECORATIVE METAL HALIDE:
A168: 100 | C168: 14,000 LUMEN TRADITIONAIRE | F168: ` | H168: =ROUND(F168*AC168/12,0) -> 0 | J168: 11.09 | L168: =ROUND((F168*J168),0) -> 0 | N168: =ROUND((L168/L$209)*100,1) -> 0 | P168: =ROUND($P$209/$H$209*H168,0) -> 0 | R168: =L168+P168 -> 0 | AC168: 853
A169: 101 | C169: 14,000 LUMEN TRADITIONAIRE (7) | F169: 45 | H169: 3199 | J169: =$J$168+$AG$9 -> 28.61 | L169: 1287 | N169: 0.1 | P169: 19 | R169: 1306 | AC169: 853
A170: 102 | C170: 14,000 LUMEN TRADITIONAIRE (10) | F170: 354 | H170: 25164 | J170: =$J$168+$AG$13 -> 17.53 | L170: 6206 | N170: 0.4 | P170: 150 | R170: 6356 | AC170: 853
A171: 103 | C171: 14,000 LUMEN GRANVILLE | F171: 0 | H171: 0 | J171: 20.07 | L171: 0 | N171: 0 | P171: 0 | R171: 0 | AC171: 874
A172: 104 | C172: 14,000 LUMEN GRANVILLE (11) | F172: 0 | H172: 0 | J172: =$J$171+$AG$14 -> 38.9 | L172: 0 | N172: 0 | P172: 0 | R172: 0 | AC172: 874
A173: 105 | C173: 14,000 LUMEN GAS REPLICA | F173: 0 | H173: 0 | J173: 31.72 | L173: 0 | N173: 0 | P173: 0 | R173: 0 | AC173: 874
A174: 106 | C174: 14,500 LUMEN GAS REPLICA | F174: 0 | H174: 0 | J174: 31.72 | L174: 0 | N174: 0 | P174: 0 | R174: 0 | AC174: 874
A175: 107 | C175: 14,500 LUMEN GAS REPLICA (7) | F175: 236 | H175: 17189 | J175: =$J$174+$AG$9 -> 49.24 | L175: 11621 | N175: 0.8 | P175: 103 | R175: 11724 | AC175: 874
A176: 108 | C176: 14,500 LUMEN GAS REPLICA (10) | F176: 45 | H176: 3278 | J176: =$J$174+$AG$13 -> 38.16 | L176: 1717 | N176: 0.1 | P176: 20 | R176: 1737 | AC176: 874
A178: 109 | C178: DECORATIVE SODIUM VAPOR: | F178: 0
A179: 110 | C179: 9,500 LUMEN TOWN & COUNTRY | F179: 73 | H179: =ROUND(F179*AC179/12,0) -> 2963 | J179: 16.08 | L179: =ROUND((F179*J179),0) -> 1174 | N179: =ROUND((L179/L$209)*100,1) -> 0.1 | P179: =ROUND($P$209/$H$209*H179,0) -> 18 | R179: =L179+P179 -> 1192 | AC179: 487
A180: 111 | C180: 9,500 LUMEN TOWN & COUNTRY (10) | F180: 1434 | H180: 58197 | J180: =$J$179+$AG$13 -> 22.52 | L180: 32294 | N180: 2.1 | P180: 347 | R180: =L180+P180 -> 32641 | AC180: 487
A181: 112 | C181: 9,500 LUMEN HOLOPHANE | F181: 436 | H181: 19329 | J181: 17.42 | L181: 7595 | N181: 0.5 | P181: 115 | R181: =L181+P181 -> 7710 | AC181: 532
A182: 113 | C182: 9,500 LUMEN HOLOPHANE (10) | F182: 236 | H182: 10463 | J182: =$J$181+$AG$13 -> 23.86 | L182: 5631 | N182: 0.4 | P182: 62 | R182: 5693 | W182: Rectilinear 9500 Lumen | AC182: 532
A183: 114 | C183: 9,500 LUMEN GAS REPLICA (7) | F183: 100 | H183: 4433 | J183: =$T$183+AG9 -> 50.21 | L183: =ROUND((F183*J183),0) -> 5021 | N183: 0.3 | P183: 26 | R183: =L183+P183 -> 5047 | T183: 32.69 | W183: 12.76 | AC183: 532
A184: 115 | C184: 9,500 LUMEN GAS REPLICA (10) | F184: 9 | H184: 399 | J184: =T183+AG13 -> 39.13 | L184: =ROUND((F184*J184),0) -> 352 | N184: 0 | P184: 2 | R184: =L184+P184 -> 354 | AC184: 532
A185: 116 | C185: 9,500 LUMEN GAS REPLICA (11) | F185: 236 | H185: 10463 | J185: =T183+AG14 -> 51.52 | L185: 12159 | N185: 0.8 | P185: 62 | R185: 12221 | AC185: 532
A186: 117 | C186: 9,500 LUMEN ASPEN | F186: 672 | H186: 29792 | J186: 20.28 | L186: 13628 | N186: 0.9 | P186: 178 | R186: 13806 | AC186: 532
A187: 118 | C187: 9,500 LUMEN TRADITIONAIRE | F187: 0 | H187: 0 | J187: 16.08 | L187: 0 | N187: 0 | P187: 0 | R187: 0 | AC187: 487
A188: 119 | C188: 9,500 LUMEN TRADITIONAIRE (10) | F188: 554 | H188: 22483 | J188: =$J$187+$AG$13 -> 22.52 | L188: 12476 | N188: 0.8 | P188: 134 | R188: 12610 | AC188: 487
A189: 120 | C189: 9,500 LUMEN GRANVILLE | F189: 0 | H189: 0 | J189: 20.28 | L189: 0 | N189: 0 | P189: 0 | R189: 0 | AC189: 532
A190: 121 | C190: 9,500 LUMEN GRANVILLE (7) | F190: 0 | H190: 0 | J190: =$J$189+$AG$9 -> 37.8 | L190: 0 | N190: 0 | P190: 0 | R190: 0 | AC190: 532
A191: 122 | C191: 9,500 LUMEN GRANVILLE (10) | F191: 0 | H191: 0 | J191: =$J$189+$AG$13 -> 26.72 | L191: 0 | N191: 0 | P191: 0 | R191: =L191+P191 -> 0 | AC191: 532
A192: 123 | C192: 9,500 LUMEN GRANVILLE (11) | F192: 0 | H192: 0 | J192: =$J$189+$AG$14 -> 39.11 | L192: 0 | N192: 0 | P192: 0 | R192: 0 | AC192: 532
A193: 124 | C193: 22,000 LUMEN RECTILINEAR | F193: 0 | H193: 0 | J193: 17.97 | L193: 0 | N193: 0 | P193: 0 | R193: =L193+P193 -> 0 | AC193: 1023
A194: 125 | C194: 22,000 LUMEN RECTILINEAR (12) | F194: 127 | H194: 10827 | J194: =$J$193+$AG$15 -> 30.23 | L194: 3839 | N194: 0.3 | P194: 65 | R194: 3904 | AC194: 1023
A195: 126 | C195: 50,000 LUMEN RECTILINEAR | F195: 0 | H195: 0 | J195: 23.85 | L195: 0 | N195: 0 | P195: 0 | R195: =L195+P195 -> 0 | AC195: 1959
A196: 127 | C196: 50,000 LUMEN RECTILINEAR (12) | F196: 27 | H196: 4408 | J196: =$J$195+$AG$15 -> 36.11 | L196: 975 | N196: 0.1 | P196: 26 | R196: =L196+P196 -> 1001 | AC196: 1959
A197: 128 | C197: 50,000 LUMEN RECTILINEAR (13) | F197: 136 | H197: 22202 | J197: =$J$195+$AG$16 -> 36.44 | L197: 4956 | N197: 0.3 | P197: 132 | R197: =L197+P197 -> 5088 | AC197: 1959
A198: 129 | C198: 50,000 LUMEN SETBACK | F198: 0 | H198: 0 | J198: 35.18 | L198: 0 | N198: 0 | P198: 0 | R198: =L198+P198 -> 0 | AC198: 1959
A199: 130 | C199: TOTAL UNDERGROUND | F199: =SUM(F98:F198) -> 12995 | H199: =SUM(H98:H198) -> 875039 | L199: =SUM(L98:L198) -> 287089 | N199: 19.1 | P199: =ROUND(H199*CUR_FAC,0) -> 5220 | R199: =SUM(R98:R198) -> 292305
A200: 131 | C200: RIDERS NOT INCLUDED IN RATES ABOVE ($ PER KWH):
A201: 132 | C201: =ESM_Name -> ENVIRONMENTAL SURCHARGE MECHANISM RIDER (ESM) | J201: =PRO_ESM_NONRES -> 0.07513471937 | L201: =ROUND((R199-(PRO_BASE_FUEL*H199)+R202)*J201,0) -> 23071 | N201: =ROUND((L201/L$209)*100,1) -> 1.5 | R201: =L201+P201 -> 23071
A202: 133 | C202: =PSM_Name -> PROFIT SHARING MECHANISM (PSM) | J202: =PRO_PSM -> 0.004727 | L202: =ROUND(($H$199+$H$94)*J202,0) -> 36989 | N202: =ROUND((L202/L$209)*100,1) -> 2.5 | R202: =L202+P202 -> 36989
A203: 134 | C203: TOTAL RIDERS NOT INCLUDED IN RATES ABOVE | L203: =SUM(L201:L202) -> 60060 | N203: =ROUND((L203/L$209)*100,1) -> 4 | R203: =SUM(R201:R202) -> 60060
A205: 135 | C205: ADD'L FACILITIES CHARGE:
A206: 136 | C206: OVERHEAD | F206: 4932 | J206: 0.76 | L206: =ROUND((F206*J206),0) -> 3748 | N206: =ROUND((L206/L$209)*100,1) -> 0.2 | R206: =L206+P206 -> 3748
A207: 137 | C207: UNDERGROUND | F207: 20364 | J207: 1.1 | L207: 22400 | N207: =ROUND((L207/L$209)*100,1) -> 1.5 | R207: =L207+P207 -> 22400
A208: 138 | C208: TOTAL ADD'L FACILITIES CHG | F208: =SUM(F206:F207) -> 25296 | L208: =SUM(L206:L207) -> 26148 | N208: =ROUND((L208/L$209)*100,1) -> 1.7 | P208: 0 | R208: =SUM(R206:R207) -> 26148
A209: 139 | C209: TOTAL RATE SL INCLUDING RIDERS | F209: =F94+F199 -> 101040 | H209: =H94+H199 -> 7825127 | L209: =L94+L199+L203+L208 -> 1505599 | N209: 100 | P209: =ROUND(H209*CUR_FAC,0) -> 46677 | R209: =R94+R199+R203+R208 -> 1552274
A211: (1) THESE FIGURES REPRESENT NUMBER OF UNITS BILLED. | J211: (5) WITH 35' WOOD POLE. | P211: (9) WITH 30' ALUM POLE.
A212: ="(1A) REFLECTS FUEL COST RECOVERY INCLUDED IN BASE RATES OF "&TEXT(CUR_BASE_FUEL,"$0.000000;($0.000000)")&" PER KWH." -> (1A) REFLECTS FUEL COST RECOVERY INCLUDED IN BASE RATES OF $0.025401 PER KWH. | J212: (6) WITH 40' WOOD POLE. | P212: (10) WITH 17' FIBERGLASS POLE.
... 205 more rows

Sheet Rate TL
A1: =NAME -> DUKE ENERGY KENTUCKY, INC.
A2: =CASE_NO -> CASE NO. 2022-00372 - REHEARING
A3: =TITLE -> ANNUALIZED TEST YEAR REVENUES AT PROPOSED VS. MOST CURRENT RATES
A4: =DATE -> FOR THE TWELVE MONTHS ENDED June 30, 2024
A5: =SERVICE -> (ELECTRIC SERVICE)
A6: =DATA_PERIOD -> DATA: ____ BASE PERIOD __X__FORECASTED PERIOD | R6: SCHEDULE M-2.3
A7: =TYPE -> TYPE OF FILING: ___ ORIGINAL ___UPDATED _X_ REVISED | R7: ="PAGE 16 OF "&TEXT(Page_Num_2.3,"00") -> PAGE 16 OF 24
A8: WORK PAPER REFERENCE NO(S).: | R8: WITNESS:
A9: =TIME -> 12 Months Projected with Riders - STAFF-RHDR-01-005A | R9: =WIT -> B. L. Sailers
A10: PROPOSED ANNUALIZED
L12: PROPOSED | N12: % OF REV TO | R12: PROPOSED | T12: LEGEND
L13: REVENUE LESS | N13: TOTAL LESS | R13: TOTAL
A14: LINE | C14: RATE | D14: CLASS / | F14: CUSTOMER | J14: PROPOSED | L14: FAC | N14: FAC | P14: FAC | R14: REVENUE | U14: formula
A15: NO. | C15: CODE | D15: DESCRIPTION | F15: BILLS(1) | H15: SALES | J15: RATES | L15: REVENUE | N15: REVENUE | P15: REVENUE (2) | R15: (F + H)
C16: (A) | D16: (B) | F16: (C) | H16: (D) | J16: (E) | L16: (F) | N16: (G) | P16: (H) | R16: (I) | U16: input
H17: (KWH) | J17: ($/KWH) | L17: ($) | N17: (%) | P17: ($) | R17: ($)
A18: 1 | C18: TL | D18: TRAFFIC LIGHTING | U18: LT_COS_RATE Increase
A19: 2 | D19: SERVICE
U20: rounding
A21: 3 | C21: (A) WHERE COMPANY
A22: 4 | C22: SUPPLIES ENERGY ONLY (3):
A24: 5 | C24: ALL CONSUMPTION | F24: 87060 | H24: =Y24+Y39 -> 1442664 | J24: 0.057815 | L24: =ROUND((H24*J24),0) -> 83408 | N24: =ROUND((L24/L$47)*100,1) -> 87.9 | P24: =ROUND($P$47/$H$47*H24,0) -> 8605 | R24: =L24+P24 -> 92013 | Y24: 723211
A26: 6 | C26: (B) WHERE COMPANY
A27: 7 | C27: SUPPLIES ENERGY FROM A
A28: 8 | C28: SEPARATELY METERED SOURCE
A29: 9 | C29: AND PROVIDES LIMITED
A30: 10 | C30: MAINTENANCE:
A32: 11 | C32: ALL CONSUMPTION | F32: 0 | H32: 0 | J32: 0 | L32: 0 | N32: =ROUND((L32/L$47)*100,1) -> 0 | P32: =ROUND($P$47/$H$47*H32,0) -> 0 | R32: =L32+P32 -> 0
A34: 12 | C34: (C) WHERE COMPANY
A35: 13 | C35: SUPPLIES ENERGY AND
A36: 14 | C36: PROVIDES LIMITED
A37: 15 | C37: MAINTENANCE (3):
A39: 16 | C39: ALL CONSUMPTION | F39: 19080 | H39: 0 | J39: 0 | L39: =ROUND((H39*J39),0) -> 0 | N39: =ROUND((L39/L$47)*100,1) -> 0 | P39: =ROUND($P$47/$H$47*H39,0) -> 0 | R39: =L39+P39 -> 0 | Y39: 719453
A40: 17 | C40: TOTAL RATE TL EXCLUDING RIDERS | F40: =F39+F32+F24 -> 106140 | H40: =H39+H32+H24 -> 1442664 | L40: =L39+L32+L24 -> 83408 | N40: =ROUND((L40/L$47)*100,1) -> 87.9 | P40: =P39+P32+P24 -> 8605 | R40: =R39+R32+R24 -> 92013
A42: 18 | C42: RIDERS NOT INCLUDED IN RATES ABOVE:
A43: 19 | C43: =ESM_Name -> ENVIRONMENTAL SURCHARGE MECHANISM RIDER (ESM) | J43: =PRO_ESM_NONRES -> 0.07513471937 | L43: =ROUND((R40-(PRO_BASE_FUEL*H40)+R44)*J43,0) -> 4672 | N43: =ROUND((L43/L$47)*100,1) -> 4.9 | R43: =L43+P43 -> 4672
A44: 20 | C44: =PSM_Name -> PROFIT SHARING MECHANISM (PSM) | J44: =PRO_PSM -> 0.004727 | L44: =ROUND($H$40*J44,0) -> 6819 | N44: =ROUND((L44/L$47)*100,1) -> 7.2 | R44: =L44+P44 -> 6819
A45: 21 | C45: TOTAL RIDERS NOT INCLUDED IN RATES ABOVE | L45: =SUM(L43:L44) -> 11491 | N45: =ROUND((L45/L$47)*100,1) -> 12.1 | R45: =SUM(R43:R44) -> 11491
A47: 22 | C47: TOTAL RATE TL INCLUDING RIDERS | F47: =F40 -> 106140 | H47: =H40 -> 1442664 | L47: =L45+L40 -> 94899 | N47: 100 | P47: =ROUND(H47*CUR_FAC,0) -> 8605 | R47: =R45+R40 -> 103504
C49: (1) THESE FIGURES REPRESENT NUMBER OF UNITS BILLED.
C50: ="(2) REFLECTS FUEL COMPONENT OF "&TEXT(PRO_FAC,"$0.000000;($0.000000)")&" PER KWH." -> (2) REFLECTS FUEL COMPONENT OF $0.005965 PER KWH.
C51: ="(3) REFLECTS FUEL COST RECOVERY INCLUDED IN BASE RATES OF "&TEXT(PRO_BASE_FUEL,"$0.000000;($0.000000)")&" PER KWH." -> (3) REFLECTS FUEL COST RECOVERY INCLUDED IN BASE RATES OF $0.025401 PER KWH.
T52: =NAME -> DUKE ENERGY KENTUCKY, INC.
T53: =CASE_NO -> CASE NO. 2022-00372 - REHEARING
T54: =TITLE -> ANNUALIZED TEST YEAR REVENUES AT PROPOSED VS. MOST CURRENT RATES
T55: =DATE -> FOR THE TWELVE MONTHS ENDED June 30, 2024
T56: =SERVICE -> (ELECTRIC SERVICE)
T57: =DATA_PERIOD -> DATA: ____ BASE PERIOD __X__FORECASTED PERIOD | AO57: SCHEDULE M-2.2
T58: =TYPE -> TYPE OF FILING: ___ ORIGINAL ___UPDATED _X_ REVISED | AO58: ="PAGE 16 OF "&TEXT(Page_Num_2.2,"00") -> PAGE 16 OF 23
T59: WORK PAPER REFERENCE NO(S).: | AO59: WITNESS:
T60: =TIME -> 12 Months Projected with Riders - STAFF-RHDR-01-005A | AO60: =WIT -> B. L. Sailers
T61: CURRENT ANNUALIZED
AE63: CURRENT | AG63: % OF REV TO | AI63: REVENUE | AK63: % INCR IN | AO63: CURRENT | AQ63: TOTAL
AC64: MOST | AE64: REVENUE LESS | AG64: TOTAL LESS | AI64: INCR LESS | AK64: REV LESS | AO64: TOTAL | AQ64: REVENUE
T65: LINE | V65: RATE | W65: CLASS / | Y65: CUSTOMER | AC65: CURRENT | AE65: FAC | AG65: FAC | AI65: FAC REV | AK65: FAC REV | AM65: FAC | AO65: REVENUE | AQ65: % INCREASE
T66: NO. | V66: CODE | W66: DESCRIPTION | Y66: BILLS(1) | AA66: SALES | AC66: RATES | AE66: REVENUE | AG66: REVENUE | AI66: (F - K) | AK66: (M / K) | AM66: REVENUE (2) | AO66: (K + H) | AQ66: (M / K1)
V67: (A) | W67: (B) | Y67: (C) | AA67: (D) | AC67: (J) | AE67: (K) | AG67: (L) | AI67: (M) | AK67: (N) | AM67: (H) | AO67: (K1) | AQ67: (O)
AA68: (KWH) | AC68: ($/KWH) | AE68: ($) | AG68: (%) | AI68: ($) | AK68: (%) | AM68: ($) | AO68: ($) | AQ68: (%)
T69: 1 | V69: TL | W69: TRAFFIC LIGHTING
T70: 2 | W70: SERVICE
T72: 3 | V72: (A) WHERE COMPANY
T73: 4 | V73: SUPPLIES ENERGY ONLY (3):
T75: 5 | V75: ALL CONSUMPTION | Y75: =F24 -> 87060 | AA75: =Y24 -> 723211 | AC75: 0.043437 | AE75: =ROUND((AA75*AC75),0) -> 31414 | AG75: =ROUND((AE75/AE$98)*100,1) -> 34.4 | AI75: =L24-AE75 -> 51994 | AK75: =ROUND((AI75/AE75)*100,1) -> 165.5 | AM75: =ROUND($AM$98/$AA$98*AA75,0) -> 4314 | AO75: =AE75+AM75 -> 35728 | AQ75: =ROUND((AI75/AO75)*100,1) -> 145.5
T77: 6 | V77: (B) WHERE COMPANY
T78: 7 | V78: SUPPLIES ENERGY FROM A
T79: 8 | V79: SEPARATELY METERED SOURCE
T80: 9 | V80: AND PROVIDES LIMITED
T81: 10 | V81: MAINTENANCE:
T83: 11 | V83: ALL CONSUMPTION | Y83: =F32 -> 0 | AA83: =H32 -> 0 | AC83: 0.023187 | AE83: 0 | AG83: =ROUND((AE83/AE$98)*100,1) -> 0 | AI83: =L32-AE83 -> 0 | AK83: 0 | AM83: =ROUND($AM$98/$AA$98*AA83,0) -> 0 | AO83: =AE83+AM83 -> 0 | AQ83: 0
T85: 12 | V85: (B) WHERE COMPANY
T86: 13 | V86: SUPPLIES ENERGY AND
T87: 14 | V87: PROVIDES LIMITED
T88: 15 | V88: MAINTENANCE (3):
T90: 16 | V90: ALL CONSUMPTION | Y90: =F39 -> 19080 | AA90: =Y39 -> 719453 | AC90: 0.066624 | AE90: =ROUND((AA90*AC90),0) -> 47933 | AG90: =ROUND((AE90/AE$98)*100,1)-0.1 -> 52.4 | AI90: =L39-AE90 -> -47933 | AK90: =ROUND((AI90/AE90)*100,1) -> -100 | AM90: =ROUND($AM$98/$AA$98*AA90,0) -> 4291 | AO90: =AE90+AM90 -> 52224 | AQ90: =ROUND((AI90/AO90)*100,1) -> -91.8
T91: 17 | V91: TOTAL RATE TL EXCLUDING RIDERS | Y91: =Y90+Y83+Y75 -> 106140 | AA91: =AA90+AA83+AA75 -> 1442664 | AE91: =AE90+AE83+AE75 -> 79347 | AG91: =ROUND((AE91/AE$98)*100,1) -> 86.9 | AI91: =AI90+AI83+AI75 -> 4061 | AK91: =ROUND((AI91/AE91)*100,1) -> 5.1 | AM91: =AM90+AM83+AM75 -> 8605 | AO91: =AO90+AO83+AO75 -> 87952 | AQ91: =ROUND((AI91/AO91)*100,1) -> 4.6
T93: =A42 -> 18 | V93: RIDERS NOT INCLUDED IN RATES ABOVE:
T94: =A43 -> 19 | V94: =C43 -> ENVIRONMENTAL SURCHARGE MECHANISM RIDER (ESM) | AC94: =CUR_ESM_NonRes -> 0.08798914629 | AE94: =ROUND(($AO$91-(CUR_BASE_FUEL*AA91)+AO95)*AC94,0) -> 5114 | AG94: =ROUND((AE94/AE$98)*100,1) -> 5.6 | AI94: =L43-AE94 -> -442 | AK94: =IF(AE94=0,0,ROUND((AI94/AE94)*100,1)) -> -8.6 | AO94: =AE94+AM94 -> 5114 | AQ94: =IF(AO94=0,0,ROUND((AI94/AO94)*100,1)) -> -8.6
T95: =A44 -> 20 | V95: =C44 -> PROFIT SHARING MECHANISM (PSM) | AC95: =RS_PSM -> 0.004727 | AE95: =ROUND($AA$91*AC95,0) -> 6819 | AG95: =ROUND((AE95/AE$98)*100,1) -> 7.5 | AI95: =L44-AE95 -> 0 | AK95: =ROUND((AI95/AE95)*100,1) -> 0 | AO95: =AE95+AM95 -> 6819 | AQ95: =ROUND((AI95/AO95)*100,1) -> 0
T96: =A45 -> 21 | V96: TOTAL RIDERS NOT INCLUDED IN RATES ABOVE | AE96: =SUM(AE94:AE95) -> 11933 | AG96: =ROUND((AE96/AE$98)*100,1) -> 13.1 | AI96: =SUM(AI94:AI95) -> -442 | AK96: =ROUND((AI96/AE96)*100,1) -> -3.7 | AO96: =SUM(AO94:AO95) -> 11933 | AQ96: =ROUND((AI96/AO96)*100,1) -> -3.7
T98: =A47 -> 22 | V98: TOTAL RATE TL INCLUDING RIDERS | Y98: =Y91 -> 106140 | AA98: =AA91 -> 1442664 | AE98: =AE96+AE91 -> 91280 | AG98: 100 | AI98: =AI96+AI91 -> 3619 | AK98: =ROUND((AI98/AE98)*100,1) -> 4 | AM98: =ROUND(AA98*CUR_FAC,0) -> 8605 | AO98: =AO96+AO91 -> 99885 | AQ98: =ROUND((AI98/AO98)*100,1) -> 3.6
V100: (1) THESE FIGURES REPRESENT NUMBER OF UNITS BILLED.
V101: ="(2) REFLECTS FUEL COMPONENT OF "&TEXT(CUR_FAC,"$0.000000;($0.000000)")&" PER KWH." -> (2) REFLECTS FUEL COMPONENT OF $0.005965 PER KWH.
V102: ="(3) REFLECTS FUEL COST RECOVERY INCLUDED IN BASE RATES OF "&TEXT(CUR_BASE_FUEL,"$0.000000;($0.000000)")&" PER KWH." -> (3) REFLECTS FUEL COST RECOVERY INCLUDED IN BASE RATES OF $0.025401 PER KWH.

Sheet Rate UOLS
A1: =NAME -> DUKE ENERGY KENTUCKY, INC.
A2: =CASE_NO -> CASE NO. 2022-00372 - REHEARING
A3: =TITLE -> ANNUALIZED TEST YEAR REVENUES AT PROPOSED VS. MOST CURRENT RATES
A4: =DATE -> FOR THE TWELVE MONTHS ENDED June 30, 2024
A5: =SERVICE -> (ELECTRIC SERVICE)
A6: =DATA_PERIOD -> DATA: ____ BASE PERIOD __X__FORECASTED PERIOD | R6: SCHEDULE M-2.3
A7: =TYPE -> TYPE OF FILING: ___ ORIGINAL ___UPDATED _X_ REVISED | R7: ="PAGE 17 OF "&TEXT(Page_Num_2.3,"00") -> PAGE 17 OF 24
A8: WORK PAPER REFERENCE NO(S).: | R8: WITNESS:
A9: =TIME -> 12 Months Projected with Riders - STAFF-RHDR-01-005A | R9: =WIT -> B. L. Sailers
A10: PROPOSED ANNUALIZED | T10: LEGEND
L12: PROPOSED | N12: % OF REV TO | R12: PROPOSED | U12: formula | Y12: Lighting rate on
L13: REVENUE LESS | N13: TOTAL LESS | R13: TOTAL | Y13: Tariff Sheet
A14: LINE | C14: RATE | D14: CLASS / | F14: CUSTOMER | J14: PROPOSED | L14: FAC | N14: FAC | P14: FAC | R14: REVENUE | U14: input | Y14: less Base Fuel
A15: NO. | C15: CODE | D15: DESCRIPTION | F15: BILLS(1) | H15: SALES | J15: RATES(3) | L15: REVENUE | N15: REVENUE | P15: REVENUE (2) | R15: (F + H)
C16: (A) | D16: (B) | F16: (C) | H16: (D) | J16: (E) | L16: (F) | N16: (G) | P16: (H) | R16: (I) | U16: LT_COS_RATE Increase
H17: (KWH) | J17: ($/KWH) | L17: ($) | N17: (%) | P17: ($) | R17: ($)
U18: rounding
A19: 1 | C19: UOLS | D19: UNMETERED OUTDOOR LIGHTING SERV
A21: 2 | C21: BASE RATE | F21: 109668 | H21: 7267796 | J21: 0.056957 | L21: =ROUND((H21*J21),0) -> 413952 | N21: =ROUND((L21/L$28)*100,1) -> 87.8 | P21: =P28 -> 43352 | R21: =P21+L21 -> 457304 | Y21: =J21-PRO_BASE_FUEL -> 0.031556
A23: 3 | C23: RIDERS NOT INCLUDED IN RATES ABOVE:
A24: 4 | C24: =ESM_Name -> ENVIRONMENTAL SURCHARGE MECHANISM RIDER (ESM) | J24: =PRO_ESM_NONRES -> 0.07513471937 | L24: =ROUND((R21-(PRO_BASE_FUEL*H21)+R25)*J24,0) -> 23070 | N24: =ROUND((L24/L$28)*100,1) -> 4.9 | R24: =P24+L24 -> 23070
A25: 5 | C25: =PSM_Name -> PROFIT SHARING MECHANISM (PSM) | J25: =PRO_PSM -> 0.004727 | L25: =ROUND($H$21*J25,0) -> 34355 | N25: =ROUND((L25/L$28)*100,1) -> 7.3 | R25: =P25+L25 -> 34355
A26: 6 | C26: TOTAL RIDERS NOT INCLUDED IN RATES ABOVE | L26: =SUM(L24:L25) -> 57425 | N26: =ROUND((L26/L$28)*100,1) -> 12.2 | R26: =SUM(R24:R25) -> 57425
A28: 7 | C28: TOTAL RATE UOLS INCLUDING RIDERS | F28: =F21 -> 109668 | H28: =H21 -> 7267796 | L28: =L21+L26 -> 471377 | N28: =SUM(N21,N26) -> 100 | P28: =ROUND(H28*CUR_FAC,0) -> 43352 | R28: =R21+R26 -> 514729
C30: (1) THESE FIGURES REPRESENT NUMBER OF UNITS BILLED.
C31: ="(2) REFLECTS FUEL COMPONENT OF "&TEXT(PRO_FAC,"$0.000000;($0.000000)")&" PER KWH." -> (2) REFLECTS FUEL COMPONENT OF $0.005965 PER KWH.
C32: ="(3) REFLECTS FUEL COST RECOVERY INCLUDED IN BASE RATES OF "&TEXT(PRO_BASE_FUEL,"$0.000000;($0.000000)")&" PER KWH." -> (3) REFLECTS FUEL COST RECOVERY INCLUDED IN BASE RATES OF $0.025401 PER KWH.
T36: =NAME -> DUKE ENERGY KENTUCKY, INC.
T37: =CASE_NO -> CASE NO. 2022-00372 - REHEARING
T38: =TITLE -> ANNUALIZED TEST YEAR REVENUES AT PROPOSED VS. MOST CURRENT RATES
T39: =DATE -> FOR THE TWELVE MONTHS ENDED June 30, 2024
T40: =SERVICE -> (ELECTRIC SERVICE)
T41: =DATA_PERIOD -> DATA: ____ BASE PERIOD __X__FORECASTED PERIOD | AO41: SCHEDULE M-2.2
T42: =TYPE -> TYPE OF FILING: ___ ORIGINAL ___UPDATED _X_ REVISED | AO42: ="PAGE 17 OF "&TEXT(Page_Num_2.2,"00") -> PAGE 17 OF 23
T43: WORK PAPER REFERENCE NO(S).: | AO43: WITNESS:
T44: =TIME -> 12 Months Projected with Riders - STAFF-RHDR-01-005A | AO44: =WIT -> B. L. Sailers
T45: CURRENT ANNUALIZED
AE47: CURRENT | AG47: % OF REV TO | AI47: REVENUE | AK47: % INCR IN | AO47: CURRENT | AQ47: TOTAL
AC48: MOST | AE48: REVENUE LESS | AG48: TOTAL LESS | AI48: INCR LESS | AK48: REV LESS | AO48: TOTAL | AQ48: REVENUE | AU48: Lighting rate on
T49: LINE | V49: RATE | W49: CLASS / | Y49: CUSTOMER | AC49: CURRENT | AE49: FAC | AG49: FAC | AI49: FAC REV | AK49: FAC REV | AM49: FAC | AO49: REVENUE | AQ49: % INCREASE | AU49: Tariff Sheet
T50: NO. | V50: CODE | W50: DESCRIPTION | Y50: BILLS(1) | AA50: SALES | AC50: RATES(3) | AE50: REVENUE | AG50: REVENUE | AI50: (F - K) | AK50: (M / K) | AM50: REVENUE (2) | AO50: (K + H) | AQ50: (M / K1) | AU50: less Base Fuel | AX50: current | AY50: proposed
V51: (A) | W51: (B) | Y51: (C) | AA51: (D) | AC51: (J) | AE51: (K) | AG51: (L) | AI51: (M) | AK51: (N) | AM51: (H) | AO51: (K1) | AQ51: (O) | AW51: annual kwh | AX51: base fuel | AY51: base fuel
AA52: (KWH) | AC52: ($/KWH) | AE52: ($) | AG52: (%) | AI52: ($) | AK52: (%) | AM52: ($) | AO52: ($) | AQ52: (%)
AX53: =CUR_BASE_FUEL -> 0.025401 | AY53: =PRO_BASE_FUEL -> 0.025401
T54: 1 | V54: UOLS | W54: UNMETERED OUTDOOR LIGHTING SERV
T56: 2 | V56: BASE RATE | Y56: =F21 -> 109668 | AA56: =H21 -> 7267796 | AC56: 0.042793 | AE56: =ROUND((AA56*AC56),0) -> 311011 | AG56: =ROUND((AE56/AE$63)*100,1) -> 85.6 | AI56: =L21-AE56 -> 102941 | AK56: =ROUND((AI56/AE56)*100,1) -> 33.1 | AM56: =ROUND($AM$63/$AA$63*AA56,0) -> 43352 | AO56: =AE56+AM56 -> 354363 | AQ56: =ROUND((AI56/AO56)*100,1) -> 29 | AU56: =AC56-CUR_BASE_FUEL -> 0.017392
T58: =A23 -> 3 | V58: RIDERS NOT INCLUDED IN RATES ABOVE:
T59: =A24 -> 4 | V59: =C24 -> ENVIRONMENTAL SURCHARGE MECHANISM RIDER (ESM) | AC59: =CUR_ESM_NonRes -> 0.08798914629 | AE59: =ROUND((AO56-(CUR_BASE_FUEL*AA56)+AO60)*AC59,0) -> 17959 | AG59: =ROUND((AE59/AE$63)*100,1) -> 4.9 | AI59: =L24-AE59 -> 5111 | AK59: =IF(AE59=0,0,ROUND((AI59/AE59)*100,1)) -> 28.5 | AO59: =AE59+AM59 -> 17959 | AQ59: =IF(AO59=0,0,ROUND((AI59/AO59)*100,1)) -> 28.5
T60: =A25 -> 5 | V60: =C25 -> PROFIT SHARING MECHANISM (PSM) | AC60: =RS_PSM -> 0.004727 | AE60: =ROUND($AA$56*AC60,0) -> 34355 | AG60: =ROUND((AE60/AE$63)*100,1) -> 9.5 | AI60: =L25-AE60 -> 0 | AK60: =ROUND((AI60/AE60)*100,1) -> 0 | AO60: =AE60+AM60 -> 34355 | AQ60: =ROUND((AI60/AO60)*100,1) -> 0
T61: =A26 -> 6 | V61: TOTAL RIDERS NOT INCLUDED IN RATES ABOVE | AE61: =SUM(AE59:AE60) -> 52314 | AG61: =ROUND((AE61/AE$63)*100,1) -> 14.4 | AI61: =SUM(AI59:AI60) -> 5111 | AK61: 9.8 | AO61: =SUM(AO59:AO60) -> 52314 | AQ61: 9.8
T63: =A28 -> 7 | V63: TOTAL RATE UOLS INCLUDING RIDERS | Y63: =Y56 -> 109668 | AA63: =AA56 -> 7267796 | AE63: =AE61+AE56 -> 363325 | AG63: 100 | AI63: =AI56+AI61 -> 108052 | AK63: =ROUND((AI63/AE63)*100,1) -> 29.7 | AM63: =ROUND(AA63*CUR_FAC,0) -> 43352 | AO63: =AO61+AO56 -> 406677 | AQ63: =ROUND((AI63/AO63)*100,1) -> 26.6
V65: (1) THESE FIGURES REPRESENT NUMBER OF UNITS BILLED.
V66: ="(2) REFLECTS FUEL COMPONENT OF "&TEXT(CUR_FAC,"$0.000000;($0.000000)")&" PER KWH." -> (2) REFLECTS FUEL COMPONENT OF $0.005965 PER KWH.
V67: ="(3) REFLECTS FUEL COST RECOVERY INCLUDED IN BASE RATES OF "&TEXT(CUR_BASE_FUEL,"$0.000000;($0.000000)")&" PER KWH." -> (3) REFLECTS FUEL COST RECOVERY INCLUDED IN BASE RATES OF $0.025401 PER KWH.

Sheet Rate NSU
A1: =NAME -> DUKE ENERGY KENTUCKY, INC.
A2: =CASE_NO -> CASE NO. 2022-00372 - REHEARING
A3: =TITLE -> ANNUALIZED TEST YEAR REVENUES AT PROPOSED VS. MOST CURRENT RATES
A4: =DATE -> FOR THE TWELVE MONTHS ENDED June 30, 2024
A5: =SERVICE -> (ELECTRIC SERVICE) | V5: LEGEND
A6: =DATA_PERIOD -> DATA: ____ BASE PERIOD __X__FORECASTED PERIOD | R6: SCHEDULE M-2.3
A7: =TYPE -> TYPE OF FILING: ___ ORIGINAL ___UPDATED _X_ REVISED | R7: ="PAGE 18 OF "&TEXT(Page_Num_2.3,"00") -> PAGE 18 OF 24 | W7: formula
A8: WORK PAPER REFERENCE NO(S).: | R8: WITNESS:
A9: =TIME -> 12 Months Projected with Riders - STAFF-RHDR-01-005A | R9: =WIT -> B. L. Sailers | W9: input
A10: PROPOSED ANNUALIZED
W11: LT_COS_RATE Increase
L12: PROPOSED | N12: % OF REV TO | R12: PROPOSED
L13: REVENUE LESS | N13: TOTAL LESS | R13: TOTAL | W13: rounding
A14: LINE | C14: RATE | D14: CLASS / | F14: CUSTOMER | J14: PROPOSED | L14: FAC | N14: FAC | P14: FAC | R14: REVENUE
A15: NO. | C15: CODE | D15: DESCRIPTION | F15: BILLS(1) | H15: SALES | J15: RATES(3) | L15: REVENUE | N15: REVENUE | P15: REVENUE (2) | R15: (F + H)
C16: (A) | D16: (B) | F16: (C) | H16: (D) | J16: (E) | L16: (F) | N16: (G) | P16: (H) | R16: (I)
H17: (KWH) | J17: ($/UNIT) | L17: ($) | N17: (%) | P17: ($) | R17: ($) | Y17: Lighting rate on
A18: 1 | C18: NSU | D18: NON STANDARD STREET LIGHT UNITS | Y18: Tariff Sheet
Y19: less Base Fuel
A20: 2 | C20: (A) COMPANY OWNED
A21: 3 | C21: (1) BOULEVARD INCANDESCENT(UG):
A22: 4 | C22: 2,500 LUMEN SERIES | F22: 0 | H22: =ROUND(F22*786/12,0) -> 0 | J22: 13.6 | L22: =ROUND((F22*J22),0) -> 0 | N22: =ROUND((L22/L$45)*100,1) -> 0 | P22: =ROUND($P$45/$H$45*H22,0) -> 0 | R22: =L22+P22 -> 0 | Y22: =J22-AY72 -> 12.3
A23: 5 | C23: 2,500 LUMEN MULTIPLE | F23: 128 | H23: =ROUND(F23*786/12,0) -> 8384 | J23: 10.62 | L23: =ROUND((F23*J23),0) -> 1359 | N23: =ROUND((L23/L$45)*100,1) -> 1.4 | P23: =ROUND($P$45/$H$45*H23,0) -> 50 | R23: =L23+P23 -> 1409 | Y23: =J23-AY73 -> 8.96
A24: 6 | C24: (2) HOLOPHANE DECORATIVE:
A25: 7 | C25: 10,000 LUMEN MV W
A26: 8 | C26: 17' FIBERGLASS POLE | F26: 332 | H26: =ROUND(F26*1215/12,0) -> 33615 | J26: 24.8 | L26: =ROUND((F26*J26),0) -> 8234 | N26: =ROUND((L26/L$45)*100,1) -> 8.5 | P26: =ROUND($P$45/$H$45*H26,0) -> 201 | R26: =L26+P26 -> 8435 | Y26: =J26-AY76 -> 22.23
A27: 9 | C27: (3) STREET LGT UNITS (OH)
A28: 10 | C28: 2,500 LUMEN INDANDESCENT | F28: 750 | H28: =ROUND(F28*786/12,0) -> 49125 | J28: 10.53 | L28: =ROUND((F28*J28),0) -> 7898 | N28: =ROUND((L28/L$45)*100,1) -> 8.2 | P28: =ROUND($P$45/$H$45*H28,0) -> 293 | R28: =L28+P28 -> 8191 | Y28: =J28-AY78 -> 8.87
A29: 11 | C29: 2,500 LUMEN MERCURY VAPOR | F29: 6544 | H29: =ROUND(F29*453/12,0) -> 247036 | J29: 9.92 | L29: =ROUND((F29*J29),0) -> 64916 | N29: =ROUND((L29/L$45)*100,1) -> 67 | P29: =ROUND($P$45/$H$45*H29,0) -> 1474 | R29: =L29+P29 -> 66390 | Y29: =J29-AY79 -> 8.96
A30: 12 | C30: 21,000 LUMEN MERCURY VAPOR | F30: 364 | H30: =ROUND(F30*1914/12,0) -> 58058 | J30: 15.93 | L30: =ROUND((F30*J30),0) -> 5799 | N30: =ROUND((L30/L$45)*100,1) -> 6 | P30: =P31-P22-P23-P26-P28-P29 -> 346 | R30: =L30+P30 -> 6145 | Y30: =J30-AY80 -> 11.88
A31: 13 | C31: TOTAL COMPANY OWNED | F31: =SUM(F22:F30) -> 8118 | H31: =SUM(H22:H30) -> 396218 | L31: =SUM(L22:L30) -> 88206 | N31: =ROUND((L31/L$45)*100,1) -> 91 | P31: =ROUND($P$45/$H$45*H31,0) -> 2364 | R31: =SUM(R22:R30) -> 90570
A33: 14 | C33: (B) CUSTOMER OWNED WITH LTD MAINT
A34: 15 | C34: (1) BOULEVARD INCANDESCENT(UG):
A35: 16 | C35: 2,500 LUMEN SERIES | F35: 0 | H35: =ROUND(F35*616/12,0) -> 0 | J35: 8.07 | L35: =ROUND((F35*J35),0) -> 0 | N35: =ROUND((L35/L$45)*100,1) -> 0 | P35: =ROUND($P$45/$H$45*H35,0) -> 0 | R35: =L35+P35 -> 0 | Y35: =J35-AY85 -> 6.766082
A36: 17 | C36: 2,500 LUMEN MULTIPLE | F36: 54 | H36: =ROUND(F36*786/12,0) -> 3537 | J36: 10.26 | L36: =ROUND((F36*J36),0) -> 554 | N36: =ROUND((L36/L$45)*100,1) -> 0.6 | P36: =ROUND($P$45/$H$45*H36,0) -> 21 | R36: =L36+P36 -> 575 | Y36: =J36-AY86 -> 8.596234
A37: 18 | C37: TOTAL CUSTOMER OWNED | F37: =SUM(F35:F36) -> 54 | H37: =SUM(H35:H36) -> 3537 | L37: =SUM(L35:L36) -> 554 | N37: =ROUND((L37/L$45)*100,1) -> 0.6 | P37: =ROUND($P$45/$H$45*H37,0) -> 21 | R37: =SUM(R35:R36) -> 575
A38: 19 | C38: TOTAL RATE NSU EXCLUDING RIDERS | F38: =F37+F31 -> 8172 | H38: =H37+H31 -> 399755 | L38: =L37+L31 -> 88760 | N38: =ROUND((L38/L$45)*100,1) -> 91.6 | P38: =P37+P31 -> 2385 | R38: =R37+R31 -> 91145
A40: 20 | C40: RIDERS NOT INCLUDED IN RATES ABOVE ($/KWH):
A41: 21 | C41: =ESM_Name -> ENVIRONMENTAL SURCHARGE MECHANISM RIDER (ESM) | J41: =PRO_ESM_NONRES -> 0.07513471937 | L41: =ROUND((R38-(PRO_BASE_FUEL*H38)+R42)*J41,0) -> 6227 | N41: =ROUND((L41/L$45)*100,1) -> 6.4 | R41: =L41+P41 -> 6227
A42: 22 | C42: =PSM_Name -> PROFIT SHARING MECHANISM (PSM) | J42: =PRO_PSM -> 0.004727 | L42: =ROUND($H$38*J42,0) -> 1890 | N42: =ROUND((L42/L$45)*100,1) -> 2 | R42: =L42+P42 -> 1890
A43: 23 | C43: TOTAL RIDERS NOT INCLUDED IN RATES ABOVE | L43: =SUM(L41:L42) -> 8117 | N43: =ROUND((L43/L$45)*100,1) -> 8.4 | R43: =SUM(R41:R42) -> 8117
V44: 1.1
A45: 24 | C45: TOTAL RATE NSU INCLUDING RIDERS | F45: =F31+F37 -> 8172 | H45: =H31+H37 -> 399755 | L45: =L43+L38 -> 96877 | N45: 100 | P45: =ROUND(H45*CUR_FAC,0) -> 2385 | R45: =R43+R38 -> 99262
C47: (1) THESE FIGURES REPRESENT NUMBER OF UNITS BILLED.
C48: ="(2) REFLECTS FUEL COMPONENT OF "&TEXT(PRO_FAC,"$0.000000;($0.000000)")&" PER KWH." -> (2) REFLECTS FUEL COMPONENT OF $0.005965 PER KWH.
C49: ="(3) REFLECTS FUEL COST RECOVERY INCLUDED IN BASE RATES OF "&TEXT(PRO_BASE_FUEL,"$0.000000;($0.000000)")&" PER KWH." -> (3) REFLECTS FUEL COST RECOVERY INCLUDED IN BASE RATES OF $0.025401 PER KWH.
T51: =NAME -> DUKE ENERGY KENTUCKY, INC.
T52: =CASE_NO -> CASE NO. 2022-00372 - REHEARING
T53: =TITLE -> ANNUALIZED TEST YEAR REVENUES AT PROPOSED VS. MOST CURRENT RATES
T54: =DATE -> FOR THE TWELVE MONTHS ENDED June 30, 2024
T55: =SERVICE -> (ELECTRIC SERVICE)
T56: =DATA_PERIOD -> DATA: ____ BASE PERIOD __X__FORECASTED PERIOD | AO56: SCHEDULE M-2.2
T57: =TYPE -> TYPE OF FILING: ___ ORIGINAL ___UPDATED _X_ REVISED | AO57: ="PAGE 18 OF "&TEXT(Page_Num_2.2,"00") -> PAGE 18 OF 23
T58: WORK PAPER REFERENCE NO(S).: | AO58: WITNESS:
T59: =TIME -> 12 Months Projected with Riders - STAFF-RHDR-01-005A | AO59: =WIT -> B. L. Sailers
T60: CURRENT ANNUALIZED
AE62: CURRENT | AG62: % OF REV TO | AI62: REVENUE | AK62: % INCR IN | AO62: CURRENT | AQ62: TOTAL
AC63: MOST | AE63: REVENUE LESS | AG63: TOTAL LESS | AI63: INCR LESS | AK63: REV LESS | AO63: TOTAL | AQ63: REVENUE
T64: LINE | V64: RATE | W64: CLASS / | Y64: CUSTOMER | AC64: CURRENT | AE64: FAC | AG64: FAC | AI64: FAC REV | AK64: FAC REV | AM64: FAC | AO64: REVENUE | AQ64: % INCREASE
T65: NO. | V65: CODE | W65: DESCRIPTION | Y65: BILLS(1) | AA65: SALES | AC65: RATES(3) | AE65: REVENUE | AG65: REVENUE | AI65: (F - K) | AK65: (M / K) | AM65: REVENUE (2) | AO65: (K + H) | AQ65: (M / K1) | AX65: current | AY65: proposed
V66: (A) | W66: (B) | Y66: (C) | AA66: (D) | AC66: (J) | AE66: (K) | AG66: (L) | AI66: (M) | AK66: (N) | AM66: (H) | AO66: (K1) | AQ66: (O) | AU66: Lighting rate on | AW66: annual kwh | AX66: base fuel | AY66: base fuel
AA67: (KWH) | AC67: ($/UNIT) | AE67: ($) | AG67: (%) | AI67: ($) | AK67: (%) | AM67: ($) | AO67: ($) | AQ67: (%) | AU67: Tariff Sheet
T68: 1 | V68: NSU | W68: NON STANDARD STREET LIGHT UNITS | AU68: less Base Fuel
T70: 2 | V70: (A) COMPANY OWNED
T71: 3 | V71: (1) BOULEVARD INCANDESCENT(UG):
T72: 4 | V72: 2,500 LUMEN SERIES | Y72: =F22 -> 0 | AA72: =H22 -> 0 | AC72: 10.22 | AE72: =ROUND((Y72*AC72),0) -> 0 | AG72: =ROUND((AE72/AE$95)*100,1) -> 0 | AI72: =L22-AE72 -> 0 | AK72: 0 | AM72: =ROUND($AM$95/$AA$95*AA72,0) -> 0 | AO72: =AE72+AM72 -> 0 | AQ72: 0 | AU72: =AC72-AX72 -> 8.92 | AW72: 616 | AX72: =ROUND((AW72/12)*CUR_BASE_FUEL,2) -> 1.3 | AY72: =ROUND((AW72/12)*PRO_BASE_FUEL,2) -> 1.3
T73: 5 | V73: 2,500 LUMEN MULTIPLE | Y73: =F23 -> 128 | AA73: =H23 -> 8384 | AC73: 7.98 | AE73: =ROUND((Y73*AC73),0) -> 1021 | AG73: =ROUND((AE73/AE$95)*100,1) -> 1.4 | AI73: =L23-AE73 -> 338 | AK73: 0 | AM73: =ROUND($AM$95/$AA$95*AA73,0) -> 50 | AO73: =AE73+AM73 -> 1071 | AQ73: 0 | AU73: =AC73-AX73 -> 6.32 | AW73: 786 | AX73: =ROUND((AW73/12)*CUR_BASE_FUEL,2) -> 1.66 | AY73: =ROUND((AW73/12)*PRO_BASE_FUEL,2) -> 1.66
T74: 6 | V74: (2) HOLOPHANE DECORATIVE:
T75: 7 | V75: 10,000 LUMEN MV W
T76: 8 | V76: 17' FIBERGLASS POLE | Y76: =F26 -> 332 | AA76: =H26 -> 33615 | AC76: 18.63 | AE76: =ROUND((Y76*AC76),0) -> 6185 | AG76: =ROUND((AE76/AE$95)*100,1) -> 8.4 | AI76: =L26-AE76 -> 2049 | AK76: =ROUND((AI76/AE76)*100,1) -> 33.1 | AM76: =ROUND($AM$95/$AA$95*AA76,0) -> 201 | AO76: =AE76+AM76 -> 6386 | AQ76: =ROUND((AI76/AO76)*100,1) -> 32.1 | AU76: =AC76-AX76 -> 16.06 | AW76: 1215 | AX76: =ROUND((AW76/12)*CUR_BASE_FUEL,2) -> 2.57 | AY76: =ROUND((AW76/12)*PRO_BASE_FUEL,2) -> 2.57
T77: 9 | V77: (3) STREET LGT UNITS (OH)
T78: 10 | V78: 2,500 LUMEN INDANDESCENT | Y78: =F28 -> 750 | AA78: =H28 -> 49125 | AC78: 7.91 | AE78: =ROUND((Y78*AC78),0) -> 5933 | AG78: =ROUND((AE78/AE$95)*100,1) -> 8 | AI78: =L28-AE78 -> 1965 | AK78: =ROUND((AI78/AE78)*100,1) -> 33.1 | AM78: =ROUND($AM$95/$AA$95*AA78,0) -> 293 | AO78: =AE78+AM78 -> 6226 | AQ78: =ROUND((AI78/AO78)*100,1) -> 31.6 | AU78: =AC78-AX78 -> 6.25 | AW78: 786 | AX78: =ROUND((AW78/12)*CUR_BASE_FUEL,2) -> 1.66 | AY78: =ROUND((AW78/12)*PRO_BASE_FUEL,2) -> 1.66
T79: 11 | V79: 2,500 LUMEN MERCURY VAPOR | Y79: =F29 -> 6544 | AA79: =H29 -> 247036 | AC79: 7.45 | AE79: =ROUND((Y79*AC79),0) -> 48753 | AG79: =ROUND((AE79/AE$95)*100,1)-0.1 -> 65.9 | AI79: =L29-AE79 -> 16163 | AK79: =ROUND((AI79/AE79)*100,1) -> 33.2 | AM79: =ROUND($AM$95/$AA$95*AA79,0)-1 -> 1473 | AO79: =AE79+AM79 -> 50226 | AQ79: =ROUND((AI79/AO79)*100,1) -> 32.2 | AU79: =AC79-AX79 -> 6.49 | AW79: 453 | AX79: =ROUND((AW79/12)*CUR_BASE_FUEL,2) -> 0.96 | AY79: =ROUND((AW79/12)*PRO_BASE_FUEL,2) -> 0.96
T80: 12 | V80: 21,000 LUMEN MERCURY VAPOR | Y80: =F30 -> 364 | AA80: =H30 -> 58058 | AC80: 11.97 | AE80: =ROUND((Y80*AC80),0) -> 4357 | AG80: =ROUND((AE80/AE$95)*100,1) -> 5.9 | AI80: =L30-AE80 -> 1442 | AK80: =ROUND((AI80/AE80)*100,1) -> 33.1 | AM80: =ROUND($AM$95/$AA$95*AA80,0) -> 346 | AO80: =AE80+AM80 -> 4703 | AQ80: =ROUND((AI80/AO80)*100,1) -> 30.7 | AU80: =AC80-AX80 -> 7.92 | AW80: 1914 | AX80: =ROUND((AW80/12)*CUR_BASE_FUEL,2) -> 4.05 | AY80: =ROUND((AW80/12)*PRO_BASE_FUEL,2) -> 4.05
T81: 13 | V81: TOTAL COMPANY OWNED | Y81: =SUM(Y72:Y80) -> 8118 | AA81: =SUM(AA72:AA80) -> 396218 | AE81: =SUM(AE72:AE80) -> 66249 | AG81: =SUM(AG72:AG80) -> 89.6 | AI81: =SUM(AI72:AI80) -> 21957 | AK81: =ROUND((AI81/AE81)*100,1) -> 33.1 | AM81: =ROUND($AM$95/$AA$95*AA81,0) -> 2364 | AO81: =AE81+AM81 -> 68613 | AQ81: =ROUND((AI81/AO81)*100,1) -> 32
T83: 14 | V83: (B) CUSTOMER OWNED WITH LTD MAINT
T84: 15 | V84: (1) BOULEVARD INCANDESCENT(UG):
T85: 16 | V85: 2,500 LUMEN SERIES | Y85: =F35 -> 0 | AA85: =H35 -> 0 | AC85: 6.06 | AE85: =ROUND((Y85*AC85),0) -> 0 | AG85: =ROUND((AE85/AE$95)*100,1) -> 0 | AI85: =L35-AE85 -> 0 | AK85: 0 | AM85: =ROUND($AM$95/$AA$95*AA85,0) -> 0 | AO85: =AE85+AM85 -> 0 | AQ85: 0 | AU85: =AC85-AX85 -> 4.756082 | AW85: 616 | AX85: =ROUND((AW85/12)*CUR_BASE_FUEL,6) -> 1.303918 | AY85: =ROUND((AW85/12)*PRO_BASE_FUEL,6) -> 1.303918
T86: 17 | V86: 2,500 LUMEN MULTIPLE | Y86: =F36 -> 54 | AA86: =H36 -> 3537 | AC86: 7.71 | AE86: =ROUND((Y86*AC86),0) -> 416 | AG86: =ROUND((AE86/AE$95)*100,1) -> 0.6 | AI86: =L36-AE86 -> 138 | AK86: 0 | AM86: =ROUND($AM$95/$AA$95*AA86,0) -> 21 | AO86: =AE86+AM86 -> 437 | AQ86: 0 | AU86: =AC86-AX86 -> 6.046234 | AW86: 786 | AX86: =ROUND((AW86/12)*CUR_BASE_FUEL,6) -> 1.663766 | AY86: =ROUND((AW86/12)*PRO_BASE_FUEL,6) -> 1.663766
T87: 18 | V87: TOTAL CUSTOMER OWNED | Y87: =SUM(Y85:Y86) -> 54 | AA87: =SUM(AA85:AA86) -> 3537 | AE87: =SUM(AE85:AE86) -> 416 | AG87: =ROUND((AE87/AE$95)*100,1) -> 0.6 | AI87: =SUM(AI85:AI86) -> 138 | AK87: =ROUND((AI87/AE87)*100,1) -> 33.2 | AM87: =ROUND($AM$95/$AA$95*AA87,0) -> 21 | AO87: =SUM(AO85:AO86) -> 437 | AQ87: =ROUND((AI87/AO87)*100,1) -> 31.6
T88: 19 | V88: TOTAL RATE NSU EXCLUDING RIDERS | Y88: =Y87+Y81 -> 8172 | AA88: =AA87+AA81 -> 399755 | AE88: =AE87+AE81 -> 66665 | AG88: =ROUND((AE88/AE$95)*100,1) -> 90.2 | AI88: =AI87+AI81 -> 22095 | AK88: =ROUND((AI88/AE88)*100,1) -> 33.1 | AM88: =AM87+AM81 -> 2385 | AO88: =AO87+AO81 -> 69050 | AQ88: =ROUND((AI88/AO88)*100,1) -> 32
T90: =A40 -> 20 | V90: RIDERS NOT INCLUDED IN RATES ABOVE ($/KWH):
T91: =A41 -> 21 | V91: =C41 -> ENVIRONMENTAL SURCHARGE MECHANISM RIDER (ESM) | AC91: =CUR_ESM_NonRes -> 0.08798914629 | AE91: =ROUND((AO88-(CUR_BASE_FUEL*AA88)+AO92)*AC91,0) -> 5348 | AG91: =ROUND((AE91/AE$95)*100,1) -> 7.2 | AI91: =L41-AE91 -> 879 | AK91: =IF(AE91=0,0,ROUND((AI91/AE91)*100,1)) -> 16.4 | AO91: =AE91+AM91 -> 5348 | AQ91: =IF(AO91=0,0,ROUND((AI91/AO91)*100,1)) -> 16.4
T92: =A42 -> 22 | V92: =C42 -> PROFIT SHARING MECHANISM (PSM) | AC92: =RS_PSM -> 0.004727 | AE92: =ROUND($AA$88*AC92,0) -> 1890 | AG92: =ROUND((AE92/AE$95)*100,1) -> 2.6 | AI92: =L42-AE92 -> 0 | AK92: =ROUND((AI92/AE92)*100,1) -> 0 | AO92: =AE92+AM92 -> 1890 | AQ92: =ROUND((AI92/AO92)*100,1) -> 0
T93: =A43 -> 23 | V93: TOTAL RIDERS NOT INCLUDED IN RATES ABOVE | AE93: =SUM(AE91:AE92) -> 7238 | AG93: =ROUND((AE93/AE$95)*100,1) -> 9.8 | AI93: =SUM(AI91:AI92) -> 879 | AK93: 12.1 | AO93: =SUM(AO91:AO92) -> 7238 | AQ93: 12.1
T95: =A45 -> 24 | V95: TOTAL RATE NSU INCLUDING RIDERS | Y95: =Y88 -> 8172 | AA95: =AA88 -> 399755 | AE95: =AE88+AE93 -> 73903 | AG95: 100 | AI95: =AI88+AI93 -> 22974 | AK95: =ROUND((AI95/AE95)*100,1) -> 31.1 | AM95: =ROUND(AA95*CUR_FAC,0) -> 2385 | AO95: =AO88+AO93 -> 76288 | AQ95: =ROUND((AI95/AO95)*100,1) -> 30.1
V97: (1) THESE FIGURES REPRESENT NUMBER OF UNITS BILLED.
V98: ="(2) REFLECTS FUEL COMPONENT OF "&TEXT(CUR_FAC,"$0.000000;($0.000000)")&" PER KWH." -> (2) REFLECTS FUEL COMPONENT OF $0.005965 PER KWH.
V99: ="(3) REFLECTS FUEL COST RECOVERY INCLUDED IN BASE RATES OF "&TEXT(CUR_BASE_FUEL,"$0.000000;($0.000000)")&" PER KWH." -> (3) REFLECTS FUEL COST RECOVERY INCLUDED IN BASE RATES OF $0.025401 PER KWH.

Sheet Rate SC
A1: =NAME -> DUKE ENERGY KENTUCKY, INC.
A2: =CASE_NO -> CASE NO. 2022-00372 - REHEARING
A3: =TITLE -> ANNUALIZED TEST YEAR REVENUES AT PROPOSED VS. MOST CURRENT RATES | V3: LEGEND
A4: =DATE -> FOR THE TWELVE MONTHS ENDED June 30, 2024
A5: =SERVICE -> (ELECTRIC SERVICE) | W5: formula
A6: =DATA_PERIOD -> DATA: ____ BASE PERIOD __X__FORECASTED PERIOD | R6: SCHEDULE M-2.3
A7: =TYPE -> TYPE OF FILING: ___ ORIGINAL ___UPDATED _X_ REVISED | R7: ="PAGE 19 OF "&TEXT(Page_Num_2.3,"00") -> PAGE 19 OF 24 | W7: input
A8: WORK PAPER REFERENCE NO(S).: | R8: WITNESS:
A9: =TIME -> 12 Months Projected with Riders - STAFF-RHDR-01-005A | R9: =WIT -> B. L. Sailers | W9: LT_COS_RATE Increase
A10: PROPOSED ANNUALIZED
W11: rounding
L12: PROPOSED | N12: % OF REV TO | R12: PROPOSED
L13: REVENUE LESS | N13: TOTAL LESS | R13: TOTAL
A14: LINE | C14: RATE | D14: CLASS / | F14: CUSTOMER | J14: PROPOSED | L14: FAC | N14: FAC | P14: FAC | R14: REVENUE
A15: NO. | C15: CODE | D15: DESCRIPTION | F15: BILLS(1) | H15: SALES | J15: RATES(3) | L15: REVENUE | N15: REVENUE | P15: REVENUE (2) | R15: (F + H)
C16: (A) | D16: (B) | F16: (C) | H16: (D) | J16: (E) | L16: (F) | N16: (G) | P16: (H) | R16: (I)
H17: (KWH) | J17: ($/UNIT)/ | L17: ($) | N17: (%) | P17: ($) | R17: ($) | Y17: Lighting rate on
A18: 1 | C18: SC | D18: STREET LIGHTING - | J18: ($/KWH) | Y18: Tariff Sheet
A19: 2 | C19: CUST OWNED/LTD MAINT
A20: 3 | C20: STANDARD UNIT-COBRAHEAD
A21: 4 | C21: MERCURY VAPOR --
A22: 5 | C22: 7,000 LUMEN | F22: 0 | H22: 0 | J22: 6.27 | L22: =ROUND(F22*J22,0) -> 0 | N22: =ROUND((L22/L$72)*100,1) -> 0 | P22: =ROUND((P$72/H$72)*H22,0) -> 0 | R22: =P22+L22 -> 0 | Y22: =J22-AY95 -> 4.57
A23: 6 | C23: 10,000 LUMEN | F23: 0 | H23: 0 | J23: 8.01 | L23: =ROUND(F23*J23,0) -> 0 | N23: =ROUND((L23/L$72)*100,1) -> 0 | P23: =ROUND((P$72/H$72)*H23,0) -> 0 | R23: =P23+L23 -> 0 | Y23: =J23-AY96 -> 5.59
A24: 7 | C24: 21,000 LUMEN | F24: 0 | H24: 0 | J24: 11.14 | L24: =ROUND(F24*J24,0) -> 0 | N24: =ROUND((L24/L$72)*100,1) -> 0 | P24: =ROUND((P$72/H$72)*H24,0) -> 0 | R24: =P24+L24 -> 0 | Y24: =J24-AY97 -> 7.35
A26: 8 | C26: METAL HALIDE --
A27: 9 | C27: 14,000 LUMEN | F27: 0 | H27: 0 | J27: 6.27 | L27: =ROUND(F27*J27,0) -> 0 | N27: =ROUND((L27/L$72)*100,1) -> 0 | P27: =ROUND((P$72/H$72)*H27,0) -> 0 | R27: =P27+L27 -> 0 | Y27: =J27-AY100 -> 4.57
A28: 10 | C28: 20,500 LUMEN | F28: 0 | H28: 0 | J28: 8.01 | L28: =ROUND(F28*J28,0) -> 0 | N28: =ROUND((L28/L$72)*100,1) -> 0 | P28: =ROUND((P$72/H$72)*H28,0) -> 0 | R28: =P28+L28 -> 0 | Y28: =J28-AY101 -> 5.59
A29: 11 | C29: 36,000 LUMEN | F29: 0 | H29: 0 | J29: 11.14 | L29: =ROUND(F29*J29,0) -> 0 | N29: =ROUND((L29/L$72)*100,1) -> 0 | P29: =ROUND((P$72/H$72)*H29,0) -> 0 | R29: =P29+L29 -> 0 | Y29: =J29-AY102 -> 7.35
A31: 12 | C31: SODIUM VAPOR--
A32: 13 | C32: 9,500 LUMEN | F32: 0 | H32: =ROUND(F32*487/12,0) -> 0 | J32: 7.45 | L32: =ROUND(F32*J32,0) -> 0 | N32: =ROUND((L32/L$72)*100,1) -> 0 | P32: =ROUND((P$72/H$72)*H32,0) -> 0 | R32: =P32+L32 -> 0 | Y32: =J32-AY105 -> 6.42
A33: 14 | C33: 16,000 LUMEN | F33: 0 | H33: 0 | J33: 8.35 | L33: =ROUND(F33*J33,0) -> 0 | N33: =ROUND((L33/L$72)*100,1) -> 0 | P33: =ROUND((P$72/H$72)*H33,0) -> 0 | R33: =P33+L33 -> 0 | Y33: =J33-AY106 -> 6.84
A34: 15 | C34: 22,000 LUMEN | F34: 0 | H34: 0 | J34: 9.2 | L34: =ROUND(F34*J34,0) -> 0 | N34: =ROUND((L34/L$72)*100,1) -> 0 | P34: =ROUND((P$72/H$72)*H34,0) -> 0 | R34: =P34+L34 -> 0 | Y34: =J34-AY107 -> 7.19
A35: 16 | C35: 27,500 LUMEN | F35: 0 | H35: 0 | J35: 9.2 | L35: =ROUND(F35*J35,0) -> 0 | N35: =ROUND((L35/L$72)*100,1) -> 0 | P35: =ROUND((P$72/H$72)*H35,0) -> 0 | R35: =P35+L35 -> 0 | Y35: =J35-AY108 -> 7.19
A36: 17 | C36: 50,000 LUMEN | F36: 0 | H36: 0 | J36: 12.58 | L36: =ROUND(F36*J36,0) -> 0 | N36: =ROUND((L36/L$72)*100,1) -> 0 | P36: =ROUND((P$72/H$72)*H36,0) -> 0 | R36: =P36+L36 -> 0 | Y36: =J36-AY109 -> 8.43
A38: 18 | C38: DECORATIVE UNITS:
A39: 19 | C39: 7,000 LUMEN MERCURY VAPOR--
A40: 20 | C40: HOLOPHANE | F40: 0 | H40: 0 | J40: 7.95 | L40: =ROUND(F40*J40,0) -> 0 | N40: =ROUND((L40/L$72)*100,1) -> 0 | P40: =ROUND((P$72/H$72)*H40,0) -> 0 | R40: =P40+L40 -> 0 | Y40: =J40-AY113 -> 6.1
A41: 21 | C41: TOWN & COUNTRY | F41: 0 | H41: 0 | J41: 7.87 | L41: =ROUND(F41*J41,0) -> 0 | N41: =ROUND((L41/L$72)*100,1) -> 0 | P41: =ROUND((P$72/H$72)*H41,0) -> 0 | R41: =P41+L41 -> 0 | Y41: =J41-AY114 -> 6.06
A42: 22 | C42: GAS REPLICA | F42: 0 | H42: 0 | J42: 7.95 | L42: =ROUND(F42*J42,0) -> 0 | N42: =ROUND((L42/L$72)*100,1) -> 0 | P42: =ROUND((P$72/H$72)*H42,0) -> 0 | R42: =P42+L42 -> 0 | Y42: =J42-AY115 -> 6.1
A43: 23 | C43: ASPEN | F43: 0 | H43: 0 | J43: 7.95 | L43: =ROUND(F43*J43,0) -> 0 | N43: =ROUND((L43/L$72)*100,1) -> 0 | P43: =ROUND((P$72/H$72)*H43,0) -> 0 | R43: =P43+L43 -> 0 | Y43: =J43-AY116 -> 6.1
A45: 24 | C45: 14,000 LUMEN METAL HALIDE-- | AX45: current | AY45: proposed
A46: 25 | C46: TRADITIONAIRE | F46: 0 | H46: 0 | J46: 7.87 | L46: =ROUND(F46*J46,0) -> 0 | N46: =ROUND((L46/L$72)*100,1) -> 0 | P46: =ROUND((P$72/H$72)*H46,0) -> 0 | R46: =P46+L46 -> 0 | Y46: =J46-AY119 -> 6.06 | AW46: annual kwh | AX46: base fuel | AY46: base fuel
A47: 26 | C47: GRANVILLE ACORN | F47: 0 | H47: 0 | J47: 7.95 | L47: =ROUND(F47*J47,0) -> 0 | N47: =ROUND((L47/L$72)*100,1) -> 0 | P47: =ROUND((P$72/H$72)*H47,0) -> 0 | R47: =P47+L47 -> 0 | Y47: =J47-AY120 -> 6.1
A48: 27 | C48: GAS REPLICA | F48: 0 | H48: 0 | J48: 7.95 | L48: =ROUND(F48*J48,0) -> 0 | N48: =ROUND((L48/L$72)*100,1) -> 0 | P48: =ROUND((P$72/H$72)*H48,0) -> 0 | R48: =P48+L48 -> 0 | Y48: =J48-AY121 -> 6.1
A50: 28 | C50: 9,500 LUMEN SODIUM VAPOR--
A51: 29 | C51: TOWN & COUNTRY | F51: 0 | H51: 0 | J51: 7.35 | L51: =ROUND(F51*J51,0) -> 0 | N51: =ROUND((L51/L$72)*100,1) -> 0 | P51: =ROUND((P$72/H$72)*H51,0) -> 0 | R51: =P51+L51 -> 0 | Y51: =J51-AY124 -> 6.32
A52: 30 | C52: TRADITIONAIRE | F52: 0 | H52: 0 | J52: 7.35 | L52: 0 | N52: 0 | P52: 0 | R52: 0 | Y52: 6.32
A53: 31 | C53: GRANVILLE ACORN | F53: 0 | H53: 0 | J53: 7.67 | L53: 0 | N53: 0 | P53: 0 | R53: 0 | Y53: 6.54 | AW53: =487 -> 487 | AX53: =ROUND((AW53/12)*CUR_BASE_FUEL,2) -> 1.03 | AY53: =ROUND((AW53/12)*PRO_BASE_FUEL,2) -> 1.03
A54: 32 | C54: RECTILINEAR | F54: 0 | H54: 0 | J54: 7.35 | L54: 0 | N54: 0 | P54: 0 | R54: 0 | Y54: 6.32
A55: 33 | C55: ASPEN | F55: 0 | H55: 0 | J55: 7.67 | L55: 0 | N55: 0 | P55: 0 | R55: 0 | Y55: 6.54
A56: 34 | C56: HOLOPHANE | F56: 0 | H56: 0 | J56: 7.67 | L56: 0 | N56: 0 | P56: 0 | R56: 0 | Y56: 6.54
A57: 35 | C57: GAS REPLICA | F57: 0 | H57: 0 | J57: 7.67 | L57: 0 | N57: 0 | P57: 0 | R57: 0 | Y57: 6.54 | AX57: =CUR_BASE_FUEL -> 0.025401 | AY57: =PRO_BASE_FUEL -> 0.025401
A59: 36 | C59: SODIUM VAPOR --
A60: 37 | C60: 22,000 LUMEN (RECTILINEAR) | F60: 0 | H60: 0 | J60: 9.74 | L60: =ROUND(F60*J60,0) -> 0 | N60: =ROUND((L60/L$72)*100,1) -> 0 | P60: =ROUND((P$72/H$72)*H60,0) -> 0 | R60: =P60+L60 -> 0 | Y60: =J60-AY133 -> 7.57
A61: 38 | C61: 50,000 LUMEN (RECTILINEAR) | F61: 0 | H61: 0 | J61: 13 | L61: =ROUND(F61*J61,0) -> 0 | N61: =ROUND((L61/L$72)*100,1) -> 0 | P61: =ROUND((P$72/H$72)*H61,0) -> 0 | R61: =P61+L61 -> 0 | Y61: =J61-AY134 -> 8.85
A63: 39 | C63: CUST OWNED/CUST MAINT
A64: 40 | C64: ENERGY ONLY | F64: 2064 | H64: =7607*12 -> 91284 | J64: 0.056957 | L64: =ROUND((H64*J64),0) -> 5199 | N64: =ROUND((L64/L$72)*100,1) -> 87.8 | P64: =ROUND((P$72/H$72)*H64,0) -> 545 | R64: =P64+L64 -> 5744 | Y64: =J64-PRO_BASE_FUEL -> 0.031556
A65: 41 | C65: TOTAL RATE SC EXCLUDING RIDERS | F65: =SUM(F22:F64) -> 2064 | H65: =SUM(H22:H64) -> 91284 | L65: =SUM(L22:L64) -> 5199 | N65: =ROUND((L65/L$72)*100,1) -> 87.8 | P65: =SUM(P22:P64) -> 545 | R65: =SUM(R22:R64) -> 5744
A67: 42 | C67: RIDERS NOT INCLUDED IN RATES ABOVE ($/KWH):
A68: 43 | C68: =ESM_Name -> ENVIRONMENTAL SURCHARGE MECHANISM RIDER (ESM) | J68: =PRO_ESM_NONRES -> 0.07513471937 | L68: =ROUND((R65-(PRO_BASE_FUEL*H65)+R69)*J68,0) -> 290 | N68: =ROUND((L68/L$72)*100,1) -> 4.9 | R68: =P68+L68 -> 290
A69: 44 | C69: =PSM_Name -> PROFIT SHARING MECHANISM (PSM) | J69: =PRO_PSM -> 0.004727 | L69: =ROUND($H$65*J69,0) -> 431 | N69: =ROUND((L69/L$72)*100,1) -> 7.3 | R69: =P69+L69 -> 431
A70: 45 | C70: TOTAL RIDERS NOT INCLUDED IN RATES ABOVE | L70: =SUM(L68:L69) -> 721 | N70: =ROUND((L70/L$72)*100,1) -> 12.2 | R70: =SUM(R68:R69) -> 721
A72: 46 | C72: TOTAL RATE SC INCLUDING RIDERS | F72: =F65 -> 2064 | H72: =H65 -> 91284 | L72: =L70+L65 -> 5920 | N72: 100 | P72: =ROUND(H72*CUR_FAC,0) -> 545 | R72: =R70+R65 -> 6465
C74: (1) THESE FIGURES REPRESENT NUMBER OF UNITS BILLED. | T74: =NAME -> DUKE ENERGY KENTUCKY, INC.
C75: ="(2) REFLECTS FUEL COMPONENT OF "&TEXT(PRO_FAC,"$0.000000;($0.000000)")&" PER KWH." -> (2) REFLECTS FUEL COMPONENT OF $0.005965 PER KWH. | T75: =CASE_NO -> CASE NO. 2022-00372 - REHEARING
C76: ="(3) REFLECTS FUEL COST RECOVERY INCLUDED IN BASE RATES OF "&TEXT(PRO_BASE_FUEL,"$0.000000;($0.000000)")&" PER KWH." -> (3) REFLECTS FUEL COST RECOVERY INCLUDED IN BASE RATES OF $0.025401 PER KWH. | T76: =TITLE -> ANNUALIZED TEST YEAR REVENUES AT PROPOSED VS. MOST CURRENT RATES
T77: =DATE -> FOR THE TWELVE MONTHS ENDED June 30, 2024
T78: =SERVICE -> (ELECTRIC SERVICE)
T79: =DATA_PERIOD -> DATA: ____ BASE PERIOD __X__FORECASTED PERIOD | AO79: SCHEDULE M-2.2
T80: =TYPE -> TYPE OF FILING: ___ ORIGINAL ___UPDATED _X_ REVISED | AO80: ="PAGE 19 OF "&TEXT(Page_Num_2.2,"00") -> PAGE 19 OF 23
T81: WORK PAPER REFERENCE NO(S).: | AO81: WITNESS:
T82: =TIME -> 12 Months Projected with Riders - STAFF-RHDR-01-005A | AO82: =WIT -> B. L. Sailers
T83: CURRENT ANNUALIZED
AE85: CURRENT | AG85: % OF REV TO | AI85: REVENUE | AK85: % INCR IN | AO85: CURRENT | AQ85: TOTAL
AC86: MOST | AE86: REVENUE LESS | AG86: TOTAL LESS | AI86: INCR LESS | AK86: REV LESS | AO86: TOTAL | AQ86: REVENUE
T87: LINE | V87: RATE | W87: CLASS / | Y87: CUSTOMER | AC87: CURRENT | AE87: FAC | AG87: FAC | AI87: FAC REV | AK87: FAC REV | AM87: FAC | AO87: REVENUE | AQ87: % INCREASE
T88: NO. | V88: CODE | W88: DESCRIPTION | Y88: BILLS(1) | AA88: SALES | AC88: RATES(3) | AE88: REVENUE | AG88: REVENUE | AI88: (F - K) | AK88: (M / K) | AM88: REVENUE (2) | AO88: (K + H) | AQ88: (M / K1)
V89: (A) | W89: (B) | Y89: (C) | AA89: (D) | AC89: (J) | AE89: (K) | AG89: (L) | AI89: (M) | AK89: (N) | AM89: (H) | AO89: (K1) | AQ89: (O)
AA90: (KWH) | AC90: ($/UNIT) | AE90: ($) | AG90: (%) | AI90: ($) | AK90: (%) | AM90: ($) | AO90: ($) | AQ90: (%)
T91: 1 | V91: SC | W91: STREET LIGHTING - | AC91: ($/KWH)
T92: 2 | V92: CUST OWNED/LTD MAINT | AU92: Tariff Sheet
T93: 3 | V93: STANDARD UNIT-COBRAHEAD | AU93: less Base Fuel | AW93: KWH | AX93: CURRENT BASE | AY93: PROPOSED
T94: 4 | V94: MERCURY VAPOR -- | AW94: ANNUAL | AX94: FUEL | AY94: BASEFUEL
T95: 5 | V95: 7,000 LUMEN | Y95: =F22 -> 0 | AA95: =H22 -> 0 | AC95: 4.71 | AE95: =ROUND(Y95*AC95,0) -> 0 | AG95: =ROUND((AE95/AE$145)*100,1) -> 0 | AI95: =L22-AE95 -> 0 | AK95: 0 | AM95: =ROUND((AM$145/AA$145)*AA95,0) -> 0 | AO95: =AM95+AE95 -> 0 | AQ95: 0 | AU95: =AC95-AX95 -> 3.01 | AW95: 803 | AX95: =ROUND((AW95/12)*CUR_BASE_FUEL,2) -> 1.7 | AY95: =ROUND((AW95/12)*PRO_BASE_FUEL,2) -> 1.7
T96: 6 | V96: 10,000 LUMEN | Y96: =F23 -> 0 | AA96: =H23 -> 0 | AC96: 6.02 | AE96: =ROUND(Y96*AC96,0) -> 0 | AG96: =ROUND((AE96/AE$145)*100,1) -> 0 | AI96: =L23-AE96 -> 0 | AK96: 0 | AM96: =ROUND((AM$145/AA$145)*AA96,0) -> 0 | AO96: =AM96+AE96 -> 0 | AQ96: 0 | AU96: =AC96-AX96 -> 3.6 | AW96: 1144 | AX96: =ROUND((AW96/12)*CUR_BASE_FUEL,2) -> 2.42 | AY96: =ROUND((AW96/12)*PRO_BASE_FUEL,2) -> 2.42
T97: 7 | V97: 21,000 LUMEN | Y97: =F24 -> 0 | AA97: =H24 -> 0 | AC97: 8.37 | AE97: =ROUND(Y97*AC97,0) -> 0 | AG97: =ROUND((AE97/AE$145)*100,1) -> 0 | AI97: =L24-AE97 -> 0 | AK97: 0 | AM97: =ROUND((AM$145/AA$145)*AA97,0) -> 0 | AO97: =AM97+AE97 -> 0 | AQ97: 0 | AU97: =AC97-AX97 -> 4.58 | AW97: 1789 | AX97: =ROUND((AW97/12)*CUR_BASE_FUEL,2) -> 3.79 | AY97: =ROUND((AW97/12)*PRO_BASE_FUEL,2) -> 3.79
T99: 8 | V99: METAL HALIDE --
T100: 9 | V100: 14,000 LUMEN | Y100: =F27 -> 0 | AA100: =H27 -> 0 | AC100: 4.71 | AE100: =ROUND(Y100*AC100,0) -> 0 | AG100: =ROUND((AE100/AE$145)*100,1) -> 0 | AI100: =L27-AE100 -> 0 | AK100: 0 | AM100: =ROUND((AM$145/AA$145)*AA100,0) -> 0 | AO100: =AM100+AE100 -> 0 | AQ100: 0 | AU100: =AC100-AX100 -> 3.01 | AW100: 803 | AX100: =ROUND((AW100/12)*CUR_BASE_FUEL,2) -> 1.7 | AY100: =ROUND((AW100/12)*PRO_BASE_FUEL,2) -> 1.7
T101: 10 | V101: 20,500 LUMEN | Y101: =F28 -> 0 | AA101: =H28 -> 0 | AC101: 6.02 | AE101: =ROUND(Y101*AC101,0) -> 0 | AG101: =ROUND((AE101/AE$145)*100,1) -> 0 | AI101: =L28-AE101 -> 0 | AK101: 0 | AM101: =ROUND((AM$145/AA$145)*AA101,0) -> 0 | AO101: =AM101+AE101 -> 0 | AQ101: 0 | AU101: =AC101-AX101 -> 3.6 | AW101: 1144 | AX101: =ROUND((AW101/12)*CUR_BASE_FUEL,2) -> 2.42 | AY101: =ROUND((AW101/12)*PRO_BASE_FUEL,2) -> 2.42
T102: 11 | V102: 36,000 LUMEN | Y102: =F29 -> 0 | AA102: =H29 -> 0 | AC102: 8.37 | AE102: =ROUND(Y102*AC102,0) -> 0 | AG102: =ROUND((AE102/AE$145)*100,1) -> 0 | AI102: =L29-AE102 -> 0 | AK102: 0 | AM102: =ROUND((AM$145/AA$145)*AA102,0) -> 0 | AO102: =AM102+AE102 -> 0 | AQ102: 0 | AU102: =AC102-AX102 -> 4.58 | AW102: 1789 | AX102: =ROUND((AW102/12)*CUR_BASE_FUEL,2) -> 3.79 | AY102: =ROUND((AW102/12)*PRO_BASE_FUEL,2) -> 3.79
T104: 12 | V104: SODIUM VAPOR--
T105: 13 | V105: 9,500 LUMEN | Y105: =F32 -> 0 | AA105: =H32 -> 0 | AC105: 5.6 | AE105: =ROUND(Y105*AC105,0) -> 0 | AG105: =ROUND((AE105/AE$145)*100,1) -> 0 | AI105: =L32-AE105 -> 0 | AK105: 0 | AM105: =ROUND((AM$145/AA$145)*AA105,0) -> 0 | AO105: =AM105+AE105 -> 0 | AQ105: 0 | AU105: =AC105-AX105 -> 4.57 | AW105: =487 -> 487 | AX105: =ROUND((AW105/12)*CUR_BASE_FUEL,2) -> 1.03 | AY105: =ROUND((AW105/12)*PRO_BASE_FUEL,2) -> 1.03
T106: 14 | V106: 16,000 LUMEN | Y106: =F33 -> 0 | AA106: =H33 -> 0 | AC106: 6.27 | AE106: =ROUND(Y106*AC106,0) -> 0 | AG106: =ROUND((AE106/AE$145)*100,1) -> 0 | AI106: =L33-AE106 -> 0 | AK106: 0 | AM106: =ROUND((AM$145/AA$145)*AA106,0) -> 0 | AO106: =AM106+AE106 -> 0 | AQ106: 0 | AU106: =AC106-AX106 -> 4.76 | AW106: 711 | AX106: =ROUND((AW106/12)*CUR_BASE_FUEL,2) -> 1.51 | AY106: =ROUND((AW106/12)*PRO_BASE_FUEL,2) -> 1.51
T107: 15 | V107: 22,000 LUMEN | Y107: =F34 -> 0 | AA107: =H34 -> 0 | AC107: 6.91 | AE107: =ROUND(Y107*AC107,0) -> 0 | AG107: =ROUND((AE107/AE$145)*100,1) -> 0 | AI107: =L34-AE107 -> 0 | AK107: 0 | AM107: =ROUND((AM$145/AA$145)*AA107,0) -> 0 | AO107: =AM107+AE107 -> 0 | AQ107: 0 | AU107: =AC107-AX107 -> 4.9 | AW107: 948 | AX107: =ROUND((AW107/12)*CUR_BASE_FUEL,2) -> 2.01 | AY107: =ROUND((AW107/12)*PRO_BASE_FUEL,2) -> 2.01
T108: 16 | V108: 27,500 LUMEN | Y108: =F35 -> 0 | AA108: =H35 -> 0 | AC108: 6.91 | AE108: =ROUND(Y108*AC108,0) -> 0 | AG108: =ROUND((AE108/AE$145)*100,1) -> 0 | AI108: =L35-AE108 -> 0 | AK108: 0 | AM108: =ROUND((AM$145/AA$145)*AA108,0) -> 0 | AO108: =AM108+AE108 -> 0 | AQ108: 0 | AU108: =AC108-AX108 -> 4.9 | AW108: 948 | AX108: =ROUND((AW108/12)*CUR_BASE_FUEL,2) -> 2.01 | AY108: =ROUND((AW108/12)*PRO_BASE_FUEL,2) -> 2.01
T109: 17 | V109: 50,000 LUMEN | Y109: =F36 -> 0 | AA109: =H36 -> 0 | AC109: 9.45 | AE109: =ROUND(Y109*AC109,0) -> 0 | AG109: =ROUND((AE109/AE$145)*100,1) -> 0 | AI109: =L36-AE109 -> 0 | AK109: 0 | AM109: =ROUND((AM$145/AA$145)*AA109,0) -> 0 | AO109: =AM109+AE109 -> 0 | AQ109: 0 | AU109: =AC109-AX109 -> 5.3 | AW109: 1959 | AX109: =ROUND((AW109/12)*CUR_BASE_FUEL,2) -> 4.15 | AY109: =ROUND((AW109/12)*PRO_BASE_FUEL,2) -> 4.15
T111: 18 | V111: DECORATIVE UNITS:
T112: 19 | V112: 7,000 LUMEN MERCURY VAPOR--
T113: 20 | V113: HOLOPHANE | Y113: =F40 -> 0 | AA113: =H40 -> 0 | AC113: 5.97 | AE113: =ROUND(Y113*AC113,0) -> 0 | AG113: =ROUND((AE113/AE$145)*100,1) -> 0 | AI113: =L40-AE113 -> 0 | AK113: 0 | AM113: =ROUND((AM$145/AA$145)*AA113,0) -> 0 | AO113: =AM113+AE113 -> 0 | AQ113: 0 | AU113: =AC113-AX113 -> 4.12 | AW113: 874 | AX113: =ROUND((AW113/12)*CUR_BASE_FUEL,2) -> 1.85 | AY113: =ROUND((AW113/12)*PRO_BASE_FUEL,2) -> 1.85
T114: 21 | V114: TOWN & COUNTRY | Y114: =F41 -> 0 | AA114: =H41 -> 0 | AC114: 5.91 | AE114: =ROUND(Y114*AC114,0) -> 0 | AG114: =ROUND((AE114/AE$145)*100,1) -> 0 | AI114: =L41-AE114 -> 0 | AK114: 0 | AM114: =ROUND((AM$145/AA$145)*AA114,0) -> 0 | AO114: =AM114+AE114 -> 0 | AQ114: 0 | AU114: =AC114-AX114 -> 4.1 | AW114: 853 | AX114: =ROUND((AW114/12)*CUR_BASE_FUEL,2) -> 1.81 | AY114: =ROUND((AW114/12)*PRO_BASE_FUEL,2) -> 1.81
T115: 22 | V115: GAS REPLICA | Y115: =F42 -> 0 | AA115: =H42 -> 0 | AC115: 5.97 | AE115: =ROUND(Y115*AC115,0) -> 0 | AG115: =ROUND((AE115/AE$145)*100,1) -> 0 | AI115: =L42-AE115 -> 0 | AK115: 0 | AM115: =ROUND((AM$145/AA$145)*AA115,0) -> 0 | AO115: =AM115+AE115 -> 0 | AQ115: 0 | AU115: =AC115-AX115 -> 4.12 | AW115: 874 | AX115: =ROUND((AW115/12)*CUR_BASE_FUEL,2) -> 1.85 | AY115: =ROUND((AW115/12)*PRO_BASE_FUEL,2) -> 1.85
T116: 23 | V116: ASPEN | Y116: =F43 -> 0 | AA116: =H43 -> 0 | AC116: 5.97 | AE116: =ROUND(Y116*AC116,0) -> 0 | AG116: =ROUND((AE116/AE$145)*100,1) -> 0 | AI116: =L43-AE116 -> 0 | AK116: 0 | AM116: =ROUND((AM$145/AA$145)*AA116,0) -> 0 | AO116: =AM116+AE116 -> 0 | AQ116: 0 | AU116: =AC116-AX116 -> 4.12 | AW116: 874 | AX116: =ROUND((AW116/12)*CUR_BASE_FUEL,2) -> 1.85 | AY116: =ROUND((AW116/12)*PRO_BASE_FUEL,2) -> 1.85
T118: 24 | V118: 14,000 LUMEN METAL HALIDE--
T119: 25 | V119: TRADITIONAIRE | Y119: =F46 -> 0 | AA119: =H46 -> 0 | AC119: 5.91 | AE119: =ROUND(Y119*AC119,0) -> 0 | AG119: =ROUND((AE119/AE$145)*100,1) -> 0 | AI119: =L46-AE119 -> 0 | AK119: 0 | AM119: =ROUND((AM$145/AA$145)*AA119,0) -> 0 | AO119: =AM119+AE119 -> 0 | AQ119: 0 | AU119: =AC119-AX119 -> 4.1 | AW119: 853 | AX119: =ROUND((AW119/12)*CUR_BASE_FUEL,2) -> 1.81 | AY119: =ROUND((AW119/12)*PRO_BASE_FUEL,2) -> 1.81
T120: 26 | V120: GRANVILLE ACORN | Y120: =F47 -> 0 | AA120: =H47 -> 0 | AC120: 5.97 | AE120: =ROUND(Y120*AC120,0) -> 0 | AG120: =ROUND((AE120/AE$145)*100,1) -> 0 | AI120: =L47-AE120 -> 0 | AK120: 0 | AM120: =ROUND((AM$145/AA$145)*AA120,0) -> 0 | AO120: =AM120+AE120 -> 0 | AQ120: 0 | AU120: =AC120-AX120 -> 4.12 | AW120: 874 | AX120: =ROUND((AW120/12)*CUR_BASE_FUEL,2) -> 1.85 | AY120: =ROUND((AW120/12)*PRO_BASE_FUEL,2) -> 1.85
T121: 27 | V121: GAS REPLICA | Y121: =F48 -> 0 | AA121: =H48 -> 0 | AC121: 5.97 | AE121: =ROUND(Y121*AC121,0) -> 0 | AG121: =ROUND((AE121/AE$145)*100,1) -> 0 | AI121: =L48-AE121 -> 0 | AK121: 0 | AM121: =ROUND((AM$145/AA$145)*AA121,0) -> 0 | AO121: =AM121+AE121 -> 0 | AQ121: 0 | AU121: =AC121-AX121 -> 4.12 | AW121: 874 | AX121: =ROUND((AW121/12)*CUR_BASE_FUEL,2) -> 1.85 | AY121: =ROUND((AW121/12)*PRO_BASE_FUEL,2) -> 1.85
T123: 28 | V123: 9,500 LUMEN SODIUM VAPOR--
T124: 29 | V124: TOWN & COUNTRY | Y124: =F51 -> 0 | AA124: =H51 -> 0 | AC124: 5.52 | AE124: =ROUND(Y124*AC124,0) -> 0 | AG124: =ROUND((AE124/AE$145)*100,1) -> 0 | AI124: =L51-AE124 -> 0 | AK124: 0 | AM124: =ROUND((AM$145/AA$145)*AA124,0) -> 0 | AO124: =AM124+AE124 -> 0 | AQ124: 0 | AU124: =AC124-AX124 -> 4.49 | AW124: 487 | AX124: =ROUND((AW124/12)*CUR_BASE_FUEL,2) -> 1.03 | AY124: =ROUND((AW124/12)*PRO_BASE_FUEL,2) -> 1.03
T125: 30 | V125: TRADITIONAIRE | Y125: 0 | AA125: 0 | AC125: 5.52 | AE125: 0 | AG125: 0 | AI125: 0 | AK125: 0 | AM125: 0 | AO125: 0 | AQ125: 0 | AU125: 4.49 | AW125: 487 | AX125: 1.03 | AY125: 1.03
T126: 31 | V126: GRANVILLE ACORN | Y126: 0 | AA126: 0 | AC126: 5.76 | AE126: 0 | AG126: 0 | AI126: 0 | AK126: 0 | AM126: 0 | AO126: 0 | AQ126: 0 | AU126: 4.63 | AW126: 532 | AX126: 1.13 | AY126: 1.13
T127: 32 | V127: RECTILINEAR | Y127: 0 | AA127: 0 | AC127: 5.52 | AE127: 0 | AG127: 0 | AI127: 0 | AK127: 0 | AM127: 0 | AO127: 0 | AQ127: 0 | AU127: 4.49 | AW127: 487 | AX127: 1.03 | AY127: 1.03
T128: 33 | V128: ASPEN | Y128: 0 | AA128: 0 | AC128: 5.76 | AE128: 0 | AG128: 0 | AI128: 0 | AK128: 0 | AM128: 0 | AO128: 0 | AQ128: 0 | AU128: 4.63 | AW128: 532 | AX128: 1.13 | AY128: 1.13
T129: 34 | V129: HOLOPHANE | Y129: 0 | AA129: 0 | AC129: 5.76 | AE129: 0 | AG129: 0 | AI129: 0 | AK129: 0 | AM129: 0 | AO129: 0 | AQ129: 0 | AU129: 4.63 | AW129: 532 | AX129: 1.13 | AY129: 1.13
T130: 35 | V130: GAS REPLICA | Y130: 0 | AA130: 0 | AC130: 5.76 | AE130: 0 | AG130: 0 | AI130: 0 | AK130: 0 | AM130: 0 | AO130: 0 | AQ130: 0 | AU130: 4.63 | AW130: 532 | AX130: 1.13 | AY130: 1.13
T132: 36 | V132: SODIUM VAPOR --
T133: 37 | V133: 22,000 LUMEN (RECTILINEAR) | Y133: =F60 -> 0 | AA133: =H60 -> 0 | AC133: 7.32 | AE133: =ROUND(Y133*AC133,0) -> 0 | AG133: =ROUND((AE133/AE$145)*100,1) -> 0 | AI133: =L60-AE133 -> 0 | AK133: 0 | AM133: =ROUND((AM$145/AA$145)*AA133,0) -> 0 | AO133: =AM133+AE133 -> 0 | AQ133: 0 | AU133: =AC133-AX133 -> 5.15 | AW133: 1023 | AX133: =ROUND((AW133/12)*CUR_BASE_FUEL,2) -> 2.17 | AY133: =ROUND((AW133/12)*PRO_BASE_FUEL,2) -> 2.17
T134: 38 | V134: 50,000 LUMEN (RECTILINEAR) | Y134: =F61 -> 0 | AA134: =H61 -> 0 | AC134: 9.77 | AE134: =ROUND(Y134*AC134,0) -> 0 | AG134: =ROUND((AE134/AE$145)*100,1) -> 0 | AI134: =L61-AE134 -> 0 | AK134: 0 | AM134: =ROUND((AM$145/AA$145)*AA134,0) -> 0 | AO134: =AM134+AE134 -> 0 | AQ134: 0 | AU134: =AC134-AX134 -> 5.62 | AW134: 1959 | AX134: =ROUND((AW134/12)*CUR_BASE_FUEL,2) -> 4.15 | AY134: =ROUND((AW134/12)*PRO_BASE_FUEL,2) -> 4.15
T136: 39 | V136: CUST OWNED/CUST MAINT | AX136: =CUR_BASE_FUEL -> 0.025401 | AY136: =PRO_BASE_FUEL -> 0.025401
T137: 40 | V137: ENERGY ONLY | Y137: =F64 -> 2064 | AA137: =H64 -> 91284 | AC137: 0.042793 | AE137: =ROUND((AA137*AC137),0) -> 3906 | AG137: =ROUND((AE137/AE$145)*100,1) -> 85.6 | AI137: =L64-AE137 -> 1293 | AK137: =ROUND((AI137/AE137)*100,1) -> 33.1 | AM137: =ROUND((AM$145/AA$145)*AA137,0) -> 545 | AO137: =AM137+AE137 -> 4451 | AQ137: =ROUND((AI137/AO137)*100,1) -> 29
T138: 41 | V138: TOTAL RATE SC EXCLUDING RIDERS | Y138: =SUM(Y95:Y137) -> 2064 | AA138: =SUM(AA95:AA137) -> 91284 | AE138: =SUM(AE95:AE137) -> 3906 | AG138: =ROUND((AE138/AE$145)*100,1) -> 85.6 | AI138: =SUM(AI95:AI137) -> 1293 | AK138: =ROUND((AI138/AE138)*100,1) -> 33.1 | AM138: =SUM(AM95:AM137) -> 545 | AO138: =SUM(AO95:AO137) -> 4451 | AQ138: =ROUND((AI138/AO138)*100,1) -> 29
T140: =A67 -> 42 | V140: RIDERS NOT INCLUDED IN RATES ABOVE ($/KWH):
T141: =A68 -> 43 | V141: =C68 -> ENVIRONMENTAL SURCHARGE MECHANISM RIDER (ESM) | AC141: =CUR_ESM_NonRes -> 0.08798914629 | AE141: =ROUND((AO138-(CUR_BASE_FUEL*AA138)+AO142)*AC141,0) -> 226 | AG141: =ROUND((AE141/AE$145)*100,1) -> 5 | AI141: =L68-AE141 -> 64 | AK141: =IF(AE141=0,0,ROUND((AI141/AE141)*100,1)) -> 28.3 | AO141: =AM141+AE141 -> 226 | AQ141: =IF(AO141=0,0,ROUND((AI141/AO141)*100,1)) -> 28.3
T142: =A69 -> 44 | V142: =C69 -> PROFIT SHARING MECHANISM (PSM) | AC142: =RS_PSM -> 0.004727 | AE142: =ROUND($AA$138*AC142,0) -> 431 | AG142: =ROUND((AE142/AE$145)*100,1) -> 9.4 | AI142: =L69-AE142 -> 0 | AK142: =ROUND((AI142/AE142)*100,1) -> 0 | AO142: =AM142+AE142 -> 431 | AQ142: =ROUND((AI142/AO142)*100,1) -> 0
T143: =A70 -> 45 | V143: TOTAL RIDERS NOT INCLUDED IN RATES ABOVE | AE143: =SUM(AE141:AE142) -> 657 | AG143: =ROUND((AE143/AE$145)*100,1) -> 14.4 | AI143: =SUM(AI141:AI142) -> 64 | AK143: 9.7 | AO143: =SUM(AO141:AO142) -> 657 | AQ143: 9.7
T145: =A72 -> 46 | V145: TOTAL RATE SC INCLUDING RIDERS | Y145: =Y138 -> 2064 | AA145: =AA138 -> 91284 | AE145: =AE143+AE138 -> 4563 | AG145: 100 | AI145: =AI143+AI138 -> 1357 | AK145: =ROUND((AI145/AE145)*100,1) -> 29.7 | AM145: =ROUND(AA145*CUR_FAC,0) -> 545 | AO145: =AO143+AO138 -> 5108 | AQ145: =ROUND((AI145/AO145)*100,1) -> 26.6
V147: (1) THESE FIGURES REPRESENT NUMBER OF UNITS BILLED.
V148: ="(2) REFLECTS FUEL COMPONENT OF "&TEXT(CUR_FAC,"$0.000000;($0.000000)")&" PER KWH." -> (2) REFLECTS FUEL COMPONENT OF $0.005965 PER KWH.
V149: ="(3) REFLECTS FUEL COST RECOVERY INCLUDED IN BASE RATES OF "&TEXT(CUR_BASE_FUEL,"$0.000000;($0.000000)")&" PER KWH." -> (3) REFLECTS FUEL COST RECOVERY INCLUDED IN BASE RATES OF $0.025401 PER KWH.

Sheet Rate SE
A1: =NAME -> DUKE ENERGY KENTUCKY, INC.
A2: =CASE_NO -> CASE NO. 2022-00372 - REHEARING
A3: =TITLE -> ANNUALIZED TEST YEAR REVENUES AT PROPOSED VS. MOST CURRENT RATES | V3: LEGEND
A4: =DATE -> FOR THE TWELVE MONTHS ENDED June 30, 2024
A5: =SERVICE -> (ELECTRIC SERVICE) | W5: formula
A6: =DATA_PERIOD -> DATA: ____ BASE PERIOD __X__FORECASTED PERIOD | R6: SCHEDULE M-2.3
A7: =TYPE -> TYPE OF FILING: ___ ORIGINAL ___UPDATED _X_ REVISED | R7: ="PAGE 20 OF "&TEXT(Page_Num_2.3,"00") -> PAGE 20 OF 24 | W7: input
A8: WORK PAPER REFERENCE NO(S).: | R8: WITNESS:
A9: =TIME -> 12 Months Projected with Riders - STAFF-RHDR-01-005A | R9: =WIT -> B. L. Sailers | W9: LT_COS_RATE Increase
A10: PROPOSED ANNUALIZED
W11: rounding
L12: PROPOSED | N12: % OF REV TO | R12: PROPOSED
L13: REVENUE LESS | N13: TOTAL LESS | R13: TOTAL
A14: LINE | C14: RATE | D14: CLASS / | F14: CUSTOMER | J14: PROPOSED | L14: FAC | N14: FAC | P14: FAC | R14: REVENUE
A15: NO. | C15: CODE | D15: DESCRIPTION | F15: BILLS(1) | H15: SALES | J15: RATES(3) | L15: REVENUE | N15: REVENUE | P15: REVENUE (2) | R15: (F + H) | Y15: Lighting rate on
C16: (A) | D16: (B) | F16: (C) | H16: (D) | J16: (E) | L16: (F) | N16: (G) | P16: (H) | R16: (I) | Y16: Tariff Sheet | AA16: Lighting kWh on
H17: (KWH) | J17: ($/UNIT) | L17: ($) | N17: (%) | P17: ($) | R17: ($) | Y17: less Base Fuel | AA17: Tariff Sheet
A18: 1 | C18: SE | D18: STREET LIGHTING
A19: 2 | D19: OVERHEAD EQUIVALENT RATE
A21: 3 | C21: MERCURY VAPOR 7,000 LUMEN:
A22: 4 | C22: TOWN & COUNTRY | F22: 6570 | H22: =ROUND(F22*AA22/12,0) -> 467018 | J22: 10.82 | L22: =ROUND(F22*J22,0) -> 71087 | N22: =ROUND((L22/L$52)*100,1) -> 24.1 | P22: =ROUND((P$52/H$52)*H22,0) -> 2786 | R22: =P22+L22 -> 73873 | Y22: =J22-AY78 -> 9.01 | AA22: 853
A23: 5 | C23: HOLOPHANE | F23: 2186 | H23: =ROUND(F23*AA23/12,0) -> 159214 | J23: 10.86 | L23: =ROUND(F23*J23,0) -> 23740 | N23: =ROUND((L23/L$52)*100,1) -> 8.1 | P23: =ROUND((P$52/H$52)*H23,0) -> 950 | R23: =P23+L23 -> 24690 | Y23: =J23-AY79 -> 9.01 | AA23: 874
A24: 6 | C24: GAS REPLICA | F24: 664 | H24: 48361 | J24: 10.86 | L24: =ROUND(F24*J24,0) -> 7211 | N24: =ROUND((L24/L$52)*100,1) -> 2.4 | P24: =ROUND((P$52/H$52)*H24,0) -> 288 | R24: =P24+L24 -> 7499 | Y24: =J24-AY80 -> 9.01 | AA24: 874
A25: 7 | C25: ASPEN | F25: 126 | H25: 9177 | J25: 10.86 | L25: =ROUND(F25*J25,0) -> 1368 | N25: =ROUND((L25/L$52)*100,1) -> 0.5 | P25: =ROUND((P$52/H$52)*H25,0) -> 55 | R25: =P25+L25 -> 1423 | Y25: =J25-AY81 -> 9.01 | AA25: 874
A27: 8 | C27: METAL HALIDE 14,000 LUMEN:
A28: 9 | C28: TRADITIONAIRE | F28: 3010 | H28: =ROUND(F28*AA28/12,0) -> 213961 | J28: 10.82 | L28: =ROUND(F28*J28,0) -> 32568 | N28: =ROUND((L28/L$52)*100,1) -> 11.1 | P28: =ROUND((P$52/H$52)*H28,0) -> 1276 | R28: =P28+L28 -> 33844 | Y28: =J28-AY84 -> 9.01 | AA28: 853
A29: 10 | C29: GRANVILLE ACORN | F29: 0 | H29: 0 | J29: 10.86 | L29: =ROUND(F29*J29,0) -> 0 | N29: =ROUND((L29/L$52)*100,1) -> 0 | P29: =ROUND((P$52/H$52)*H29,0) -> 0 | R29: =P29+L29 -> 0 | Y29: =J29-AY85 -> 9.01 | AA29: 874
A30: 11 | C30: GAS REPLICA | F30: 424 | H30: 30881 | J30: 10.86 | L30: =ROUND(F30*J30,0) -> 4605 | N30: =ROUND((L30/L$52)*100,1) -> 1.6 | P30: =ROUND((P$52/H$52)*H30,0) -> 184 | R30: =P30+L30 -> 4789 | Y30: =J30-AY86 -> 9.01 | AA30: 874
A32: 12 | C32: SODIUM VAPOR 9,500 LUMEN:
A33: 13 | C33: TOWN & COUNTRY | F33: 3104 | H33: =ROUND(F33*AA33/12,0) -> 125971 | J33: 11.71 | L33: =ROUND(F33*J33,0) -> 36348 | N33: =ROUND((L33/L$52)*100,1) -> 12.3 | P33: =ROUND((P$52/H$52)*H33,0) -> 751 | R33: =P33+L33 -> 37099 | Y33: =J33-AY89 -> 10.68 | AA33: 487
A34: 15 | C34: HOLOPHANE | F34: 2312 | H34: 102499 | J34: 11.89 | L34: =ROUND(F34*J34,0) -> 27490 | N34: 9.3 | P34: 611 | R34: =P34+L34 -> 28101 | Y34: 10.76 | AA34: 532
A35: 16 | C35: RECTILINEAR | F35: 928 | H35: 37661 | J35: 11.71 | L35: =ROUND(F35*J35,0) -> 10867 | N35: 3.7 | P35: 225 | R35: =P35+L35 -> 11092 | Y35: 10.68 | AA35: 487
A36: 17 | C36: GAS REPLICA | F36: 1214 | H36: 53821 | J36: 11.87 | L36: =ROUND(F36*J36,0) -> 14410 | N36: 4.9 | P36: 321 | R36: =P36+L36 -> 14731 | Y36: 10.74 | AA36: 532
A37: 19 | C37: ASPEN | F37: 2496 | H37: 110656 | J37: 11.87 | L37: =ROUND(F37*J37,0) -> 29628 | N37: 10.1 | P37: 660 | R37: =P37+L37 -> 30288 | Y37: 10.74 | AA37: 532
A38: 14 | C38: TRADITIONAIRE | F38: 0 | H38: 0 | J38: 11.71 | L38: =ROUND(F38*J38,0) -> 0 | N38: 0 | P38: 0 | R38: =P38+L38 -> 0 | Y38: 10.68 | AA38: 487
A39: 18 | C39: GRANVILLE ACORN | F39: 148 | H39: 6561 | J39: 11.87 | L39: 1757 | N39: 0.6 | P39: 39 | R39: 1796 | Y39: 10.74 | AA39: 532
A41: 20 | C41: SODIUM VAPOR:
A42: 21 | C42: 22,000 LUMEN (RECTILINEAR) | F42: 458 | H42: =ROUND(F42*AA42/12,0) -> 39045 | J42: 16.89 | L42: =ROUND(F42*J42,0) -> 7736 | N42: =ROUND((L42/L$52)*100,1) -> 2.6 | P42: =ROUND((P$52/H$52)*H42,0) -> 233 | R42: =P42+L42 -> 7969 | Y42: =J42-AY98 -> 14.72 | AA42: 1023
A43: 22 | C43: 50,000 LUMEN (RECTILINEAR) | F43: 24 | H43: 3918 | J43: 22.47 | L43: =ROUND(F43*J43,0) -> 539 | N43: =ROUND((L43/L$52)*100,1) -> 0.2 | P43: =ROUND((P$52/H$52)*H43,0) -> 23 | R43: =P43+L43 -> 562 | Y43: =J43-AY99 -> 18.32 | AA43: 1959
A44: 23 | C44: 50,000 LUMEN (SETBACK) | F44: 0 | H44: 0 | J44: 22.47 | L44: =ROUND(F44*J44,0) -> 0 | N44: =ROUND((L44/L$52)*100,1) -> 0 | P44: =ROUND((P$52/H$52)*H44,0) -> 0 | R44: =P44+L44 -> 0 | Y44: =J44-AY100 -> 18.32 | AA44: 1959
A45: 24 | C45: TOTAL RATE SE EXCLUDING RIDERS | F45: =SUM(F22:F44) -> 23664 | H45: =SUM(H22:H44) -> 1408744 | L45: =SUM(L22:L44) -> 269354 | N45: =ROUND((L45/L$52)*100,1) -> 91.4 | P45: =SUM(P22:P44) -> 8402 | R45: =SUM(R22:R44) -> 277756
A47: 25 | C47: RIDERS NOT INCLUDED IN RATES ABOVE ($/KWH):
A48: 26 | C48: =ESM_Name -> ENVIRONMENTAL SURCHARGE MECHANISM RIDER (ESM) | J48: =PRO_ESM_NONRES -> 0.07513471937 | L48: =ROUND((R45-(PRO_BASE_FUEL*H45)+R49)*J48,0) -> 18681 | N48: =ROUND((L48/L$52)*100,1) -> 6.3 | R48: =P48+L48 -> 18681
A49: 29 | C49: =PSM_Name -> PROFIT SHARING MECHANISM (PSM) | J49: =PRO_PSM -> 0.004727 | L49: =ROUND($H$45*J49,0) -> 6659 | N49: =ROUND((L49/L$52)*100,1) -> 2.3 | R49: =P49+L49 -> 6659
A50: 30 | C50: TOTAL RIDERS NOT INCLUDED IN RATES ABOVE | L50: =SUM(L48:L49) -> 25340 | N50: =ROUND((L50/L$52)*100,1) -> 8.6 | R50: =SUM(R48:R49) -> 25340
A52: 31 | C52: TOTAL RATE SE INCLUDING RIDERS | F52: =SUM(F22:F44) -> 23664 | H52: =SUM(H22:H44) -> 1408744 | L52: =L50+L45 -> 294694 | N52: 100 | P52: =ROUND(H52*CUR_FAC,0) -> 8403 | R52: =R50+R45 -> 303096
C54: (1) THESE FIGURES REPRESENT NUMBER OF UNITS BILLED.
C55: ="(2) REFLECTS FUEL COMPONENT OF "&TEXT(PRO_FAC,"$0.000000;($0.000000)")&" PER KWH." -> (2) REFLECTS FUEL COMPONENT OF $0.005965 PER KWH.
C56: ="(3) REFLECTS FUEL COST RECOVERY INCLUDED IN BASE RATES OF "&TEXT(PRO_BASE_FUEL,"$0.000000;($0.000000)")&" PER KWH." -> (3) REFLECTS FUEL COST RECOVERY INCLUDED IN BASE RATES OF $0.025401 PER KWH.
T57: =NAME -> DUKE ENERGY KENTUCKY, INC.
T58: =CASE_NO -> CASE NO. 2022-00372 - REHEARING
T59: =TITLE -> ANNUALIZED TEST YEAR REVENUES AT PROPOSED VS. MOST CURRENT RATES
T60: =DATE -> FOR THE TWELVE MONTHS ENDED June 30, 2024
T61: =SERVICE -> (ELECTRIC SERVICE)
T62: =DATA_PERIOD -> DATA: ____ BASE PERIOD __X__FORECASTED PERIOD | AO62: SCHEDULE M-2.2
T63: =TYPE -> TYPE OF FILING: ___ ORIGINAL ___UPDATED _X_ REVISED | AO63: ="PAGE 20 OF "&TEXT(Page_Num_2.2,"00") -> PAGE 20 OF 23
T64: WORK PAPER REFERENCE NO(S).: | AO64: WITNESS:
T65: =TIME -> 12 Months Projected with Riders - STAFF-RHDR-01-005A | AO65: =WIT -> B. L. Sailers
T66: CURRENT ANNUALIZED
AE68: CURRENT | AG68: % OF REV TO | AI68: REVENUE | AK68: % INCR IN | AO68: CURRENT | AQ68: TOTAL
AC69: MOST | AE69: REVENUE LESS | AG69: TOTAL LESS | AI69: INCR LESS | AK69: REV LESS | AO69: TOTAL | AQ69: REVENUE
T70: LINE | V70: RATE | W70: CLASS / | Y70: CUSTOMER | AC70: CURRENT | AE70: FAC | AG70: FAC | AI70: FAC REV | AK70: FAC REV | AM70: FAC | AO70: REVENUE | AQ70: % INCREASE | AU70: Lighting rate on | AX70: current | AY70: proposed
T71: NO. | V71: CODE | W71: DESCRIPTION | Y71: BILLS(1) | AA71: SALES | AC71: RATES(3) | AE71: REVENUE | AG71: REVENUE | AI71: (F - K) | AK71: (M / K) | AM71: REVENUE (2) | AO71: (K + H) | AQ71: (M / K1) | AU71: Tariff Sheet | AW71: annual kwh | AX71: base fuel | AY71: base fuel
V72: (A) | W72: (B) | Y72: (C) | AA72: (D) | AC72: (J) | AE72: (K) | AG72: (L) | AI72: (M) | AK72: (N) | AM72: (H) | AO72: (K1) | AQ72: (O) | AU72: less Base Fuel | AX72: =CUR_BASE_FUEL -> 0.025401 | AY72: =PRO_BASE_FUEL -> 0.025401
AA73: (KWH) | AC73: ($/UNIT) | AE73: ($) | AG73: (%) | AI73: ($) | AK73: (%) | AM73: ($) | AO73: ($) | AQ73: (%)
T74: 1 | V74: SE | W74: STREET LIGHTING -
T75: 2 | W75: OVERHEAD EQUIVALENT RATE
T77: 3 | V77: MERCURY VAPOR 7,000 LUMEN:
T78: 4 | V78: TOWN & COUNTRY | Y78: =F22 -> 6570 | AA78: =H22 -> 467018 | AC78: 8.13 | AE78: =ROUND(Y78*AC78,0) -> 53414 | AG78: =ROUND((AE78/AE$108)*100,1) -> 23.7 | AI78: =L22-AE78 -> 17673 | AK78: =IF(AE78=0,"0.0 ",ROUND((AI78/AE78)*100,1)) -> 33.1 | AM78: =ROUND((AM$108/AA$108)*AA78,0)-1 -> 2785 | AO78: =AM78+AE78 -> 56199 | AQ78: =IF(AO78=0,"0.0 ",ROUND((AI78/AO78)*100,1)) -> 31.4 | AU78: =AC78-AX78 -> 6.32 | AW78: =853 -> 853 | AX78: =ROUND((AW78/12)*CUR_BASE_FUEL,2) -> 1.81 | AY78: =ROUND((AW78/12)*PRO_BASE_FUEL,2) -> 1.81
T79: 5 | V79: HOLOPHANE | Y79: =F23 -> 2186 | AA79: =H23 -> 159214 | AC79: 8.16 | AE79: =ROUND(Y79*AC79,0) -> 17838 | AG79: =ROUND((AE79/AE$108)*100,1) -> 7.9 | AI79: =L23-AE79 -> 5902 | AK79: =IF(AE79=0,"0.0 ",ROUND((AI79/AE79)*100,1)) -> 33.1 | AM79: =ROUND((AM$108/AA$108)*AA79,0) -> 950 | AO79: =AM79+AE79 -> 18788 | AQ79: =IF(AO79=0,"0.0 ",ROUND((AI79/AO79)*100,1)) -> 31.4 | AU79: =AC79-AX79 -> 6.31 | AW79: 874 | AX79: =ROUND((AW79/12)*CUR_BASE_FUEL,2) -> 1.85 | AY79: =ROUND((AW79/12)*PRO_BASE_FUEL,2) -> 1.85
T80: 6 | V80: GAS REPLICA | Y80: =F24 -> 664 | AA80: =H24 -> 48361 | AC80: 8.16 | AE80: =ROUND(Y80*AC80,0) -> 5418 | AG80: =ROUND((AE80/AE$108)*100,1) -> 2.4 | AI80: =L24-AE80 -> 1793 | AK80: =IF(AE80=0,"0.0 ",ROUND((AI80/AE80)*100,1)) -> 33.1 | AM80: =ROUND((AM$108/AA$108)*AA80,0) -> 288 | AO80: =AM80+AE80 -> 5706 | AQ80: =IF(AO80=0,"0.0 ",ROUND((AI80/AO80)*100,1)) -> 31.4 | AU80: =AC80-AX80 -> 6.31 | AW80: 874 | AX80: =ROUND((AW80/12)*CUR_BASE_FUEL,2) -> 1.85 | AY80: =ROUND((AW80/12)*PRO_BASE_FUEL,2) -> 1.85
T81: 7 | V81: ASPEN | Y81: =F25 -> 126 | AA81: =H25 -> 9177 | AC81: 8.16 | AE81: =ROUND(Y81*AC81,0) -> 1028 | AG81: =ROUND((AE81/AE$108)*100,1) -> 0.5 | AI81: =L25-AE81 -> 340 | AK81: =IF(AE81=0,"0.0 ",ROUND((AI81/AE81)*100,1)) -> 33.1 | AM81: =ROUND((AM$108/AA$108)*AA81,0) -> 55 | AO81: =AM81+AE81 -> 1083 | AQ81: =IF(AO81=0,"0.0 ",ROUND((AI81/AO81)*100,1)) -> 31.4 | AU81: =AC81-AX81 -> 6.31 | AW81: 874 | AX81: =ROUND((AW81/12)*CUR_BASE_FUEL,2) -> 1.85 | AY81: =ROUND((AW81/12)*PRO_BASE_FUEL,2) -> 1.85
T83: 8 | V83: METAL HALIDE 14,000 LUMEN:
T84: 9 | V84: TRADITIONAIRE | Y84: =F28 -> 3010 | AA84: =H28 -> 213961 | AC84: 8.13 | AE84: =ROUND(Y84*AC84,0) -> 24471 | AG84: =ROUND((AE84/AE$108)*100,1) -> 10.9 | AI84: =L28-AE84 -> 8097 | AK84: =IF(AE84=0,"0.0 ",ROUND((AI84/AE84)*100,1)) -> 33.1 | AM84: =ROUND((AM$108/AA$108)*AA84,0) -> 1276 | AO84: =AM84+AE84 -> 25747 | AQ84: =IF(AO84=0,"0.0 ",ROUND((AI84/AO84)*100,1)) -> 31.4 | AU84: =AC84-AX84 -> 6.32 | AW84: 853 | AX84: =ROUND((AW84/12)*CUR_BASE_FUEL,2) -> 1.81 | AY84: =ROUND((AW84/12)*PRO_BASE_FUEL,2) -> 1.81
T85: 10 | V85: GRANVILLE ACORN | Y85: =F29 -> 0 | AA85: =H29 -> 0 | AC85: 8.16 | AE85: =ROUND(Y85*AC85,0) -> 0 | AG85: =ROUND((AE85/AE$108)*100,1) -> 0 | AI85: =L29-AE85 -> 0 | AK85: =IF(AE85=0,"0.0 ",ROUND((AI85/AE85)*100,1)) -> 0.0 | AM85: =ROUND((AM$108/AA$108)*AA85,0) -> 0 | AO85: =AM85+AE85 -> 0 | AQ85: =IF(AO85=0,"0.0 ",ROUND((AI85/AO85)*100,1)) -> 0.0 | AU85: =AC85-AX85 -> 6.31 | AW85: 874 | AX85: =ROUND((AW85/12)*CUR_BASE_FUEL,2) -> 1.85 | AY85: =ROUND((AW85/12)*PRO_BASE_FUEL,2) -> 1.85
T86: 11 | V86: GAS REPLICA | Y86: =F30 -> 424 | AA86: =H30 -> 30881 | AC86: 8.16 | AE86: =ROUND(Y86*AC86,0) -> 3460 | AG86: =ROUND((AE86/AE$108)*100,1) -> 1.5 | AI86: =L30-AE86 -> 1145 | AK86: =IF(AE86=0,"0.0 ",ROUND((AI86/AE86)*100,1)) -> 33.1 | AM86: =ROUND((AM$108/AA$108)*AA86,0) -> 184 | AO86: =AM86+AE86 -> 3644 | AQ86: =IF(AO86=0,"0.0 ",ROUND((AI86/AO86)*100,1)) -> 31.4 | AU86: =AC86-AX86 -> 6.31 | AW86: 874 | AX86: =ROUND((AW86/12)*CUR_BASE_FUEL,2) -> 1.85 | AY86: =ROUND((AW86/12)*PRO_BASE_FUEL,2) -> 1.85
T88: 12 | V88: SODIUM VAPOR 9,500 LUMEN:
T89: 13 | V89: TOWN & COUNTRY | Y89: =F33 -> 3104 | AA89: =H33 -> 125971 | AC89: 8.8 | AE89: =ROUND(Y89*AC89,0) -> 27315 | AG89: =ROUND((AE89/AE$108)*100,1) -> 12.1 | AI89: =L33-AE89 -> 9033 | AK89: =IF(AE89=0,"0.0 ",ROUND((AI89/AE89)*100,1)) -> 33.1 | AM89: =ROUND((AM$108/AA$108)*AA89,0) -> 751 | AO89: =AM89+AE89 -> 28066 | AQ89: =IF(AO89=0,"0.0 ",ROUND((AI89/AO89)*100,1)) -> 32.2 | AU89: =AC89-AX89 -> 7.77 | AW89: 487 | AX89: =ROUND((AW89/12)*CUR_BASE_FUEL,2) -> 1.03 | AY89: =ROUND((AW89/12)*PRO_BASE_FUEL,2) -> 1.03
T90: 15 | V90: HOLOPHANE | Y90: 2312 | AA90: 102499 | AC90: 8.93 | AE90: =ROUND(Y90*AC90,0) -> 20646 | AG90: 9.2 | AI90: 6844 | AK90: =IF(AE90=0,"0.0 ",ROUND((AI90/AE90)*100,1)) -> 33.1 | AM90: 611 | AO90: =AM90+AE90 -> 21257 | AQ90: =IF(AO90=0,"0.0 ",ROUND((AI90/AO90)*100,1)) -> 32.2 | AU90: =AC90-AX90 -> 7.8 | AW90: 532 | AX90: =ROUND((AW90/12)*CUR_BASE_FUEL,2) -> 1.13 | AY90: =ROUND((AW90/12)*PRO_BASE_FUEL,2) -> 1.13
T91: 16 | V91: RECTILINEAR | Y91: 928 | AA91: 37661 | AC91: 8.8 | AE91: =ROUND(Y91*AC91,0) -> 8166 | AG91: 3.6 | AI91: 2701 | AK91: =IF(AE91=0,"0.0 ",ROUND((AI91/AE91)*100,1)) -> 33.1 | AM91: 225 | AO91: =AM91+AE91 -> 8391 | AQ91: =IF(AO91=0,"0.0 ",ROUND((AI91/AO91)*100,1)) -> 32.2 | AU91: =AC91-AX91 -> 7.77 | AW91: 487 | AX91: =ROUND((AW91/12)*CUR_BASE_FUEL,2) -> 1.03 | AY91: =ROUND((AW91/12)*PRO_BASE_FUEL,2) -> 1.03
T92: 17 | V92: GAS REPLICA | Y92: 1214 | AA92: 53821 | AC92: 8.92 | AE92: =ROUND(Y92*AC92,0) -> 10829 | AG92: 4.8 | AI92: 3581 | AK92: =IF(AE92=0,"0.0 ",ROUND((AI92/AE92)*100,1)) -> 33.1 | AM92: 321 | AO92: =AM92+AE92 -> 11150 | AQ92: =IF(AO92=0,"0.0 ",ROUND((AI92/AO92)*100,1)) -> 32.1 | AU92: =AC92-AX92 -> 7.79 | AW92: 532 | AX92: =ROUND((AW92/12)*CUR_BASE_FUEL,2) -> 1.13 | AY92: =ROUND((AW92/12)*PRO_BASE_FUEL,2) -> 1.13
T93: 19 | V93: ASPEN | Y93: 2496 | AA93: 110656 | AC93: 8.92 | AE93: =ROUND(Y93*AC93,0) -> 22264 | AG93: 9.9 | AI93: 7364 | AK93: =IF(AE93=0,"0.0 ",ROUND((AI93/AE93)*100,1)) -> 33.1 | AM93: 660 | AO93: =AM93+AE93 -> 22924 | AQ93: =IF(AO93=0,"0.0 ",ROUND((AI93/AO93)*100,1)) -> 32.1 | AU93: =AC93-AX93 -> 7.79 | AW93: 532 | AX93: =ROUND((AW93/12)*CUR_BASE_FUEL,2) -> 1.13 | AY93: =ROUND((AW93/12)*PRO_BASE_FUEL,2) -> 1.13
T94: 14 | V94: TRADITIONAIRE | Y94: 0 | AA94: 0 | AC94: 8.8 | AE94: =ROUND(Y94*AC94,0) -> 0 | AG94: 0 | AI94: 0 | AK94: =IF(AE94=0,"0.0 ",ROUND((AI94/AE94)*100,1)) -> 0.0 | AM94: 0 | AO94: =AM94+AE94 -> 0 | AQ94: =IF(AO94=0,"0.0 ",ROUND((AI94/AO94)*100,1)) -> 0.0 | AU94: 7.77 | AW94: 487 | AX94: 1.03 | AY94: 1.03
T95: 18 | V95: GRANVILLE ACORN | Y95: 148 | AA95: 6561 | AC95: 8.92 | AE95: 1320 | AG95: 0.6 | AI95: 437 | AK95: 33.1 | AM95: 39 | AO95: 1359 | AQ95: 32.2 | AU95: 7.79 | AW95: 532 | AX95: 1.13 | AY95: 1.13
T97: 20 | V97: SODIUM VAPOR:
